Workbook

Sheet Contents
B3: Generic LRAMVA Work Forms
B5: Worksheet Name | C5: Description
B6: 1. LRAMVA Summary | C6: Tables 1-a and 1-b provide a summary of the LRAMVA balances and carrying charges associated with the LRAMVA disposition. The balances are populated from entries into other tabs throughout this work form.
B7: 1-a. Summary of Changes | C7: Tables A-1 and A-2 include a template for LDCs to summarize changes to the LRAMVA work form.
B8: 2. LRAMVA Threshold | C8: Tables 2-a, 2-b and 2-c include the LRAMVA thresholds and allocations by rate class.
B9: 3. Distribution Rates | C9: Tables 3-a and 3-b include the distribution rates that are used to calculate lost revenues.
B10: 3-a. Rate Class Allocations | C10: A blank spreadsheet is provided to allow LDCs to populate distributor specific rate class percentages to allocate actual CDM savings to different customer classes.
B11: 4. 2011-2014 LRAM | C11: Tables 4-a, 4-b, 4-c and 4-d include the template 2011-2014 LRAMVA work forms.
B12: 5. 2015-2020 LRAM | C12: Tables 5-a, 5-b, 5-c and 5-d include the template 2015-2020 LRAMVA work forms.
B13: 6. Carrying Charges | C13: Table 6-b includes the variance on carrying charges related to the LRAMVA disposition.
B15: 7. Persistence Report | C15: A blank spreadsheet is provided to allow LDCs to populate with CDM savings persistence data provided by the IESO.
B17: 8. Streetlighting | C17: A blank spreadsheet is provided to allow LDCs to populate data on streetlighting projects whose savings were not provided by the IESO in the CDM Final Results Report (i.e., streetlighting projects).

Sheet Instructions
B16: Tab | C16: Instructions
B17: LRAMVA Checklist/Schematic Tab | C17: The LRAMVA work form was created in a generic manner for use by all LDCs. There are some elements that are not applicable at this time (i.e., 2017, 2018, 2019 and 2020 related components) but have been included in an effort to avoid major updates in the future. Distributors should follow the checklist, which is referenced in this tab of the work form and listed below:
C19: o Highlight changes to this work form made by the LDC, if any, and provide rationale for the change in Tab 1-a.
C21: o Include any necessary assumptions the LDC has to make in its LRAMVA work form in the "Notes" section of the work form.
C23: o Provide documentation on the LRAMVA threshold by providing the reference and source material from the LDC’s cost of service proceeding where its most recent load forecast was approved.
C25: o Include a copy of initiative-level persistence savings information that was verified by the IESO. Persistence information is available upon request from the IESO.
C27: o Apply the IESO verified savings adjustments to the year it relates to. For example, savings adjustments to 2015 programs will be provided to LDCs with the 2016 Final Results Report. The 2015 savings adjustments should be included in the 2015 verified savings portion of the work form.
C29: o Provide documentation or data substantiating savings from projects that were not provided in the IESO's verified results reports, inserted in Tab 8 (i.e., streetlighting projects), as applicable.
C31: o Provide documentation or analysis on how rate class allocations were determined by customer class and program each year, inserted in Tab 3-a.
B33: Tab 1. LRAMVA Summary | C33: Distributors are required to report any past approved LRAMVA amounts along with the current LRAMVA amount requested for approval. There are separate tables indicating new lost revenues and carrying charges amounts by year and the totals for rate rider calculations.
B35: Tab 1-a. Summary of Changes | C35: Distributors should list all significant changes and changes in assumptions in the generic work form affecting the LRAMVA.
B37: Tab 2. LRAMVA Threshold | C37: Distributors should use the tables to display the LRAMVA threshold amounts as approved at a rate class level. This should be taken from the LDC’s most recently approved cost of service application.
B39: Tab 3. Distribution Rates | C39: Distributors should complete the tables with rate class specific distribution rates and adjustments as applicable.
B41: Tab 3-a. Rate Class Allocations | C41: A tab is provided to allow LDCs to include documentation or analysis on how rate class allocations for actual CDM savings were determined by customer class and program each year. The rate class allocations would support the LRAMVA rate class allocation figures used in Tabs 4 and 5.
B43: Tabs 4 and 5 (2011-2020) | C43: Distributors should complete the lost revenue calculation for 2011-2014 program years and 2015-2020 program years, as applicable, by undertaking the following:
C45: o Input or manually link the savings, adjustments and program savings persistence data from Tab 7 (Persistence Report) to Tabs 4 and 5. As noted earlier, persistence data is available upon request from the IESO.
C47: o Ensure that the IESO verified savings adjustments apply to the program year it relates to. For example, savings adjustments related to 2012 programs that were reported by the IESO in 2013 should be included in the 2012 program savings table.
C49: o Confirm the monthly multipliers applied to demand savings. If a different monthly multiplier is used than what was confirmed in the LRAMVA Report, provide rationale in Tab 1-a and highlight the new monthly multiplier that has been used.
C51: o Input the rate class allocations by program and year to allocate actual savings to customers. If a different allocation is proposed for adjustments, LDCs must provide the supporting rationale in Tab 1-a and highlight the change.
C53: o Provide assumptions about the year(s) in which persistence is captured in the load forecast via the "Notes" section of each table and adjust what is included in the LRAMVA totals, as appropriate.
B55: Tab 6. Carrying Charges | C55: Distributors are requested to calculate carrying charges based on the methodology provided in the work form. This includes updating Table 6 as new prescribed interest rates for deferral and variance accounts become available and entering any collected interest amounts into the "Amounts Cleared" row to calculate outstanding variances on carrying charges.
B57: Tab 7. Persistence Report | C57: Persistence savings report(s) provided by the IESO should be included for the relevant years in the LRAMVA work form. Tab 7 has been created consistently with the IESO’s persistence report.
B59: Tab 8. Streetlighting | C59: A tab is provided to ensure LDCs include documentation or data to support projects whose program savings were not provided by the IESO (i.e., streetlighting projects).

Sheet LRAMVA Checklist Schematic
B3: General Note on the LRAMVA Model The LRAMVA work form has been created in a generic manner that should allow for use by all LDCs. There are some elements that are not applicable at this time (i.e., 2018, 2019 and 2020 related components). These have been included (but hidden in the work form) in an effort to avoid major updates in the future. This LRAMVA work form consolidates information that LDCs are already required to file with the OEB. The model has been created to provide LDCs with a consistent format to display CDM impacts, the forecast savings component and, ultimately, any variance between actual CDM savings and forecast CDM savings. The majority of the information required in the LRAMVA work form will be provided to LDCs from the IESO as part of the Final CDM Results each year. Please contact the IESO for any reports that may be required to complete this LRAMVA work form. The LRAMVA work form is unlocked to enable LDCs to tailor it to their own unique circumstances.
B8: LRAMVA ($) = (Actual Net CDM Savings - Forecast CDM Savings) x Distribution Volumetric Rate + Carrying Charges from LRAMVA balance
B10: Legend | C10: Drop Down List (Blue)
B12: Important Checklist
B13: Yes | C13: o Highlight changes to this work form made by the LDC, if any, and provide rationale for the change in Tab 1-a
B14: Yes | C14: o Include any necessary assumptions the LDC has to make in its LRAMVA work form in the "Notes" section of the work form
B15: Yes | C15: o Provide documentation on the LRAMVA threshold by providing the reference and source material from the LDC’s cost of service proceeding where its most recent load forecast was approved
B16: Yes | C16: o Include a copy of initiative-level persistence savings information that was verified by the IESO in Tab 7. Persistence information is available upon request from the IESO
B17: Yes | C17: o Apply the IESO verified savings adjustments to the year it relates to.
B18: Not Applicable | C18: o Provide documentation or data substantiating savings from projects that were not provided in the IESO's verified results reports, inserted in Tab 8 (i.e., streetlighting projects), as applicable
C19: o Provide documentation or analysis on how rate class allocations were determined by customer class and program each year, inserted in Tab 3-a
B21: Work Form Calculations | C21: Source of Calculation | D21: Inputs (Tables to Complete) | E21: Source of Data Inputs | F21: Outputs of Data (Auto-Populated)
B22: Actual Incremental CDM Savings by Initiative | C22: Tabs "4. 2011-2014 LRAM" and "5. 2015-2020 LRAM" | D22: Tables 4-a to 4-d / 5-a to 5-f (Columns D & O) | E22: IESO Verified Persistence Results Reports included in Tab 7 (Columns L to BT). | F22: Tables 4-a to 4-d / 5-a to 5-f (Columns Y-AL)
B23: +/- IESO Verified Savings Adjustments | C23: Tab "4. 2011-2014 LRAM" | D23: Tables 4-a to 4-d / 5-a to 5-f (Columns D-M & Columns O-X) | E23: IESO Verified Persistence Results Reports included in Tab 7 (Columns L to BT). | F23: Tables 4-a to 4-d / 5-a to 5-f (Columns Y-AL)
B24: + Initiative Level Savings Persistence | C24: Tab "4. 2011-2014 LRAM" | D24: Tables 4-a to 4-d / 5-a to 5-f (Columns E-M & Columns P-X) | E24: IESO Verified Persistence Results Reports included in Tab 7 (Columns L to BT). | F24: Tables 4-a to 4-d / 5-a to 5-f (Columns Y-AL)
B25: x Allocation % to Rate Class | C25: Tabs "4. 2011-2014 LRAM" and "5. 2015-2020 LRAM" | D25: Tables 4-a to 4-d / 5-a to 5-f (Columns Y-AJ) | E25: Determined by the LDC
B26: Actual Lost Revenues (kWh and kW) by Rate Class | C26: Tabs "4. 2011-2014 LRAM" and "5. 2015-2020 LRAM"
B27: - Forecast Lost Revenues (kWh and kW) by Rate Class | C27: Tabs "4. 2011-2014 LRAM" and "5. 2015-2020 LRAM" | D27: Tab "2. LRAMVA Threshold" Tables 2-a, 2-b and 2-c
B28: x Distribution Rate by Rate Class | C28: Tab "3. Distribution Rates" | D28: Table 3 | E28: LDC's Approved Tariff Sheets
B29: LRAMVA ($) by Rate Class | C29: Tabs "4. 2011-2014 LRAM" and "5. 2015-2020 LRAM" | F29: Tables 1-a and 1-b
B30: + Carrying Charges ($) by Rate Class | C30: Tabs "1. LRAMVA Summary" and "6. Carrying Charges" | D30: Table 6 | F30: Table 6-a
B31: Total LRAMVA ($) by Rate Class | C31: Tab "1. LRAMVA Summary"

Sheet DropDownList (hidden)
A1: Service Classifications | B1: Billing Unit | C1: Year | D1: Response | E1: Threshold | F1: Tabs | G1: Source of Persistence Reports | H1: Record
A2: Residential | B2: kWh | C2: 2006 | D2: Yes | E2: ='2. LRAMVA Threshold'!D9 -> 2013 | F2: 1. LRAMVA Summary | G2: 2011 Results Persistence | H2: Current year savings
A3: GS<50 kW | B3: kWh | C3: 2007 | D3: No | E3: ='2. LRAMVA Threshold'!D24 -> 0 | F3: 2. LRAMVA Threshold | G3: 2012 Results Persistence | H3: Adjustment
A4: GS>50 kW | B4: kW | C4: 2008 | D4: Not Applicable | F4: 3. Distribution Rates | G4: 2013 Results Persistence
A5: General Service ≥ 1,000 kW | B5: kW | C5: 2009 | F5: 4. 2011-2014 LRAM | G5: 2014 Results Persistence
A6: General Service ≥ 1,500 kW | B6: kW | C6: 2010 | F6: 5. 2015-2020 LRAM | G6: 2015 Results Persistence
A7: General Service 1,000 kW and Greater | B7: kW | C7: 2011 | F7: 6. Carrying Charges | G7: 2016 Results Persistence
A8: General Service 1,000 to 4,999 kW | B8: kW | C8: 2012 | F8: 7. Persistence Data | G8: 2017 Results Persistence
A9: General Service 1,000 to 4,999 kW (co-generation) | B9: kW | C9: 2013 | G9: 2018 Results Persistence
A10: General Service 1,500 to 4,999 kW | B10: kW | C10: 2014 | G10: 2019 Results Persistence
A11: General Service 3,000 to 4,999 kW | B11: kW | C11: 2015 | G11: 2020 Results Persistence
A12: General Service 50 to 1,499 kW | B12: kW | C12: 2016
A13: General Service 50 to 2,999 kW | B13: kW | C13: 2017
A14: General Service 50 to 4,999 kW | B14: kW | C14: 2018
A15: General Service 50 to 499 kW | B15: kW | C15: 2019
A16: General Service 50 to 699 kW | B16: kW | C16: 2020
A17: General Service 50 to 999 kW | B17: kW
A18: General Service 500 to 1,499 kW | B18: kW
A19: General Service 500 to 4,999 kW | B19: kW
A20: General Service 700 to 4,999 kW | B20: kW
A21: General Service Demand Billed (50 kW and above) - GSd | B21: kW
A22: General Service Intermediate 1,000 to 4,999 kW | B22: kW
A23: Intermediate With Self Generation | B23: kW
A24: Intermediate With Self Generation - excluding MUSH customers | B24: kW
A25: Sub-Transmission (Embedded supply to LDC or loads > 500 kW) - ST | B25: kW
A26: Unmetered Scattered Load | B26: kWh
A27: Urban General Service Demand Billed (50 kW and above) - UGd | B27: kW
A28: Embedded Distributor | B28: kW
A29: Large Use | B29: kW
A30: Sentinel Lighting | B30: kW
A31: Standby Power | B31: kW
A32: Standby Power - 1,500 - 4,999 kW | B32: kW
A33: Standby Power - 1000-4999 kW | B33: kW
A34: Standby Power - 50 - 1,499 kW | B34: kW
A35: Standby Power - 50 - 499 kW | B35: kW
A36: Standby Power - 50 - 4999 kW | B36: kW
A37: Standby Power - 50 - 999 kW | B37: kW
A38: Standby Power - 500 - 4999 kW | B38: kW
A39: Standby Power - Large Use | B39: kW
A40: Street Lighting | B40: kW

Sheet 1. LRAMVA Summary
B4: Legend | C4: User Inputs (Green)
C5: Auto Populated Cells (White)
C6: Instructions (Grey)
B8: LDC Name | C8: Bluewater Power
B9: Application Details
B11: Please fill in the requested information: a) the amounts approved in the previous LRAMVA application, b) details on the current application, and c) documentation of changes if applicable.
B13: A. Previous LRAMVA Application | F13: B. Current LRAMVA Application | J13: C. Documentation of Changes
B14: Previous LRAMVA Application (EB#) | D14: EB-2016-0057 | F14: Current LRAMVA Application (EB#) | H14: EB-2018-0019 | J14: Original Amount
B15: Application of Previous LRAMVA Claim | D15: 2016 IRM Application | F15: Application of Current LRAMVA Claim | H15: 2019 IRM Application | J15: Amount for Final Disposition
B16: Period of LRAMVA Claimed in Previous Application | D16: 2013-2015 | F16: Period of New LRAMVA in this Application | H16: 2016-2017
B17: Amount of LRAMVA Claimed in Previous Application | D17: 295061.63 | F17: Period of Rate Recovery (# years) | H17: 2
F19: Actual Lost Revenues ($) | G19: A | H19: =SUM(R54,R57,R60,R63,R66,R69,R72) -> 617487.8321
F20: Forecast Lost Revenues ($) | G20: B | H20: =-SUM(R55,R58,R61,R64,R67,R70,R73) -> 211987.9125
F21: Carrying Charges ($) | G21: C | H21: =R84 -> 14515.94792
F22: LRAMVA ($) for Account 1568 | G22: A-B+C | H22: =H19-H20+H21 -> 420015.8675
B24: Table 1-a. LRAMVA Totals by Rate Class
B26: Please input the customer rate classes applicable to the LDC and associated billing units (kWh or kW) in Table 1-a below. This will update all tables throughout the workform. The LRAMVA total by rate class in Table 1-a should be used to inform the determination of rate riders in the Deferral and Variance Account Work Form or IRM Rate Generator Model. Please also ensure that the principal amounts in column E of Table 1-a capture the appropriate years and amounts for the LRAMVA claim. Column F of Table 1-a should include projected carrying charges amounts as determined on a rate class basis from Table 1-b below. NOTE: If the LDC has more than 14 customer classes in which CDM savings was allocated, LDCs must contact OEB staff to make adjustments to the workform.
B28: Customer Class | D28: Billing Unit | E28: Principal ($) | F28: Carrying Charges ($) | G28: Total LRAMVA ($)
B29: Residential | D29: kWh | E29: =SUM(D54:D83) -> 191606.7604 | F29: =D84 -> 6721.492116 | G29: =E29+F29 -> 198328.2525
B30: GS<50 kW | D30: kWh | E30: =SUM(E54:E83) -> 47811.42506 | F30: =E84 -> 1734.494292 | G30: =E30+F30 -> 49545.91935
B31: General Service 50 - 999 kW | D31: kW | E31: =SUM(F54:F83) -> 166295.7151 | F31: =F84 -> 6063.645488 | G31: =E31+F31 -> 172359.3606
B32: General Service 1,000 - 4,999 kW | D32: kW | E32: =SUM(G54:G83) -> 5255.528121 | F32: =G84 -> 199.9248505 | G32: 5455.452971
B33: Sentinel Lighting | D33: kW | E33: =SUM(H54:H83) -> -159.6429 | F33: =H84 -> -5.94997926 | G33: =E33+F33 -> -165.5928793
B34: Street Lighting | D34: kW | E34: =SUM(I54:I83) -> -1712.4932 | F34: =I84 -> -63.82555608 | G34: -1776.318756
B35: Unmetered Scattered Load | D35: kWh | E35: =SUM(J54:J83) -> -2443.2237 | F35: =J84 -> -91.07280778 | G35: =E35+F35 -> -2534.296508
B36: Large Use | D36: kW | E36: =SUM(K54:K83) -> -1154.149284 | F36: =K84 -> -42.76048 | G36: =E36+F36 -> -1196.909764
E37: =SUM(L54:L83) -> 0 | F37: =L84 -> 0 | G37: 0
E38: =SUM(M54:M83) -> 0 | F38: =M84 -> 0 | G38: 0
E39: =SUM(N54:N83) -> 0 | F39: =N84 -> 0 | G39: 0
E40: =SUM(O54:O83) -> 0 | F40: =O84 -> 0 | G40: 0
E41: =SUM(P54:P83) -> 0 | F41: =P84 -> 0 | G41: 0
E42: =SUM(Q54:Q83) -> 0 | F42: =Q84 -> 0 | G42: 0
B43: Total | E43: =SUM(E29:E42) -> 405499.9196 | F43: =SUM(F29:F42) -> 14515.94792 | G43: =SUM(G29:G42) -> 420015.8675
B46: Table 1-b. Annual LRAMVA Breakdown by Year and Rate Class
B48: In column C of Table 1-b below, please insert a 'check mark' to indicate the years in which LRAMVA has been claimed. If you inserted a check-mark for a particular year, please delete the amounts associated with the actual and forecast lost revenues for all rate classes for that year, up to and including the total. Any LRAMVA from a prior year that has already been claimed cannot be included in the current LRAMVA disposition, with the exception of the case noted below.
B49: If LDCs are seeking to claim true-up amounts that were previously approved by the OEB, please note that the "Amount Cleared" rows are applicable to the LDC and should be filled out. This may relate to claiming the difference in LRAM approved before the May 19, 2016 Peak Demand Consultation, and the lost revenues that would have been incurred after that consultation, as approved by the OEB. If this is the case, reference to the decision must be noted in the rate application. If this is not the case, LDCs are requested to leave those rows blank.
B50: LDCs are expected to include projected carrying charges amounts in row 84 of Table 1-b below. LDCs should also check accuracy of the years included in the LRAMVA balance in row 85.
B52: Description | C52: LRAMVA Previously Claimed | D52: =IF($B29<>"",$B29,"") -> Residential | E52: =IF($B30<>"",$B30,"") -> GS<50 kW | F52: =IF($B31<>"",$B31,"") -> General Service 50 - 999 kW | G52: =IF($B32<>"",$B32,"") -> General Service 1,000 - 4,999 kW | H52: =IF($B33<>"",$B33,"") -> Sentinel Lighting | I52: =IF($B34<>"",$B34,"") -> Street Lighting | J52: =IF($B35<>"",$B35,"") -> Unmetered Scattered Load | K52: =IF($B36<>"",$B36,"") -> Large Use | L52: =IF($B37<>"",$B37,"") ->  | M52: =IF($B38<>"",$B38,"") ->  | N52: =IF($B39<>"",$B39,"") ->  | O52: =IF($B40<>"",$B40,"") ->  | P52: =IF($B41<>"",$B41,"") ->  | Q52: =IF($B42<>"",$B42,"") ->  | R52: Total
D53: =D29 -> kWh | E53: =D30 -> kWh | F53: =D31 -> kW | G53: =D32 -> kW | H53: =D33 -> kW | I53: =D34 -> kW | J53: =D35 -> kWh | K53: =D36 -> kW | L53: =D37 -> 0 | M53: =D38 -> 0 | N53: =D39 -> 0 | O53: =D40 -> 0 | P53: =D41 -> 0 | Q53: =D42 -> 0
B54: 2011 Actuals
B55: 2011 Forecast
B56: Amount Cleared
B57: 2012 Actuals
B58: 2012 Forecast
B59: Amount Cleared
B60: 2013 Actuals
B61: 2013 Forecast
B62: Amount Cleared
B63: 2014 Actuals
B64: 2014 Forecast
B65: Amount Cleared
B66: 2015 Actuals
B67: 2015 Forecast
B68: Amount Cleared
B69: 2016 Actuals | D69: ='5. 2015-2020 LRAM'!Y386 -> 133593.9994 | E69: ='5. 2015-2020 LRAM'!Z386 -> 50370.67397 | F69: ='5. 2015-2020 LRAM'!AA386 -> 75265.8949 | G69: ='5. 2015-2020 LRAM'!AB386 -> 4030.855208 | H69: ='5. 2015-2020 LRAM'!AC386 -> 0 | I69: ='5. 2015-2020 LRAM'!AD386 -> 0 | J69: ='5. 2015-2020 LRAM'!AE386 -> 0 | K69: ='5. 2015-2020 LRAM'!AF386 -> 827.4083839 | L69: ='5. 2015-2020 LRAM'!AG386 -> 0 | M69: ='5. 2015-2020 LRAM'!AH386 -> 0 | N69: ='5. 2015-2020 LRAM'!AI386 -> 0 | O69: ='5. 2015-2020 LRAM'!AJ386 -> 0 | P69: ='5. 2015-2020 LRAM'!AK386 -> 0 | Q69: ='5. 2015-2020 LRAM'!AL386 -> 0 | R69: =SUM(D69:Q69) -> 264088.8319
B70: 2016 Forecast | D70: =-'5. 2015-2020 LRAM'!Y387 -> -76175.7081 | E70: =-'5. 2015-2020 LRAM'!Z387 -> -30912.9065 | F70: =-'5. 2015-2020 LRAM'!AA387 -> -4830.54 | G70: =-'5. 2015-2020 LRAM'!AB387 -> -1062.25 | H70: =-'5. 2015-2020 LRAM'!AC387 -> -79.1622 | I70: =-'5. 2015-2020 LRAM'!AD387 -> -849.1736 | J70: =-'5. 2015-2020 LRAM'!AE387 -> -1212.6426 | K70: =-'5. 2015-2020 LRAM'!AF387 -> -1376.854 | L70: =-'5. 2015-2020 LRAM'!AG387 -> 0 | M70: =-'5. 2015-2020 LRAM'!AH387 -> 0 | N70: =-'5. 2015-2020 LRAM'!AI387 -> 0 | O70: =-'5. 2015-2020 LRAM'!AJ387 -> 0 | P70: =-'5. 2015-2020 LRAM'!AK387 -> 0 | Q70: =-'5. 2015-2020 LRAM'!AL387 -> 0 | R70: =SUM(D70:Q70) -> -116499.237
B71: Amount Cleared
B72: 2017 Actuals | D72: ='5. 2015-2020 LRAM'!Y568 -> 188718.6208 | E72: ='5. 2015-2020 LRAM'!Z568 -> 59747.07559 | F72: ='5. 2015-2020 LRAM'!AA568 -> 100771.2966 | G72: ='5. 2015-2020 LRAM'!AB568 -> 3366.897312 | H72: ='5. 2015-2020 LRAM'!AC568 -> 0 | I72: ='5. 2015-2020 LRAM'!AD568 -> 0 | J72: ='5. 2015-2020 LRAM'!AE568 -> 0 | K72: ='5. 2015-2020 LRAM'!AF568 -> 795.1099318 | L72: ='5. 2015-2020 LRAM'!AG568 -> 0 | M72: ='5. 2015-2020 LRAM'!AH568 -> 0 | N72: ='5. 2015-2020 LRAM'!AI568 -> 0 | O72: ='5. 2015-2020 LRAM'!AJ568 -> 0 | P72: ='5. 2015-2020 LRAM'!AK568 -> 0 | Q72: ='5. 2015-2020 LRAM'!AL568 -> 0 | R72: =SUM(D72:Q72) -> 353399.0002
B73: 2017 Forecast | D73: =-'5. 2015-2020 LRAM'!Y569 -> -54530.1517 | E73: =-'5. 2015-2020 LRAM'!Z569 -> -31393.418 | F73: =-'5. 2015-2020 LRAM'!AA569 -> -4910.9364 | G73: =-'5. 2015-2020 LRAM'!AB569 -> -1079.9744 | H73: =-'5. 2015-2020 LRAM'!AC569 -> -80.4807 | I73: =-'5. 2015-2020 LRAM'!AD569 -> -863.3196 | J73: =-'5. 2015-2020 LRAM'!AE569 -> -1230.5811 | K73: =-'5. 2015-2020 LRAM'!AF569 -> -1399.8136 | L73: =-'5. 2015-2020 LRAM'!AG569 -> 0 | M73: =-'5. 2015-2020 LRAM'!AH569 -> 0 | N73: =-'5. 2015-2020 LRAM'!AI569 -> 0 | O73: =-'5. 2015-2020 LRAM'!AJ569 -> 0 | P73: =-'5. 2015-2020 LRAM'!AK569 -> 0 | Q73: =-'5. 2015-2020 LRAM'!AL569 -> 0 | R73: =SUM(D73:Q73) -> -95488.6755
B74: Amount Cleared
B75: 2018 Actuals | D75: ='5. 2015-2020 LRAM'!Y752 -> 0 | E75: ='5. 2015-2020 LRAM'!Z752 -> 0 | F75: ='5. 2015-2020 LRAM'!AA752 -> 0 | G75: ='5. 2015-2020 LRAM'!AB752 -> 0 | H75: ='5. 2015-2020 LRAM'!AC752 -> 0 | I75: ='5. 2015-2020 LRAM'!AD752 -> 0 | J75: ='5. 2015-2020 LRAM'!AE752 -> 0 | K75: ='5. 2015-2020 LRAM'!AF752 -> 0 | L75: ='5. 2015-2020 LRAM'!AG752 -> 0 | M75: ='5. 2015-2020 LRAM'!AH752 -> 0 | N75: ='5. 2015-2020 LRAM'!AI752 -> 0 | O75: ='5. 2015-2020 LRAM'!AJ752 -> 0 | P75: ='5. 2015-2020 LRAM'!AK752 -> 0 | Q75: ='5. 2015-2020 LRAM'!AL752 -> 0 | R75: =SUM(D75:Q75) -> 0
B76: 2018 Forecast | D76: =-'5. 2015-2020 LRAM'!Y753 -> 0 | E76: =-'5. 2015-2020 LRAM'!Z753 -> 0 | F76: =-'5. 2015-2020 LRAM'!AA753 -> 0 | G76: =-'5. 2015-2020 LRAM'!AB753 -> 0 | H76: =-'5. 2015-2020 LRAM'!AC753 -> 0 | I76: =-'5. 2015-2020 LRAM'!AD753 -> 0 | J76: =-'5. 2015-2020 LRAM'!AE753 -> 0 | K76: =-'5. 2015-2020 LRAM'!AF753 -> 0 | L76: =-'5. 2015-2020 LRAM'!AG753 -> 0 | M76: =-'5. 2015-2020 LRAM'!AH753 -> 0 | N76: =-'5. 2015-2020 LRAM'!AI753 -> 0 | O76: =-'5. 2015-2020 LRAM'!AJ753 -> 0 | P76: =-'5. 2015-2020 LRAM'!AK753 -> 0 | Q76: =-'5. 2015-2020 LRAM'!AL753 -> 0 | R76: =SUM(D76:Q76) -> 0
B77: Amount Cleared
B78: 2019 Actuals | D78: ='5. 2015-2020 LRAM'!Y936 -> 0 | E78: ='5. 2015-2020 LRAM'!Z936 -> 0 | F78: ='5. 2015-2020 LRAM'!AA936 -> 0 | G78: ='5. 2015-2020 LRAM'!AB936 -> 0 | H78: ='5. 2015-2020 LRAM'!AC936 -> 0 | I78: ='5. 2015-2020 LRAM'!AD936 -> 0 | J78: ='5. 2015-2020 LRAM'!AE936 -> 0 | K78: ='5. 2015-2020 LRAM'!AF936 -> 0 | L78: ='5. 2015-2020 LRAM'!AG936 -> 0 | M78: ='5. 2015-2020 LRAM'!AH936 -> 0 | N78: ='5. 2015-2020 LRAM'!AI936 -> 0 | O78: ='5. 2015-2020 LRAM'!AJ936 -> 0 | P78: ='5. 2015-2020 LRAM'!AK936 -> 0 | Q78: ='5. 2015-2020 LRAM'!AL936 -> 0 | R78: =SUM(D78:Q78) -> 0
B79: 2019 Forecast | D79: =-'5. 2015-2020 LRAM'!Y937 -> 0 | E79: =-'5. 2015-2020 LRAM'!Z937 -> 0 | F79: =-'5. 2015-2020 LRAM'!AA937 -> 0 | G79: =-'5. 2015-2020 LRAM'!AB937 -> 0 | H79: =-'5. 2015-2020 LRAM'!AC937 -> 0 | I79: =-'5. 2015-2020 LRAM'!AD937 -> 0 | J79: =-'5. 2015-2020 LRAM'!AE937 -> 0 | K79: =-'5. 2015-2020 LRAM'!AF937 -> 0 | L79: =-'5. 2015-2020 LRAM'!AG937 -> 0 | M79: =-'5. 2015-2020 LRAM'!AH937 -> 0 | N79: =-'5. 2015-2020 LRAM'!AI937 -> 0 | O79: =-'5. 2015-2020 LRAM'!AJ937 -> 0 | P79: =-'5. 2015-2020 LRAM'!AK937 -> 0 | Q79: =-'5. 2015-2020 LRAM'!AL937 -> 0 | R79: =SUM(D79:Q79) -> 0
B80: Amount Cleared
B81: 2020 Actuals | D81: ='5. 2015-2020 LRAM'!Y1120 -> 0 | E81: ='5. 2015-2020 LRAM'!Z1120 -> 0 | F81: ='5. 2015-2020 LRAM'!AA1120 -> 0 | G81: ='5. 2015-2020 LRAM'!AB1120 -> 0 | H81: ='5. 2015-2020 LRAM'!AC1120 -> 0 | I81: ='5. 2015-2020 LRAM'!AD1120 -> 0 | J81: ='5. 2015-2020 LRAM'!AE1120 -> 0 | K81: ='5. 2015-2020 LRAM'!AF1120 -> 0 | L81: ='5. 2015-2020 LRAM'!AG1120 -> 0 | M81: ='5. 2015-2020 LRAM'!AH1120 -> 0 | N81: ='5. 2015-2020 LRAM'!AI1120 -> 0 | O81: ='5. 2015-2020 LRAM'!AJ1120 -> 0 | P81: ='5. 2015-2020 LRAM'!AK1120 -> 0 | Q81: ='5. 2015-2020 LRAM'!AL1120 -> 0 | R81: =SUM(D81:Q81) -> 0
B82: 2020 Forecast | D82: =-'5. 2015-2020 LRAM'!Y1121 -> 0 | E82: =-'5. 2015-2020 LRAM'!Z1121 -> 0 | F82: =-'5. 2015-2020 LRAM'!AA1121 -> 0 | G82: =-'5. 2015-2020 LRAM'!AB1121 -> 0 | H82: =-'5. 2015-2020 LRAM'!AC1121 -> 0 | I82: =-'5. 2015-2020 LRAM'!AD1121 -> 0 | J82: =-'5. 2015-2020 LRAM'!AE1121 -> 0 | K82: =-'5. 2015-2020 LRAM'!AF1121 -> 0 | L82: =-'5. 2015-2020 LRAM'!AG1121 -> 0 | M82: =-'5. 2015-2020 LRAM'!AH1121 -> 0 | N82: =-'5. 2015-2020 LRAM'!AI1121 -> 0 | O82: =-'5. 2015-2020 LRAM'!AJ1121 -> 0 | P82: =-'5. 2015-2020 LRAM'!AK1121 -> 0 | Q82: =-'5. 2015-2020 LRAM'!AL1121 -> 0 | R82: =SUM(D82:Q82) -> 0
B83: Amount Cleared
B84: Carrying Charges | D84: ='6. Carrying Charges'!I162 -> 6721.492116 | E84: ='6. Carrying Charges'!J162 -> 1734.494292 | F84: ='6. Carrying Charges'!K162 -> 6063.645488 | G84: ='6. Carrying Charges'!L162 -> 199.9248505 | H84: ='6. Carrying Charges'!M162 -> -5.94997926 | I84: ='6. Carrying Charges'!N162 -> -63.82555608 | J84: ='6. Carrying Charges'!O162 -> -91.07280778 | K84: ='6. Carrying Charges'!P162 -> -42.76048 | L84: ='6. Carrying Charges'!Q162 -> 0 | M84: ='6. Carrying Charges'!R162 -> 0 | N84: ='6. Carrying Charges'!S162 -> 0 | O84: ='6. Carrying Charges'!T162 -> 0 | P84: ='6. Carrying Charges'!U162 -> 0 | Q84: ='6. Carrying Charges'!V162 -> 0 | R84: =SUM(D84:Q84) -> 14515.94792
B85: Total LRAMVA Balance | D85: =SUM(D54:D74)+D84 -> 198328.2525 | E85: =SUM(E54:E74)+E84 -> 49545.91935 | F85: =SUM(F54:F74)+F84 -> 172359.3606 | G85: =SUM(G54:G74)+G84 -> 5455.452971 | H85: =SUM(H54:H74)+H84 -> -165.5928793 | I85: =SUM(I54:I74)+I84 -> -1776.318756 | J85: -2534.296508 | K85: -1196.909764 | L85: 0 | M85: 0 | N85: 0 | O85: 0 | P85: =SUM(P54:P74)+P84 -> 0 | Q85: =SUM(Q54:Q74)+Q84 -> 0 | R85: =SUM(R54:R74)+R84 -> 420015.8675
B86: Note: LDC to make note of assumptions included above, if any
B89: Table 1-c. Breakdown of Incremental and Persisting Lost Revenues Amounts (Dollars)
B90: LDCs are requested to clear the cells in the table to show only the amounts related to this LRAMVA application. This table is a check on the LRAMVA disposition providing a breakdown of actual incremental and persisting savings by year.
C92: 2011 | D92: 2012 | E92: 2013 | F92: 2014 | G92: 2015 | H92: 2016 | I92: 2017 | J92: 2018 | K92: 2019 | L92: 2020 | M92: Total
B93: 2011 | C93: ='4. 2011-2014 LRAM'!AM131 -> 51148.10187 | D93: =SUM('4. 2011-2014 LRAM'!Y259:AL259) -> 51496.64513 | E93: =SUM('4. 2011-2014 LRAM'!Y388:AL388) -> 56175.29482 | F93: =SUM('4. 2011-2014 LRAM'!Y517:AL517) -> 58444.78083 | G93: =SUM('5. 2015-2020 LRAM'!Y199:AL199) -> 56731.72367 | H93: =SUM('5. 2015-2020 LRAM'!#REF!) ->  | I93: =SUM('5. 2015-2020 LRAM'!#REF!) ->  | J93: =SUM('5. 2015-2020 LRAM'!Y744:AL744) -> 0 | K93: =SUM('5. 2015-2020 LRAM'!Y927:AL927) -> 0 | L93: =SUM('5. 2015-2020 LRAM'!Y1110:AL1110) -> 0 | M93: =SUM(C93:L93) -> 
B94: 2012 | D94: =SUM('4. 2011-2014 LRAM'!Y260:AL260) -> 52962.05128 | E94: =SUM('4. 2011-2014 LRAM'!Y389:AL389) -> 57606.58052 | F94: =SUM('4. 2011-2014 LRAM'!Y518:AL518) -> 60644.24244 | G94: =SUM('5. 2015-2020 LRAM'!Y200:AL200) -> 57219.60597 | H94: =SUM('5. 2015-2020 LRAM'!#REF!) ->  | I94: =SUM('5. 2015-2020 LRAM'!#REF!) ->  | J94: =SUM('5. 2015-2020 LRAM'!Y745:AL745) -> 0 | K94: =SUM('5. 2015-2020 LRAM'!Y928:AL928) -> 0 | L94: =SUM('5. 2015-2020 LRAM'!Y1111:AL1111) -> 0 | M94: =SUM(D94:L94) -> 
B95: 2013 | E95: =SUM('4. 2011-2014 LRAM'!Y390:AL390) -> 40821.63224 | F95: =SUM('4. 2011-2014 LRAM'!Y519:AL519) -> 42426.38123 | G95: =SUM('5. 2015-2020 LRAM'!Y201:AL201) -> 42073.7617 | H95: =SUM('5. 2015-2020 LRAM'!Y382:AL382) -> 37522.72326 | I95: =SUM('5. 2015-2020 LRAM'!Y563:AL563) -> 25418.61139 | J95: =SUM('5. 2015-2020 LRAM'!Y746:AL746) -> 0 | K95: =SUM('5. 2015-2020 LRAM'!Y929:AL929) -> 0 | L95: =SUM('5. 2015-2020 LRAM'!Y1112:AL1112) -> 0 | M95: =SUM(C95:L95) -> 188263.1098
B96: 2014 | F96: =SUM('4. 2011-2014 LRAM'!Y520:AL520) -> 60575.97221 | G96: =SUM('5. 2015-2020 LRAM'!Y202:AL202) -> 58392.01612 | H96: =SUM('5. 2015-2020 LRAM'!Y383:AL383) -> 51684.67399 | I96: =SUM('5. 2015-2020 LRAM'!Y564:AL564) -> 41269.06581 | J96: =SUM('5. 2015-2020 LRAM'!Y747:AL747) -> 0 | K96: =SUM('5. 2015-2020 LRAM'!Y930:AL930) -> 0 | L96: =SUM('5. 2015-2020 LRAM'!Y1113:AL1113) -> 0 | M96: =SUM(F96:L96) -> 211921.7281
B97: 2015 | G97: =SUM('5. 2015-2020 LRAM'!Y203:AL203) -> 66099.44911 | H97: =SUM('5. 2015-2020 LRAM'!Y384:AL384) -> 61437.44507 | I97: =SUM('5. 2015-2020 LRAM'!Y565:AL565) -> 54403.17749 | J97: =SUM('5. 2015-2020 LRAM'!Y748:AL748) -> 0 | K97: =SUM('5. 2015-2020 LRAM'!Y931:AL931) -> 0 | L97: =SUM('5. 2015-2020 LRAM'!Y1114:AL1114) -> 0 | M97: =SUM(G97:L97) -> 181940.0717
B98: 2016 | H98: =SUM('5. 2015-2020 LRAM'!Y385:AL385) -> 113443.9896 | I98: =SUM('5. 2015-2020 LRAM'!Y566:AL566) -> 95194.2546 | J98: =SUM('5. 2015-2020 LRAM'!Y749:AL749) -> 0 | K98: =SUM('5. 2015-2020 LRAM'!Y932:AL932) -> 0 | L98: =SUM('5. 2015-2020 LRAM'!Y1115:AL1115) -> 0 | M98: =SUM(H98:L98) -> 208638.2442
B99: 2017 | I99: =SUM('5. 2015-2020 LRAM'!Y567:AL567) -> 137113.8909 | J99: =SUM('5. 2015-2020 LRAM'!Y750:AL750) -> 0 | K99: =SUM('5. 2015-2020 LRAM'!Y933:AL933) -> 0 | L99: =SUM('5. 2015-2020 LRAM'!Y1116:AL1116) -> 0 | M99: =SUM(I99:L99) -> 137113.8909
B100: 2018 | J100: =SUM('5. 2015-2020 LRAM'!Y751:AL751) -> 0 | K100: =SUM('5. 2015-2020 LRAM'!Y934:AL934) -> 0 | L100: =SUM('5. 2015-2020 LRAM'!Y1117:AL1117) -> 0 | M100: =SUM(J100:L100) -> 0
B101: 2019 | K101: =SUM('5. 2015-2020 LRAM'!Y935:AL935) -> 0 | L101: =SUM('5. 2015-2020 LRAM'!Y1118:AL1118) -> 0 | M101: =SUM(K101:L101) -> 0
B102: 2020 | L102: =SUM('5. 2015-2020 LRAM'!Y1119:AL1119) -> 0 | M102: =L102 -> 0
B103: Actual Lost Revenues | C103: =C93 -> 51148.10187 | D103: =D93+D94 -> 104458.6964 | E103: =E93+E94+E95 -> 154603.5076 | F103: =F93+F94+F95+F96 -> 222091.3767 | G103: =G93+G94+G95+G96+G97 -> 280516.5566 | H103: =H93+H94+H95+H96+H97+H98 ->  | I103: =I93+I94+I95+I96+I97+I98+I99 ->  | J103: =J93+J94+J95+J96+J97+J98+J99+J100 -> 0 | K103: =K93+K94+K95+K96+K97+K98+K99+K100+K101 -> 0 | L103: =SUM(L93:L102) -> 0 | M103: =SUM(M93:M102) -> 
B104: Forecast Lost Revenues | C104: ='4. 2011-2014 LRAM'!AM132 -> 0 | D104: ='4. 2011-2014 LRAM'!AM262 -> 0 | E104: ='4. 2011-2014 LRAM'!AM392 -> 121929.6059 | F104: ='4. 2011-2014 LRAM'!AM522 -> 127912.2477 | G104: ='5. 2015-2020 LRAM'!AM205 -> 129605.5388 | H104: ='5. 2015-2020 LRAM'!AM387 -> 116499.237 | I104: ='5. 2015-2020 LRAM'!AM569 -> 95488.6755 | J104: ='5. 2015-2020 LRAM'!AM753 -> 0 | K104: ='5. 2015-2020 LRAM'!AM937 -> 0 | L104: ='5. 2015-2020 LRAM'!AM1121 -> 0 | M104: =SUM(C104:L104) -> 591435.3049
B105: Carrying Charges | C105: ='6. Carrying Charges'!W27 -> 0 | D105: ='6. Carrying Charges'!W42 -> 0 | E105: ='6. Carrying Charges'!W57 -> 0 | F105: ='6. Carrying Charges'!W72 -> 0 | G105: ='6. Carrying Charges'!W87 -> 0 | H105: ='6. Carrying Charges'!W102 -> 744.0975408 | I105: ='6. Carrying Charges'!W117 -> 4030.395837 | J105: ='6. Carrying Charges'!W132 -> 11582.83184 | K105: ='6. Carrying Charges'!W147 -> 14515.94792 | L105: ='6. Carrying Charges'!W162 -> 14515.94792 | M105: =SUM(C105:L105) -> 45389.22106
B106: Total | C106: =C103-C104+C105 -> 51148.10187 | D106: =D103-D104+D105 -> 104458.6964 | E106: 32673.90168 | F106: 94179.12901 | G106: 150911.0178 | J106: 11582.83184 | K106: =K103-K104+K105 -> 14515.94792 | L106: =L103-L104+L105 -> 14515.94792 | M106: =M103-M104+M105 -> 
B108: Return to top

Sheet 1-a. Summary of Changes
B14: Legend | C14: User Inputs (Green)
C15: Drop Down List (Blue)
C16: Instructions (Grey)
B19: Table A-1. Changes to Generic Assumptions in LRAMVA Work Form
B21: Please document any changes in assumptions made to the generic inputs of the LRAMVA work form. This may include, but are not limited to, the use of different monthly multipliers to claim demand savings from energy efficiency programs; use of different rate allocations between current year savings and prior year savings adjustments; inclusion of additional adjustments affecting distribution rates; etc. All changes should be highlighted in the work form as well.
B23: No. | C23: Tab | D23: Cell Reference | E23: Description | G23: Rationale
B24: 1 | C24: 5. 2015-2020 LRAM | D24: Rows 382-383/563-564 | E24: Persistence of 2011 & 2012 programs removed | G24: Program persistence embeded in load forecast (not in LRAMVA threshold)
B25: 2
B26: 3
B27: 4
B28: 5
B29: 6
B30: 7
B31: 8
B32: 9
B33: 10
B34: etc.
B36: Table A-2. Updates to LRAMVA Disposition
B37: Please document any changes related to interrogatories or questions during the application process that affect the LRAMVA amount.
B39: No. | C39: Tab | D39: Cell Reference | E39: Description | G39: Rationale
B40: 1
B41: 2
B42: 3
B43: 4
B44: 5
B45: 6
B46: 7
B47: 8
B48: 9
B49: 10
B50: etc.

Sheet 2. LRAMVA Threshold
B4: Legend | D4: User Inputs (Green)
D5: Drop Down List (Blue)
D6: Auto Populated Cells (White)
D7: Instructions (Grey)
B9: Table 2-a. LRAMVA Threshold | D9: 2013
B11: Please provide the LRAMVA threshold approved in the cost of service (COS) application, which is used as the comparator against actual savings in the period of the LRAMVA claim. The LRAMVA threshold should generally be consistent with the annualized savings targets developed from Appendix 2-I. If a manual update is required to reflect a different allocation of forecast savings that was approved by the OEB, please note the changes and provide rationale for the change in Tab 1-a.
C13: ='1. LRAMVA Summary'!R52 -> Total | D13: ='1. LRAMVA Summary'!D52 -> Residential | E13: ='1. LRAMVA Summary'!E52 -> GS<50 kW | F13: ='1. LRAMVA Summary'!F52 -> General Service 50 - 999 kW | G13: ='1. LRAMVA Summary'!G52 -> General Service 1,000 - 4,999 kW | H13: ='1. LRAMVA Summary'!H52 -> Sentinel Lighting | I13: ='1. LRAMVA Summary'!I52 -> Street Lighting | J13: ='1. LRAMVA Summary'!J52 -> Unmetered Scattered Load | K13: ='1. LRAMVA Summary'!K52 -> Large Use | L13: ='1. LRAMVA Summary'!L52 ->  | M13: ='1. LRAMVA Summary'!M52 ->  | N13: ='1. LRAMVA Summary'!N52 ->  | O13: ='1. LRAMVA Summary'!O52 ->  | P13: ='1. LRAMVA Summary'!P52 ->  | Q13: ='1. LRAMVA Summary'!Q52 -> 
D14: ='1. LRAMVA Summary'!D53 -> kWh | E14: ='1. LRAMVA Summary'!E53 -> kWh | F14: ='1. LRAMVA Summary'!F53 -> kW | G14: ='1. LRAMVA Summary'!G53 -> kW | H14: ='1. LRAMVA Summary'!H53 -> kW | I14: ='1. LRAMVA Summary'!I53 -> kW | J14: ='1. LRAMVA Summary'!J53 -> kWh | K14: ='1. LRAMVA Summary'!K53 -> kW | L14: ='1. LRAMVA Summary'!L53 -> 0 | M14: ='1. LRAMVA Summary'!M53 -> 0 | N14: ='1. LRAMVA Summary'!N53 -> 0 | O14: ='1. LRAMVA Summary'!O53 -> 0 | P14: ='1. LRAMVA Summary'!P53 -> 0 | Q14: ='1. LRAMVA Summary'!Q53 -> 0
B15: kWh | C15: =SUM(D15:Q15) -> 16150633 | D15: 4162607 | E15: 1601705 | F15: 3612342 | G15: 2550308 | H15: 10058 | I15: 146427 | J15: 35877 | K15: 4031309
B16: kW | C16: =SUM(D16:Q16) -> 2502 | F16: 1126 | G16: 607 | H16: 3 | I16: 44 | K16: 722
B18: Summary | D18: =IF(D14="kw",HLOOKUP(D14,D14:D16,3,FALSE),HLOOKUP(D14,D14:D16,2,FALSE)) -> 4162607 | E18: 1601705 | F18: =IF(F14="kw",HLOOKUP(F14,F14:F16,3,FALSE),HLOOKUP(F14,F14:F16,2,FALSE)) -> 1126 | G18: =IF(G14="kw",HLOOKUP(G14,G14:G16,3,FALSE),HLOOKUP(G14,G14:G16,2,FALSE)) -> 607 | H18: 3 | I18: 44 | J18: 35877 | K18: 722 | L18: 0 | M18: 0 | N18: 0 | O18: 0 | P18: 0 | Q18: 0
B20: Years Included in Threshold | C20: Proportionate share of total load (weather normalized)
B21: Source of Threshold | C21: EB-2012-0107 Settlement Agreement, p.25
B24: Table 2-b. LRAMVA Threshold
B26: Please provide the LRAMVA threshold approved in the last COS application, which is used as the comparator against actual savings in the period of the LRAMVA claim. The LRAMVA threshold should generally be consistent with the annualized savings targets developed from Appendix 2-I. If a manual update is required to reflect a different allocation of forecast savings that was approved by the OEB, please note the changes and provide rationale for the change in Tab 1-a.
C28: ='1. LRAMVA Summary'!R52 -> Total | D28: ='1. LRAMVA Summary'!D52 -> Residential | E28: ='1. LRAMVA Summary'!E52 -> GS<50 kW | F28: ='1. LRAMVA Summary'!F52 -> General Service 50 - 999 kW | G28: ='1. LRAMVA Summary'!G52 -> General Service 1,000 - 4,999 kW | H28: ='1. LRAMVA Summary'!H52 -> Sentinel Lighting | I28: ='1. LRAMVA Summary'!I52 -> Street Lighting | J28: ='1. LRAMVA Summary'!J52 -> Unmetered Scattered Load | K28: ='1. LRAMVA Summary'!K52 -> Large Use | L28: ='1. LRAMVA Summary'!L52 ->  | M28: ='1. LRAMVA Summary'!M52 ->  | N28: ='1. LRAMVA Summary'!N52 ->  | O28: ='1. LRAMVA Summary'!O52 ->  | P28: ='1. LRAMVA Summary'!P52 ->  | Q28: ='1. LRAMVA Summary'!Q52 -> 
D29: ='1. LRAMVA Summary'!D53 -> kWh | E29: ='1. LRAMVA Summary'!E53 -> kWh | F29: ='1. LRAMVA Summary'!F53 -> kW | G29: ='1. LRAMVA Summary'!G53 -> kW | H29: ='1. LRAMVA Summary'!H53 -> kW | I29: ='1. LRAMVA Summary'!I53 -> kW | J29: ='1. LRAMVA Summary'!J53 -> kWh | K29: ='1. LRAMVA Summary'!K53 -> kW | L29: ='1. LRAMVA Summary'!L53 -> 0 | M29: ='1. LRAMVA Summary'!M53 -> 0 | N29: ='1. LRAMVA Summary'!N53 -> 0 | O29: ='1. LRAMVA Summary'!O53 -> 0 | P29: ='1. LRAMVA Summary'!P53 -> 0 | Q29: ='1. LRAMVA Summary'!Q53 -> 0
B30: kWh | C30: =SUM(D30:Q30) -> 0
B31: kW | C31: =SUM(D31:Q31) -> 0
B33: Summary | D33: =IF(D29="kw",HLOOKUP(D29,D29:D31,3,FALSE),HLOOKUP(D29,D29:D31,2,FALSE)) -> 0 | E33: =IF(E29="kw",HLOOKUP(E29,E29:E31,3,FALSE),HLOOKUP(E29,E29:E31,2,FALSE)) -> 0 | F33: =IF(F29="kw",HLOOKUP(F29,F29:F31,3,FALSE),HLOOKUP(F29,F29:F31,2,FALSE)) -> 0 | G33: =IF(G29="kw",HLOOKUP(G29,G29:G31,3,FALSE),HLOOKUP(G29,G29:G31,2,FALSE)) -> 0 | H33: =IF(H29="kw",HLOOKUP(H29,H29:H31,3,FALSE),HLOOKUP(H29,H29:H31,2,FALSE)) -> 0 | I33: 0 | J33: 0 | K33: 0 | L33: 0 | M33: 0 | N33: 0 | O33: 0 | P33: 0 | Q33: 0
B35: Years Included in Threshold
B36: Source of Threshold | C36: 20XX Settlement Agreement, p. X
B39: Table 2-c. Inputs for LRAMVA Thresholds
B40: Please complete Table 2-c below by selecting the appropriate LRAMVA threshold year in column C. The LRAMVA threshold values in Table 2-c will auto-populate from Tables 2-a and 2-b depending on the year selected. If there was no LRAMVA threshold established for a particular year, please select the "blank" option. The LRAMVA threshold values in Table 2-c will be auto-populated in Tabs 4 and 5 of this work form.
B42: Year | C42: LRAMVA Threshold | D42: ='1. LRAMVA Summary'!D52 -> Residential | E42: ='1. LRAMVA Summary'!E52 -> GS<50 kW | F42: ='1. LRAMVA Summary'!F52 -> General Service 50 - 999 kW | G42: ='1. LRAMVA Summary'!G52 -> General Service 1,000 - 4,999 kW | H42: ='1. LRAMVA Summary'!H52 -> Sentinel Lighting | I42: ='1. LRAMVA Summary'!I52 -> Street Lighting | J42: ='1. LRAMVA Summary'!J52 -> Unmetered Scattered Load | K42: ='1. LRAMVA Summary'!K52 -> Large Use | L42: ='1. LRAMVA Summary'!L52 ->  | M42: ='1. LRAMVA Summary'!M52 ->  | N42: ='1. LRAMVA Summary'!N52 ->  | O42: ='1. LRAMVA Summary'!O52 ->  | P42: ='1. LRAMVA Summary'!P52 ->  | Q42: ='1. LRAMVA Summary'!Q52 -> 
D43: ='1. LRAMVA Summary'!D53 -> kWh | E43: ='1. LRAMVA Summary'!E53 -> kWh | F43: ='1. LRAMVA Summary'!F53 -> kW | G43: ='1. LRAMVA Summary'!G53 -> kW | H43: ='1. LRAMVA Summary'!H53 -> kW | I43: ='1. LRAMVA Summary'!I53 -> kW | J43: ='1. LRAMVA Summary'!J53 -> kWh | K43: ='1. LRAMVA Summary'!K53 -> kW | L43: ='1. LRAMVA Summary'!L53 -> 0 | M43: ='1. LRAMVA Summary'!M53 -> 0 | N43: ='1. LRAMVA Summary'!N53 -> 0 | O43: ='1. LRAMVA Summary'!O53 -> 0 | P43: ='1. LRAMVA Summary'!P53 -> 0 | Q43: ='1. LRAMVA Summary'!Q53 -> 0
B44: 2011 | D44: =IF(ISBLANK($C$44),0,IF($C44=$D$9,HLOOKUP(D43,D14:D18,5,FALSE),HLOOKUP(D43,D29:D33,5,FALSE))) -> 0 | E44: =IF(ISBLANK($C$44),0,IF($C44=$D$9,HLOOKUP(E43,E14:E18,5,FALSE),HLOOKUP(E43,E29:E33,5,FALSE))) -> 0 | F44: 0 | G44: 0 | H44: 0 | I44: 0 | J44: 0 | K44: 0 | L44: 0 | M44: 0 | N44: 0 | O44: 0 | P44: 0 | Q44: 0
B45: 2012 | D45: =IF(ISBLANK($C$45),0,IF($C$45=$D$9,HLOOKUP(D43,D14:D18,5,FALSE),HLOOKUP(D43,D29:D33,5,FALSE))) -> 0 | E45: 0 | F45: 0 | G45: 0 | H45: 0 | I45: 0 | J45: 0 | K45: 0 | L45: 0 | M45: 0 | N45: 0 | O45: 0 | P45: 0 | Q45: 0
B46: 2013 | C46: 2013 | D46: =IF(ISBLANK($C$46),0,IF($C$46=$D$9,HLOOKUP(D43,D14:D18,5,FALSE),HLOOKUP(D43,D29:D33,5,FALSE))) -> 4162607 | E46: 1601705 | F46: 1126 | G46: 607 | H46: 3 | I46: 44 | J46: 35877 | K46: 722 | L46: 0 | M46: 0 | N46: 0 | O46: 0 | P46: 0 | Q46: 0
B47: 2014 | C47: 2013 | D47: =IF(ISBLANK($C$47),0,IF($C$47=$D$9,HLOOKUP(D43,D14:D18,5,FALSE),HLOOKUP(D43,D29:D33,5,FALSE))) -> 4162607 | E47: 1601705 | F47: 1126 | G47: 607 | H47: 3 | I47: 44 | J47: 35877 | K47: 722 | L47: 0 | M47: 0 | N47: 0 | O47: 0 | P47: 0 | Q47: 0
B48: 2015 | C48: 2013 | D48: =IF(ISBLANK($C$48),0,IF($C$48=$D$9,HLOOKUP(D43,D14:D18,5,FALSE),HLOOKUP(D43,D29:D33,5,FALSE))) -> 4162607 | E48: 1601705 | F48: 1126 | G48: 607 | H48: 3 | I48: 44 | J48: 35877 | K48: 722 | L48: 0 | M48: 0 | N48: 0 | O48: 0 | P48: 0 | Q48: 0
B49: 2016 | C49: 2013 | D49: =IF(ISBLANK($C$49),0,IF($C$49=$D$9,HLOOKUP(D43,D14:D18,5,FALSE),HLOOKUP(D43,D29:D33,5,FALSE))) -> 4162607 | E49: 1601705 | F49: 1126 | G49: 607 | H49: 3 | I49: 44 | J49: 35877 | K49: 722 | L49: 0 | M49: 0 | N49: 0 | O49: 0 | P49: 0 | Q49: 0
B50: 2017 | C50: 2013 | D50: =IF(ISBLANK($C$50),0,IF($C$50=$D$9,HLOOKUP(D43,D14:D18,5,FALSE),HLOOKUP(D43,D29:D33,5,FALSE))) -> 4162607 | E50: 1601705 | F50: 1126 | G50: 607 | H50: 3 | I50: 44 | J50: =IF(ISBLANK($C$50),0,IF($C$50=$D$9,HLOOKUP(J43,J14:J18,5,FALSE),HLOOKUP(J43,J29:J33,5,FALSE))) -> 35877 | K50: 722 | L50: 0 | M50: 0 | N50: 0 | O50: 0 | P50: 0 | Q50: 0
B51: 2018 | D51: =IF(ISBLANK($C$51),0,IF($C$51=$D$9,HLOOKUP(D43,D14:D18,5,FALSE),HLOOKUP(D43,D29:D33,5,FALSE))) -> 0 | E51: 0 | F51: 0 | G51: 0 | H51: 0 | I51: 0 | J51: 0 | K51: 0 | L51: 0 | M51: 0 | N51: 0 | O51: 0 | P51: 0 | Q51: 0
B52: 2019 | D52: =IF(ISBLANK($C$52),0,IF($C$52=$D$9,HLOOKUP(D43,D14:D18,5,FALSE),HLOOKUP(D43,D29:D33,5,FALSE))) -> 0 | E52: 0 | F52: 0 | G52: 0 | H52: 0 | I52: 0 | J52: 0 | K52: 0 | L52: 0 | M52: 0 | N52: 0 | O52: 0 | P52: 0 | Q52: 0
B53: 2020 | D53: =IF(ISBLANK($C$53),0,IF($C$53=$D$9,HLOOKUP(D43,D14:D18,5,FALSE),HLOOKUP(D43,D29:D33,5,FALSE))) -> 0 | E53: 0 | F53: 0 | G53: 0 | H53: 0 | I53: 0 | J53: 0 | K53: 0 | L53: 0 | M53: 0 | N53: 0 | O53: 0 | P53: 0 | Q53: 0
B54: Note: LDC to make note of assumptions included above, if any

Sheet 3. Distribution Rates
B4: Legend | C4: User Inputs (Green)
C5: Auto Populated Cells (White)
C6: Instructions (Grey)
B8: Tables | C8: Table 3
C9: Table 3-a.
B11: Table 3. Inputs for Distribution Rates and Adjustments by Rate Class
B12: Please complete Table 3 with the rate class specific distribution rates that pertain to the years of the LRAMVA disposition. Any adjustments that affect distribution rates can be incorporated in the calculation by expanding the "plus" button at the left hand bar. Table 3 will convert the distribution rates to a calendar year rate (January to December) based on the number of months entered in row 16 of each rate year starting from January to the start of the LDC's rate year. Please enter 0 in row 16, if the rate year begins on January 1. If there are additional adjustments (i.e., rows) added to Table 3, please adjust the formulas in Table 3-a accordingly.
C14: Billing Unit | D14: EB-2009-XXXX | E14: EB-2010-0065 | F14: EB-2011-0153 | G14: EB-2012-0107 | H14: EB-2013-0112 | I14: EB-2014-0057 | J14: EB-2015-0053 | K14: EB-2016-0057 | L14: EB-2017-0027 | M14: EB-2018-XXXX | N14: EB-2019-XXXX | O14: EB-2020-XXXX
B15: Rate Year | D15: 2010 | E15: 2011 | F15: 2012 | G15: 2013 | H15: 2014 | I15: 2015 | J15: 2016 | K15: 2017 | L15: 2018 | M15: 2019 | N15: 2020 | O15: 2021
B16: Period 1 (# months) | E16: 0 | F16: 0 | G16: 4 | H16: 4 | I16: 4 | J16: 4 | K16: 4
B17: Period 2 (# months) | D17: =12-D16 -> 12 | E17: =12-E16 -> 12 | F17: =12-F16 -> 12 | G17: 8 | H17: 8 | I17: 8 | J17: 8 | K17: 8 | L17: =12-L16 -> 12 | M17: 12 | N17: 12 | O17: 12
B18: ='1. LRAMVA Summary'!B29 -> Residential | C18: ='2. LRAMVA Threshold'!D43 -> kWh | E18: 0.0186 | F18: 0.0188 | G18: 0.0211 | H18: 0.0214 | I18: 0.0217 | J18: 0.0166 | K18: 0.0113
B19: Rate rider for tax sharing
B20: Rate rider for foregone revenue
B21: Other
B22: Adjusted rate | D22: =SUM(D18:D21) -> 0 | E22: =SUM(E18:E21) -> 0.0186 | F22: =SUM(F18:F21) -> 0.0188 | G22: =SUM(G18:G21) -> 0.0211 | H22: 0.0214 | I22: 0.0217 | J22: 0.0166 | K22: 0.0113 | L22: 0 | M22: 0 | N22: 0
B23: Calendar year equivalent | E23: =ROUND(SUM(D22*E16+E22*E17)/12,4) -> 0.0186 | F23: =ROUND(SUM(E22*F16+F22*F17)/12,4) -> 0.0188 | G23: =ROUND(SUM(F22*G16+G22*G17)/12,4) -> 0.0203 | H23: =ROUND(SUM(G22*H16+H22*H17)/12,4) -> 0.0213 | I23: =ROUND(SUM(H22*I16+I22*I17)/12,4) -> 0.0216 | J23: =ROUND(SUM(I22*J16+J22*J17)/12,4) -> 0.0183 | K23: =ROUND(SUM(J22*K16+K22*K17)/12,4) -> 0.0131 | L23: 0 | M23: 0 | N23: 0
B25: ='1. LRAMVA Summary'!B30 -> GS<50 kW | C25: ='2. LRAMVA Threshold'!E43 -> kWh | E25: 0.0169 | F25: 0.0166 | G25: 0.0186 | H25: 0.0189 | I25: 0.0191 | J25: 0.0194 | K25: 0.0197
B26: Rate rider for tax sharing
B27: Rate rider for foregone revenue
B28: Other
B29: Adjusted rate | D29: =SUM(D25:D28) -> 0 | E29: =SUM(E25:E28) -> 0.0169 | F29: 0.0166 | G29: 0.0186 | H29: 0.0189 | I29: 0.0191 | J29: 0.0194 | K29: 0.0197 | L29: 0 | M29: 0 | N29: 0
B30: Calendar year equivalent | E30: =ROUND(SUM(D29*E16+E29*E17)/12,4) -> 0.0169 | F30: =ROUND(SUM(E29*F16+F29*F17)/12,4) -> 0.0166 | G30: 0.0179 | H30: 0.0188 | I30: 0.019 | J30: =ROUND(SUM(I29*J16+J29*J17)/12,4) -> 0.0193 | K30: 0.0196 | L30: 0 | M30: 0 | N30: 0
B32: ='1. LRAMVA Summary'!B31 -> General Service 50 - 999 kW | C32: ='2. LRAMVA Threshold'!F43 -> kW | E32: 3.5306 | F32: 3.5617 | G32: 4.1269 | H32: 4.1847 | I32: 4.2391 | J32: 4.3154 | K32: 4.3844
B33: Rate rider for tax sharing
B34: Rate rider for foregone revenue
B35: Other
B36: Adjusted rate | D36: =SUM(D32:D35) -> 0 | E36: =SUM(E32:E35) -> 3.5306 | F36: =SUM(F32:F35) -> 3.5617 | G36: 4.1269 | H36: 4.1847 | I36: 4.2391 | J36: 4.3154 | K36: 4.3844 | L36: 0 | M36: 0 | N36: =SUM(N32:N35) -> 0
B37: Calendar year equivalent | E37: =ROUND(SUM(D36*E16+E36*E17)/12,4) -> 3.5306 | F37: 3.5617 | G37: 3.9385 | H37: 4.1654 | I37: 4.221 | J37: 4.29 | K37: 4.3614 | L37: 0 | M37: 0 | N37: 0
B39: ='1. LRAMVA Summary'!B32 -> General Service 1,000 - 4,999 kW | C39: ='2. LRAMVA Threshold'!G43 -> kW | E39: 1.2678 | F39: 1.279 | G39: 1.6835 | H39: 1.7071 | I39: 1.7293 | J39: 1.7604 | K39: 1.7886
B40: Rate rider for tax sharing
B41: Rate rider for foregone revenue
B42: Other
B43: Adjusted rate | D43: =SUM(D39:D42) -> 0 | E43: =SUM(E39:E42) -> 1.2678 | F43: 1.279 | G43: 1.6835 | H43: 1.7071 | I43: 1.7293 | J43: 1.7604 | K43: 1.7886 | L43: 0 | M43: 0 | N43: 0
B44: Calendar year equivalent | E44: =ROUND(SUM(D43*E16+E43*E17)/12,4) -> 1.2678 | F44: 1.279 | G44: 1.5487 | H44: 1.6992 | I44: 1.7219 | J44: 1.75 | K44: 1.7792 | L44: 0 | M44: 0 | N44: 0
B46: ='1. LRAMVA Summary'!B33 -> Sentinel Lighting | C46: ='2. LRAMVA Threshold'!H43 -> kW | E46: 18.9859 | F46: 22.6299 | G46: 25.3845 | H46: 25.7399 | I46: 26.0745 | J46: 26.5438 | K46: 26.9685
B47: Rate rider for tax sharing
B48: Rate rider for foregone revenue
B49: Other
B50: Adjusted rate | D50: =SUM(D46:D49) -> 0 | E50: =SUM(E46:E49) -> 18.9859 | F50: 22.6299 | G50: 25.3845 | H50: 25.7399 | I50: 26.0745 | J50: 26.5438 | K50: 26.9685 | L50: 0 | M50: 0 | N50: 0
B51: Calendar year equivalent | E51: =ROUND(SUM(D50*E16+E50*E17)/12,4) -> 18.9859 | F51: 22.6299 | G51: 24.4663 | H51: 25.6214 | I51: 25.963 | J51: 26.3874 | K51: 26.8269 | L51: 0 | M51: 0 | N51: 0
B53: ='1. LRAMVA Summary'!B34 -> Street Lighting | C53: ='2. LRAMVA Threshold'!I43 -> kW | E53: 14.4684 | F53: 16.5512 | G53: 18.5659 | H53: 18.8258 | I53: 19.0705 | J53: 19.4138 | K53: 19.7244
B54: Rate rider for tax sharing
B55: Rate rider for foregone revenue
B56: Other
B57: Adjusted rate | D57: =SUM(D53:D56) -> 0 | E57: =SUM(E53:E56) -> 14.4684 | F57: 16.5512 | G57: 18.5659 | H57: 18.8258 | I57: 19.0705 | J57: 19.4138 | K57: 19.7244 | L57: 0 | M57: 0 | N57: 0
B58: Calendar year equivalent | E58: =ROUND(SUM(D57*E16+E57*E17)/12,4) -> 14.4684 | F58: 16.5512 | G58: 17.8943 | H58: 18.7392 | I58: 18.9889 | J58: 19.2994 | K58: 19.6209 | L58: 0 | M58: 0 | N58: 0
B60: ='1. LRAMVA Summary'!B35 -> Unmetered Scattered Load | C60: ='2. LRAMVA Threshold'!J43 -> kWh | E60: 0.0396 | F60: 0.0426 | G60: 0.0325 | H60: 0.033 | I60: 0.0334 | J60: 0.034 | K60: 0.0345
B61: Rate rider for tax sharing
B62: Rate rider for foregone revenue
B63: Other
B64: Adjusted rate | D64: =SUM(D60:D63) -> 0 | E64: =SUM(E60:E63) -> 0.0396 | F64: 0.0426 | G64: 0.0325 | H64: 0.033 | I64: 0.0334 | J64: 0.034 | K64: 0.0345 | L64: 0 | M64: 0 | N64: 0
B65: Calendar year equivalent | E65: =ROUND(SUM(D64*E16+E64*E17)/12,4) -> 0.0396 | F65: 0.0426 | G65: 0.0359 | H65: 0.0328 | I65: =ROUND(SUM(H64*I16+I64*I17)/12,4) -> 0.0333 | J65: 0.0338 | K65: 0.0343 | L65: 0 | M65: 0 | N65: 0
B67: ='1. LRAMVA Summary'!B36 -> Large Use | C67: ='2. LRAMVA Threshold'!K43 -> kW | E67: 1.4742 | F67: 1.461 | G67: 1.8345 | H67: 1.8602 | I67: 1.8844 | J67: 1.9183 | K67: 1.949
B68: Rate rider for tax sharing
B69: Rate rider for foregone revenue
B70: Other
B71: Adjusted rate | D71: =SUM(D67:D70) -> 0 | E71: =SUM(E67:E70) -> 1.4742 | F71: =SUM(F67:F70) -> 1.461 | G71: 1.8345 | H71: 1.8602 | I71: 1.8844 | J71: 1.9183 | K71: 1.949 | L71: 0 | M71: 0 | N71: 0
B72: Calendar year equivalent | E72: =ROUND(SUM(D71*E16+E71*E17)/12,4) -> 1.4742 | F72: 1.461 | G72: 1.71 | H72: 1.8516 | I72: 1.8763 | J72: 1.907 | K72: 1.9388 | L72: 0 | M72: 0 | N72: 0
B74: ='1. LRAMVA Summary'!B37 -> 0 | C74: ='2. LRAMVA Threshold'!L43 -> 0
B75: Rate rider for tax sharing
B76: Rate rider for foregone revenue
B77: Other
B78: Adjusted rate | D78: =SUM(D74:D77) -> 0 | E78: =SUM(E74:E77) -> 0 | F78: =SUM(F74:F77) -> 0 | G78: 0 | H78: 0 | I78: 0 | J78: 0 | K78: 0 | L78: 0 | M78: 0 | N78: 0
B79: Calendar year equivalent | E79: =ROUND(SUM(D78*E16+E78*E17)/12,4) -> 0 | F79: 0 | G79: 0 | H79: 0 | I79: 0 | J79: 0 | K79: 0 | L79: 0 | M79: 0 | N79: 0
B81: ='1. LRAMVA Summary'!B38 -> 0 | C81: ='2. LRAMVA Threshold'!M43 -> 0
B82: Rate rider for tax sharing
B83: Rate rider for foregone revenue
B84: Other
B85: Adjusted rate | D85: =SUM(D81:D84) -> 0 | E85: =SUM(E81:E84) -> 0 | F85: =SUM(F81:F84) -> 0 | G85: 0 | H85: 0 | I85: 0 | J85: 0 | K85: 0 | L85: 0 | M85: 0 | N85: 0
B86: Calendar year equivalent | E86: =ROUND(SUM(D85*E16+E85*E17)/12,4) -> 0 | F86: 0 | G86: 0 | H86: 0 | I86: 0 | J86: 0 | K86: 0 | L86: 0 | M86: 0 | N86: 0
B88: ='1. LRAMVA Summary'!B39 -> 0 | C88: ='2. LRAMVA Threshold'!N43 -> 0
B89: Rate rider for tax sharing
B90: Rate rider for foregone revenue
B91: Other
B92: Adjusted rate | D92: =SUM(D88:D91) -> 0 | E92: =SUM(E88:E91) -> 0 | F92: =SUM(F88:F91) -> 0 | G92: 0 | H92: 0 | I92: 0 | J92: 0 | K92: 0 | L92: 0 | M92: 0 | N92: 0
B93: Calendar year equivalent | E93: =ROUND(SUM(D92*E16+E92*E17)/12,4) -> 0 | F93: 0 | G93: 0 | H93: 0 | I93: 0 | J93: 0 | K93: 0 | L93: 0 | M93: 0 | N93: 0
B95: ='1. LRAMVA Summary'!B40 -> 0 | C95: ='2. LRAMVA Threshold'!O43 -> 0
B96: Rate rider for tax sharing
B97: Rate rider for foregone revenue
B98: Other
B99: Adjusted rate | D99: =SUM(D95:D98) -> 0 | E99: =SUM(E95:E98) -> 0 | F99: =SUM(F95:F98) -> 0 | G99: 0 | H99: 0 | I99: 0 | J99: 0 | K99: 0 | L99: 0 | M99: 0 | N99: 0
B100: Calendar year equivalent | E100: =ROUND(SUM(D99*E16+E99*E17)/12,4) -> 0 | F100: 0 | G100: 0 | H100: 0 | I100: 0 | J100: 0 | K100: 0 | L100: 0 | M100: 0 | N100: 0
B102: ='1. LRAMVA Summary'!B41 -> 0 | C102: ='2. LRAMVA Threshold'!P43 -> 0
B103: Rate rider for tax sharing
B104: Rate rider for foregone revenue
B105: Other
B106: Adjusted rate | D106: =SUM(D102:D105) -> 0 | E106: =SUM(E102:E105) -> 0 | F106: =SUM(F102:F105) -> 0 | G106: =SUM(G102:G105) -> 0 | H106: 0 | I106: 0 | J106: 0 | K106: 0 | L106: 0 | M106: 0 | N106: 0
B107: Calendar year equivalent | E107: =ROUND(SUM(D106*E16+E106*E17)/12,4) -> 0 | F107: 0 | G107: 0 | H107: 0 | I107: 0 | J107: 0 | K107: 0 | L107: 0 | M107: 0 | N107: 0
B109: ='1. LRAMVA Summary'!B42 -> 0 | C109: ='2. LRAMVA Threshold'!Q43 -> 0
B110: Rate rider for tax sharing
B111: Rate rider for foregone revenue
B112: Other
B113: Adjusted rate | D113: =SUM(D109:D112) -> 0 | E113: =SUM(E109:E112) -> 0 | F113: =SUM(F109:F112) -> 0 | G113: =SUM(G109:G112) -> 0 | H113: =SUM(H109:H112) -> 0 | I113: 0 | J113: 0 | K113: 0 | L113: 0 | M113: 0 | N113: 0
B114: Calendar year equivalent | E114: =ROUND(SUM(D113*E16+E113*E17)/12,4) -> 0 | F114: 0 | G114: 0 | H114: 0 | I114: 0 | J114: 0 | K114: 0 | L114: 0 | M114: 0 | N114: 0
B116: Note: LDC to make note of adjustments made to Table 3 to accommodate the LDC's specific circumstances
B119: Table 3-a. Distribution Rates by Rate Class
B120: Table 3-a below autopopulates the average distribution rates from Table 3. Please ensure that the distribution rates relevant to the years of the LRAMVA disposition are used. Please clear the rates related to the year(s) that are not part of the LRAMVA claim. The distribution rates that remain in Table 3-a will be used in Tabs 4 and 5 of the work form to calculate actual and forecast lost revenues. If there are additional adjustments (i.e., rows) added to Table 3, please adjust the formulas from Table 3-a, as well as the distribution rate links in Tabs 4 and 5.
B122: Year | C122: ='1. LRAMVA Summary'!D52 -> Residential | D122: ='1. LRAMVA Summary'!E52 -> GS<50 kW | E122: ='1. LRAMVA Summary'!F52 -> General Service 50 - 999 kW | F122: ='1. LRAMVA Summary'!G52 -> General Service 1,000 - 4,999 kW | G122: ='1. LRAMVA Summary'!H52 -> Sentinel Lighting | H122: ='1. LRAMVA Summary'!I52 -> Street Lighting | I122: ='1. LRAMVA Summary'!J52 -> Unmetered Scattered Load | J122: ='1. LRAMVA Summary'!K52 -> Large Use | K122: ='1. LRAMVA Summary'!L52 ->  | L122: ='1. LRAMVA Summary'!M52 ->  | M122: ='1. LRAMVA Summary'!N52 ->  | N122: ='1. LRAMVA Summary'!O52 ->  | O122: ='1. LRAMVA Summary'!P52 ->  | P122: ='1. LRAMVA Summary'!Q52 -> 
C123: ='1. LRAMVA Summary'!D53 -> kWh | D123: ='1. LRAMVA Summary'!E53 -> kWh | E123: ='1. LRAMVA Summary'!F53 -> kW | F123: ='1. LRAMVA Summary'!G53 -> kW | G123: ='1. LRAMVA Summary'!H53 -> kW | H123: ='1. LRAMVA Summary'!I53 -> kW | I123: ='1. LRAMVA Summary'!J53 -> kWh | J123: ='1. LRAMVA Summary'!K53 -> kW | K123: ='1. LRAMVA Summary'!L53 -> 0 | L123: ='1. LRAMVA Summary'!M53 -> 0 | M123: ='1. LRAMVA Summary'!N53 -> 0 | N123: ='1. LRAMVA Summary'!O53 -> 0 | O123: ='1. LRAMVA Summary'!P53 -> 0 | P123: ='1. LRAMVA Summary'!Q53 -> 0
B124: 2011 | C124: =HLOOKUP(B124,$E$15:$O$114,9,FALSE) -> 0.0186 | D124: =HLOOKUP(B124,$E$15:$O$114,16,FALSE) -> 0.0169 | E124: =HLOOKUP(B124,$E$15:$O$114,23,FALSE) -> 3.5306 | F124: =HLOOKUP(B124,$E$15:$O$114,30,FALSE) -> 1.2678 | G124: =HLOOKUP(B124,$E$15:$O$114,37,FALSE) -> 18.9859 | H124: =HLOOKUP(B124,$E$15:$O$114,44,FALSE) -> 14.4684 | I124: =HLOOKUP(B124,$E$15:$O$114,51,FALSE) -> 0.0396 | J124: =HLOOKUP(B124,$E$15:$O$114,58,FALSE) -> 1.4742 | K124: =HLOOKUP(B124,$E$15:$O$114,65,FALSE) -> 0 | L124: =HLOOKUP(B124,$E$15:$O$114,72,FALSE) -> 0 | M124: =HLOOKUP(B124,$E$15:$O$114,79,FALSE) -> 0 | N124: =HLOOKUP(B124,$E$15:$O$114,86,FALSE) -> 0 | O124: =HLOOKUP(B124,$E$15:$O$114,93,FALSE) -> 0 | P124: =HLOOKUP(B124,$E$15:$O$114,100,FALSE) -> 0
B125: 2012 | C125: 0.0188 | D125: =HLOOKUP(B125,$E$15:$O$114,16,FALSE) -> 0.0166 | E125: =HLOOKUP(B125,$E$15:$O$114,23,FALSE) -> 3.5617 | F125: =HLOOKUP(B125,$E$15:$O$114,30,FALSE) -> 1.279 | G125: =HLOOKUP(B125,$E$15:$O$114,37,FALSE) -> 22.6299 | H125: =HLOOKUP(B125,$E$15:$O$114,44,FALSE) -> 16.5512 | I125: =HLOOKUP(B125,$E$15:$O$114,51,FALSE) -> 0.0426 | J125: =HLOOKUP(B125,$E$15:$O$114,58,FALSE) -> 1.461 | K125: =HLOOKUP(B125,$E$15:$O$114,65,FALSE) -> 0 | L125: =HLOOKUP(B125,$E$15:$O$114,72,FALSE) -> 0 | M125: =HLOOKUP(B125,$E$15:$O$114,79,FALSE) -> 0 | N125: =HLOOKUP(B125,$E$15:$O$114,86,FALSE) -> 0 | O125: =HLOOKUP(B125,$E$15:$O$114,93,FALSE) -> 0 | P125: =HLOOKUP(B125,$E$15:$O$114,100,FALSE) -> 0
B126: 2013 | C126: 0.0203 | D126: =HLOOKUP(B126,$E$15:$O$114,16,FALSE) -> 0.0179 | E126: =HLOOKUP(B126,$E$15:$O$114,23,FALSE) -> 3.9385 | F126: =HLOOKUP(B126,$E$15:$O$114,30,FALSE) -> 1.5487 | G126: =HLOOKUP(B126,$E$15:$O$114,37,FALSE) -> 24.4663 | H126: =HLOOKUP(B126,$E$15:$O$114,44,FALSE) -> 17.8943 | I126: =HLOOKUP(B126,$E$15:$O$114,51,FALSE) -> 0.0359 | J126: =HLOOKUP(B126,$E$15:$O$114,58,FALSE) -> 1.71 | K126: =HLOOKUP(B126,$E$15:$O$114,65,FALSE) -> 0 | L126: =HLOOKUP(B126,$E$15:$O$114,72,FALSE) -> 0 | M126: =HLOOKUP(B126,$E$15:$O$114,79,FALSE) -> 0 | N126: =HLOOKUP(B126,$E$15:$O$114,86,FALSE) -> 0 | O126: =HLOOKUP(B126,$E$15:$O$114,93,FALSE) -> 0 | P126: 0
B127: 2014 | C127: 0.0213 | D127: =HLOOKUP(B127,$E$15:$O$114,16,FALSE) -> 0.0188 | E127: =HLOOKUP(B127,$E$15:$O$114,23,FALSE) -> 4.1654 | F127: =HLOOKUP(B127,$E$15:$O$114,30,FALSE) -> 1.6992 | G127: =HLOOKUP(B127,$E$15:$O$114,37,FALSE) -> 25.6214 | H127: =HLOOKUP(B127,$E$15:$O$114,44,FALSE) -> 18.7392 | I127: =HLOOKUP(B127,$E$15:$O$114,51,FALSE) -> 0.0328 | J127: =HLOOKUP(B127,$E$15:$O$114,58,FALSE) -> 1.8516 | K127: =HLOOKUP(B127,$E$15:$O$114,65,FALSE) -> 0 | L127: =HLOOKUP(B127,$E$15:$O$114,72,FALSE) -> 0 | M127: =HLOOKUP(B127,$E$15:$O$114,79,FALSE) -> 0 | N127: =HLOOKUP(B127,$E$15:$O$114,86,FALSE) -> 0 | O127: =HLOOKUP(B127,$E$15:$O$114,93,FALSE) -> 0 | P127: =HLOOKUP(B127,$E$15:$O$114,100,FALSE) -> 0
B128: 2015 | C128: 0.0216 | D128: 0.019 | E128: 4.221 | F128: 1.7219 | G128: 25.963 | H128: 18.9889 | I128: 0.0333 | J128: 1.8763 | K128: 0 | L128: =HLOOKUP(B128,$E$15:$O$114,72,FALSE) -> 0 | M128: 0 | N128: 0 | O128: 0 | P128: 0
B129: 2016 | C129: 0.0183 | D129: 0.0193 | E129: 4.29 | F129: 1.75 | G129: 26.3874 | H129: 19.2994 | I129: 0.0338 | J129: 1.907 | K129: 0 | L129: 0 | M129: 0 | N129: 0 | O129: 0 | P129: 0
B130: 2017 | C130: =HLOOKUP(B130,$E$15:$O$114,9,FALSE) -> 0.0131 | D130: 0.0196 | E130: 4.3614 | F130: 1.7792 | G130: 26.8269 | H130: 19.6209 | I130: 0.0343 | J130: 1.9388 | K130: 0 | L130: 0 | M130: 0 | N130: 0 | O130: 0 | P130: 0
B131: 2018 | C131: =HLOOKUP(B131,$E$15:$O$114,9,FALSE) -> 0 | D131: 0 | E131: 0 | F131: 0 | G131: 0 | H131: 0 | I131: 0 | J131: 0 | K131: 0 | L131: 0 | M131: 0 | N131: 0 | O131: 0 | P131: 0
B132: 2019 | C132: 0 | D132: 0 | E132: 0 | F132: 0 | G132: 0 | H132: 0 | I132: 0 | J132: 0 | K132: 0 | L132: 0 | M132: 0 | N132: 0 | O132: 0 | P132: 0
B133: 2020 | C133: 0 | D133: 0 | E133: 0 | F133: 0 | G133: =HLOOKUP(B133,$E$15:$O$114,37,FALSE) -> 0 | H133: 0 | I133: 0 | J133: 0 | K133: 0 | L133: 0 | M133: 0 | N133: 0 | O133: 0 | P133: 0
B134: Note: LDC to make note of the years removed from this table, whose distribution rates are not part of the LRAMVA disposition
B136: Return to top

Sheet 3-a. Rate Class Allocations
B14: Instructions
B16: LDCs must clearly show how it has allocated actual CDM savings to applicable rate classes, including supporting documentation and rationale for its proposal. This should be shown by customer class and program each year.
H19: SUMMARY
H20: 2016 | I20: GS<50 kWh | J20: GEN>50 kW | K20: Intermediate kW | L20: Large kW
H21: Small Business Lighting | I21: 0.42 | J21: 0.58
H22: ERII | I22: 0.1 | J22: 0.86 | K22: 0.04
H23: Audit Funding | J23: 1
H26: 2017 | I26: GS<50 kWh | J26: GEN>50 kW | K26: Intermediate kW | L26: Large kW
H27: Small Business Lighting | I27: 0.22 | J27: 0.79
H28: ERII | I28: 0.202 | J28: 0.712 | K28: 0.004
H29: Audit Funding | I29: 1
B31: DETAILS
B32: ERII 2016 | J32: ERII 2017 | R32: SBL 2016 | X32: SBL 2017
D33: Verified Results (End-User Level) | L33: Verified Results (End-User Level) | Z33: Net First Year Savings
B34: Customer | C34: Rate Class | D34: Net Energy (kWh) | E34: Net Peak Demand (kW) | F34: % kwh | G34: % kw | J34: Customer | K34: Rate Class | L34: Energy (kWh) | M34: Peak Demand (kW) | N34: kWh% | O34: kW% | R34: Acct Type | S34: Net kWh | T34: Net kw | U34: % kWh | V34: % kW | X34: Customer | Y34: Rate Class | Z34: Energy (kWh) | AA34: Peak Demand (kW) | AB34: kWh% | AC34: kW%
B35: 1 | C35: GS<50 | D35: 23580.55718 | E35: 6.730038727 | F35: 0.01914183982 | G35: 0.04329245262 | J35: 1 | K35: GS<50 | L35: 24381.05292 | M35: 4.861608082 | N35: 0.004176917453 | O35: 0.003632339729 | Q35: 2 | R35: GS<50 | S35: 3507.646741 | T35: 0.2636204823 | U35: 0.06062708102 | V35: 0.06062708102
B36: 3 | C36: GS<50 | D36: 8882.642661 | E36: 1.020607793 | F36: 0.007210606678 | G36: 0.006565283843 | J36: 2 | K36: GS<50 | L36: 9954.944783 | M36: 1.016702483 | N36: 0.001705462957 | O36: 0.0007596270121 | Q36: 5 | R36: GS<50 | S36: 8307.584387 | T36: 0.6243643001 | U36: 0.143590455 | V36: 0.143590455 | X36: 1 | Y36: GS<50 | Z36: 1263.196461 | AA36: 0.1502093823 | AB36: 0.01730891803 | AC36: 0.01098550569
B37: 4 | C37: GS<50 | D37: 8677.820611 | E37: 0.9115515154 | F37: 0.007044339577 | G37: 0.005863755379 | J37: 3 | K37: GS<50 | L37: 5802.854084 | M37: 0 | N37: 0.0009941343626 | O37: 0 | Q37: 7 | R37: GS<50 | S37: 6461.454523 | T37: 0.4856166779 | U37: 0.111681465 | V37: 0.111681465 | X37: 2 | Y37: GS<50 | Z37: 2752.779515 | AA37: 0.4556361234 | AB37: 0.03771989271 | AC37: 0.03332277351
B38: 5 | C38: GS<50 | D38: 1577.918943 | E38: 0.09797834812 | F38: 0.001280897285 | G38: 0.0006302672489 | J38: 4 | K38: GS<50 | L38: 3898.398723 | M38: 0.06389892269 | N38: 0.0006678665487 | O38: 4.77419388e-05 | Q38: 8 | R38: GS<50 | S38: 6164.468415 | T38: 0.4632964082 | U38: 0.1065482797 | V38: 0.1065482797 | X38: 3 | Y38: GS<50 | Z38: 8839.63079 | AA38: 1.238534701 | AB38: 0.1211248206 | AC38: 0.09057976133
B39: 6 | C39: GS<50 | D39: 6772.290417 | E39: 0.7735319585 | F39: 0.005497499378 | G39: 0.004975914259 | J39: 5 | K39: GS<50 | L39: 3698.504792 | M39: 0.2300361217 | N39: 0.0006336210856 | O39: 0.0001718709797 | Q39: 1 | R39: GEN | S39: 8307.584387 | T39: 0.6243643001 | U39: 0.143590455 | V39: 0.143590455 | X39: 4 | Y39: GS<50 | Z39: 949.2400947 | AA39: 0.3471513321 | AB39: 0.01300693874 | AC39: 0.02538877982
B40: 8 | C40: GS<50 | D40: 7510.853673 | E40: 0.8629904503 | F40: 0.006097038203 | G40: 0.00555137566 | J40: 6 | K40: GS<50 | L40: 27986.77579 | M40: 6.169260435 | N40: 0.004794643309 | O40: 0.004609349293 | Q40: 3 | R40: GEN | S40: 7384.519455 | T40: 0.554990489 | U40: 0.12763596 | V40: 0.12763596 | X40: 5 | Y40: GS<50 | Z40: 1077.72716 | AA40: 0.1916564646 | AB40: 0.01476752956 | AC40: 0.01401672219
B41: 9 | C41: GS<50 | D41: 4805.02998 | E41: 0.2555956907 | F41: 0.003900548809 | G41: 0.001644175432 | J41: 7 | K41: GS<50 | L41: 15052.1618 | M41: 5.104688486 | N41: 0.002578708867 | O41: 0.003813956716 | Q41: 4 | R41: GEN | S41: 5169.163618 | T41: 0.3884933423 | U41: 0.08934517203 | V41: 0.08934517203 | X41: 6 | Y41: GS<50 | Z41: 1325.241664 | AA41: 0.4628684428 | AB41: 0.01815909088 | AC41: 0.03385170643
B42: 10 | C42: GS<50 | D42: 11754.06685 | E42: 0.3833935361 | F42: 0.00954152454 | G42: 0.002466263148 | J42: 8 | K42: GS<50 | L42: 3001.47625 | M42: 0 | N42: 0.0005142074289 | O42: 0 | Q42: 6 | R42: GEN | S42: 3323.033755 | T42: 0.2497457201 | U42: 0.05743618202 | V42: 0.05743618202 | X42: 7 | Y42: GEN>50 | Z42: 18436.09385 | AA42: 3.266597604 | AB42: 0.2526201165 | AC42: 0.2389013657
B43: 11 | C43: GS<50 | D43: 3130.110947 | E43: 0 | F43: 0.002540910375 | G43: 0 | J43: 9 | K43: GS<50 | L43: 1531.110206 | M43: 0 | N43: 0.0002623070039 | O43: 0 | Q43: 10 | R43: GEN | S43: 4061.4857 | T43: 0.305244769 | U43: 0.07019977802 | V43: 0.07019977802 | X43: 8 | Y43: GEN>50 | Z43: 17521.19456 | AA43: 2.141971935 | AB43: 0.2400837318 | AC43: 0.1566522977
B44: 12 | C44: GS<50 | D44: 3414.024397 | E44: 0.3922683865 | F44: 0.002771381001 | G44: 0.002523352573 | J44: 10 | K44: GS<50 | L44: 6980.779312 | M44: 1.76233293 | N44: 0.001195934361 | O44: 0.001316723152 | Q44: 9 | R44: GEN | S44: 5169.163618 | T44: 0.3884933423 | U44: 0.08934517203 | V44: 0.08934517203 | X44: 9 | Y44: GEN>50 | Z44: 8315.727911 | AA44: 0.6243643001 | AB44: 0.1139460545 | AC44: 0.04566264414
B45: 13 | C45: GS<50 | D45: 439.1334182 | E45: 0.4972708174 | F45: 0.0003564725587 | G45: 0.003198803777 | J45: 11 | K45: GS<50 | L45: 20043.47951 | M45: 5.712389496 | N45: 0.0034338123 | O45: 0.004267999182 | S45: 57856.1046 | T45: 4.348229831 | U45: 1 | V45: 1 | X45: 10 | Y45: GEN>50 | Z45: 12498.68405 | AA45: 4.794425082 | AB45: 0.1712629067 | AC45: 0.3506384435
B46: 14 | C46: GS<50 | D46: 3855.467707 | E46: 0 | F46: 0.003129728647 | G46: 0 | J46: 12 | K46: GS<50 | L46: 10766.05906 | M46: 4.13236687 | N46: 0.001844421574 | O46: 0.00308748877 | Z46: 72979.51604 | AA46: 13.67341537 | AB46: 1 | AC46: 1
B47: 15 | C47: GS<50 | D47: 5089.665213 | E47: 0.2300361217 | F47: 0.004131605353 | G47: 0.001479757889 | J47: 13 | K47: GS<50 | L47: 2002.676826 | M47: 0.7292412123 | N47: 0.0003430949358 | O47: 0.0005448509594
B48: 16 | C48: GS<50 | D48: 5122.824379 | E48: 0.3345818591 | F48: 0.00415852276 | G48: 0.002152271312 | J48: 14 | K48: GS<50 | L48: 695.5802104 | M48: 0 | N48: 0.0001191655311 | O48: 0 | U48: kwh | V48: kw | AA48: Rate Class | AB48: kwh % | AC48: kw %
B49: 17 | C49: GS<50 | D49: 3785.79058 | E49: 0.308844793 | F49: 0.003073167286 | G49: 0.00198671198 | J49: 15 | K49: GS<50 | L49: 6953.41998 | M49: 0 | N49: 0.00119124721 | O49: 0 | T49: GS<50 | U49: 0.4224472808 | V49: 0.4224472808 | AA49: GS<50 | AB49: 0.2220871905 | AC49: 0.208145249
B50: 18 | C50: GS<50 | D50: 5819.185926 | E50: 0.2364260139 | F50: 0.004723803771 | G50: 0.001520862275 | J50: 16 | K50: GS<50 | L50: 9847.852234 | M50: 0.7636732578 | N50: 0.001687116057 | O50: 0.000570576786 | T50: GEN>50 | U50: 0.5775527192 | V50: 0.5775527192 | AA50: GEN>50 | AB50: 0.7779128095 | AC50: 0.791854751
B51: 19 | C51: GS<50 | D51: 7758.220576 | E51: 0.5892900648 | F51: 0.00629784167 | G51: 0.003790737801 | J51: 17 | K51: GS<50 | L51: 6954.091362 | M51: 0.5300309139 | N51: 0.00119136223 | O51: 0.0003960114254 | T51: Total | U51: 1 | V51: 1 | AA51: Total | AB51: 1 | AC51: 1
B52: 20 | C52: GS<50 | D52: 329.3500637 | E52: 0.3729531131 | F52: 0.000267354419 | G52: 0.002399102833 | J52: 18 | K52: GS<50 | L52: 2216.295267 | M52: 0.3781435314 | N52: 0.000379691657 | O52: 0.0002825291034
B53: 21 | C53: GS<50 | D53: 969.4922535 | E53: 1.101906925 | F53: 0.0007869985975 | G53: 0.007088258371 | J53: 19 | K53: GS<50 | L53: 21469.26878 | M53: 4.287710226 | N53: 0.003678075913 | O53: 0.003203553215
B54: 22 | C54: GS<50 | D54: 5502.706459 | E54: 0 | F54: 0.004466897235 | G54: 0 | J54: 20 | K54: GS<50 | L54: 4226.493054 | M54: 0.7211227821 | N54: 0.0007240750701 | O54: 0.0005387852921
B55: 23 | C55: GS<50 | D55: 2303.834907 | E55: 0.1272653544 | F55: 0.001870169498 | G55: 0.0008186623505 | J55: 21 | K55: GS<50 | L55: 4024.315981 | M55: 1.518026041 | N55: 0.0006894384634 | O55: 0.0011341898
B56: 24 | C56: GS<50 | D56: 6395.645644 | E56: 0 | F56: 0.005191752831 | G56: 0 | J56: 22 | K56: GS<50 | L56: 7393.916618 | M56: 0.9316940478 | N56: 0.00126671229 | O56: 0.0006961131478
B57: 28 | C57: GEN>50 | D57: 44096.44845 | E57: 6.812715853 | F57: 0.03579589518 | G57: 0.04382429139 | J57: 23 | K57: GS<50 | L57: 7620.962485 | M57: 0 | N57: 0.001305609373 | O57: 0
B58: 29 | C58: GEN>50 | D58: 4001.968334 | E58: 0 | F58: 0.003248652534 | G58: 0 | J58: 24 | K58: GS<50 | L58: 2263.666068 | M58: 0.3862259212 | N58: 0.0003878071362 | O58: 0.000288567843
B59: 30 | C59: GEN>50 | D59: 11466.50015 | E59: 0.9632677442 | F59: 0.009308088335 | G59: 0.006196431382 | J59: 25 | K59: GS<50 | L59: 0 | M59: 1.500861575 | N59: 0 | O59: 0.001121365408
B60: 31 | C60: GEN>50 | D60: 1292.656338 | E60: 1.469209233 | F60: 0.001049331463 | G60: 0.009451011161 | J60: 26 | K60: GS<50 | L60: 4224.908619 | M60: 0.8791070185 | N60: 0.0007238036277 | O60: 0.0006568228651
B61: 32 | C61: GEN>50 | D61: 37137.70359 | E61: 6.577961095 | F61: 0.03014703886 | G61: 0.04231417984 | J61: 27 | K61: GS<50 | L61: 32199.10599 | M61: 28.66896044 | N61: 0.005516292025 | O61: 0.0214199504
B62: 33 | C62: GEN>50 | D62: 1898.933974 | E62: 0.06460891072 | F62: 0.001541485627 | G62: 0.000415611012 | J62: 28 | K62: GS<50 | L62: 23845.05131 | M62: 18.30212457 | N62: 0.004085090636 | O62: 0.0136743919
B63: 34 | C63: GEN>50 | D63: 77708.76994 | E63: 0 | F63: 0.0630811569 | G63: 0 | J63: 29 | K63: GS<50 | L63: 61782.14131 | M63: 9.062673157 | N63: 0.0105844036 | O63: 0.006771156211
B64: 35 | C64: GEN>50 | D64: 98332.50449 | E64: 21.15338374 | F64: 0.07982275551 | G64: 0.136073788 | J64: 30 | K64: GS<50 | L64: 2164.828386 | M64: 0.3693622699 | N64: 0.0003708744449 | O64: 0.0002759682033
B65: 36 | C65: GEN>50 | D65: 15783.95368 | E65: 0 | F65: 0.01281284029 | G65: 0 | J65: 31 | K65: GS<50 | L65: 62755.86925 | M65: 0 | N65: 0.0107512209 | O65: 0
B66: 37 | C66: GEN>50 | D66: 13251.0561 | E66: 1.285912351 | F66: 0.01075672604 | G66: 0.008271913695 | J66: 32 | K66: GS<50 | L66: 872.490114 | M66: 0.4304514397 | N66: 0.0001494734127 | O66: 0.0003216108414
B67: 38 | C67: GEN>50 | D67: 28562.44806 | E67: 0 | F67: 0.02318595789 | G67: 0 | J67: 33 | K67: GS<50 | L67: 524.7293586 | M67: 0.05274642111 | N67: 8.989567527e-05 | O67: 3.940937191e-05
B68: 39 | C68: GEN>50 | D68: 2263.613339 | E68: 0 | F68: 0.00183751909 | G68: 0 | J68: 34 | K68: GS<50 | L68: 2304.745402 | M68: 1.456016274 | N68: 0.0003948447726 | O68: 0.00108785934
B69: 40 | C69: GEN>50 | D69: 439.1334182 | E69: 0.4972708174 | F69: 0.0003564725587 | G69: 0.003198803777 | J69: 35 | K69: GS<50 | L69: 40627.75777 | M69: 8.549727562 | N69: 0.006960273253 | O69: 0.006387910044
B70: 41 | C70: GEN>50 | D70: 44183.89035 | E70: 4.74006788 | F70: 0.03586687735 | G70: 0.03049152797 | J70: 36 | K70: GS<50 | L70: 2630.214501 | M70: 0.4564858216 | N70: 0.0004506035442 | O70: 0.0003410623723
B71: 42 | C71: GEN>50 | D71: 35908.26301 | E71: 3.19000939 | F71: 0.02914902365 | G71: 0.0205204362 | J71: 37 | K71: GS<50 | L71: 2563.912728 | M71: 1.630738227 | N71: 0.0004392448455 | O71: 0.001218402461
B72: 43 | C72: GEN>50 | D72: 3225.816584 | E72: 0.05133908589 | F72: 0.002618600735 | G72: 0.0003302499485 | J72: 38 | K72: GS<50 | L72: 62222.30243 | M72: 12.4743079 | N72: 0.0106598112 | O72: 0.009320151563
B73: 44 | C73: GEN>50 | D73: 49252.0121 | E73: 4.172785578 | F73: 0.0399809945 | G73: 0.02684235994 | J73: 39 | K73: GS<50 | L73: 64794.15169 | M73: 0 | N73: 0.01110041572 | O73: 0
B74: 45 | C74: GEN>50 | D74: 4470.770339 | E74: 0.2776053197 | F74: 0.003629208974 | G74: 0.001785757205 | J74: 40 | K74: GS<50 | L74: 16169.47224 | M74: 6.843276489 | N74: 0.00277012445 | O74: 0.005112938898
B75: 46 | C75: GEN>50 | D75: 19197.86641 | E75: 2.421773462 | F75: 0.01558413064 | G75: 0.01557858983 | J75: 41 | K75: GS<50 | L75: 735.0163397 | M75: 0.2789963035 | N75: 0.0001259216568 | O75: 0.0002084514713
B76: 47 | C76: GEN>50 | D76: 12680.06416 | E76: 0 | F76: 0.01029321552 | G76: 0 | J76: 42 | K76: GS<50 | L76: 8221.421072 | M76: 1.402736018 | N76: 0.001408478841 | O76: 0.001048051114
B77: 48 | C77: GEN>50 | D77: 15569.04304 | E77: 4.59959361 | F77: 0.01263838364 | G77: 0.02958789637 | J77: 43 | K77: GS<50 | L77: 576344.5275 | M77: 248.3412664 | N77: 0.09873829173 | O77: 0.1855476281
B78: 49 | C78: GEN>50 | D78: 115821.117 | E78: 17.96589694 | F78: 0.09401937592 | G78: 0.1155695789 | J78: 44 | K78: GS<50 | L78: 4104.188773 | M78: 0 | N78: 0.0007031221241 | O78: 0
B79: 50 | C79: GEN>50 | D79: 42584.87948 | E79: 0 | F79: 0.0345688584 | G79: 0 | J79: 45 | K79: GS<50 | L79: 3941.877147 | M79: 0 | N79: 0.0006753151929 | O79: 0
B80: 51 | C80: GEN>50 | D80: 10120.21266 | E80: 0.4970626197 | F80: 0.008215221051 | G80: 0.0031974645 | J80: 46 | K80: GEN>50 | L80: 0 | M80: 0 | N80: 0 | O80: 0
B81: 52 | C81: GEN>50 | D81: 14297.23773 | E81: 1.294270781 | F81: 0.01160597829 | G81: 0.008325681134 | J81: 47 | K81: GEN>50 | L81: 1527.296927 | M81: 0.1775967205 | N81: 0.0002616537199 | O81: 0.0001326909971
B82: 53 | C82: GEN>50 | D82: 27226.68409 | E82: 4.895451413 | F82: 0.02210163322 | G82: 0.03149106668 | J82: 48 | K82: GEN>50 | L82: 66211.94243 | M82: 17.35981673 | N82: 0.01134330904 | O82: 0.01297034869
B83: 58 | C83: GEN>50 | D83: 226911.4888 | E83: 39.59110572 | F83: 0.1841985048 | G83: 0.2546784852 | J83: 49 | K83: GEN>50 | L83: 43727.27168 | M83: 17.35981673 | N83: 0.007491276315 | O83: 0.01297034869
B84: 59 | C84: GEN>50 | D84: 46634.73784 | E84: 0 | F84: 0.03785638631 | G84: 0 | J84: 50 | K84: GEN>50 | L84: 171103.9131 | M84: 71.2004209 | N84: 0.02931320987 | O84: 0.05319723705
B85: 60 | C85: GEN>50 | D85: 42115.91657 | E85: 6.495887452 | F85: 0.03418817134 | G85: 0.0417862231 | J85: 51 | K85: GEN>50 | L85: 68846.89941 | M85: 10.23982876 | N85: 0.01179472506 | O85: 0.007650665414
B86: 61 | C86: GEN>50 | D86: 30057.08575 | E86: 4.635953865 | F86: 0.02439925048 | G86: 0.0298217917 | J86: 52 | K86: GEN>50 | L86: 1614.95089 | M86: 0.06111008971 | N86: 0.0002766704368 | O86: 4.56582684e-05
B87: 56 | C87: Intermediate | D87: 25360.12831 | E87: 5.611144072 | F87: 0.02058643104 | G87: 0.03609491694 | J87: 53 | K87: GEN>50 | L87: 522.110863 | M87: 0.661144155 | N87: 8.94470794e-05 | O87: 0.0004939723936
B88: 57 | C88: Intermediate | D88: 2556.080877 | E88: 0.964434263 | F88: 0.002074933614 | G88: 0.006203935271 | J88: 54 | K88: GEN>50 | L88: 3965.320954 | M88: 0.6419148819 | N88: 0.000679331543 | O88: 0.0004796052847
J89: 55 | K89: GEN>50 | L89: 88139.90183 | M89: 13.67204757 | N89: 0.01509996699 | O89: 0.01021504011
D90: 1231885.618 | E90: 155.4552427 | F90: 1 | G90: 1 | J90: 56 | K90: GEN>50 | L90: 738.2650307 | M90: 0.2789963035 | N90: 0.0001264782166 | O90: 0.0002084514713
J91: 57 | K91: GEN>50 | L91: 16061.74481 | M91: 10.33771555 | N91: 0.002751668784 | O91: 0.007723801313
F92: kWh | G92: kW | J92: 58 | K92: GEN>50 | L92: 16061.74481 | M92: 10.33771555 | N92: 0.002751668784 | O92: 0.007723801313
E93: GS<50 | F93: 0.1034809003 | G93: 0.09794800875 | J93: 59 | K93: GEN>50 | L93: 2283.003848 | M93: 0 | N93: 0.0003911200492 | O93: 0
E94: GEN>50 | F94: 0.8738577351 | G94: 0.859753139 | J94: 60 | K94: GEN>50 | L94: 5002.716064 | M94: 1.040950988 | N94: 0.0008570561784 | O94: 0.0007777442294
E95: Intermediate | F95: 0.02266136465 | G95: 0.04229885222 | J95: 61 | K95: GEN>50 | L95: 6518.731055 | M95: 0.495134652 | N95: 0.001116777098 | O95: 0.0003699387605
E96: Total | F96: 1 | G96: 1 | J96: 62 | K96: GEN>50 | L96: 20813.55109 | M96: 2.048180336 | N96: 0.003565739556 | O96: 0.001530293409
J97: 63 | K97: GEN>50 | L97: 7282.61803 | M97: 0 | N97: 0.001247644819 | O97: 0
J98: 64 | K98: GEN>50 | L98: 40899.50254 | M98: 34.02710033 | N98: 0.007006828071 | O98: 0.02542327277
J99: 65 | K99: GEN>50 | L99: 75775.88903 | M99: 20.74965987 | N99: 0.0129817869 | O99: 0.01550306249
J100: 66 | K100: GEN>50 | L100: 30816.83882 | M100: 28.33698873 | N100: 0.005279484538 | O100: 0.02117191847
J101: 67 | K101: GEN>50 | L101: 5603.342244 | M101: 2.106064404 | N101: 0.0009599543586 | O101: 0.001573541363
J102: 68 | K102: GEN>50 | L102: 87551.50051 | M102: 13.33473815 | N102: 0.01499916315 | O102: 0.009963020128
J103: 69 | K103: GEN>50 | L103: 79309.31867 | M103: 12.40381433 | N103: 0.01358712761 | O103: 0.009267482451
J104: 70 | K104: GEN>50 | L104: 131144.6407 | M104: 0 | N104: 0.02246746031 | O104: 0
J105: 71 | K105: GEN>50 | L105: 44194.78727 | M105: 7.289108374 | N105: 0.007571370232 | O105: 0.005446041205
J106: 72 | K106: GEN>50 | L106: 1451.988262 | M106: 2.720140691 | N106: 0.0002487519769 | O106: 0.002032347103
J107: 73 | K107: GEN>50 | L107: 5836.502074 | M107: 1.21444282 | N107: 0.0009998988748 | O107: 0.0009073682676
J108: 74 | K108: GEN>50 | L108: 182995.469 | M108: 18.78943266 | N108: 0.0313504495 | O108: 0.01403848307
J109: 75 | K109: GEN>50 | L109: 123214.9851 | M109: 25.06749055 | N109: 0.02110896619 | O109: 0.01872912014
J110: 76 | K110: GEN>50 | L110: 1509.081968 | M110: 0.2574790431 | N110: 0.0002585331664 | O110: 0.0001923748977
J111: 77 | K111: GEN>50 | L111: 1826.403078 | M111: 0 | N111: 0.0003128960394 | O111: 0
J112: 78 | K112: GEN>50 | L112: 2923.585941 | M112: 4.603315015 | N112: 0.0005008634034 | O112: 0.003439356635
J113: 79 | K113: GEN>50 | L113: 15389.44281 | M113: 0 | N113: 0.002636491233 | O113: 0
J114: 80 | K114: GEN>50 | L114: 89829.78157 | M114: 13.23743244 | N114: 0.0153894741 | O114: 0.009890318375
J115: 81 | K115: GEN>50 | L115: 124454.0064 | M115: 16.00157993 | N115: 0.02132123306 | O115: 0.01195554507
J116: 82 | K116: GEN>50 | L116: 37291.38206 | M116: 10.66244872 | N116: 0.00638869146 | O116: 0.007966424986
J117: 83 | K117: GEN>50 | L117: 68339.19117 | M117: 16.78249913 | N117: 0.01170774541 | O117: 0.01253900712
J118: 84 | K118: GEN>50 | L118: 39808.09685 | M118: 0 | N118: 0.006819850441 | O118: 0
J119: 85 | K119: GEN>50 | L119: 973911.0465 | M119: 171.3979767 | N119: 0.1668486616 | O119: 0.1280596193
J120: 86 | K120: GEN>50 | L120: 22821.79949 | M120: 0 | N120: 0.003909789004 | O120: 0
J121: 87 | K121: GEN>50 | L121: 41580.30242 | M121: 4.024905658 | N121: 0.007123461464 | O121: 0.003007199363
J122: 88 | K122: GEN>50 | L122: 30256.12187 | M122: 8.708535916 | N122: 0.005183423535 | O122: 0.006506563355
J123: 89 | K123: GEN>50 | L123: 146596.4722 | M123: 16.82790191 | N123: 0.02511463985 | O123: 0.0125729297
J124: 90 | K124: GEN>50 | L124: 32953.76142 | M124: 5.310647489 | N124: 0.005645578216 | O124: 0.003967838529
J125: 91 | K125: GEN>50 | L125: 1094.975197 | M125: 0.251551224 | N125: 0.0001875891507 | O125: 0.0001879459408
J126: 92 | K126: GEN>50 | L126: 694397.6186 | M126: 288.2755683 | N126: 0.1189629317 | O126: 0.2153844535
J127: 93 | K127: GEN>50 | L127: 4028.839981 | M127: 1.292942452 | N127: 0.0006902135067 | O127: 0.0009660190938
J128: 94 | K128: GEN>50 | L128: 9302.714314 | M128: 0.7229888921 | N128: 0.001593724025 | O128: 0.0005401795521
J129: 95 | K129: GEN>50 | L129: 1289.546472 | M129: 0.2200219728 | N129: 0.0002209227462 | O129: 0.0001643889305
J130: 96 | K130: GEN>50 | L130: 2780.196251 | M130: 0.8736097645 | N130: 0.0004762981437 | O130: 0.000652715604
J131: 97 | K131: GEN>50 | L131: 11431.44373 | M131: 0 | N131: 0.001958414059 | O131: 0
J132: 98 | K132: GEN>50 | L132: 76705.68212 | M132: 11.0726183 | N132: 0.01314107736 | O132: 0.008272882278
J133: 99 | K133: GEN>50 | L133: 9321.904373 | M133: 1.939675458 | N133: 0.00159701163 | O133: 0.00144922423
J134: 100 | K134: GEN>50 | L134: 88441.99551 | M134: 0 | N134: 0.01515172113 | O134: 0
J135: 101 | K135: GEN>50 | L135: 8075.404607 | M135: 1.618439699 | N135: 0.001383463567 | O135: 0.001209213643
J136: 102 | K136: GEN>50 | L136: 2334.942772 | M136: 0.2089258521 | N136: 0.0004000181308 | O136: 0.0001560984884
J137: 103 | K137: GEN>50 | L137: 387369.1781 | M137: 56.87285385 | N137: 0.06636338005 | O137: 0.042492427
J138: 104 | K138: GEN>50 | L138: 70674.39702 | M138: 0 | N138: 0.01210780861 | O138: 0
J139: 105 | K139: GEN>50 | L139: 156165.6238 | M139: 0 | N139: 0.02675400943 | O139: 0
J140: 106 | K140: GEN>50 | L140: 139212.7202 | M140: 0 | N140: 0.02384966895 | O140: 0
J141: 107 | K141: Intermediate | L141: 13548.89721 | M141: 2.127794551 | N141: 0.002321172323 | O141: 0.001589776994
J142: 108 | K142: Intermediate | L142: 15463.0599 | M142: 2.638301928 | N142: 0.002649103178 | O142: 0.001971201452
J143: 109 | K143: Intermediate | L143: 4951.140355 | M143: 0.5429129537 | N143: 0.0008482203223 | O143: 0.0004056362129
L145: 5837092.351 | M145: 1338.423288 | N145: 1 | O145: 1
N147: kwh % | O147: kw %
L148: GS<50 | N148: 0.2024629348 | O148: 0.2839154049
L149: GS>50 | N149: 0.7917185694 | O149: 0.7121179805
L150: Intermediate | N150: 0.005818495823 | O150: 0.003966614659
L151: Total | N151: 1 | O151: 1

Sheet 4. 2011-2014 LRAM
B3: Legend | C3: User Inputs (Green)
C4: Auto Populated Cells (White)
C5: Instructions (Grey)
B7: Instructions | C7: 1. LDCs can apply for disposition of LRAMVA amounts at any time, but at a minimum, must do so as part of a cost of service (COS) application. The following LRAMVA work forms apply to LDCs that need to recover lost revenues from the 2011-2014 period. Please input or manually link the savings, adjustments and program savings persistence data in these tables from the LDC's Persistence Reports provided by the IESO (in Tab 7). As noted earlier, persistence data is available upon request from the IESO. Please also be advised that the same rate classes (of up to 14) are carried over from the Summary Tab 1.
C8: 2. Please ensure that the IESO verified savings adjustments apply back to the program year it relates to. For example, savings adjustments related to 2012 programs that were reported by the IESO in 2013 should be included in the 2012 program savings table. In order for persisting savings to be claimed in future years, past year's initiative level savings results need to be filled out in the tables below. If the IESO adjustments were made available to the LDC after the LRAMVA was approved, the persistence of those savings adjustments in the future can be claimed as approved LRAMVA amounts are considered to be final.
C9: 3. The work forms below include the monthly multipliers for most programs in order to claim demand savings from energy efficiency programs, consistent with the monthly multipliers indicated in the OEB's updated LRAM policy related to peak demand savings in EB-2016-0182. Demand Response (DR3) savings should generally not be included with the LRAMVA calculation, unless suported by empirical evidence. LDCs are requested to confirm the monthly multipliers for all programs each year as placeholder values are provided. If a different monthly multiplier is used, please include rationale in Tab 1-a and highlight the new multiplier that has been used.
C10: 4. LDC are requested to input the applicable rate class allocation percentages to allocate actual savings to the rate classes. The generic template currently includes the same allocation percentage for program savings and its savings adjustments. If a different allocation is proposed for savings adjustments, LDCs must provide supporting rationale in Tab 1-a and highlight the change.
C11: 5. The persistence of future savings is expected to be included in the distributor's load forecast after re-basing. LDCs are requested to delete the applicable savings persistence rows (auto-calculated after the LRAMVA totals for the year) if future year's persistence of savings is already captured in the updated load forecast. Please also provide assumptions about the years in which persistence is captured in the load forecast calculation in the "Notes" section below each table.
B13: Tables | C13: Table 4-a. 2011 Lost Revenues
C14: Table 4-b. 2012 Lost Revenues
C15: Table 4-c. 2013 Lost Revenues
C16: Table 4-d. 2014 Lost Revenues
B18: Table 4-a. 2011 Lost Revenues Work Form
B19: Program | C19: Results Status | D19: Net Energy Savings (kWh) | E19: Net Energy Savings Persistence (kWh) | N19: Monthly Multiplier | O19: Net Demand Savings (kW) | P19: Net Peak Demand Savings Persistence (kW) | Y19: Rate Allocations for LRAMVA
D20: 2011 | E20: 2012 | F20: 2013 | G20: 2014 | H20: 2015 | I20: 2016 | J20: 2017 | K20: 2018 | L20: 2019 | M20: 2020 | O20: 2011 | P20: 2012 | Q20: 2013 | R20: 2014 | S20: 2015 | T20: 2016 | U20: 2017 | V20: 2018 | W20: 2019 | X20: 2020 | Y20: ='1. LRAMVA Summary'!D52 -> Residential | Z20: ='1. LRAMVA Summary'!E52 -> GS<50 kW | AA20: ='1. LRAMVA Summary'!F52 -> General Service 50 - 999 kW | AB20: ='1. LRAMVA Summary'!G52 -> General Service 1,000 - 4,999 kW | AC20: ='1. LRAMVA Summary'!H52 -> Sentinel Lighting | AD20: ='1. LRAMVA Summary'!I52 -> Street Lighting | AE20: ='1. LRAMVA Summary'!J52 -> Unmetered Scattered Load | AF20: ='1. LRAMVA Summary'!K52 -> Large Use | AG20: ='1. LRAMVA Summary'!L52 ->  | AH20: ='1. LRAMVA Summary'!M52 ->  | AI20: ='1. LRAMVA Summary'!N52 ->  | AJ20: ='1. LRAMVA Summary'!O52 ->  | AK20: ='1. LRAMVA Summary'!P52 ->  | AL20: ='1. LRAMVA Summary'!Q52 ->  | AM20: ='1. LRAMVA Summary'!R52 -> Total
B21: Consumer Program | Y21: ='1. LRAMVA Summary'!D53 -> kWh | Z21: ='1. LRAMVA Summary'!E53 -> kWh | AA21: ='1. LRAMVA Summary'!F53 -> kW | AB21: ='1. LRAMVA Summary'!G53 -> kW | AC21: ='1. LRAMVA Summary'!H53 -> kW | AD21: ='1. LRAMVA Summary'!I53 -> kW | AE21: ='1. LRAMVA Summary'!J53 -> kWh | AF21: ='1. LRAMVA Summary'!K53 -> kW | AG21: ='1. LRAMVA Summary'!L53 -> 0 | AH21: ='1. LRAMVA Summary'!M53 -> 0 | AI21: ='1. LRAMVA Summary'!N53 -> 0 | AJ21: ='1. LRAMVA Summary'!O53 -> 0 | AK21: ='1. LRAMVA Summary'!P53 -> 0 | AL21: ='1. LRAMVA Summary'!Q53 -> 0
A22: 1 | B22: Appliance Retirement | C22: Verified | D22: ='7. Persistence Report'!AQ$28 -> 288761.7718 | E22: ='7. Persistence Report'!AR$28 -> 288761.7718 | F22: ='7. Persistence Report'!AS$28 -> 288761.7718 | G22: ='7. Persistence Report'!AT$28 -> 287549.9138 | H22: ='7. Persistence Report'!AU$28 -> 200473.0507 | I22: ='7. Persistence Report'!AV$28 -> 0 | J22: ='7. Persistence Report'!AW$28 -> 0 | K22: ='7. Persistence Report'!AX$28 -> 0 | L22: ='7. Persistence Report'!AY$28 -> 0 | M22: ='7. Persistence Report'!AZ$28 -> 0 | O22: ='7. Persistence Report'!L$28 -> 41.10579999 | P22: ='7. Persistence Report'!M$28 -> 41.10579999 | Q22: ='7. Persistence Report'!N$28 -> 41.10579999 | R22: ='7. Persistence Report'!O$28 -> 39.7506398 | S22: ='7. Persistence Report'!P$28 -> 26.35814125 | T22: ='7. Persistence Report'!Q$28 -> 0 | U22: ='7. Persistence Report'!R$28 -> 0 | V22: ='7. Persistence Report'!S$28 -> 0 | W22: ='7. Persistence Report'!T$28 -> 0 | X22: ='7. Persistence Report'!U$28 -> 0 | Y22: 1 | AM22: =SUM(Y22:AL22) -> 1
B23: Adjustment to 2011 savings | C23: True-up | Y23: =Y22 -> 1 | Z23: =Z22 -> 0 | AA23: =AA22 -> 0 | AB23: 0 | AC23: 0 | AD23: 0 | AE23: 0 | AF23: 0 | AG23: 0 | AH23: 0 | AI23: 0 | AJ23: 0 | AK23: 0 | AL23: 0
A25: 2 | B25: Appliance Exchange | C25: Verified | D25: ='7. Persistence Report'!AQ$27 -> 3825.890382 | E25: ='7. Persistence Report'!AR$27 -> 3825.890382 | F25: ='7. Persistence Report'!AS$27 -> 3825.890382 | G25: ='7. Persistence Report'!AT$27 -> 1956.984236 | H25: ='7. Persistence Report'!AU$27 -> 0 | I25: ='7. Persistence Report'!AV$27 -> 0 | J25: ='7. Persistence Report'!AW$27 -> 0 | K25: ='7. Persistence Report'!AX$27 -> 0 | L25: ='7. Persistence Report'!AY$27 -> 0 | M25: ='7. Persistence Report'!AZ$27 -> 0 | O25: ='7. Persistence Report'!L$27 -> 3.187445753 | P25: ='7. Persistence Report'!M$27 -> 3.187445753 | Q25: ='7. Persistence Report'!N$27 -> 3.187445753 | R25: ='7. Persistence Report'!O$27 -> 1.097541467 | S25: ='7. Persistence Report'!P$27 -> 0 | T25: ='7. Persistence Report'!Q$27 -> 0 | U25: ='7. Persistence Report'!R$27 -> 0 | V25: ='7. Persistence Report'!S$27 -> 0 | W25: ='7. Persistence Report'!T$27 -> 0 | X25: ='7. Persistence Report'!U$27 -> 0 | Y25: 1 | AM25: =SUM(Y25:AL25) -> 1
B26: Adjustment to 2011 savings | C26: True-up | Y26: =Y25 -> 1 | Z26: =Z25 -> 0 | AA26: =AA25 -> 0 | AB26: 0 | AC26: 0 | AD26: 0 | AE26: 0 | AF26: 0 | AG26: 0 | AH26: 0 | AI26: 0 | AJ26: 0 | AK26: 0 | AL26: 0
A28: 3 | B28: HVAC Incentives | C28: Verified | D28: ='7. Persistence Report'!AQ$31 -> 748429.0923 | E28: ='7. Persistence Report'!AR$31 -> 748429.0923 | F28: ='7. Persistence Report'!AS$31 -> 748429.0923 | G28: ='7. Persistence Report'!AT$31 -> 748429.0923 | H28: ='7. Persistence Report'!AU$31 -> 748429.0923 | I28: ='7. Persistence Report'!AV$31 -> 748429.0923 | J28: ='7. Persistence Report'!AW$31 -> 748429.0923 | K28: ='7. Persistence Report'!AX$31 -> 748429.0923 | L28: ='7. Persistence Report'!AY$31 -> 748429.0923 | M28: ='7. Persistence Report'!AZ$31 -> 748429.0923 | O28: ='7. Persistence Report'!L$31 -> 405.0319861 | P28: ='7. Persistence Report'!M$31 -> 405.0319861 | Q28: ='7. Persistence Report'!N$31 -> 405.0319861 | R28: ='7. Persistence Report'!O$31 -> 405.0319861 | S28: ='7. Persistence Report'!P$31 -> 405.0319861 | T28: ='7. Persistence Report'!Q$31 -> 405.0319861 | U28: ='7. Persistence Report'!R$31 -> 405.0319861 | V28: ='7. Persistence Report'!S$31 -> 405.0319861 | W28: ='7. Persistence Report'!T$31 -> 405.0319861 | X28: ='7. Persistence Report'!U$31 -> 405.0319861 | Y28: 1 | AM28: =SUM(Y28:AL28) -> 1
B29: Adjustment to 2011 savings | C29: True-up | D29: ='7. Persistence Report'!AQ$55 -> -86282.84942 | E29: ='7. Persistence Report'!AR$55 -> -86282.84942 | F29: ='7. Persistence Report'!AS$55 -> -86282.84942 | G29: ='7. Persistence Report'!AT$55 -> -86282.84942 | H29: ='7. Persistence Report'!AU$55 -> -86282.84942 | I29: ='7. Persistence Report'!AV$55 -> -86282.84942 | J29: ='7. Persistence Report'!AW$55 -> -86282.84942 | K29: ='7. Persistence Report'!AX$55 -> -86282.84942 | L29: ='7. Persistence Report'!AY$55 -> -86282.84942 | M29: ='7. Persistence Report'!AZ$55 -> -86282.84942 | O29: ='7. Persistence Report'!L$55 -> -46.40116427 | P29: ='7. Persistence Report'!M$55 -> -46.40116427 | Q29: ='7. Persistence Report'!N$55 -> -46.40116427 | R29: ='7. Persistence Report'!O$55 -> -46.40116427 | S29: ='7. Persistence Report'!P$55 -> -46.40116427 | T29: ='7. Persistence Report'!Q$55 -> -46.40116427 | U29: ='7. Persistence Report'!R$55 -> -46.40116427 | V29: ='7. Persistence Report'!S$55 -> -46.40116427 | W29: ='7. Persistence Report'!T$55 -> -46.40116427 | X29: ='7. Persistence Report'!U$55 -> -46.40116427 | Y29: =Y28 -> 1 | Z29: =Z28 -> 0 | AA29: =AA28 -> 0 | AB29: 0 | AC29: 0 | AD29: 0 | AE29: 0 | AF29: 0 | AG29: 0 | AH29: 0 | AI29: 0 | AJ29: 0 | AK29: 0 | AL29: 0
A31: 4 | B31: Conservation Instant Coupon Booklet | C31: Verified | D31: ='7. Persistence Report'!AQ$30 -> 121767.3878 | E31: ='7. Persistence Report'!AR$30 -> 121767.3878 | F31: ='7. Persistence Report'!AS$30 -> 121767.3878 | G31: ='7. Persistence Report'!AT$30 -> 121767.3878 | H31: ='7. Persistence Report'!AU$30 -> 111967.7657 | I31: ='7. Persistence Report'!AV$30 -> 101262.0914 | J31: ='7. Persistence Report'!AW$30 -> 79062.7722 | K31: ='7. Persistence Report'!AX$30 -> 78555.82266 | L31: ='7. Persistence Report'!AY$30 -> 99061.11906 | M31: ='7. Persistence Report'!AZ$30 -> 37516.39964 | O31: ='7. Persistence Report'!L$30 -> 7.485560004 | P31: ='7. Persistence Report'!M$30 -> 7.485560004 | Q31: ='7. Persistence Report'!N$30 -> 7.485560004 | R31: ='7. Persistence Report'!O$30 -> 7.485560004 | S31: ='7. Persistence Report'!P$30 -> 7.031808592 | T31: ='7. Persistence Report'!Q$30 -> 6.536104288 | U31: ='7. Persistence Report'!R$30 -> 5.50821032 | V31: ='7. Persistence Report'!S$30 -> 5.450339368 | W31: ='7. Persistence Report'!T$30 -> 6.399795084 | X31: ='7. Persistence Report'!U$30 -> 3.550093012 | Y31: 1 | AM31: =SUM(Y31:AL31) -> 1
B32: Adjustment to 2011 savings | C32: True-up | D32: ='7. Persistence Report'!AQ$57 -> 1780.851468 | E32: ='7. Persistence Report'!AR$57 -> 1780.851468 | F32: ='7. Persistence Report'!AS$57 -> 1780.851468 | G32: ='7. Persistence Report'!AT$57 -> 1780.851468 | H32: ='7. Persistence Report'!AU$57 -> 1780.851468 | I32: ='7. Persistence Report'!AV$57 -> 1627.129756 | J32: ='7. Persistence Report'!AW$57 -> 998.2300394 | K32: ='7. Persistence Report'!AX$57 -> 996.8709254 | L32: ='7. Persistence Report'!AY$57 -> 996.8709254 | M32: ='7. Persistence Report'!AZ$57 -> 353.1062679 | O32: ='7. Persistence Report'!L$57 -> 0.1040064533 | P32: ='7. Persistence Report'!M$57 -> 0.1040064533 | Q32: ='7. Persistence Report'!N$57 -> 0.1040064533 | R32: ='7. Persistence Report'!O$57 -> 0.1040064533 | S32: ='7. Persistence Report'!P$57 -> 0.1040064533 | T32: ='7. Persistence Report'!Q$57 -> 0.09688868458 | U32: ='7. Persistence Report'!R$57 -> 0.06776877236 | V32: ='7. Persistence Report'!S$57 -> 0.06761362235 | W32: ='7. Persistence Report'!T$57 -> 0.06761362235 | X32: ='7. Persistence Report'!U$57 -> 0.03780541954 | Y32: =Y31 -> 1 | Z32: =Z31 -> 0 | AA32: =AA31 -> 0 | AB32: 0 | AC32: 0 | AD32: 0 | AE32: 0 | AF32: 0 | AG32: 0 | AH32: 0 | AI32: 0 | AJ32: 0 | AK32: 0 | AL32: 0
A34: 5 | B34: Bi-Annual Retailer Event | C34: Verified | D34: ='7. Persistence Report'!AQ$29 -> 189855.7636 | E34: ='7. Persistence Report'!AR$29 -> 189855.7636 | F34: ='7. Persistence Report'!AS$29 -> 189855.7636 | G34: ='7. Persistence Report'!AT$29 -> 189855.7636 | H34: ='7. Persistence Report'!AU$29 -> 173514.1861 | I34: ='7. Persistence Report'!AV$29 -> 155661.7009 | J34: ='7. Persistence Report'!AW$29 -> 117358.9993 | K34: ='7. Persistence Report'!AX$29 -> 116930.8784 | L34: ='7. Persistence Report'!AY$29 -> 151124.9411 | M34: ='7. Persistence Report'!AZ$29 -> 48494.67651 | O34: ='7. Persistence Report'!L$29 -> 10.86307615 | P34: ='7. Persistence Report'!M$29 -> 10.86307615 | Q34: ='7. Persistence Report'!N$29 -> 10.86307615 | R34: ='7. Persistence Report'!O$29 -> 10.86307615 | S34: ='7. Persistence Report'!P$29 -> 10.1064129 | T34: ='7. Persistence Report'!Q$29 -> 9.279790176 | U34: ='7. Persistence Report'!R$29 -> 7.506262094 | V34: ='7. Persistence Report'!S$29 -> 7.457389843 | W34: ='7. Persistence Report'!T$29 -> 9.040675822 | X34: ='7. Persistence Report'!U$29 -> 4.288591802 | Y34: 1 | AM34: =SUM(Y34:AL34) -> 1
B35: Adjustment to 2011 savings | C35: True-up | D35: ='7. Persistence Report'!AQ$56 -> 14105.64925 | E35: ='7. Persistence Report'!AR$56 -> 14105.64925 | F35: ='7. Persistence Report'!AS$56 -> 14105.64925 | G35: ='7. Persistence Report'!AT$56 -> 14105.64925 | H35: ='7. Persistence Report'!AU$56 -> 14105.64925 | I35: ='7. Persistence Report'!AV$56 -> 12817.99198 | J35: ='7. Persistence Report'!AW$56 -> 6920.294864 | K35: ='7. Persistence Report'!AX$56 -> 6918.885029 | L35: ='7. Persistence Report'!AY$56 -> 6918.885029 | M35: ='7. Persistence Report'!AZ$56 -> 1526.359587 | O35: ='7. Persistence Report'!L$56 -> 0.6968485784 | P35: ='7. Persistence Report'!M$56 -> 0.6968485784 | Q35: ='7. Persistence Report'!N$56 -> 0.6968485784 | R35: ='7. Persistence Report'!O$56 -> 0.6968485784 | S35: ='7. Persistence Report'!P$56 -> 0.6968485784 | T35: ='7. Persistence Report'!Q$56 -> 0.6372262482 | U35: ='7. Persistence Report'!R$56 -> 0.3641454729 | V35: ='7. Persistence Report'!S$56 -> 0.3639845328 | W35: ='7. Persistence Report'!T$56 -> 0.3639845328 | X35: ='7. Persistence Report'!U$56 -> 0.1142946963 | Y35: =Y34 -> 1 | Z35: =Z34 -> 0 | AA35: =AA34 -> 0 | AB35: 0 | AC35: 0 | AD35: 0 | AE35: 0 | AF35: 0 | AG35: 0 | AH35: 0 | AI35: 0 | AJ35: 0 | AK35: 0 | AL35: 0
A37: 6 | B37: Retailer Co-op | C37: Verified | AM37: =SUM(Y37:AL37) -> 0
B38: Adjustment to 2011 savings | C38: True-up | Y38: =Y37 -> 0 | Z38: =Z37 -> 0 | AA38: =AA37 -> 0 | AB38: 0 | AC38: 0 | AD38: 0 | AE38: 0 | AF38: 0 | AG38: 0 | AH38: 0 | AI38: 0 | AJ38: 0 | AK38: 0 | AL38: 0
A40: 7 | B40: Residential Demand Response | C40: Verified | AM40: =SUM(Y40:AL40) -> 0
B41: Adjustment to 2011 savings | C41: True-up | Y41: =Y40 -> 0 | Z41: =Z40 -> 0 | AA41: =AA40 -> 0 | AB41: 0 | AC41: 0 | AD41: 0 | AE41: 0 | AF41: 0 | AG41: 0 | AH41: 0 | AI41: 0 | AJ41: 0 | AK41: 0 | AL41: 0
A43: 8 | B43: Residential Demand Response (IHD) | C43: Verified | AM43: =SUM(Y43:AL43) -> 0
B44: Adjustment to 2011 savings | C44: True-up | Y44: =Y43 -> 0 | Z44: =Z43 -> 0 | AA44: =AA43 -> 0 | AB44: 0 | AC44: 0 | AD44: 0 | AE44: 0 | AF44: 0 | AG44: 0 | AH44: 0 | AI44: 0 | AJ44: 0 | AK44: 0 | AL44: 0
A46: 9 | B46: Residential New Construction | C46: Verified | AM46: =SUM(Y46:AL46) -> 0
B47: Adjustment to 2011 savings | C47: True-up | Y47: =Y46 -> 0 | Z47: =Z46 -> 0 | AA47: =AA46 -> 0 | AB47: 0 | AC47: 0 | AD47: 0 | AE47: 0 | AF47: 0 | AG47: 0 | AH47: 0 | AI47: 0 | AJ47: 0 | AK47: 0 | AL47: 0
B49: Business Program
A50: 10 | B50: Retrofit | C50: Verified | D50: ='7. Persistence Report'!AQ$34 -> 325703.3445 | E50: ='7. Persistence Report'!AR$34 -> 325703.3445 | F50: ='7. Persistence Report'!AS$34 -> 325703.3445 | G50: ='7. Persistence Report'!AT$34 -> 325703.3445 | H50: ='7. Persistence Report'!AU$34 -> 325703.3445 | I50: ='7. Persistence Report'!AV$34 -> 325703.3445 | J50: ='7. Persistence Report'!AW$34 -> 325703.3445 | K50: ='7. Persistence Report'!AX$34 -> 325703.3445 | L50: ='7. Persistence Report'!AY$34 -> 210010.6454 | M50: ='7. Persistence Report'!AZ$34 -> 210010.6454 | N50: 12 | O50: ='7. Persistence Report'!L$34 -> 57.47941757 | P50: ='7. Persistence Report'!M$34 -> 57.47941757 | Q50: ='7. Persistence Report'!N$34 -> 57.47941757 | R50: ='7. Persistence Report'!O$34 -> 57.47941757 | S50: ='7. Persistence Report'!P$34 -> 57.47941757 | T50: ='7. Persistence Report'!Q$34 -> 57.47941757 | U50: ='7. Persistence Report'!R$34 -> 57.47941757 | V50: ='7. Persistence Report'!S$34 -> 57.47941757 | W50: ='7. Persistence Report'!T$34 -> 30.60038258 | X50: ='7. Persistence Report'!U$34 -> 30.60038258 | Z50: 0.11 | AA50: 0.89 | AM50: =SUM(Y50:AL50) -> 1
B51: Adjustment to 2011 savings | C51: True-up | D51: ='7. Persistence Report'!AQ$53 -> 118887.2468 | E51: ='7. Persistence Report'!AR$53 -> 118887.2468 | F51: ='7. Persistence Report'!AS$53 -> 118887.2468 | G51: ='7. Persistence Report'!AT$53 -> 118635.7474 | H51: ='7. Persistence Report'!AU$53 -> 118635.7474 | I51: ='7. Persistence Report'!AV$53 -> 118635.7474 | J51: ='7. Persistence Report'!AW$53 -> 109578.979 | K51: ='7. Persistence Report'!AX$53 -> 726.6868496 | L51: ='7. Persistence Report'!AY$53 -> 726.6868496 | M51: ='7. Persistence Report'!AZ$53 -> 726.6868496 | N51: =N50 -> 12 | O51: ='7. Persistence Report'!L$53 -> 13.87767822 | P51: ='7. Persistence Report'!M$53 -> 13.87767822 | Q51: ='7. Persistence Report'!N$53 -> 13.87767822 | R51: ='7. Persistence Report'!O$53 -> 13.81270041 | S51: ='7. Persistence Report'!P$53 -> 13.81270041 | T51: ='7. Persistence Report'!Q$53 -> 13.81270041 | U51: ='7. Persistence Report'!R$53 -> 12.62934941 | V51: ='7. Persistence Report'!S$53 -> 0.1023054879 | W51: ='7. Persistence Report'!T$53 -> 0.1023054879 | X51: ='7. Persistence Report'!U$53 -> 0.1023054879 | Y51: =Y50 -> 0 | Z51: =Z50 -> 0.11 | AA51: =AA50 -> 0.89 | AB51: 0 | AC51: 0 | AD51: 0 | AE51: 0 | AF51: 0 | AG51: 0 | AH51: 0 | AI51: 0 | AJ51: 0 | AK51: 0 | AL51: 0
A53: 11 | B53: Direct Install Lighting | C53: Verified | D53: ='7. Persistence Report'!AQ$33 -> 238083.69 | E53: ='7. Persistence Report'!AR$33 -> 237600.974 | F53: ='7. Persistence Report'!AS$33 -> 237600.974 | G53: ='7. Persistence Report'!AT$33 -> 205599.2254 | H53: ='7. Persistence Report'!AU$33 -> 205004.738 | I53: ='7. Persistence Report'!AV$33 -> 204888.2705 | J53: ='7. Persistence Report'!AW$33 -> 30464.54463 | K53: ='7. Persistence Report'!AX$33 -> 30464.54463 | L53: ='7. Persistence Report'!AY$33 -> 30464.54463 | M53: ='7. Persistence Report'!AZ$33 -> 30464.54463 | N53: 12 | O53: ='7. Persistence Report'!L$33 -> 91.557232 | P53: ='7. Persistence Report'!M$33 -> 91.38440859 | Q53: ='7. Persistence Report'!N$33 -> 91.38440859 | R53: ='7. Persistence Report'!O$33 -> 80.4204917 | S53: ='7. Persistence Report'!P$33 -> 80.20765156 | T53: ='7. Persistence Report'!Q$33 -> 80.16595355 | U53: ='7. Persistence Report'!R$33 -> 10.91907115 | V53: ='7. Persistence Report'!S$33 -> 10.91907115 | W53: ='7. Persistence Report'!T$33 -> 10.91907115 | X53: ='7. Persistence Report'!U$33 -> 10.91907115 | Z53: 1 | AM53: =SUM(Y53:AL53) -> 1
B54: Adjustment to 2011 savings | C54: True-up | D54: ='7. Persistence Report'!AQ$54 -> 25699.84804 | E54: ='7. Persistence Report'!AR$54 -> 25699.84804 | F54: ='7. Persistence Report'!AS$54 -> 25699.84804 | G54: ='7. Persistence Report'!AT$54 -> 23686.98497 | H54: ='7. Persistence Report'!AU$54 -> 23686.98497 | I54: ='7. Persistence Report'!AV$54 -> 23570.51755 | J54: ='7. Persistence Report'!AW$54 -> 3336.023183 | K54: ='7. Persistence Report'!AX$54 -> 3336.023183 | L54: ='7. Persistence Report'!AY$54 -> 3336.023183 | M54: ='7. Persistence Report'!AZ$54 -> 3336.023183 | N54: =N53 -> 12 | O54: ='7. Persistence Report'!L$54 -> 10.83717973 | P54: ='7. Persistence Report'!M$54 -> 10.83717973 | Q54: ='7. Persistence Report'!N$54 -> 10.83717973 | R54: ='7. Persistence Report'!O$54 -> 10.03758343 | S54: ='7. Persistence Report'!P$54 -> 10.03758343 | T54: ='7. Persistence Report'!Q$54 -> 9.995885426 | U54: ='7. Persistence Report'!R$54 -> 1.320150434 | V54: ='7. Persistence Report'!S$54 -> 1.320150434 | W54: ='7. Persistence Report'!T$54 -> 1.320150434 | X54: ='7. Persistence Report'!U$54 -> 1.320150434 | Y54: =Y53 -> 0 | Z54: =Z53 -> 1 | AA54: =AA53 -> 0 | AB54: 0 | AC54: 0 | AD54: 0 | AE54: 0 | AF54: 0 | AG54: 0 | AH54: 0 | AI54: 0 | AJ54: 0 | AK54: 0 | AL54: 0
A56: 12 | B56: Building Commissioning | C56: Verified | N56: 3 | AM56: =SUM(Y56:AL56) -> 0
B57: Adjustment to 2011 savings | C57: True-up | N57: =N56 -> 3 | Y57: =Y56 -> 0 | Z57: =Z56 -> 0 | AA57: =AA56 -> 0 | AB57: 0 | AC57: 0 | AD57: 0 | AE57: 0 | AF57: 0 | AG57: 0 | AH57: 0 | AI57: 0 | AJ57: 0 | AK57: 0 | AL57: 0
A59: 13 | B59: New Construction | C59: Verified | N59: 12 | AM59: =SUM(Y59:AL59) -> 0
B60: Adjustment to 2011 savings | C60: True-up | N60: =N59 -> 12 | Y60: =Y59 -> 0 | Z60: =Z59 -> 0 | AA60: =AA59 -> 0 | AB60: 0 | AC60: 0 | AD60: 0 | AE60: 0 | AF60: 0 | AG60: 0 | AH60: 0 | AI60: 0 | AJ60: 0 | AK60: 0 | AL60: 0
A62: 14 | B62: Energy Audit | C62: Verified | N62: 12 | AM62: =SUM(Y62:AL62) -> 0
B63: Adjustment to 2011 savings | C63: True-up | N63: =N62 -> 12 | Y63: =Y62 -> 0 | Z63: =Z62 -> 0 | AA63: =AA62 -> 0 | AB63: 0 | AC63: 0 | AD63: 0 | AE63: 0 | AF63: 0 | AG63: 0 | AH63: 0 | AI63: 0 | AJ63: 0 | AK63: 0 | AL63: 0
A65: 15 | B65: Small Commercial Demand Response | C65: Verified | AM65: =SUM(Y65:AL65) -> 0
B66: Adjustment to 2011 savings | C66: True-up | Y66: =Y65 -> 0 | Z66: =Z65 -> 0 | AA66: =AA65 -> 0 | AB66: 0 | AC66: 0 | AD66: 0 | AE66: 0 | AF66: 0 | AG66: 0 | AH66: 0 | AI66: 0 | AJ66: 0 | AK66: 0 | AL66: 0
A68: 16 | B68: Small Commercial Demand Response (IHD) | C68: Verified | AM68: =SUM(Y68:AL68) -> 0
B69: Adjustment to 2011 savings | C69: True-up | Y69: =Y68 -> 0 | Z69: =Z68 -> 0 | AA69: =AA68 -> 0 | AB69: 0 | AC69: 0 | AD69: 0 | AE69: 0 | AF69: 0 | AG69: 0 | AH69: 0 | AI69: 0 | AJ69: 0 | AK69: 0 | AL69: 0
A71: 17 | B71: Demand Response 3 | C71: Verified | D71: ='7. Persistence Report'!AQ$32 -> 15694.85 | E71: ='7. Persistence Report'!AR$32 -> 0 | F71: ='7. Persistence Report'!AS$32 -> 0 | G71: ='7. Persistence Report'!AT$32 -> 0 | H71: ='7. Persistence Report'!AU$32 -> 0 | I71: ='7. Persistence Report'!AV$32 -> 0 | J71: ='7. Persistence Report'!AW$32 -> 0 | K71: ='7. Persistence Report'!AX$32 -> 0 | L71: ='7. Persistence Report'!AY$32 -> 0 | M71: ='7. Persistence Report'!AZ$32 -> 0 | O71: ='7. Persistence Report'!L$32 -> 401.9891 | P71: ='7. Persistence Report'!M$32 -> 0 | Q71: ='7. Persistence Report'!N$32 -> 0 | R71: ='7. Persistence Report'!O$32 -> 0 | S71: ='7. Persistence Report'!P$32 -> 0 | T71: ='7. Persistence Report'!Q$32 -> 0 | U71: ='7. Persistence Report'!R$32 -> 0 | V71: ='7. Persistence Report'!S$32 -> 0 | W71: ='7. Persistence Report'!T$32 -> 0 | X71: ='7. Persistence Report'!U$32 -> 0 | AA71: 1 | AM71: =SUM(Y71:AL71) -> 1
B72: Adjustment to 2011 savings | C72: True-up | Y72: =Y71 -> 0 | Z72: =Z71 -> 0 | AA72: =AA71 -> 1 | AB72: 0 | AC72: 0 | AD72: 0 | AE72: 0 | AF72: 0 | AG72: 0 | AH72: 0 | AI72: 0 | AJ72: 0 | AK72: 0 | AL72: 0
B74: Industrial Program
A75: 18 | B75: Process & System Upgrades | C75: Verified | N75: 12 | AM75: =SUM(Y75:AL75) -> 0
B76: Adjustment to 2011 savings | C76: True-up | N76: =N75 -> 12 | Y76: =Y75 -> 0 | Z76: =Z75 -> 0 | AA76: =AA75 -> 0 | AB76: 0 | AC76: 0 | AD76: 0 | AE76: 0 | AF76: 0 | AG76: 0 | AH76: 0 | AI76: 0 | AJ76: 0 | AK76: 0 | AL76: 0
A78: 19 | B78: Monitoring & Targeting | C78: Verified | N78: 12 | AM78: =SUM(Y78:AL78) -> 0
B79: Adjustment to 2011 savings | C79: True-up | N79: =N78 -> 12 | Y79: =Y78 -> 0 | Z79: =Z78 -> 0 | AA79: =AA78 -> 0 | AB79: 0 | AC79: 0 | AD79: 0 | AE79: 0 | AF79: 0 | AG79: 0 | AH79: 0 | AI79: 0 | AJ79: 0 | AK79: 0 | AL79: 0
A81: 20 | B81: Energy Manager | C81: Verified | N81: 12 | AM81: =SUM(Y81:AL81) -> 0
B82: Adjustment to 2011 savings | C82: True-up | N82: =N81 -> 12 | Y82: =Y81 -> 0 | Z82: =Z81 -> 0 | AA82: =AA81 -> 0 | AB82: 0 | AC82: 0 | AD82: 0 | AE82: 0 | AF82: 0 | AG82: 0 | AH82: 0 | AI82: 0 | AJ82: 0 | AK82: 0 | AL82: 0
A84: 21 | B84: Retrofit | C84: Verified | D84: ='7. Persistence Report'!AQ$36 -> 156003.1449 | E84: ='7. Persistence Report'!AR$36 -> 156003.1449 | F84: ='7. Persistence Report'!AS$36 -> 156003.1449 | G84: ='7. Persistence Report'!AT$36 -> 156003.1449 | H84: ='7. Persistence Report'!AU$36 -> 156003.1449 | I84: ='7. Persistence Report'!AV$36 -> 156003.1449 | J84: ='7. Persistence Report'!AW$36 -> 156003.1449 | K84: ='7. Persistence Report'!AX$36 -> 156003.1449 | L84: ='7. Persistence Report'!AY$36 -> 156003.1449 | M84: ='7. Persistence Report'!AZ$36 -> 156003.1449 | N84: 12 | O84: ='7. Persistence Report'!L$36 -> 23.22190214 | P84: ='7. Persistence Report'!M$36 -> 23.22190214 | Q84: ='7. Persistence Report'!N$36 -> 23.22190214 | R84: ='7. Persistence Report'!O$36 -> 23.22190214 | S84: ='7. Persistence Report'!P$36 -> 23.22190214 | T84: ='7. Persistence Report'!Q$36 -> 23.22190214 | U84: ='7. Persistence Report'!R$36 -> 23.22190214 | V84: ='7. Persistence Report'!S$36 -> 23.22190214 | W84: ='7. Persistence Report'!T$36 -> 23.22190214 | X84: ='7. Persistence Report'!U$36 -> 23.22190214 | AA84: 1 | AM84: =SUM(Y84:AL84) -> 1
B85: Adjustment to 2011 savings | C85: True-up | N85: =N84 -> 12 | Y85: =Y84 -> 0 | Z85: =Z84 -> 0 | AA85: =AA84 -> 1 | AB85: 0 | AC85: 0 | AD85: 0 | AE85: 0 | AF85: 0 | AG85: 0 | AH85: 0 | AI85: 0 | AJ85: 0 | AK85: 0 | AL85: 0
A87: 22 | B87: Demand Response 3 | C87: Verified | D87: ='7. Persistence Report'!AQ$35 -> 98938.19 | E87: ='7. Persistence Report'!AR$35 -> 0 | F87: ='7. Persistence Report'!AS$35 -> 0 | G87: ='7. Persistence Report'!AT$35 -> 0 | H87: ='7. Persistence Report'!AU$35 -> 0 | I87: ='7. Persistence Report'!AV$35 -> 0 | J87: ='7. Persistence Report'!AW$35 -> 0 | K87: ='7. Persistence Report'!AX$35 -> 0 | L87: ='7. Persistence Report'!AY$35 -> 0 | M87: ='7. Persistence Report'!AZ$35 -> 0 | O87: ='7. Persistence Report'!L$35 -> 1685.52 | P87: ='7. Persistence Report'!M$35 -> 0 | Q87: ='7. Persistence Report'!N$35 -> 0 | R87: ='7. Persistence Report'!O$35 -> 0 | S87: ='7. Persistence Report'!P$35 -> 0 | T87: ='7. Persistence Report'!Q$35 -> 0 | U87: ='7. Persistence Report'!R$35 -> 0 | V87: ='7. Persistence Report'!S$35 -> 0 | W87: ='7. Persistence Report'!T$35 -> 0 | X87: ='7. Persistence Report'!U$35 -> 0 | AA87: 1 | AM87: =SUM(Y87:AL87) -> 1
B88: Adjustment to 2011 savings | C88: True-up | Y88: =Y87 -> 0 | Z88: =Z87 -> 0 | AA88: =AA87 -> 1 | AB88: 0 | AC88: 0 | AD88: 0 | AE88: 0 | AF88: 0 | AG88: 0 | AH88: 0 | AI88: 0 | AJ88: 0 | AK88: 0 | AL88: 0
B90: Home Assistance Program
A91: 23 | B91: Home Assistance Program | C91: Verified | AM91: =SUM(Y91:AL91) -> 0
B92: Adjustment to 2011 savings | C92: True-up | Y92: =Y91 -> 0 | Z92: =Z91 -> 0 | AA92: =AA91 -> 0 | AB92: 0 | AC92: 0 | AD92: 0 | AE92: 0 | AF92: 0 | AG92: 0 | AH92: 0 | AI92: 0 | AJ92: 0 | AK92: 0 | AL92: 0
B94: Aboriginal Program
A95: 24 | B95: Home Assistance Program | C95: Verified | AM95: =SUM(Y95:AL95) -> 0
B96: Adjustment to 2011 savings | C96: True-up | Y96: =Y95 -> 0 | Z96: =Z95 -> 0 | AA96: =AA95 -> 0 | AB96: 0 | AC96: 0 | AD96: 0 | AE96: 0 | AF96: 0 | AG96: 0 | AH96: 0 | AI96: 0 | AJ96: 0 | AK96: 0 | AL96: 0
A98: 25 | B98: Direct Install Lighting | C98: Verified | N98: 0 | AM98: =SUM(Y98:AL98) -> 0
B99: Adjustment to 2011 savings | C99: True-up | N99: =N98 -> 0 | Y99: =Y98 -> 0 | Z99: =Z98 -> 0 | AA99: =AA98 -> 0 | AB99: 0 | AC99: 0 | AD99: 0 | AE99: 0 | AF99: 0 | AG99: 0 | AH99: 0 | AI99: 0 | AJ99: 0 | AK99: 0 | AL99: 0
B101: Pre-2011 Programs completed in 2011
A102: 26 | B102: Electricity Retrofit Incentive Program | C102: Verified | D102: ='7. Persistence Report'!AQ$37 -> 3122745.317 | E102: ='7. Persistence Report'!AR$37 -> 3122745.317 | F102: ='7. Persistence Report'!AS$37 -> 3122745.317 | G102: ='7. Persistence Report'!AT$37 -> 3122745.317 | H102: ='7. Persistence Report'!AU$37 -> 3122745.317 | I102: ='7. Persistence Report'!AV$37 -> 3122745.317 | J102: ='7. Persistence Report'!AW$37 -> 3122745.317 | K102: ='7. Persistence Report'!AX$37 -> 3122745.317 | L102: ='7. Persistence Report'!AY$37 -> 3122745.317 | M102: ='7. Persistence Report'!AZ$37 -> 3122745.317 | N102: 12 | O102: ='7. Persistence Report'!L$37 -> 432.2109704 | P102: ='7. Persistence Report'!M$37 -> 432.2109704 | Q102: ='7. Persistence Report'!N$37 -> 432.2109704 | R102: ='7. Persistence Report'!O$37 -> 432.2109704 | S102: ='7. Persistence Report'!P$37 -> 432.2109704 | T102: ='7. Persistence Report'!Q$37 -> 432.2109704 | U102: ='7. Persistence Report'!R$37 -> 432.2109704 | V102: ='7. Persistence Report'!S$37 -> 432.2109704 | W102: ='7. Persistence Report'!T$37 -> 432.2109704 | X102: ='7. Persistence Report'!U$37 -> 432.2109704 | AA102: 1 | AM102: =SUM(Y102:AL102) -> 1
B103: Adjustment to 2011 savings | C103: True-up | N103: =N102 -> 12 | Y103: =Y102 -> 0 | Z103: =Z102 -> 0 | AA103: =AA102 -> 1 | AB103: 0 | AC103: 0 | AD103: 0 | AE103: 0 | AF103: 0 | AG103: 0 | AH103: 0 | AI103: 0 | AJ103: 0 | AK103: 0 | AL103: 0
A105: 27 | B105: High Performance New Construction | C105: Verified | D105: ='7. Persistence Report'!AQ$38 -> 3378.818424 | E105: ='7. Persistence Report'!AR$38 -> 3378.818424 | F105: ='7. Persistence Report'!AS$38 -> 3378.818424 | G105: ='7. Persistence Report'!AT$38 -> 3378.818424 | H105: ='7. Persistence Report'!AU$38 -> 3378.818424 | I105: ='7. Persistence Report'!AV$38 -> 3378.818424 | J105: ='7. Persistence Report'!AW$38 -> 3378.818424 | K105: ='7. Persistence Report'!AX$38 -> 3378.818424 | L105: ='7. Persistence Report'!AY$38 -> 3378.818424 | M105: ='7. Persistence Report'!AZ$38 -> 3378.818424 | N105: 12 | O105: ='7. Persistence Report'!L$38 -> 0.6578696308 | P105: ='7. Persistence Report'!M$38 -> 0.6578696308 | Q105: ='7. Persistence Report'!N$38 -> 0.6578696308 | R105: ='7. Persistence Report'!O$38 -> 0.6578696308 | S105: ='7. Persistence Report'!P$38 -> 0.6578696308 | T105: ='7. Persistence Report'!Q$38 -> 0.6578696308 | U105: ='7. Persistence Report'!R$38 -> 0.6578696308 | V105: ='7. Persistence Report'!S$38 -> 0.6578696308 | W105: ='7. Persistence Report'!T$38 -> 0.6578696308 | X105: ='7. Persistence Report'!U$38 -> 0.6578696308 | AA105: 1 | AM105: =SUM(Y105:AL105) -> 1
B106: Adjustment to 2011 savings | C106: True-up | N106: =N105 -> 12 | Y106: =Y105 -> 0 | Z106: =Z105 -> 0 | AA106: =AA105 -> 1 | AB106: =AB105 -> 0 | AC106: =AC105 -> 0 | AD106: 0 | AE106: 0 | AF106: 0 | AG106: 0 | AH106: 0 | AI106: 0 | AJ106: 0 | AK106: 0 | AL106: 0
A108: 28 | B108: Toronto Comprehensive | C108: Verified | N108: 0 | AM108: =SUM(Y108:AL108) -> 0
B109: Adjustment to 2011 savings | C109: True-up | N109: =N108 -> 0 | Y109: =Y108 -> 0 | Z109: =Z108 -> 0 | AA109: =AA108 -> 0 | AB109: 0 | AC109: 0 | AD109: 0 | AE109: 0 | AF109: 0 | AG109: 0 | AH109: 0 | AI109: 0 | AJ109: 0 | AK109: 0 | AL109: =AL108 -> 0
A111: 29 | B111: Multifamily Energy Efficiency Rebates | C111: Verified | N111: 0 | AM111: =SUM(Y111:AL111) -> 0
B112: Adjustment to 2011 savings | C112: True-up | N112: =N111 -> 0 | Y112: =Y111 -> 0 | Z112: =Z111 -> 0 | AA112: 0 | AB112: 0 | AC112: 0 | AD112: 0 | AE112: 0 | AF112: 0 | AG112: 0 | AH112: 0 | AI112: 0 | AJ112: 0 | AK112: 0 | AL112: =AL111 -> 0
A114: 30 | B114: LDC Custom Programs | C114: Verified | N114: 0 | AM114: =SUM(Y114:AL114) -> 0
B115: Adjustment to 2011 savings | C115: True-up | N115: =N114 -> 0 | Y115: =Y114 -> 0 | Z115: =Z114 -> 0 | AA115: 0 | AB115: 0 | AC115: 0 | AD115: 0 | AE115: 0 | AF115: 0 | AG115: 0 | AH115: 0 | AI115: 0 | AJ115: 0 | AK115: 0 | AL115: 0
B117: Other
A118: 31 | B118: Program Enabled Savings | C118: Verified | N118: 0 | AM118: =SUM(Y118:AL118) -> 0
B119: Adjustment to 2011 savings | C119: True-up | N119: =N118 -> 0 | Y119: =Y118 -> 0 | Z119: =Z118 -> 0 | AA119: 0 | AB119: 0 | AC119: 0 | AD119: 0 | AE119: 0 | AF119: 0 | AG119: 0 | AH119: 0 | AI119: 0 | AJ119: 0 | AK119: 0 | AL119: 0
A121: 32 | B121: Time of Use Savings | C121: Verified | N121: 0 | AM121: =SUM(Y121:AL121) -> 0
B122: Adjustment to 2011 savings | C122: True-up | N122: =N121 -> 0 | Y122: =Y121 -> 0 | Z122: =Z121 -> 0 | AA122: 0 | AB122: 0 | AC122: 0 | AD122: 0 | AE122: 0 | AF122: 0 | AG122: 0 | AH122: 0 | AI122: 0 | AJ122: 0 | AK122: 0 | AL122: 0
A124: 33 | B124: LDC Pilots | C124: Verified | N124: 0 | AM124: =SUM(Y124:AL124) -> 0
B125: Adjustment to 2011 savings | C125: True-up | N125: =N124 -> 0 | Y125: =Y124 -> 0 | Z125: =Z124 -> 0 | AA125: 0 | AB125: 0 | AC125: 0 | AD125: 0 | AE125: 0 | AF125: 0 | AG125: 0 | AH125: 0 | AI125: 0 | AJ125: 0 | AK125: 0 | AL125: 0
B127: Actual CDM Savings in 2011 | D127: =SUM(D22:D125) -> 5387378.007 | O127: =SUM(O22:O125) -> 3139.424908 | Y127: =IF(Y21="kWh",SUMPRODUCT(D22:D125,Y22:Y125)) -> 1282243.557 | Z127: =IF(Z21="kWh",SUMPRODUCT(D22:D125,Z22:Z125)) -> 312688.5031 | AA127: =IF(AA21="kW",SUMPRODUCT(N22:N125,O22:O125,AA22:AA125),SUMPRODUCT(D22:D125,AA22:AA125)) -> 6235.182689 | AB127: =IF(AB21="kW",SUMPRODUCT(N22:N125,O22:O125,AB22:AB125),SUMPRODUCT(D22:D125,AB22:AB125)) -> 0 | AC127: =IF(AC21="kW",SUMPRODUCT(N22:N125,O22:O125,AC22:AC125),SUMPRODUCT(D22:D125,AC22:AC125)) -> 0 | AD127: =IF(AD21="kW",SUMPRODUCT(N22:N125,O22:O125,AD22:AD125),SUMPRODUCT(D22:D125,AD22:AD125)) -> 0 | AE127: =IF(AE21="kW",SUMPRODUCT(N22:N125,O22:O125,AE22:AE125),SUMPRODUCT(D22:D125,AE22:AE125)) -> 0 | AF127: =IF(AF21="kW",SUMPRODUCT(N22:N125,O22:O125,AF22:AF125),SUMPRODUCT(D22:D125,AF22:AF125)) -> 0 | AG127: =IF(AG21="kW",SUMPRODUCT(N22:N125,O22:O125,AG22:AG125),SUMPRODUCT(D22:D125,AG22:AG125)) -> 0 | AH127: =IF(AH21="kW",SUMPRODUCT(N22:N125,O22:O125,AH22:AH125),SUMPRODUCT(D22:D125,AH22:AH125)) -> 0 | AI127: =IF(AI21="kW",SUMPRODUCT(N22:N125,O22:O125,AI22:AI125),SUMPRODUCT(D22:D125,AI22:AI125)) -> 0 | AJ127: =IF(AJ21="kW",SUMPRODUCT(N22:N125,O22:O125,AJ22:AJ125),SUMPRODUCT(D22:D125,AJ22:AJ125)) -> 0 | AK127: =IF(AK21="kW",SUMPRODUCT(N22:N125,O22:O125,AK22:AK125),SUMPRODUCT(D22:D125,AK22:AK125)) -> 0 | AL127: =IF(AL21="kW",SUMPRODUCT(N22:N125,O22:O125,AL22:AL125),SUMPRODUCT(D22:D125,AL22:AL125)) -> 0
B128: Forecast CDM Savings in 2011 | Y128: =HLOOKUP(Y20,'2. LRAMVA Threshold'!$B$42:$Q$53,3,FALSE) -> 0 | Z128: =HLOOKUP(Z20,'2. LRAMVA Threshold'!$B$42:$Q$53,3,FALSE) -> 0 | AA128: =HLOOKUP(AA20,'2. LRAMVA Threshold'!$B$42:$Q$53,3,FALSE) -> 0 | AB128: =HLOOKUP(AB20,'2. LRAMVA Threshold'!$B$42:$Q$53,3,FALSE) -> 0 | AC128: =HLOOKUP(AC20,'2. LRAMVA Threshold'!$B$42:$Q$53,3,FALSE) -> 0 | AD128: =HLOOKUP(AD20,'2. LRAMVA Threshold'!$B$42:$Q$53,3,FALSE) -> 0 | AE128: =HLOOKUP(AE20,'2. LRAMVA Threshold'!$B$42:$Q$53,3,FALSE) -> 0 | AF128: =HLOOKUP(AF20,'2. LRAMVA Threshold'!$B$42:$Q$53,3,FALSE) -> 0 | AG128: =HLOOKUP(AG20,'2. LRAMVA Threshold'!$B$42:$Q$53,3,FALSE) -> 0 | AH128: =HLOOKUP(AH20,'2. LRAMVA Threshold'!$B$42:$Q$53,3,FALSE) -> 0 | AI128: =HLOOKUP(AI20,'2. LRAMVA Threshold'!$B$42:$Q$53,3,FALSE) -> 0 | AJ128: =HLOOKUP(AJ20,'2. LRAMVA Threshold'!$B$42:$Q$53,3,FALSE) -> 0 | AK128: =HLOOKUP(AK20,'2. LRAMVA Threshold'!$B$42:$Q$53,3,FALSE) -> 0 | AL128: =HLOOKUP(AL20,'2. LRAMVA Threshold'!$B$42:$Q$53,3,FALSE) -> 0
B130: Distribution Rate in 2011 | Y130: =HLOOKUP(Y$20,'3. Distribution Rates'!$C$122:$P$133,3,FALSE) -> 0.0186 | Z130: =HLOOKUP(Z$20,'3. Distribution Rates'!$C$122:$P$133,3,FALSE) -> 0.0169 | AA130: =HLOOKUP(AA$20,'3. Distribution Rates'!$C$122:$P$133,3,FALSE) -> 3.5306 | AB130: =HLOOKUP(AB$20,'3. Distribution Rates'!$C$122:$P$133,3,FALSE) -> 1.2678 | AC130: =HLOOKUP(AC$20,'3. Distribution Rates'!$C$122:$P$133,3,FALSE) -> 18.9859 | AD130: =HLOOKUP(AD$20,'3. Distribution Rates'!$C$122:$P$133,3,FALSE) -> 14.4684 | AE130: =HLOOKUP(AE$20,'3. Distribution Rates'!$C$122:$P$133,3,FALSE) -> 0.0396 | AF130: =HLOOKUP(AF$20,'3. Distribution Rates'!$C$122:$P$133,3,FALSE) -> 1.4742 | AG130: =HLOOKUP(AG$20,'3. Distribution Rates'!$C$122:$P$133,3,FALSE) -> 0 | AH130: =HLOOKUP(AH$20,'3. Distribution Rates'!$C$122:$P$133,3,FALSE) -> 0 | AI130: =HLOOKUP(AI$20,'3. Distribution Rates'!$C$122:$P$133,3,FALSE) -> 0 | AJ130: =HLOOKUP(AJ$20,'3. Distribution Rates'!$C$122:$P$133,3,FALSE) -> 0 | AK130: =HLOOKUP(AK$20,'3. Distribution Rates'!$C$122:$P$133,3,FALSE) -> 0 | AL130: =HLOOKUP(AL$20,'3. Distribution Rates'!$C$122:$P$133,3,FALSE) -> 0
B131: Lost Revenue in 2011 from 2011 programs | Y131: =Y127*Y130 -> 23849.73016 | Z131: 5284.435702 | AA131: 22013.936 | AB131: 0 | AC131: 0 | AD131: 0 | AE131: =AE127*AE130 -> 0 | AF131: =AF127*AF130 -> 0 | AG131: 0 | AH131: 0 | AI131: 0 | AJ131: 0 | AK131: 0 | AL131: 0 | AM131: =SUM(Y131:AL131) -> 51148.10187
B132: Forecast Lost Revenues in 2011 | Y132: =Y128*Y130 -> 0 | Z132: 0 | AA132: 0 | AB132: 0 | AC132: 0 | AD132: 0 | AE132: =AE128*AE130 -> 0 | AF132: =AF128*AF130 -> 0 | AG132: 0 | AH132: 0 | AI132: 0 | AJ132: 0 | AK132: 0 | AL132: 0 | AM132: =SUM(Y132:AL132) -> 0
B133: LRAMVA in 2011 | AM133: =AM131-AM132 -> 51148.10187
B135: 2011 Savings Persisting in 2012 | Y135: =SUMPRODUCT(E22:E125,Y22:Y125) -> 1282243.557 | Z135: =SUMPRODUCT(E22:E125,Z22:Z125) -> 312205.7871 | AA135: =IF(AA21="kW",SUMPRODUCT(N22:N125,P22:P125,AA22:AA125),SUMPRODUCT(E22:E125,AA22:AA125)) -> 6235.182689 | AB135: =IF(AB21="kW",SUMPRODUCT(N22:N125,P22:P125,AB22:AB125),SUMPRODUCT(E22:E125,AB22:AB125)) -> 0 | AC135: =IF(AC21="kW",SUMPRODUCT(N22:N125,P22:P125,AC22:AC125),SUMPRODUCT(E22:E125,AC22:AC125)) -> 0 | AD135: =IF(AD21="kW",SUMPRODUCT(N22:N125,P22:P125,AD22:AD125),SUMPRODUCT(E22:E125, AD22:AD125)) -> 0 | AE135: =IF(AE21="kW",SUMPRODUCT(N22:N125,P22:P125,AE22:AE125),SUMPRODUCT(E22:E125,AE22:AE125)) -> 0 | AF135: =IF(AF21="kW",SUMPRODUCT(N22:N125,P22:P125,AF22:AF125),SUMPRODUCT(E22:E125,AF22:AF125)) -> 0 | AG135: =IF(AG21="kW",SUMPRODUCT(N22:N125,P22:P125,AG22:AG125),SUMPRODUCT(E22:E125,AG22:AG125)) -> 0 | AH135: =IF(AH21="kW",SUMPRODUCT(N22:N125,P22:P125,AH22:AH125),SUMPRODUCT(E22:E125,AH22:AH125)) -> 0 | AI135: =IF(AI21="kW",SUMPRODUCT(N22:N125,P22:P125,AI22:AI125),SUMPRODUCT(E22:E125,AI22:AI125)) -> 0 | AJ135: =IF(AJ21="kW",SUMPRODUCT(N22:N125,P22:P125,AJ22:AJ125),SUMPRODUCT(E22:E125,AJ22:AJ125)) -> 0 | AK135: =IF(AK21="kW",SUMPRODUCT(N22:N125,P22:P125,AK22:AK125),SUMPRODUCT(E22:E125,AK22:AK125)) -> 0 | AL135: =IF(AL21="kW",SUMPRODUCT(N22:N125,P22:P125,AL22:AL125),SUMPRODUCT(E22:E125,AL22:AL125)) -> 0
B136: 2011 Savings Persisting in 2013 | Y136: =SUMPRODUCT(F22:F125,Y22:Y125) -> 1282243.557 | Z136: =SUMPRODUCT(F22:F125,Z22:Z125) -> 312205.7871 | AA136: =IF(AA21="kW",SUMPRODUCT(N22:N125,Q22:Q125,AA22:AA125),SUMPRODUCT(F22:F125,AA22:AA125)) -> 6235.182689 | AB136: =IF(AB21="kW",SUMPRODUCT(N22:N125,Q22:Q125,AB22:AB125),SUMPRODUCT(F22:F125,AB22:AB125)) -> 0 | AC136: =IF(AC21="kW",SUMPRODUCT(N22:N125,Q22:Q125,AC22:AC125),SUMPRODUCT(F22:F125, AC22:AC125)) -> 0 | AD136: =IF(AD21="kW",SUMPRODUCT(N22:N125,Q22:Q125,AD22:AD125),SUMPRODUCT(F22:F125, AD22:AD125)) -> 0 | AE136: =IF(AE21="kW",SUMPRODUCT(N22:N125,Q22:Q125,AE22:AE125),SUMPRODUCT(F22:F125,AE22:AE125)) -> 0 | AF136: =IF(AF21="kW",SUMPRODUCT(N22:N125,Q22:Q125,AF22:AF125),SUMPRODUCT(F22:F125,AF22:AF125)) -> 0 | AG136: =IF(AG21="kW",SUMPRODUCT(N22:N125,Q22:Q125,AG22:AG125),SUMPRODUCT(F22:F125,AG22:AG125)) -> 0 | AH136: =IF(AH21="kW",SUMPRODUCT(N22:N125,Q22:Q125,AH22:AH125),SUMPRODUCT(F22:F125,AH22:AH125)) -> 0 | AI136: =IF(AI21="kW",SUMPRODUCT(N22:N125,Q22:Q125,AI22:AI125),SUMPRODUCT(F22:F125,AI22:AI125)) -> 0 | AJ136: =IF(AJ21="kW",SUMPRODUCT(N22:N125,Q22:Q125,AJ22:AJ125),SUMPRODUCT(F22:F125,AJ22:AJ125)) -> 0 | AK136: =IF(AK21="kW",SUMPRODUCT(N22:N125,Q22:Q125,AK22:AK125),SUMPRODUCT(F22:F125,AK22:AK125)) -> 0 | AL136: =IF(AL21="kW",SUMPRODUCT(N22:N125,Q22:Q125,AL22:AL125),SUMPRODUCT(F22:F125,AL22:AL125)) -> 0
B137: 2011 Savings Persisting in 2014 | Y137: =SUMPRODUCT(G22:G125,Y22:Y125) -> 1279162.793 | Z137: =SUMPRODUCT(G22:G125,Z22:Z125) -> 278163.5105 | AA137: =IF(AA21="kW",SUMPRODUCT(N22:N125,R22:R125,AA22:AA125),SUMPRODUCT(G22:G125,AA22:AA125)) -> 6234.488726 | AB137: =IF(AB21="kW",SUMPRODUCT(N22:N125,R22:R125,AB22:AB125),SUMPRODUCT(G22:G125,AB22:AB125)) -> 0 | AC137: =IF(AC21="kW",SUMPRODUCT(N22:N125,R22:R125,AC22:AC125),SUMPRODUCT(G22:G125, AC22:AC125)) -> 0 | AD137: =IF(AD21="kW",SUMPRODUCT(N22:N125,R22:R125,AD22:AD125),SUMPRODUCT(G22:G125, AD22:AD125)) -> 0 | AE137: =IF(AE21="kW",SUMPRODUCT(N22:N125,R22:R125,AE22:AE125),SUMPRODUCT(G22:G125,AE22:AE125)) -> 0 | AF137: =IF(AF21="kW",SUMPRODUCT(N22:N125,R22:R125,AF22:AF125),SUMPRODUCT(G22:G125,AF22:AF125)) -> 0 | AG137: =IF(AG21="kW",SUMPRODUCT(N22:N125,R22:R125,AG22:AG125),SUMPRODUCT(G22:G125,AG22:AG125)) -> 0 | AH137: =IF(AH21="kW",SUMPRODUCT(N22:N125,R22:R125,AH22:AH125),SUMPRODUCT(G22:G125,AH22:AH125)) -> 0 | AI137: =IF(AI21="kW",SUMPRODUCT(N22:N125,R22:R125,AI22:AI125),SUMPRODUCT(G22:G125,AI22:AI125)) -> 0 | AJ137: =IF(AJ21="kW",SUMPRODUCT(N22:N125,R22:R125,AJ22:AJ125),SUMPRODUCT(G22:G125,AJ22:AJ125)) -> 0 | AK137: =IF(AK21="kW",SUMPRODUCT(N22:N125,R22:R125,AK22:AK125),SUMPRODUCT(G22:G125,AK22:AK125)) -> 0 | AL137: =IF(AL21="kW",SUMPRODUCT(N22:N125,R22:R125,AL22:AL125),SUMPRODUCT(G22:G125,AL22:AL125)) -> 0
B138: 2011 Savings Persisting in 2015 | Y138: =SUMPRODUCT(H22:H125,Y22:Y125) -> 1163987.746 | Z138: =SUMPRODUCT(H22:H125,Z22:Z125) -> 277569.023 | AA138: =IF(AA21="kW",SUMPRODUCT(N22:N125,S22:S125,AA22:AA125),SUMPRODUCT(H22:H125,AA22:AA125)) -> 6234.488726 | AB138: =IF(AB21="kW",SUMPRODUCT(N22:N125,S22:S125,AB22:AB125),SUMPRODUCT(H22:H125,AB22:AB125)) -> 0 | AC138: =IF(AC21="kW",SUMPRODUCT(N22:N125,S22:S125,AC22:AC125),SUMPRODUCT(H22:H125, AC22:AC125)) -> 0 | AD138: =IF(AD21="kW",SUMPRODUCT(N22:N125,S22:S125,AD22:AD125),SUMPRODUCT(H22:H125, AD22:AD125)) -> 0 | AE138: =IF(AE21="kW",SUMPRODUCT(N22:N125,S22:S125,AE22:AE125),SUMPRODUCT(H22:H125,AE22:AE125)) -> 0 | AF138: =IF(AF21="kW",SUMPRODUCT(N22:N125,S22:S125,AF22:AF125),SUMPRODUCT(H22:H125,AF22:AF125)) -> 0 | AG138: =IF(AG21="kW",SUMPRODUCT(N22:N125,S22:S125,AG22:AG125),SUMPRODUCT(H22:H125,AG22:AG125)) -> 0 | AH138: =IF(AH21="kW",SUMPRODUCT(N22:N125,S22:S125,AH22:AH125),SUMPRODUCT(H22:H125,AH22:AH125)) -> 0 | AI138: =IF(AI21="kW",SUMPRODUCT(N22:N125,S22:S125,AI22:AI125),SUMPRODUCT(H22:H125,AI22:AI125)) -> 0 | AJ138: =IF(AJ21="kW",SUMPRODUCT(N22:N125,S22:S125,AJ22:AJ125),SUMPRODUCT(H22:H125,AJ22:AJ125)) -> 0 | AK138: =IF(AK21="kW",SUMPRODUCT(N22:N125,S22:S125,AK22:AK125),SUMPRODUCT(H22:H125,AK22:AK125)) -> 0 | AL138: =IF(AL21="kW",SUMPRODUCT(N22:N125,S22:S125,AL22:AL125),SUMPRODUCT(H22:H125,AL22:AL125)) -> 0
B139: 2011 Savings Persisting in 2016 | Y139: =SUMPRODUCT(I22:I125,Y22:Y125) -> 933515.157 | Z139: =SUMPRODUCT(I22:I125,Z22:Z125) -> 277336.0882 | AA139: =IF(AA21="kW",SUMPRODUCT(N22:N125,T22:T125,AA22:AA125),SUMPRODUCT(I22:I125,AA22:AA125)) -> 6234.488726 | AB139: =IF(AB21="kW",SUMPRODUCT(N22:N125,T22:T125,AB22:AB125),SUMPRODUCT(I22:I125,AB22:AB125)) -> 0 | AC139: =IF(AC21="kW",SUMPRODUCT(N22:N125,T22:T125,AC22:AC125),SUMPRODUCT(I22:I125, AC22:AC125)) -> 0 | AD139: =IF(AD21="kW",SUMPRODUCT(N22:N125,T22:T125,AD22:AD125),SUMPRODUCT(I22:I125, AD22:AD125)) -> 0 | AE139: =IF(AE21="kW",SUMPRODUCT(N22:N125,T22:T125,AE22:AE125),SUMPRODUCT(I22:I125,AE22:AE125)) -> 0 | AF139: =IF(AF21="kW",SUMPRODUCT(N22:N125,T22:T125,AF22:AF125),SUMPRODUCT(I22:I125,AF22:AF125)) -> 0 | AG139: =IF(AG21="kW",SUMPRODUCT(N22:N125,T22:T125,AG22:AG125),SUMPRODUCT(I22:I125,AG22:AG125)) -> 0 | AH139: =IF(AH21="kW",SUMPRODUCT(N22:N125,T22:T125,AH22:AH125),SUMPRODUCT(I22:I125,AH22:AH125)) -> 0 | AI139: =IF(AI21="kW",SUMPRODUCT(N22:N125,T22:T125,AI22:AI125),SUMPRODUCT(I22:I125,AI22:AI125)) -> 0 | AJ139: =IF(AJ21="kW",SUMPRODUCT(N22:N125,T22:T125,AJ22:AJ125),SUMPRODUCT(I22:I125,AJ22:AJ125)) -> 0 | AK139: =IF(AK21="kW",SUMPRODUCT(N22:N125,T22:T125,AK22:AK125),SUMPRODUCT(I22:I125,AK22:AK125)) -> 0 | AL139: =IF(AL21="kW",SUMPRODUCT(N22:N125,T22:T125,AL22:AL125),SUMPRODUCT(I22:I125,AL22:AL125)) -> 0
B140: 2011 Savings Persisting in 2017 | Y140: =SUMPRODUCT(J22:J125,Y22:Y125) -> 866486.5393 | Z140: =SUMPRODUCT(J22:J125,Z22:Z125) -> 81681.6234 | AA140: =IF(AA21="kW",SUMPRODUCT(N22:N125,U22:U125,AA22:AA125),SUMPRODUCT(J22:J125,AA22:AA125)) -> 6221.850537 | AB140: =IF(AB21="kW",SUMPRODUCT(N22:N125,U22:U125,AB22:AB125),SUMPRODUCT(J22:J125,AB22:AB125)) -> 0 | AC140: =IF(AC21="kW",SUMPRODUCT(N22:N125,U22:U125,AC22:AC125),SUMPRODUCT(J22:J125, AC22:AC125)) -> 0 | AD140: =IF(AD21="kW",SUMPRODUCT(N22:N125,U22:U125,AD22:AD125),SUMPRODUCT(J22:J125, AD22:AD125)) -> 0 | AE140: =IF(AE21="kW",SUMPRODUCT(N22:N125,U22:U125,AE22:AE125),SUMPRODUCT(J22:J125,AE22:AE125)) -> 0 | AF140: =IF(AF21="kW",SUMPRODUCT(N22:N125,U22:U125,AF22:AF125),SUMPRODUCT(J22:J125,AF22:AF125)) -> 0 | AG140: =IF(AG21="kW",SUMPRODUCT(N22:N125,U22:U125,AG22:AG125),SUMPRODUCT(J22:J125,AG22:AG125)) -> 0 | AH140: =IF(AH21="kW",SUMPRODUCT(N22:N125,U22:U125,AH22:AH125),SUMPRODUCT(J22:J125,AH22:AH125)) -> 0 | AI140: =IF(AI21="kW",SUMPRODUCT(N22:N125,U22:U125,AI22:AI125),SUMPRODUCT(J22:J125,AI22:AI125)) -> 0 | AJ140: =IF(AJ21="kW",SUMPRODUCT(N22:N125,U22:U125,AJ22:AJ125),SUMPRODUCT(J22:J125,AJ22:AJ125)) -> 0 | AK140: =IF(AK21="kW",SUMPRODUCT(N22:N125,U22:U125,AK22:AK125),SUMPRODUCT(J22:J125,AK22:AK125)) -> 0 | AL140: =IF(AL21="kW",SUMPRODUCT(N22:N125,U22:U125,AL22:AL125),SUMPRODUCT(J22:J125,AL22:AL125)) -> 0
B141: 2011 Savings Persisting in 2018 | Y141: =SUMPRODUCT(K22:K125,Y22:Y125) -> 865548.6999 | Z141: =SUMPRODUCT(K22:K125,Z22:Z125) -> 69707.87126 | AA141: =IF(AA21="kW",SUMPRODUCT(N22:N125,V22:V125,AA22:AA125),SUMPRODUCT(K22:K125,AA22:AA125)) -> 6088.061708 | AB141: =IF(AB21="kW",SUMPRODUCT(N22:N125,V22:V125,AB22:AB125),SUMPRODUCT(K22:K125,AB22:AB125)) -> 0 | AC141: =IF(AC21="kW",SUMPRODUCT(N22:N125,V22:V125,AC22:AC125),SUMPRODUCT(K22:K125, AC22:AC125)) -> 0 | AD141: =IF(AD21="kW",SUMPRODUCT(N22:N125,V22:V125,AD22:AD125),SUMPRODUCT(K22:K125, AD22:AD125)) -> 0 | AE141: =IF(AE21="kW",SUMPRODUCT(N22:N125,V22:V125,AE22:AE125),SUMPRODUCT(K22:K125,AE22:AE125)) -> 0 | AF141: =IF(AF21="kW",SUMPRODUCT(N22:N125,V22:V125,AF22:AF125),SUMPRODUCT(K22:K125,AF22:AF125)) -> 0 | AG141: =IF(AG21="kW",SUMPRODUCT(N22:N125,V22:V125,AG22:AG125),SUMPRODUCT(K22:K125,AG22:AG125)) -> 0 | AH141: =IF(AH21="kW",SUMPRODUCT(N22:N125,V22:V125,AH22:AH125),SUMPRODUCT(K22:K125,AH22:AH125)) -> 0 | AI141: =IF(AI21="kW",SUMPRODUCT(N22:N125,V22:V125,AI22:AI125),SUMPRODUCT(K22:K125,AI22:AI125)) -> 0 | AJ141: =IF(AJ21="kW",SUMPRODUCT(N22:N125,V22:V125,AJ22:AJ125),SUMPRODUCT(K22:K125,AJ22:AJ125)) -> 0 | AK141: =IF(AK21="kW",SUMPRODUCT(N22:N125,V22:V125,AK22:AK125),SUMPRODUCT(K22:K125,AK22:AK125)) -> 0 | AL141: =IF(AL21="kW",SUMPRODUCT(N22:N125,V22:V125,AL22:AL125),SUMPRODUCT(K22:K125,AL22:AL125)) -> 0
B142: 2011 Savings Persisting in 2019 | Y142: =SUMPRODUCT(L22:L125,Y22:Y125) -> 920248.059 | Z142: =SUMPRODUCT(L22:L125,Z22:Z125) -> 56981.67436 | AA142: =IF(AA21="kW",SUMPRODUCT(N22:N125,W22:W125,AA22:AA125),SUMPRODUCT(L22:L125,AA22:AA125)) -> 5800.993615 | AB142: =IF(AB21="kW",SUMPRODUCT(N22:N125,W22:W125,AB22:AB125),SUMPRODUCT(L22:L125,AB22:AB125)) -> 0 | AC142: =IF(AC21="kW",SUMPRODUCT(N22:N125,W22:W125,AC22:AC125),SUMPRODUCT(L22:L125, AC22:AC125)) -> 0 | AD142: =IF(AD21="kW",SUMPRODUCT(N22:N125,W22:W125,AD22:AD125),SUMPRODUCT(L22:L125, AD22:AD125)) -> 0 | AE142: =IF(AE21="kW",SUMPRODUCT(N22:N125,W22:W125,AE22:AE125),SUMPRODUCT(L22:L125,AE22:AE125)) -> 0 | AF142: =IF(AF21="kW",SUMPRODUCT(N22:N125,W22:W125,AF22:AF125),SUMPRODUCT(L22:L125,AF22:AF125)) -> 0 | AG142: =IF(AG21="kW",SUMPRODUCT(N22:N125,W22:W125,AG22:AG125),SUMPRODUCT(L22:L125,AG22:AG125)) -> 0 | AH142: =IF(AH21="kW",SUMPRODUCT(N22:N125,W22:W125,AH22:AH125),SUMPRODUCT(L22:L125,AH22:AH125)) -> 0 | AI142: =IF(AI21="kW",SUMPRODUCT(N22:N125,W22:W125,AI22:AI125),SUMPRODUCT(L22:L125,AI22:AI125)) -> 0 | AJ142: =IF(AJ21="kW",SUMPRODUCT(N22:N125,W22:W125,AJ22:AJ125),SUMPRODUCT(L22:L125,AJ22:AJ125)) -> 0 | AK142: =IF(AK21="kW",SUMPRODUCT(N22:N125,W22:W125,AK22:AK125),SUMPRODUCT(L22:L125,AK22:AK125)) -> 0 | AL142: =IF(AL21="kW",SUMPRODUCT(N22:N125,W22:W125,AL22:AL125),SUMPRODUCT(L22:L125,AL22:AL125)) -> 0
B143: 2011 Savings Persisting in 2020 | Y143: =SUMPRODUCT(M22:M125,Y22:Y125) -> 750036.7849 | Z143: =SUMPRODUCT(M22:M125,Z22:Z125) -> 56981.67436 | AA143: =IF(AA21="kW",SUMPRODUCT(N22:N125,X22:X125,AA22:AA125),SUMPRODUCT(M22:M125,AA22:AA125)) -> 5800.993615 | AB143: =IF(AB21="kW",SUMPRODUCT(N22:N125,X22:X125,AB22:AB125),SUMPRODUCT(M22:M125, AB22:AB125)) -> 0 | AC143: =IF(AC21="kW",SUMPRODUCT(N22:N125,X22:X125,AC22:AC125),SUMPRODUCT(M22:M125, AC22:AC125)) -> 0 | AD143: =IF(AD21="kW",SUMPRODUCT(N22:N125,X22:X125,AD22:AD125),SUMPRODUCT(M22:M125, AD22:AD125)) -> 0 | AE143: =IF(AE21="kW",SUMPRODUCT(N22:N125,X22:X125, AE22:AE125),SUMPRODUCT(M22:M125,AE22:AE125)) -> 0 | AF143: =IF(AF21="kW",SUMPRODUCT(N22:N125,X22:X125, AF22:AF125),SUMPRODUCT(M22:M125,AF22:AF125)) -> 0 | AG143: =IF(AG21="kW",SUMPRODUCT(N22:N125,X22:X125, AG22:AG125),SUMPRODUCT(M22:M125,AG22:AG125)) -> 0 | AH143: =IF(AH21="kW",SUMPRODUCT(N22:N125,X22:X125, AH22:AH125),SUMPRODUCT(M22:M125,AH22:AH125)) -> 0 | AI143: =IF(AI21="kW",SUMPRODUCT(N22:N125,X22:X125, AI22:AI125),SUMPRODUCT(M22:M125,AI22:AI125)) -> 0 | AJ143: =IF(AJ21="kW",SUMPRODUCT(N22:N125,X22:X125, AJ22:AJ125),SUMPRODUCT(M22:M125,AJ22:AJ125)) -> 0 | AK143: =IF(AK21="kW",SUMPRODUCT(N22:N125,X22:X125, AK22:AK125),SUMPRODUCT(M22:M125,AK22:AK125)) -> 0 | AL143: =IF(AL21="kW",SUMPRODUCT(N22:N125,X22:X125, AL22:AL125),SUMPRODUCT(M22:M125,AL22:AL125)) -> 0
B144: Note: Load forecast updated in 2013. Persistence for 2013-present removed.
B146: Table 4-b. 2012 Lost Revenues Work Form | D146: Return to top
B147: Program | C147: Results Status | D147: Net Energy Savings (kWh) | E147: Net Energy Savings Persistence (kWh) | N147: Monthly Multiplier | O147: Net Demand Savings (kW) | P147: Net Peak Demand Savings Persistence (kW) | Y147: Rate Allocations for LRAMVA
D148: 2012 | E148: 2013 | F148: 2014 | G148: 2015 | H148: 2016 | I148: 2017 | J148: 2018 | K148: 2019 | L148: 2020 | M148: 2021 | O148: 2012 | P148: 2013 | Q148: 2014 | R148: 2015 | S148: 2016 | T148: 2017 | U148: 2018 | V148: 2019 | W148: 2020 | X148: 2021 | Y148: ='1. LRAMVA Summary'!D52 -> Residential | Z148: ='1. LRAMVA Summary'!E52 -> GS<50 kW | AA148: ='1. LRAMVA Summary'!F52 -> General Service 50 - 999 kW | AB148: ='1. LRAMVA Summary'!G52 -> General Service 1,000 - 4,999 kW | AC148: ='1. LRAMVA Summary'!H52 -> Sentinel Lighting | AD148: ='1. LRAMVA Summary'!I52 -> Street Lighting | AE148: ='1. LRAMVA Summary'!J52 -> Unmetered Scattered Load | AF148: ='1. LRAMVA Summary'!K52 -> Large Use | AG148: ='1. LRAMVA Summary'!L52 ->  | AH148: ='1. LRAMVA Summary'!M52 ->  | AI148: ='1. LRAMVA Summary'!N52 ->  | AJ148: ='1. LRAMVA Summary'!O52 ->  | AK148: ='1. LRAMVA Summary'!P52 ->  | AL148: ='1. LRAMVA Summary'!Q52 ->  | AM148: ='1. LRAMVA Summary'!R52 -> Total
B149: Consumer Program | Y149: ='1. LRAMVA Summary'!D53 -> kWh | Z149: ='1. LRAMVA Summary'!E53 -> kWh | AA149: ='1. LRAMVA Summary'!F53 -> kW | AB149: ='1. LRAMVA Summary'!G53 -> kW | AC149: ='1. LRAMVA Summary'!H53 -> kW | AD149: ='1. LRAMVA Summary'!I53 -> kW | AE149: ='1. LRAMVA Summary'!J53 -> kWh | AF149: ='1. LRAMVA Summary'!K53 -> kW | AG149: ='1. LRAMVA Summary'!L53 -> 0 | AH149: ='1. LRAMVA Summary'!M53 -> 0 | AI149: ='1. LRAMVA Summary'!N53 -> 0 | AJ149: ='1. LRAMVA Summary'!O53 -> 0 | AK149: ='1. LRAMVA Summary'!P53 -> 0 | AL149: ='1. LRAMVA Summary'!Q53 -> 0
A150: 1 | B150: Appliance Retirement | C150: Verified | D150: ='7. Persistence Report'!AR$42 -> 160469.6386 | E150: ='7. Persistence Report'!AS$42 -> 160469.6386 | F150: ='7. Persistence Report'!AT$42 -> 160469.6386 | G150: ='7. Persistence Report'!AU$42 -> 158727.3927 | H150: ='7. Persistence Report'!AV$42 -> 94922.15659 | I150: ='7. Persistence Report'!AW$42 -> 0 | J150: ='7. Persistence Report'!AX$42 -> 0 | K150: ='7. Persistence Report'!AY$42 -> 0 | L150: ='7. Persistence Report'!AZ$42 -> 0 | M150: ='7. Persistence Report'!BA$42 -> 0 | O150: ='7. Persistence Report'!M$42 -> 23.84367847 | P150: ='7. Persistence Report'!N$42 -> 23.84367847 | Q150: ='7. Persistence Report'!O$42 -> 23.84367847 | R150: ='7. Persistence Report'!P$42 -> 21.89541197 | S150: ='7. Persistence Report'!Q$42 -> 12.48033889 | T150: ='7. Persistence Report'!R$42 -> 0 | U150: ='7. Persistence Report'!S$42 -> 0 | V150: ='7. Persistence Report'!T$42 -> 0 | W150: ='7. Persistence Report'!U$42 -> 0 | X150: ='7. Persistence Report'!V$42 -> 0 | Y150: 1 | AM150: =SUM(Y150:AL150) -> 1
B151: Adjustment to 2012 savings | C151: True-up | Y151: =Y150 -> 1 | Z151: =Z150 -> 0 | AA151: =AA150 -> 0 | AB151: 0 | AC151: 0 | AD151: 0 | AE151: 0 | AF151: 0 | AG151: 0 | AH151: 0 | AI151: 0 | AJ151: 0 | AK151: 0 | AL151: 0
A153: 2 | B153: Appliance Exchange | C153: Verified | D153: ='7. Persistence Report'!AR$41 -> 5205.065675 | E153: ='7. Persistence Report'!AS$41 -> 5205.065675 | F153: ='7. Persistence Report'!AT$41 -> 5205.065675 | G153: ='7. Persistence Report'!AU$41 -> 5116.740029 | H153: ='7. Persistence Report'!AV$41 -> 0 | I153: ='7. Persistence Report'!AW$41 -> 0 | J153: ='7. Persistence Report'!AX$41 -> 0 | K153: ='7. Persistence Report'!AY$41 -> 0 | L153: ='7. Persistence Report'!AZ$41 -> 0 | M153: ='7. Persistence Report'!BA$41 -> 0 | O153: ='7. Persistence Report'!M$41 -> 2.968407145 | P153: ='7. Persistence Report'!N$41 -> 2.968407145 | Q153: ='7. Persistence Report'!O$41 -> 2.968407145 | R153: ='7. Persistence Report'!P$41 -> 2.869636993 | S153: ='7. Persistence Report'!Q$41 -> 0 | T153: ='7. Persistence Report'!R$41 -> 0 | U153: ='7. Persistence Report'!S$41 -> 0 | V153: ='7. Persistence Report'!T$41 -> 0 | W153: ='7. Persistence Report'!U$41 -> 0 | X153: ='7. Persistence Report'!V$41 -> 0 | Y153: 1 | AM153: =SUM(Y153:AL153) -> 1
B154: Adjustment to 2012 savings | C154: True-up | Y154: =Y153 -> 1 | Z154: =Z153 -> 0 | AA154: =AA153 -> 0 | AB154: 0 | AC154: 0 | AD154: 0 | AE154: 0 | AF154: 0 | AG154: 0 | AH154: 0 | AI154: 0 | AJ154: 0 | AK154: 0 | AL154: 0
A156: 3 | B156: HVAC Incentives | C156: Verified | D156: ='7. Persistence Report'!AR$45 -> 351058.1943 | E156: ='7. Persistence Report'!AS$45 -> 351058.1943 | F156: ='7. Persistence Report'!AT$45 -> 351058.1943 | G156: ='7. Persistence Report'!AU$45 -> 351058.1943 | H156: ='7. Persistence Report'!AV$45 -> 351058.1943 | I156: ='7. Persistence Report'!AW$45 -> 351058.1943 | J156: ='7. Persistence Report'!AX$45 -> 351058.1943 | K156: ='7. Persistence Report'!AY$45 -> 351058.1943 | L156: ='7. Persistence Report'!AZ$45 -> 351058.1943 | M156: ='7. Persistence Report'!BA$45 -> 351058.1943 | O156: ='7. Persistence Report'!M$45 -> 208.0369179 | P156: ='7. Persistence Report'!N$45 -> 208.0369179 | Q156: ='7. Persistence Report'!O$45 -> 208.0369179 | R156: ='7. Persistence Report'!P$45 -> 208.0369179 | S156: ='7. Persistence Report'!Q$45 -> 208.0369179 | T156: ='7. Persistence Report'!R$45 -> 208.0369179 | U156: ='7. Persistence Report'!S$45 -> 208.0369179 | V156: ='7. Persistence Report'!T$45 -> 208.0369179 | W156: ='7. Persistence Report'!U$45 -> 208.0369179 | X156: ='7. Persistence Report'!V$45 -> 208.0369179 | Y156: 1 | AM156: =SUM(Y156:AL156) -> 1
B157: Adjustment to 2012 savings | C157: True-up | D157: ='7. Persistence Report'!AR$68+'[2]7. Persistence Report'!AR$73 -> 2020.865463 | E157: ='7. Persistence Report'!AS$68+'[2]7. Persistence Report'!AS$73 -> 2020.865463 | F157: ='7. Persistence Report'!AT$68+'[2]7. Persistence Report'!AT$73 -> 2020.865463 | G157: ='7. Persistence Report'!AU$68+'[2]7. Persistence Report'!AU$73 -> 2020.865463 | H157: ='7. Persistence Report'!AV$68+'[2]7. Persistence Report'!AV$73 -> 2020.865463 | I157: ='7. Persistence Report'!AW$68+'[2]7. Persistence Report'!AW$73 -> 2020.865463 | J157: ='7. Persistence Report'!AX$68+'[2]7. Persistence Report'!AX$73 -> 2020.865463 | K157: ='7. Persistence Report'!AY$68+'[2]7. Persistence Report'!AY$73 -> 2020.865463 | L157: ='7. Persistence Report'!AZ$68+'[2]7. Persistence Report'!AZ$73 -> 2020.865463 | M157: ='7. Persistence Report'!BA$68+'[2]7. Persistence Report'!BA$73 -> 2020.865463 | O157: ='7. Persistence Report'!M$68+'[2]7. Persistence Report'!M$73 -> 1.090358848 | P157: ='7. Persistence Report'!N$68+'[2]7. Persistence Report'!N$73 -> 1.090358848 | Q157: ='7. Persistence Report'!O$68+'[2]7. Persistence Report'!O$73 -> 1.090358848 | R157: ='7. Persistence Report'!P$68+'[2]7. Persistence Report'!P$73 -> 1.090358848 | S157: ='7. Persistence Report'!Q$68+'[2]7. Persistence Report'!Q$73 -> 1.090358848 | T157: ='7. Persistence Report'!R$68+'[2]7. Persistence Report'!R$73 -> 1.090358848 | U157: ='7. Persistence Report'!S$68+'[2]7. Persistence Report'!S$73 -> 1.090358848 | V157: ='7. Persistence Report'!T$68+'[2]7. Persistence Report'!T$73 -> 1.090358848 | W157: ='7. Persistence Report'!U$68+'[2]7. Persistence Report'!U$73 -> 1.090358848 | X157: ='7. Persistence Report'!V$68+'[2]7. Persistence Report'!V$73 -> 1.090358848 | Y157: =Y156 -> 1 | Z157: =Z156 -> 0 | AA157: =AA156 -> 0 | AB157: 0 | AC157: 0 | AD157: 0 | AE157: 0 | AF157: 0 | AG157: 0 | AH157: 0 | AI157: 0 | AJ157: 0 | AK157: 0 | AL157: 0
A159: 4 | B159: Conservation Instant Coupon Booklet | C159: Verified | D159: ='7. Persistence Report'!AR$44 -> 9032.989044 | E159: ='7. Persistence Report'!AS$44 -> 9032.989044 | F159: ='7. Persistence Report'!AT$44 -> 9032.989044 | G159: ='7. Persistence Report'!AU$44 -> 9032.989044 | H159: ='7. Persistence Report'!AV$44 -> 8897.282029 | I159: ='7. Persistence Report'!AW$44 -> 8897.282029 | J159: ='7. Persistence Report'!AX$44 -> 4189.699862 | K159: ='7. Persistence Report'!AY$44 -> 4166.576781 | L159: ='7. Persistence Report'!AZ$44 -> 4166.576781 | M159: ='7. Persistence Report'!BA$44 -> 4166.576781 | O159: ='7. Persistence Report'!M$44 -> 1.488584266 | P159: ='7. Persistence Report'!N$44 -> 1.488584266 | Q159: ='7. Persistence Report'!O$44 -> 1.488584266 | R159: ='7. Persistence Report'!P$44 -> 1.488584266 | S159: ='7. Persistence Report'!Q$44 -> 1.482300631 | T159: ='7. Persistence Report'!R$44 -> 1.482300631 | U159: ='7. Persistence Report'!S$44 -> 1.264325689 | V159: ='7. Persistence Report'!T$44 -> 1.261686068 | W159: ='7. Persistence Report'!U$44 -> 1.261686068 | X159: ='7. Persistence Report'!V$44 -> 1.261686068 | Y159: 1 | AM159: =SUM(Y159:AL159) -> 1
B160: Adjustment to 2012 savings | C160: True-up | Y160: =Y159 -> 1 | Z160: =Z159 -> 0 | AA160: =AA159 -> 0 | AB160: 0 | AC160: 0 | AD160: 0 | AE160: 0 | AF160: 0 | AG160: 0 | AH160: 0 | AI160: 0 | AJ160: 0 | AK160: 0 | AL160: 0
A162: 5 | B162: Bi-Annual Retailer Event | C162: Verified | D162: ='7. Persistence Report'!AR$43 -> 173021.2055 | E162: ='7. Persistence Report'!AS$43 -> 173021.2055 | F162: ='7. Persistence Report'!AT$43 -> 173021.2055 | G162: ='7. Persistence Report'!AU$43 -> 173021.2055 | H162: ='7. Persistence Report'!AV$43 -> 155535.0569 | I162: ='7. Persistence Report'!AW$43 -> 126472.217 | J162: ='7. Persistence Report'!AX$43 -> 86267.02341 | K162: ='7. Persistence Report'!AY$43 -> 86087.70156 | L162: ='7. Persistence Report'!AZ$43 -> 86087.70156 | M162: ='7. Persistence Report'!BA$43 -> 43726.00138 | O162: ='7. Persistence Report'!M$43 -> 9.561333059 | P162: ='7. Persistence Report'!N$43 -> 9.561333059 | Q162: ='7. Persistence Report'!O$43 -> 9.561333059 | R162: ='7. Persistence Report'!P$43 -> 9.561333059 | S162: ='7. Persistence Report'!Q$43 -> 8.751672793 | T162: ='7. Persistence Report'!R$43 -> 7.405977567 | U162: ='7. Persistence Report'!S$43 -> 5.544358495 | V162: ='7. Persistence Report'!T$43 -> 5.523887964 | W162: ='7. Persistence Report'!U$43 -> 5.523887964 | X162: ='7. Persistence Report'!V$43 -> 3.562416275 | Y162: 1 | AM162: =SUM(Y162:AL162) -> 1
B163: Adjustment to 2012 savings | C163: True-up | Y163: =Y162 -> 1 | Z163: =Z162 -> 0 | AA163: =AA162 -> 0 | AB163: 0 | AC163: 0 | AD163: 0 | AE163: 0 | AF163: 0 | AG163: 0 | AH163: 0 | AI163: 0 | AJ163: 0 | AK163: 0 | AL163: 0
A165: 6 | B165: Retailer Co-op | C165: Verified | AM165: =SUM(Y165:AL165) -> 0
B166: Adjustment to 2012 savings | C166: True-up | Y166: =Y165 -> 0 | Z166: =Z165 -> 0 | AA166: =AA165 -> 0 | AB166: 0 | AC166: 0 | AD166: 0 | AE166: 0 | AF166: 0 | AG166: 0 | AH166: 0 | AI166: 0 | AJ166: 0 | AK166: 0 | AL166: 0
A168: 7 | B168: Residential Demand Response | C168: Verified | AM168: =SUM(Y168:AL168) -> 0
B169: Adjustment to 2012 savings | C169: True-up | Y169: =Y168 -> 0 | Z169: =Z168 -> 0 | AA169: =AA168 -> 0 | AB169: 0 | AC169: 0 | AD169: 0 | AE169: 0 | AF169: 0 | AG169: 0 | AH169: 0 | AI169: 0 | AJ169: 0 | AK169: 0 | AL169: 0
A171: 8 | B171: Residential Demand Response (IHD) | C171: Verified | AM171: =SUM(Y171:AL171) -> 0
B172: Adjustment to 2012 savings | C172: True-up | Y172: =Y171 -> 0 | Z172: =Z171 -> 0 | AA172: =AA171 -> 0 | AB172: 0 | AC172: 0 | AD172: 0 | AE172: 0 | AF172: 0 | AG172: 0 | AH172: 0 | AI172: 0 | AJ172: 0 | AK172: 0 | AL172: 0
A174: 9 | B174: Residential New Construction | C174: Verified | D174: ='7. Persistence Report'!AR$50 -> 362.3980674 | E174: ='7. Persistence Report'!AS$50 -> 362.3980674 | F174: ='7. Persistence Report'!AT$50 -> 362.3980674 | G174: ='7. Persistence Report'!AU$50 -> 362.3980674 | H174: ='7. Persistence Report'!AV$50 -> 362.3980674 | I174: ='7. Persistence Report'!AW$50 -> 362.3980674 | J174: ='7. Persistence Report'!AX$50 -> 362.3980674 | K174: ='7. Persistence Report'!AY$50 -> 362.3980674 | L174: ='7. Persistence Report'!AZ$50 -> 362.3980674 | M174: ='7. Persistence Report'!BA$50 -> 362.3980674 | O174: ='7. Persistence Report'!M$50 -> 0.2049414789 | P174: ='7. Persistence Report'!N$50 -> 0.2049414789 | Q174: ='7. Persistence Report'!O$50 -> 0.2049414789 | R174: ='7. Persistence Report'!P$50 -> 0.2049414789 | S174: ='7. Persistence Report'!Q$50 -> 0.2049414789 | T174: ='7. Persistence Report'!R$50 -> 0.2049414789 | U174: ='7. Persistence Report'!S$50 -> 0.2049414789 | V174: ='7. Persistence Report'!T$50 -> 0.2049414789 | W174: ='7. Persistence Report'!U$50 -> 0.2049414789 | X174: ='7. Persistence Report'!V$50 -> 0.2049414789 | Y174: 1 | AM174: =SUM(Y174:AL174) -> 1
B175: Adjustment to 2012 savings | C175: True-up | D175: ='7. Persistence Report'!AR$93 -> 984.5472 | E175: ='7. Persistence Report'!AS$93 -> 984.5472 | F175: ='7. Persistence Report'!AT$93 -> 984.5472 | G175: ='7. Persistence Report'!AU$93 -> 984.5472 | H175: ='7. Persistence Report'!AV$93 -> 984.5472 | I175: ='7. Persistence Report'!AW$93 -> 984.5472 | J175: ='7. Persistence Report'!AX$93 -> 984.5472 | K175: ='7. Persistence Report'!AY$93 -> 984.5472 | L175: ='7. Persistence Report'!AZ$93 -> 984.5472 | M175: ='7. Persistence Report'!BA$93 -> 984.5472 | O175: ='7. Persistence Report'!M$93 -> 0.5869416 | P175: ='7. Persistence Report'!N$93 -> 0.5869416 | Q175: ='7. Persistence Report'!O$93 -> 0.5869416 | R175: ='7. Persistence Report'!P$93 -> 0.5869416 | S175: ='7. Persistence Report'!Q$93 -> 0.5869416 | T175: ='7. Persistence Report'!R$93 -> 0.5869416 | U175: ='7. Persistence Report'!S$93 -> 0.5869416 | V175: ='7. Persistence Report'!T$93 -> 0.5869416 | W175: ='7. Persistence Report'!U$93 -> 0.5869416 | X175: ='7. Persistence Report'!V$93 -> 0.5869416 | Y175: =Y174 -> 1 | Z175: =Z174 -> 0 | AA175: =AA174 -> 0 | AB175: 0 | AC175: 0 | AD175: 0 | AE175: 0 | AF175: 0 | AG175: 0 | AH175: 0 | AI175: 0 | AJ175: 0 | AK175: 0 | AL175: 0
B177: Business Program
A178: 10 | B178: Retrofit | C178: Verified | D178: ='7. Persistence Report'!AR$40 -> 1431943.488 | E178: ='7. Persistence Report'!AS$40 -> 1419829.699 | F178: ='7. Persistence Report'!AT$40 -> 1419829.699 | G178: ='7. Persistence Report'!AU$40 -> 1414204.47 | H178: ='7. Persistence Report'!AV$40 -> 1414204.47 | I178: ='7. Persistence Report'!AW$40 -> 1323944.137 | J178: ='7. Persistence Report'!AX$40 -> 1319985.245 | K178: ='7. Persistence Report'!AY$40 -> 1319985.245 | L178: ='7. Persistence Report'!AZ$40 -> 1299288.199 | M178: ='7. Persistence Report'!BA$40 -> 1245903.035 | N178: 12 | O178: ='7. Persistence Report'!M$40 -> 294.2357448 | P178: ='7. Persistence Report'!N$40 -> 292.2419348 | Q178: ='7. Persistence Report'!O$40 -> 292.2419348 | R178: ='7. Persistence Report'!P$40 -> 290.5413541 | S178: ='7. Persistence Report'!Q$40 -> 290.5413541 | T178: ='7. Persistence Report'!R$40 -> 263.2544698 | U178: ='7. Persistence Report'!S$40 -> 262.4713846 | V178: ='7. Persistence Report'!T$40 -> 262.4713846 | W178: ='7. Persistence Report'!U$40 -> 257.7517733 | X178: ='7. Persistence Report'!V$40 -> 247.1919651 | Z178: 0.11 | AA178: 0.89 | AM178: =SUM(Y178:AL178) -> 1
B179: Adjustment to 2012 savings | C179: True-up | D179: ='7. Persistence Report'!AR$59+'[2]7. Persistence Report'!AR$77 -> 331671.9025 | E179: ='7. Persistence Report'!AS$59+'[2]7. Persistence Report'!AS$77 -> 331671.9025 | F179: ='7. Persistence Report'!AT$59+'[2]7. Persistence Report'!AT$77 -> 330722.9025 | G179: ='7. Persistence Report'!AU$59+'[2]7. Persistence Report'!AU$77 -> 315781.9025 | H179: ='7. Persistence Report'!AV$59+'[2]7. Persistence Report'!AV$77 -> 315781.9025 | I179: ='7. Persistence Report'!AW$59+'[2]7. Persistence Report'!AW$77 -> 279577.6394 | J179: ='7. Persistence Report'!AX$59+'[2]7. Persistence Report'!AX$77 -> 277822.1626 | K179: ='7. Persistence Report'!AY$59+'[2]7. Persistence Report'!AY$77 -> 277822.1626 | L179: ='7. Persistence Report'!AZ$59+'[2]7. Persistence Report'!AZ$77 -> 259480.936 | M179: ='7. Persistence Report'!BA$59+'[2]7. Persistence Report'!BA$77 -> 248986.0288 | N179: =N178 -> 12 | O179: ='7. Persistence Report'!M$59+'[2]7. Persistence Report'!M$77 -> 68.66132435 | P179: ='7. Persistence Report'!N$59+'[2]7. Persistence Report'!N$77 -> 68.66132435 | Q179: ='7. Persistence Report'!O$59+'[2]7. Persistence Report'!O$77 -> 68.36132435 | R179: ='7. Persistence Report'!P$59+'[2]7. Persistence Report'!P$77 -> 63.49132435 | S179: ='7. Persistence Report'!Q$59+'[2]7. Persistence Report'!Q$77 -> 63.49132435 | T179: ='7. Persistence Report'!R$59+'[2]7. Persistence Report'!R$77 -> 51.83417667 | U179: ='7. Persistence Report'!S$59+'[2]7. Persistence Report'!S$77 -> 51.60218737 | V179: ='7. Persistence Report'!T$59+'[2]7. Persistence Report'!T$77 -> 51.60218737 | W179: ='7. Persistence Report'!U$59+'[2]7. Persistence Report'!U$77 -> 45.63887761 | X179: ='7. Persistence Report'!V$59+'[2]7. Persistence Report'!V$77 -> 44.25259811 | Y179: =Y178 -> 0 | Z179: =Z178 -> 0.11 | AA179: =AA178 -> 0.89 | AB179: 0 | AC179: 0 | AD179: 0 | AE179: 0 | AF179: 0 | AG179: 0 | AH179: 0 | AI179: 0 | AJ179: 0 | AK179: 0 | AL179: 0
A181: 11 | B181: Direct Install Lighting | C181: Verified | D181: ='7. Persistence Report'!AR$39 -> 886133.3323 | E181: ='7. Persistence Report'!AS$39 -> 885883.367 | F181: ='7. Persistence Report'!AT$39 -> 885737.1907 | G181: ='7. Persistence Report'!AU$39 -> 692098.2927 | H181: ='7. Persistence Report'!AV$39 -> 692098.2927 | I181: ='7. Persistence Report'!AW$39 -> 140460.7637 | J181: ='7. Persistence Report'!AX$39 -> 140460.7637 | K181: ='7. Persistence Report'!AY$39 -> 136748.1887 | L181: ='7. Persistence Report'!AZ$39 -> 136748.1887 | M181: ='7. Persistence Report'!BA$39 -> 136748.1887 | N181: 12 | O181: ='7. Persistence Report'!M$39 -> 246.3401391 | P181: ='7. Persistence Report'!N$39 -> 246.2284022 | Q181: ='7. Persistence Report'!O$39 -> 246.2284022 | R181: ='7. Persistence Report'!P$39 -> 196.849322 | S181: ='7. Persistence Report'!Q$39 -> 196.849322 | T181: ='7. Persistence Report'!R$39 -> 40.42877938 | U181: ='7. Persistence Report'!S$39 -> 40.42877938 | V181: ='7. Persistence Report'!T$39 -> 36.71107477 | W181: ='7. Persistence Report'!U$39 -> 36.71107477 | X181: ='7. Persistence Report'!V$39 -> 36.71107477 | Z181: 1 | AM181: =SUM(Y181:AL181) -> 1
B182: Adjustment to 2012 savings | C182: True-up | D182: ='7. Persistence Report'!AR$61 -> 24296.49011 | E182: ='7. Persistence Report'!AS$61 -> 24296.49011 | F182: ='7. Persistence Report'!AT$61 -> 24296.49011 | G182: ='7. Persistence Report'!AU$61 -> 17377.53741 | H182: ='7. Persistence Report'!AV$61 -> 17377.53741 | I182: ='7. Persistence Report'!AW$61 -> 2815.926353 | J182: ='7. Persistence Report'!AX$61 -> 2815.926353 | K182: ='7. Persistence Report'!AY$61 -> 2815.926353 | L182: ='7. Persistence Report'!AZ$61 -> 2815.926353 | M182: ='7. Persistence Report'!BA$61 -> 2815.926353 | N182: =N181 -> 12 | O182: ='7. Persistence Report'!M$61 -> 6.661006579 | P182: ='7. Persistence Report'!N$61 -> 6.661006579 | Q182: ='7. Persistence Report'!O$61 -> 6.661006579 | R182: ='7. Persistence Report'!P$61 -> 4.876196496 | S182: ='7. Persistence Report'!Q$61 -> 4.876196496 | T182: ='7. Persistence Report'!R$61 -> 0.767623278 | U182: ='7. Persistence Report'!S$61 -> 0.767623278 | V182: ='7. Persistence Report'!T$61 -> 0.767623278 | W182: ='7. Persistence Report'!U$61 -> 0.767623278 | X182: ='7. Persistence Report'!V$61 -> 0.767623278 | Y182: =Y181 -> 0 | Z182: =Z181 -> 1 | AA182: =AA181 -> 0 | AB182: 0 | AC182: 0 | AD182: 0 | AE182: 0 | AF182: 0 | AG182: 0 | AH182: 0 | AI182: 0 | AJ182: 0 | AK182: 0 | AL182: 0
A184: 12 | B184: Building Commissioning | C184: Verified | N184: 3 | AM184: =SUM(Y184:AL184) -> 0
B185: Adjustment to 2012 savings | C185: True-up | N185: =N184 -> 3 | Y185: =Y184 -> 0 | Z185: =Z184 -> 0 | AA185: =AA184 -> 0 | AB185: 0 | AC185: 0 | AD185: 0 | AE185: 0 | AF185: 0 | AG185: 0 | AH185: 0 | AI185: 0 | AJ185: 0 | AK185: 0 | AL185: 0
A187: 13 | B187: New Construction | C187: Verified | N187: 12 | AM187: =SUM(Y187:AL187) -> 0
B188: Adjustment to 2012 savings | C188: True-up | N188: =N187 -> 12 | Y188: =Y187 -> 0 | Z188: =Z187 -> 0 | AA188: =AA187 -> 0 | AB188: 0 | AC188: 0 | AD188: 0 | AE188: 0 | AF188: 0 | AG188: 0 | AH188: 0 | AI188: 0 | AJ188: 0 | AK188: 0 | AL188: 0
A190: 14 | B190: Energy Audit | C190: Verified | N190: 12 | AM190: =SUM(Y190:AL190) -> 0
B191: Adjustment to 2012 savings | C191: True-up | N191: =N190 -> 12 | Y191: =Y190 -> 0 | Z191: =Z190 -> 0 | AA191: =AA190 -> 0 | AB191: 0 | AC191: 0 | AD191: 0 | AE191: 0 | AF191: 0 | AG191: 0 | AH191: 0 | AI191: 0 | AJ191: 0 | AK191: 0 | AL191: 0
A193: 15 | B193: Small Commercial Demand Response | C193: Verified | AM193: =SUM(Y193:AL193) -> 0
B194: Adjustment to 2012 savings | C194: True-up | Y194: =Y193 -> 0 | Z194: =Z193 -> 0 | AA194: =AA193 -> 0 | AB194: 0 | AC194: 0 | AD194: 0 | AE194: 0 | AF194: 0 | AG194: 0 | AH194: 0 | AI194: 0 | AJ194: 0 | AK194: 0 | AL194: 0
A196: 16 | B196: Small Commercial Demand Response (IHD) | C196: Verified | AM196: =SUM(Y196:AL196) -> 0
B197: Adjustment to 2012 savings | C197: True-up | Y197: =Y196 -> 0 | Z197: =Z196 -> 0 | AA197: =AA196 -> 0 | AB197: 0 | AC197: 0 | AD197: 0 | AE197: 0 | AF197: 0 | AG197: 0 | AH197: 0 | AI197: 0 | AJ197: 0 | AK197: 0 | AL197: 0
A199: 17 | B199: Demand Response 3 | C199: Verified | D199: ='7. Persistence Report'!AR$52 -> 2211.419 | O199: ='7. Persistence Report'!M$52 -> 152.1411 | AA199: 1 | AM199: =SUM(Y199:AL199) -> 1
B200: Adjustment to 2012 savings | C200: True-up | Y200: =Y199 -> 0 | Z200: =Z199 -> 0 | AA200: =AA199 -> 1 | AB200: 0 | AC200: 0 | AD200: 0 | AE200: 0 | AF200: 0 | AG200: 0 | AH200: 0 | AI200: 0 | AJ200: 0 | AK200: 0 | AL200: 0
B202: Industrial Program
A203: 18 | B203: Process & System Upgrades | C203: Verified | N203: 12 | AM203: =SUM(Y203:AL203) -> 0
B204: Adjustment to 2012 savings | C204: True-up | N204: =N203 -> 12 | Y204: =Y203 -> 0 | Z204: =Z203 -> 0 | AA204: =AA203 -> 0 | AB204: 0 | AC204: 0 | AD204: 0 | AE204: 0 | AF204: 0 | AG204: 0 | AH204: 0 | AI204: 0 | AJ204: 0 | AK204: 0 | AL204: 0
A206: 19 | B206: Monitoring & Targeting | C206: Verified | N206: 12 | AM206: =SUM(Y206:AL206) -> 0
B207: Adjustment to 2012 savings | C207: True-up | N207: =N206 -> 12 | Y207: =Y206 -> 0 | Z207: =Z206 -> 0 | AA207: =AA206 -> 0 | AB207: 0 | AC207: 0 | AD207: 0 | AE207: 0 | AF207: 0 | AG207: 0 | AH207: 0 | AI207: 0 | AJ207: 0 | AK207: 0 | AL207: 0
A209: 20 | B209: Energy Manager | C209: Verified | N209: 12 | AB209: 1 | AM209: =SUM(Y209:AL209) -> 1
B210: Adjustment to 2012 savings | C210: True-up | D210: ='7. Persistence Report'!AR$102 -> 8280 | E210: ='7. Persistence Report'!AS$102 -> 8280 | F210: ='7. Persistence Report'!AT$102 -> 8280 | G210: ='7. Persistence Report'!AU$102 -> 8280 | H210: ='7. Persistence Report'!AV$102 -> 8280 | I210: ='7. Persistence Report'!AW$102 -> 8280 | J210: ='7. Persistence Report'!AX$102 -> 8280 | K210: ='7. Persistence Report'!AY$102 -> 8280 | L210: ='7. Persistence Report'!AZ$102 -> 8280 | M210: ='7. Persistence Report'!BA$102 -> 8280 | N210: =N209 -> 12 | O210: ='7. Persistence Report'!M$102 -> 9.8325 | P210: ='7. Persistence Report'!N$102 -> 9.8325 | Q210: ='7. Persistence Report'!O$102 -> 9.8325 | R210: ='7. Persistence Report'!P$102 -> 9.8325 | S210: ='7. Persistence Report'!Q$102 -> 9.8325 | T210: ='7. Persistence Report'!R$102 -> 9.8325 | U210: ='7. Persistence Report'!S$102 -> 9.8325 | V210: ='7. Persistence Report'!T$102 -> 9.8325 | W210: ='7. Persistence Report'!U$102 -> 9.8325 | X210: ='7. Persistence Report'!V$102 -> 9.8325 | Y210: =Y209 -> 0 | Z210: =Z209 -> 0 | AA210: =AA209 -> 0 | AB210: 1 | AC210: 0 | AD210: 0 | AE210: 0 | AF210: 0 | AG210: 0 | AH210: 0 | AI210: 0 | AJ210: 0 | AK210: 0 | AL210: 0
A212: 21 | B212: Retrofit | C212: Verified | N212: 12 | AM212: =SUM(Y212:AL212) -> 0
B213: Adjustment to 2012 savings | C213: True-up | N213: =N212 -> 12 | Y213: =Y212 -> 0 | Z213: =Z212 -> 0 | AA213: =AA212 -> 0 | AB213: 0 | AC213: 0 | AD213: 0 | AE213: 0 | AF213: 0 | AG213: 0 | AH213: 0 | AI213: 0 | AJ213: 0 | AK213: 0 | AL213: 0
A215: 22 | B215: Demand Response 3 | C215: Verified | D215: ='7. Persistence Report'!AR$47+'[2]7. Persistence Report'!AR$49+'[2]7. Persistence Report'!AR$51 -> 45884.915 | E215: ='7. Persistence Report'!AS$47+'[2]7. Persistence Report'!AS$49+'[2]7. Persistence Report'!AS$51 -> 0 | F215: ='7. Persistence Report'!AT$47+'[2]7. Persistence Report'!AT$49+'[2]7. Persistence Report'!AT$51 -> 0 | G215: ='7. Persistence Report'!AU$47+'[2]7. Persistence Report'!AU$49+'[2]7. Persistence Report'!AU$51 -> 0 | H215: ='7. Persistence Report'!AV$47+'[2]7. Persistence Report'!AV$49+'[2]7. Persistence Report'!AV$51 -> 0 | I215: ='7. Persistence Report'!AW$47+'[2]7. Persistence Report'!AW$49+'[2]7. Persistence Report'!AW$51 -> 0 | J215: ='7. Persistence Report'!AX$47+'[2]7. Persistence Report'!AX$49+'[2]7. Persistence Report'!AX$51 -> 0 | K215: ='7. Persistence Report'!AY$47+'[2]7. Persistence Report'!AY$49+'[2]7. Persistence Report'!AY$51 -> 0 | L215: ='7. Persistence Report'!AZ$47+'[2]7. Persistence Report'!AZ$49+'[2]7. Persistence Report'!AZ$51 -> 0 | M215: ='7. Persistence Report'!BA$47+'[2]7. Persistence Report'!BA$49+'[2]7. Persistence Report'!BA$51 -> 0 | O215: ='7. Persistence Report'!M$47+'[2]7. Persistence Report'!M$49+'[2]7. Persistence Report'!M$51 -> 1932.65325 | P215: ='7. Persistence Report'!N$47+'[2]7. Persistence Report'!N$49+'[2]7. Persistence Report'!N$51 -> 0 | Q215: ='7. Persistence Report'!O$47+'[2]7. Persistence Report'!O$49+'[2]7. Persistence Report'!O$51 -> 0 | R215: ='7. Persistence Report'!P$47+'[2]7. Persistence Report'!P$49+'[2]7. Persistence Report'!P$51 -> 0 | S215: ='7. Persistence Report'!Q$47+'[2]7. Persistence Report'!Q$49+'[2]7. Persistence Report'!Q$51 -> 0 | T215: ='7. Persistence Report'!R$47+'[2]7. Persistence Report'!R$49+'[2]7. Persistence Report'!R$51 -> 0 | U215: ='7. Persistence Report'!S$47+'[2]7. Persistence Report'!S$49+'[2]7. Persistence Report'!S$51 -> 0 | V215: ='7. Persistence Report'!T$47+'[2]7. Persistence Report'!T$49+'[2]7. Persistence Report'!T$51 -> 0 | W215: ='7. Persistence Report'!U$47+'[2]7. Persistence Report'!U$49+'[2]7. Persistence Report'!U$51 -> 0 | X215: ='7. Persistence Report'!V$47+'[2]7. Persistence Report'!V$49+'[2]7. Persistence Report'!V$51 -> 0 | AA215: 1 | AM215: =SUM(Y215:AL215) -> 1
B216: Adjustment to 2012 savings | C216: True-up | Y216: =Y215 -> 0 | Z216: =Z215 -> 0 | AA216: =AA215 -> 1 | AB216: 0 | AC216: 0 | AD216: 0 | AE216: 0 | AF216: 0 | AG216: 0 | AH216: 0 | AI216: 0 | AJ216: 0 | AK216: 0 | AL216: 0
B218: Home Assistance Program
A219: 23 | B219: Home Assistance Program | C219: Verified | D219: ='7. Persistence Report'!AR$46 -> 28760.74001 | E219: ='7. Persistence Report'!AS$46 -> 28760.73999 | F219: ='7. Persistence Report'!AT$46 -> 28760.73999 | G219: ='7. Persistence Report'!AU$46 -> 28760.74001 | H219: ='7. Persistence Report'!AV$46 -> 28760.74001 | I219: ='7. Persistence Report'!AW$46 -> 28760.74001 | J219: ='7. Persistence Report'!AX$46 -> 28760.74001 | K219: ='7. Persistence Report'!AY$46 -> 28760.74001 | L219: ='7. Persistence Report'!AZ$46 -> 12922.74001 | M219: ='7. Persistence Report'!BA$46 -> 12922.74001 | O219: ='7. Persistence Report'!M$46 -> 2.449203606 | P219: ='7. Persistence Report'!N$46 -> 2.449203606 | Q219: ='7. Persistence Report'!O$46 -> 2.449203606 | R219: ='7. Persistence Report'!P$46 -> 2.449203606 | S219: ='7. Persistence Report'!Q$46 -> 2.449203606 | T219: ='7. Persistence Report'!R$46 -> 2.449203606 | U219: ='7. Persistence Report'!S$46 -> 2.449203606 | V219: ='7. Persistence Report'!T$46 -> 2.449203606 | W219: ='7. Persistence Report'!U$46 -> 1.626478309 | X219: ='7. Persistence Report'!V$46 -> 1.626478309 | Y219: 1 | AM219: =SUM(Y219:AL219) -> 1
B220: Adjustment to 2012 savings | C220: True-up | D220: ='7. Persistence Report'!AR$88 -> 2008 | E220: ='7. Persistence Report'!AS$88 -> 2008 | F220: ='7. Persistence Report'!AT$88 -> 1946.399994 | G220: ='7. Persistence Report'!AU$88 -> 1940.800003 | H220: ='7. Persistence Report'!AV$88 -> 1638.1064 | I220: ='7. Persistence Report'!AW$88 -> 1509.159576 | J220: ='7. Persistence Report'!AX$88 -> 1380.212738 | K220: ='7. Persistence Report'!AY$88 -> 1380.212738 | L220: ='7. Persistence Report'!AZ$88 -> 1380.212738 | M220: ='7. Persistence Report'!BA$88 -> 154 | O220: ='7. Persistence Report'!M$88 -> 0.261400007 | P220: ='7. Persistence Report'!N$88 -> 0.261400007 | Q220: ='7. Persistence Report'!O$88 -> 0.258236764 | R220: ='7. Persistence Report'!P$88 -> 0.257949196 | S220: ='7. Persistence Report'!Q$88 -> 0.242193336 | T220: ='7. Persistence Report'!R$88 -> 0.235465675 | U220: ='7. Persistence Report'!S$88 -> 0.228738017 | V220: ='7. Persistence Report'!T$88 -> 0.228738017 | W220: ='7. Persistence Report'!U$88 -> 0.228738017 | X220: ='7. Persistence Report'!V$88 -> 0.164900005 | Y220: =Y219 -> 1 | Z220: =Z219 -> 0 | AA220: =AA219 -> 0 | AB220: 0 | AC220: 0 | AD220: 0 | AE220: 0 | AF220: 0 | AG220: 0 | AH220: 0 | AI220: 0 | AJ220: 0 | AK220: 0 | AL220: 0
B222: Aboriginal Program
A223: 24 | B223: Home Assistance Program | C223: Verified | AM223: =SUM(Y223:AL223) -> 0
B224: Adjustment to 2012 savings | C224: True-up | Y224: =Y223 -> 0 | Z224: =Z223 -> 0 | AA224: =AA223 -> 0 | AB224: 0 | AC224: 0 | AD224: 0 | AE224: 0 | AF224: 0 | AG224: 0 | AH224: 0 | AI224: 0 | AJ224: 0 | AK224: 0 | AL224: 0
A226: 25 | B226: Direct Install Lighting | C226: Verified | N226: 0 | AM226: =SUM(Y226:AL226) -> 0
B227: Adjustment to 2012 savings | C227: True-up | N227: =N226 -> 0 | Y227: =Y226 -> 0 | Z227: =Z226 -> 0 | AA227: =AA226 -> 0 | AB227: 0 | AC227: 0 | AD227: 0 | AE227: 0 | AF227: 0 | AG227: 0 | AH227: 0 | AI227: 0 | AJ227: 0 | AK227: 0 | AL227: 0
B229: Pre-2011 Programs completed in 2011
A230: 26 | B230: Electricity Retrofit Incentive Program | C230: Verified | N230: 12 | AM230: =SUM(Y230:AL230) -> 0
B231: Adjustment to 2012 savings | C231: True-up | N231: =N230 -> 12 | Y231: =Y230 -> 0 | Z231: =Z230 -> 0 | AA231: =AA230 -> 0 | AB231: 0 | AC231: 0 | AD231: 0 | AE231: 0 | AF231: 0 | AG231: 0 | AH231: 0 | AI231: 0 | AJ231: 0 | AK231: 0 | AL231: 0
A233: 27 | B233: High Performance New Construction | C233: Verified | D233: ='7. Persistence Report'!AR$48 -> 825446.1585 | E233: ='7. Persistence Report'!AS$48 -> 825446.1585 | F233: ='7. Persistence Report'!AT$48 -> 825446.1585 | G233: ='7. Persistence Report'!AU$48 -> 825446.1585 | H233: ='7. Persistence Report'!AV$48 -> 825446.1585 | I233: ='7. Persistence Report'!AW$48 -> 825446.1585 | J233: ='7. Persistence Report'!AX$48 -> 825446.1585 | K233: ='7. Persistence Report'!AY$48 -> 825446.1585 | L233: ='7. Persistence Report'!AZ$48 -> 825446.1585 | M233: ='7. Persistence Report'!BA$48 -> 825446.1585 | N233: 12 | O233: ='7. Persistence Report'!M$48 -> 161.3100289 | P233: ='7. Persistence Report'!N$48 -> 161.3100289 | Q233: ='7. Persistence Report'!O$48 -> 161.3100289 | R233: ='7. Persistence Report'!P$48 -> 161.3100289 | S233: ='7. Persistence Report'!Q$48 -> 161.3100289 | T233: ='7. Persistence Report'!R$48 -> 161.3100289 | U233: ='7. Persistence Report'!S$48 -> 161.3100289 | V233: ='7. Persistence Report'!T$48 -> 161.3100289 | W233: ='7. Persistence Report'!U$48 -> 161.3100289 | X233: ='7. Persistence Report'!V$48 -> 161.3100289 | AA233: 1 | AM233: =SUM(Y233:AL233) -> 1
B234: Adjustment to 2012 savings | C234: True-up | N234: =N233 -> 12 | Y234: =Y233 -> 0 | Z234: =Z233 -> 0 | AA234: =AA233 -> 1 | AB234: 0 | AC234: 0 | AD234: 0 | AE234: 0 | AF234: 0 | AG234: 0 | AH234: 0 | AI234: 0 | AJ234: 0 | AK234: 0 | AL234: 0
A236: 28 | B236: Toronto Comprehensive | C236: Verified | N236: 0 | AM236: =SUM(Y236:AL236) -> 0
B237: Adjustment to 2012 savings | C237: True-up | N237: =N236 -> 0 | Y237: =Y236 -> 0 | Z237: =Z236 -> 0 | AA237: =AA236 -> 0 | AB237: 0 | AC237: 0 | AD237: 0 | AE237: 0 | AF237: 0 | AG237: 0 | AH237: 0 | AI237: 0 | AJ237: 0 | AK237: 0 | AL237: 0
A239: 29 | B239: Multifamily Energy Efficiency Rebates | C239: Verified | N239: 0 | AM239: =SUM(Y239:AL239) -> 0
B240: Adjustment to 2012 savings | C240: True-up | N240: =N239 -> 0 | Y240: =Y239 -> 0 | Z240: =Z239 -> 0 | AA240: 0 | AB240: 0 | AC240: 0 | AD240: 0 | AE240: 0 | AF240: 0 | AG240: 0 | AH240: 0 | AI240: 0 | AJ240: 0 | AK240: 0 | AL240: 0
A242: 30 | B242: LDC Custom Programs | C242: Verified | N242: 0 | AM242: =SUM(Y242:AL242) -> 0
B243: Adjustment to 2012 savings | C243: True-up | N243: =N242 -> 0 | Y243: =Y242 -> 0 | Z243: =Z242 -> 0 | AA243: 0 | AB243: 0 | AC243: 0 | AD243: 0 | AE243: 0 | AF243: 0 | AG243: 0 | AH243: 0 | AI243: 0 | AJ243: 0 | AK243: 0 | AL243: 0
B245: Other
A246: 31 | B246: Program Enabled Savings | C246: Verified | N246: 0 | AM246: =SUM(Y246:AL246) -> 0
B247: Adjustment to 2012 savings | C247: True-up | N247: =N246 -> 0 | Y247: =Y246 -> 0 | Z247: =Z246 -> 0 | AA247: 0 | AB247: 0 | AC247: 0 | AD247: 0 | AE247: 0 | AF247: 0 | AG247: 0 | AH247: 0 | AI247: 0 | AJ247: 0 | AK247: 0 | AL247: 0
A249: 32 | B249: Time of Use Savings | C249: Verified | N249: 0 | AM249: =SUM(Y249:AL249) -> 0
B250: Adjustment to 2012 savings | C250: True-up | N250: =N249 -> 0 | Y250: =Y249 -> 0 | Z250: =Z249 -> 0 | AA250: 0 | AB250: 0 | AC250: 0 | AD250: 0 | AE250: 0 | AF250: 0 | AG250: 0 | AH250: 0 | AI250: 0 | AJ250: 0 | AK250: 0 | AL250: 0
A252: 33 | B252: LDC Pilots | C252: Verified | N252: 0 | AM252: =SUM(Y252:AL252) -> 0
B253: Adjustment to 2012 savings | C253: True-up | N253: =N252 -> 0 | Y253: =Y252 -> 0 | Z253: =Z252 -> 0 | AA253: 0 | AB253: 0 | AC253: 0 | AD253: 0 | AE253: 0 | AF253: 0 | AG253: 0 | AH253: 0 | AI253: 0 | AJ253: 0 | AK253: 0 | AL253: 0
B255: Actual CDM Savings in 2012 | D255: =SUM(D150:D253) -> 4288791.35 | O255: =SUM(O150:O253) -> 3122.32686 | Y255: =IF(Y149="kWh",SUMPRODUCT(D150:D253,Y150:Y253)) -> 732923.6438 | Z255: =IF(Z149="kWh",SUMPRODUCT(D150:D253,Z150:Z253)) -> 1104427.515 | AA255: =IF(AA149="kW",SUMPRODUCT(N150:N253,O150:O253,AA150:AA253),SUMPRODUCT(D150:D253,AA150:AA253)) -> 5811.461045 | AB255: =IF(AB149="kW",SUMPRODUCT(N150:N253,O150:O253,AB150:AB253),SUMPRODUCT(D150:D253,AB150:AB253)) -> 117.99 | AC255: =IF(AC149="kW",SUMPRODUCT(N150:N253,O150:O253,AC150:AC253),SUMPRODUCT(D150:D253,AC150:AC253)) -> 0 | AD255: =IF(AD149="kW",SUMPRODUCT(N150:N253,O150:O253,AD150:AD253),SUMPRODUCT(D150:D253,AD150:AD253)) -> 0 | AE255: =IF(AE149="kW",SUMPRODUCT(N150:N253,O150:O253,AE150:AE253),SUMPRODUCT(D150:D253,AE150:AE253)) -> 0 | AF255: =IF(AF149="kW",SUMPRODUCT(N150:N253,O150:O253,AF150:AF253),SUMPRODUCT(D150:D253,AF150:AF253)) -> 0 | AG255: =IF(AG149="kW",SUMPRODUCT(N150:N253,O150:O253,AG150:AG253),SUMPRODUCT(D150:D253,AG150:AG253)) -> 0 | AH255: =IF(AH149="kW",SUMPRODUCT(N150:N253,O150:O253,AH150:AH253),SUMPRODUCT(D150:D253,AH150:AH253)) -> 0 | AI255: =IF(AI149="kW",SUMPRODUCT(N150:N253,O150:O253,AI150:AI253),SUMPRODUCT(D150:D253,AI150:AI253)) -> 0 | AJ255: =IF(AJ149="kW",SUMPRODUCT(N150:N253,O150:O253,AJ150:AJ253),SUMPRODUCT(D150:D253,AJ150:AJ253)) -> 0 | AK255: =IF(AK149="kW",SUMPRODUCT(N150:N253,O150:O253,AK150:AK253),SUMPRODUCT(D150:D253,AK150:AK253)) -> 0 | AL255: =IF(AL149="kW",SUMPRODUCT(N150:N253,O150:O253,AL150:AL253),SUMPRODUCT(D150:D253,AL150:AL253)) -> 0
B256: Forecast CDM Savings in 2012 | Y256: =HLOOKUP(Y148,'2. LRAMVA Threshold'!$B$42:$Q$53,4,FALSE) -> 0 | Z256: =HLOOKUP(Z148,'2. LRAMVA Threshold'!$B$42:$Q$53,4,FALSE) -> 0 | AA256: =HLOOKUP(AA148,'2. LRAMVA Threshold'!$B$42:$Q$53,4,FALSE) -> 0 | AB256: =HLOOKUP(AB148,'2. LRAMVA Threshold'!$B$42:$Q$53,4,FALSE) -> 0 | AC256: =HLOOKUP(AC148,'2. LRAMVA Threshold'!$B$42:$Q$53,4,FALSE) -> 0 | AD256: =HLOOKUP(AD148,'2. LRAMVA Threshold'!$B$42:$Q$53,4,FALSE) -> 0 | AE256: =HLOOKUP(AE148,'2. LRAMVA Threshold'!$B$42:$Q$53,4,FALSE) -> 0 | AF256: =HLOOKUP(AF148,'2. LRAMVA Threshold'!$B$42:$Q$53,4,FALSE) -> 0 | AG256: =HLOOKUP(AG148,'2. LRAMVA Threshold'!$B$42:$Q$53,4,FALSE) -> 0 | AH256: =HLOOKUP(AH148,'2. LRAMVA Threshold'!$B$42:$Q$53,4,FALSE) -> 0 | AI256: =HLOOKUP(AI148,'2. LRAMVA Threshold'!$B$42:$Q$53,4,FALSE) -> 0 | AJ256: =HLOOKUP(AJ148,'2. LRAMVA Threshold'!$B$42:$Q$53,4,FALSE) -> 0 | AK256: =HLOOKUP(AK148,'2. LRAMVA Threshold'!$B$42:$Q$53,4,FALSE) -> 0 | AL256: =HLOOKUP(AL148,'2. LRAMVA Threshold'!$B$42:$Q$53,4,FALSE) -> 0
B258: Distribution Rate in 2012 | Y258: =HLOOKUP(Y$20,'3. Distribution Rates'!$C$122:$P$133,4,FALSE) -> 0.0188 | Z258: =HLOOKUP(Z$20,'3. Distribution Rates'!$C$122:$P$133,4,FALSE) -> 0.0166 | AA258: =HLOOKUP(AA$20,'3. Distribution Rates'!$C$122:$P$133,4,FALSE) -> 3.5617 | AB258: =HLOOKUP(AB$20,'3. Distribution Rates'!$C$122:$P$133,4,FALSE) -> 1.279 | AC258: =HLOOKUP(AC$20,'3. Distribution Rates'!$C$122:$P$133,4,FALSE) -> 22.6299 | AD258: =HLOOKUP(AD$20,'3. Distribution Rates'!$C$122:$P$133,4,FALSE) -> 16.5512 | AE258: =HLOOKUP(AE$20,'3. Distribution Rates'!$C$122:$P$133,4,FALSE) -> 0.0426 | AF258: =HLOOKUP(AF$20,'3. Distribution Rates'!$C$122:$P$133,4,FALSE) -> 1.461 | AG258: =HLOOKUP(AG$20,'3. Distribution Rates'!$C$122:$P$133,4,FALSE) -> 0 | AH258: =HLOOKUP(AH$20,'3. Distribution Rates'!$C$122:$P$133,4,FALSE) -> 0 | AI258: =HLOOKUP(AI$20,'3. Distribution Rates'!$C$122:$P$133,4,FALSE) -> 0 | AJ258: =HLOOKUP(AJ$20,'3. Distribution Rates'!$C$122:$P$133,4,FALSE) -> 0 | AK258: =HLOOKUP(AK$20,'3. Distribution Rates'!$C$122:$P$133,4,FALSE) -> 0 | AL258: =HLOOKUP(AL$20,'3. Distribution Rates'!$C$122:$P$133,4,FALSE) -> 0
B259: Lost Revenue in 2012 from 2011 programs | Y259: =Y135*Y258 -> 24106.17888 | Z259: 5182.616065 | AA259: 22207.85018 | AB259: 0 | AC259: 0 | AD259: 0 | AE259: 0 | AF259: 0 | AG259: 0 | AH259: 0 | AI259: 0 | AJ259: 0 | AK259: 0 | AL259: 0 | AM259: =SUM(Y259:AL259) -> 51496.64513
B260: Lost Revenue in 2012 from 2012 programs | Y260: =Y255*Y258 -> 13778.9645 | Z260: 18333.49676 | AA260: 20698.6808 | AB260: 150.90921 | AC260: 0 | AD260: 0 | AE260: 0 | AF260: =AF255*AF258 -> 0 | AG260: 0 | AH260: 0 | AI260: 0 | AJ260: 0 | AK260: 0 | AL260: 0 | AM260: =SUM(Y260:AL260) -> 52962.05128
B261: Total Lost Revenues in 2012 | Y261: =SUM(Y259:Y260) -> 37885.14338 | Z261: =SUM(Z259:Z260) -> 23516.11282 | AA261: 42906.53099 | AB261: 150.90921 | AC261: 0 | AD261: 0 | AE261: 0 | AF261: =SUM(AF259:AF260) -> 0 | AG261: 0 | AH261: 0 | AI261: 0 | AJ261: 0 | AK261: 0 | AL261: 0 | AM261: =SUM(AM259:AM260) -> 104458.6964
B262: Forecast Lost Revenues in 2012 | Y262: =Y256*Y258 -> 0 | Z262: 0 | AA262: 0 | AB262: 0 | AC262: 0 | AD262: 0 | AE262: 0 | AF262: =AF256*AF258 -> 0 | AG262: 0 | AH262: 0 | AI262: 0 | AJ262: 0 | AK262: 0 | AL262: 0 | AM262: =SUM(Y262:AL262) -> 0
B263: LRAMVA in 2012 | AM263: =AM261-AM262 -> 104458.6964
B265: 2012 Savings Persisting in 2013 | Y265: =SUMPRODUCT(E150:E253,Y150:Y253) -> 732923.6438 | Z265: =SUMPRODUCT(E150:E253,Z150:Z253) -> 1102845.033 | AA265: =IF(AA149="kW",SUMPRODUCT(N150:N253,P150:P253,AA150:AA253),SUMPRODUCT(E150:E253,AA150:AA253)) -> 5790.167154 | AB265: =IF(AB149="kW",SUMPRODUCT(N150:N253,P150:P253,AB150:AB253),SUMPRODUCT(E150:E253,AB150:AB253)) -> 117.99 | AC265: =IF(AC149="kW",SUMPRODUCT(N150:N253,P150:P253,AC150:AC253),SUMPRODUCT(E150:E253,AC150:AC253)) -> 0 | AD265: =IF(AD149="kW",SUMPRODUCT(N150:N253,P150:P253,AD150:AD253),SUMPRODUCT(E150:E253, AD150:AD253)) -> 0 | AE265: =IF(AE149="kW",SUMPRODUCT(N150:N253,P150:P253,AE150:AE253),SUMPRODUCT(E150:E253,AE150:AE253)) -> 0 | AF265: =IF(AF149="kW",SUMPRODUCT(N150:N253,P150:P253,AF150:AF253),SUMPRODUCT(E150:E253,AF150:AF253)) -> 0 | AG265: =IF(AG149="kW",SUMPRODUCT(N150:N253,P150:P253,AG150:AG253),SUMPRODUCT(E150:E253,AG150:AG253)) -> 0 | AH265: =IF(AH149="kW",SUMPRODUCT(N150:N253,P150:P253,AH150:AH253),SUMPRODUCT(E150:E253,AH150:AH253)) -> 0 | AI265: =IF(AI149="kW",SUMPRODUCT(N150:N253,P150:P253,AI150:AI253),SUMPRODUCT(E150:E253,AI150:AI253)) -> 0 | AJ265: =IF(AJ149="kW",SUMPRODUCT(N150:N253,P150:P253,AJ150:AJ253),SUMPRODUCT(E150:E253,AJ150:AJ253)) -> 0 | AK265: =IF(AK149="kW",SUMPRODUCT(N150:N253,P150:P253,AK150:AK253),SUMPRODUCT(E150:E253,AK150:AK253)) -> 0 | AL265: =IF(AL149="kW",SUMPRODUCT(N150:N253,P150:P253,AL150:AL253),SUMPRODUCT(E150:E253,AL150:AL253)) -> 0
B266: 2012 Savings Persisting in 2014 | Y266: =SUMPRODUCT(F150:F253,Y150:Y253) -> 732862.0438 | Z266: =SUMPRODUCT(F150:F253,Z150:Z253) -> 1102594.467 | AA266: =IF(AA149="kW",SUMPRODUCT(N150:N253,Q150:Q253,AA150:AA253),SUMPRODUCT(F150:F253,AA150:AA253)) -> 5786.963154 | AB266: =IF(AB149="kW",SUMPRODUCT(N150:N253,Q150:Q253,AB150:AB253),SUMPRODUCT(F150:F253,AB150:AB253)) -> 117.99 | AC266: =IF(AC149="kW",SUMPRODUCT(N150:N253,Q150:Q253,AC150:AC253),SUMPRODUCT(F150:F253, AC150:AC253)) -> 0 | AD266: =IF(AD149="kW",SUMPRODUCT(N150:N253,Q150:Q253,AD150:AD253),SUMPRODUCT(F150:F253, AD150:AD253)) -> 0 | AE266: =IF(AE149="kW",SUMPRODUCT(N150:N253,Q150:Q253,AE150:AE253),SUMPRODUCT(F150:F253,AE150:AE253)) -> 0 | AF266: =IF(AF149="kW",SUMPRODUCT(N150:N253,Q150:Q253,AF150:AF253),SUMPRODUCT(F150:F253,AF150:AF253)) -> 0 | AG266: =IF(AG149="kW",SUMPRODUCT(N150:N253,Q150:Q253,AG150:AG253),SUMPRODUCT(F150:F253,AG150:AG253)) -> 0 | AH266: =IF(AH149="kW",SUMPRODUCT(N150:N253,Q150:Q253,AH150:AH253),SUMPRODUCT(F150:F253,AH150:AH253)) -> 0 | AI266: =IF(AI149="kW",SUMPRODUCT(N150:N253,Q150:Q253,AI150:AI253),SUMPRODUCT(F150:F253,AI150:AI253)) -> 0 | AJ266: =IF(AJ149="kW",SUMPRODUCT(N150:N253,Q150:Q253,AJ150:AJ253),SUMPRODUCT(F150:F253,AJ150:AJ253)) -> 0 | AK266: =IF(AK149="kW",SUMPRODUCT(N150:N253,Q150:Q253,AK150:AK253),SUMPRODUCT(F150:F253,AK150:AK253)) -> 0 | AL266: =IF(AL149="kW",SUMPRODUCT(N150:N253,Q150:Q253,AL150:AL253),SUMPRODUCT(F150:F253,AL150:AL253)) -> 0
B267: 2012 Savings Persisting in 2015 | Y267: =SUMPRODUCT(G150:G253,Y150:Y253) -> 731025.8723 | Z267: =SUMPRODUCT(G150:G253,Z150:Z253) -> 899774.3311 | AA267: =IF(AA149="kW",SUMPRODUCT(N150:N253,R150:R253,AA150:AA253),SUMPRODUCT(G150:G253,AA150:AA253)) -> 5716.789352 | AB267: =IF(AB149="kW",SUMPRODUCT(N150:N253,R150:R253,AB150:AB253),SUMPRODUCT(G150:G253,AB150:AB253)) -> 117.99 | AC267: =IF(AC149="kW",SUMPRODUCT(N150:N253,R150:R253,AC150:AC253),SUMPRODUCT(G150:G253, AC150:AC253)) -> 0 | AD267: =IF(AD149="kW",SUMPRODUCT(N150:N253,R150:R253,AD150:AD253),SUMPRODUCT(G150:G253, AD150:AD253)) -> 0 | AE267: =IF(AE149="kW",SUMPRODUCT(N150:N253,R150:R253,AE150:AE253),SUMPRODUCT(G150:G253,AE150:AE253)) -> 0 | AF267: =IF(AF149="kW",SUMPRODUCT(N150:N253,R150:R253,AF150:AF253),SUMPRODUCT(G150:G253,AF150:AF253)) -> 0 | AG267: =IF(AG149="kW",SUMPRODUCT(N150:N253,R150:R253,AG150:AG253),SUMPRODUCT(G150:G253,AG150:AG253)) -> 0 | AH267: =IF(AH149="kW",SUMPRODUCT(N150:N253,R150:R253,AH150:AH253),SUMPRODUCT(G150:G253,AH150:AH253)) -> 0 | AI267: =IF(AI149="kW",SUMPRODUCT(N150:N253,R150:R253,AI150:AI253),SUMPRODUCT(G150:G253,AI150:AI253)) -> 0 | AJ267: =IF(AJ149="kW",SUMPRODUCT(N150:N253,R150:R253,AJ150:AJ253),SUMPRODUCT(G150:G253,AJ150:AJ253)) -> 0 | AK267: =IF(AK149="kW",SUMPRODUCT(N150:N253,R150:R253,AK150:AK253),SUMPRODUCT(G150:G253,AK150:AK253)) -> 0 | AL267: =IF(AL149="kW",SUMPRODUCT(N150:N253,R150:R253,AL150:AL253),SUMPRODUCT(G150:G253,AL150:AL253)) -> 0
B268: 2012 Savings Persisting in 2016 | Y268: =SUMPRODUCT(H150:H253,Y150:Y253) -> 644179.347 | Z268: =SUMPRODUCT(H150:H253,Z150:Z253) -> 899774.3311 | AA268: =IF(AA149="kW",SUMPRODUCT(N150:N253,S150:S253,AA150:AA253),SUMPRODUCT(H150:H253,AA150:AA253)) -> 5716.789352 | AB268: =IF(AB149="kW",SUMPRODUCT(N150:N253,S150:S253,AB150:AB253),SUMPRODUCT(H150:H253,AB150:AB253)) -> 117.99 | AC268: =IF(AC149="kW",SUMPRODUCT(N150:N253,S150:S253,AC150:AC253),SUMPRODUCT(H150:H253, AC150:AC253)) -> 0 | AD268: =IF(AD149="kW",SUMPRODUCT(N150:N253,S150:S253,AD150:AD253),SUMPRODUCT(H150:H253, AD150:AD253)) -> 0 | AE268: =IF(AE149="kW",SUMPRODUCT(N150:N253,S150:S253,AE150:AE253),SUMPRODUCT(H150:H253,AE150:AE253)) -> 0 | AF268: =IF(AF149="kW",SUMPRODUCT(N150:N253,S150:S253,AF150:AF253),SUMPRODUCT(H150:H253,AF150:AF253)) -> 0 | AG268: =IF(AG149="kW",SUMPRODUCT(N150:N253,S150:S253,AG150:AG253),SUMPRODUCT(H150:H253,AG150:AG253)) -> 0 | AH268: =IF(AH149="kW",SUMPRODUCT(N150:N253,S150:S253,AH150:AH253),SUMPRODUCT(H150:H253,AH150:AH253)) -> 0 | AI268: =IF(AI149="kW",SUMPRODUCT(N150:N253,S150:S253,AI150:AI253),SUMPRODUCT(H150:H253,AI150:AI253)) -> 0 | AJ268: =IF(AJ149="kW",SUMPRODUCT(N150:N253,S150:S253,AJ150:AJ253),SUMPRODUCT(H150:H253,AJ150:AJ253)) -> 0 | AK268: =IF(AK149="kW",SUMPRODUCT(N150:N253,S150:S253,AK150:AK253),SUMPRODUCT(H150:H253,AK150:AK253)) -> 0 | AL268: =IF(AL149="kW",SUMPRODUCT(N150:N253,S150:S253,AL150:AL253),SUMPRODUCT(H150:H253,AL150:AL253)) -> 0
B269: 2012 Savings Persisting in 2017 | Y269: =SUMPRODUCT(I150:I253,Y150:Y253) -> 520065.4036 | Z269: =SUMPRODUCT(I150:I253,Z150:Z253) -> 319664.0854 | AA269: =IF(AA149="kW",SUMPRODUCT(N150:N253,T150:T253,AA150:AA253),SUMPRODUCT(I150:I253,AA150:AA253)) -> 5300.867091 | AB269: =IF(AB149="kW",SUMPRODUCT(N150:N253,T150:T253,AB150:AB253),SUMPRODUCT(I150:I253,AB150:AB253)) -> 117.99 | AC269: =IF(AC149="kW",SUMPRODUCT(N150:N253,T150:T253,AC150:AC253),SUMPRODUCT(I150:I253, AC150:AC253)) -> 0 | AD269: =IF(AD149="kW",SUMPRODUCT(N150:N253,T150:T253,AD150:AD253),SUMPRODUCT(I150:I253, AD150:AD253)) -> 0 | AE269: =IF(AE149="kW",SUMPRODUCT(N150:N253,T150:T253,AE150:AE253),SUMPRODUCT(I150:I253,AE150:AE253)) -> 0 | AF269: =IF(AF149="kW",SUMPRODUCT(N150:N253,T150:T253,AF150:AF253),SUMPRODUCT(I150:I253,AF150:AF253)) -> 0 | AG269: =IF(AG149="kW",SUMPRODUCT(N150:N253,T150:T253,AG150:AG253),SUMPRODUCT(I150:I253,AG150:AG253)) -> 0 | AH269: =IF(AH149="kW",SUMPRODUCT(N150:N253,T150:T253,AH150:AH253),SUMPRODUCT(I150:I253,AH150:AH253)) -> 0 | AI269: =IF(AI149="kW",SUMPRODUCT(N150:N253,T150:T253,AI150:AI253),SUMPRODUCT(I150:I253,AI150:AI253)) -> 0 | AJ269: =IF(AJ149="kW",SUMPRODUCT(N150:N253,T150:T253,AJ150:AJ253),SUMPRODUCT(I150:I253,AJ150:AJ253)) -> 0 | AK269: =IF(AK149="kW",SUMPRODUCT(N150:N253,T150:T253,AK150:AK253),SUMPRODUCT(I150:I253,AK150:AK253)) -> 0 | AL269: =IF(AL149="kW",SUMPRODUCT(N150:N253,T150:T253,AL150:AL253),SUMPRODUCT(I150:I253,AL150:AL253)) -> 0
B270: 2012 Savings Persisting in 2018 | Y270: =SUMPRODUCT(J150:J253,Y150:Y253) -> 475023.681 | Z270: =SUMPRODUCT(J150:J253,Z150:Z253) -> 319035.505 | AA270: =IF(AA149="kW",SUMPRODUCT(N150:N253,U150:U253,AA150:AA253),SUMPRODUCT(J150:J253,AA150:AA253)) -> 5290.026096 | AB270: =IF(AB149="kW",SUMPRODUCT(N150:N253,U150:U253,AB150:AB253),SUMPRODUCT(J150:J253,AB150:AB253)) -> 117.99 | AC270: =IF(AC149="kW",SUMPRODUCT(N150:N253,U150:U253,AC150:AC253),SUMPRODUCT(J150:J253, AC150:AC253)) -> 0 | AD270: =IF(AD149="kW",SUMPRODUCT(N150:N253,U150:U253,AD150:AD253),SUMPRODUCT(J150:J253, AD150:AD253)) -> 0 | AE270: =IF(AE149="kW",SUMPRODUCT(N150:N253,U150:U253,AE150:AE253),SUMPRODUCT(J150:J253,AE150:AE253)) -> 0 | AF270: =IF(AF149="kW",SUMPRODUCT(N150:N253,U150:U253,AF150:AF253),SUMPRODUCT(J150:J253,AF150:AF253)) -> 0 | AG270: =IF(AG149="kW",SUMPRODUCT(N150:N253,U150:U253,AG150:AG253),SUMPRODUCT(J150:J253,AG150:AG253)) -> 0 | AH270: =IF(AH149="kW",SUMPRODUCT(N150:N253,U150:U253,AH150:AH253),SUMPRODUCT(J150:J253,AH150:AH253)) -> 0 | AI270: =IF(AI149="kW",SUMPRODUCT(N150:N253,U150:U253,AI150:AI253),SUMPRODUCT(J150:J253,AI150:AI253)) -> 0 | AJ270: =IF(AJ149="kW",SUMPRODUCT(N150:N253,U150:U253,AJ150:AJ253),SUMPRODUCT(J150:J253,AJ150:AJ253)) -> 0 | AK270: =IF(AK149="kW",SUMPRODUCT(N150:N253,U150:U253,AK150:AK253),SUMPRODUCT(J150:J253,AK150:AK253)) -> 0 | AL270: =IF(AL149="kW",SUMPRODUCT(N150:N253,U150:U253,AL150:AL253),SUMPRODUCT(J150:J253,AL150:AL253)) -> 0
B271: 2012 Savings Persisting in 2019 | Y271: =SUMPRODUCT(K150:K253,Y150:Y253) -> 474821.2361 | Z271: =SUMPRODUCT(K150:K253,Z150:Z253) -> 315322.9299 | AA271: =IF(AA149="kW",SUMPRODUCT(N150:N253,V150:V253,AA150:AA253),SUMPRODUCT(K150:K253,AA150:AA253)) -> 5290.026096 | AB271: =IF(AB149="kW",SUMPRODUCT(N150:N253,V150:V253,AB150:AB253),SUMPRODUCT(K150:K253,AB150:AB253)) -> 117.99 | AC271: =IF(AC149="kW",SUMPRODUCT(N150:N253,V150:V253,AC150:AC253),SUMPRODUCT(K150:K253, AC150:AC253)) -> 0 | AD271: =IF(AD149="kW",SUMPRODUCT(N150:N253,V150:V253,AD150:AD253),SUMPRODUCT(K150:K253, AD150:AD253)) -> 0 | AE271: =IF(AE149="kW",SUMPRODUCT(N150:N253,V150:V253,AE150:AE253),SUMPRODUCT(K150:K253,AE150:AE253)) -> 0 | AF271: =IF(AF149="kW",SUMPRODUCT(N150:N253,V150:V253,AF150:AF253),SUMPRODUCT(K150:K253,AF150:AF253)) -> 0 | AG271: =IF(AG149="kW",SUMPRODUCT(N150:N253,V150:V253,AG150:AG253),SUMPRODUCT(K150:K253,AG150:AG253)) -> 0 | AH271: =IF(AH149="kW",SUMPRODUCT(N150:N253,V150:V253,AH150:AH253),SUMPRODUCT(K150:K253,AH150:AH253)) -> 0 | AI271: =IF(AI149="kW",SUMPRODUCT(N150:N253,V150:V253,AI150:AI253),SUMPRODUCT(K150:K253,AI150:AI253)) -> 0 | AJ271: =IF(AJ149="kW",SUMPRODUCT(N150:N253,V150:V253,AJ150:AJ253),SUMPRODUCT(K150:K253,AJ150:AJ253)) -> 0 | AK271: =IF(AK149="kW",SUMPRODUCT(N150:N253,V150:V253,AK150:AK253),SUMPRODUCT(K150:K253,AK150:AK253)) -> 0 | AL271: =IF(AL149="kW",SUMPRODUCT(N150:N253,V150:V253,AL150:AL253),SUMPRODUCT(K150:K253,AL150:AL253)) -> 0
B272: 2012 Savings Persisting in 2020 | Y272: =SUMPRODUCT(L150:L253,Y150:Y253) -> 458983.2361 | Z272: =SUMPRODUCT(L150:L253,Z150:Z253) -> 311028.7199 | AA272: =IF(AA149="kW",SUMPRODUCT(N150:N253,W150:W253,AA150:AA253),SUMPRODUCT(L150:L253,AA150:AA253)) -> 5175.932498 | AB272: =IF(AB149="kW",SUMPRODUCT(N150:N253,W150:W253,AB150:AB253),SUMPRODUCT(L150:L253,AB150:AB253)) -> 117.99 | AC272: =IF(AC149="kW",SUMPRODUCT(N150:N253,W150:W253,AC150:AC253),SUMPRODUCT(L150:L253, AC150:AC253)) -> 0 | AD272: =IF(AD149="kW",SUMPRODUCT(N150:N253,W150:W253,AD150:AD253),SUMPRODUCT(L150:L253, AD150:AD253)) -> 0 | AE272: =IF(AE149="kW",SUMPRODUCT(N150:N253,W150:W253,AE150:AE253),SUMPRODUCT(L150:L253,AE150:AE253)) -> 0 | AF272: =IF(AF149="kW",SUMPRODUCT(N150:N253,W150:W253,AF150:AF253),SUMPRODUCT(L150:L253,AF150:AF253)) -> 0 | AG272: =IF(AG149="kW",SUMPRODUCT(N150:N253,W150:W253,AG150:AG253),SUMPRODUCT(L150:L253,AG150:AG253)) -> 0 | AH272: =IF(AH149="kW",SUMPRODUCT(N150:N253,W150:W253,AH150:AH253),SUMPRODUCT(L150:L253,AH150:AH253)) -> 0 | AI272: =IF(AI149="kW",SUMPRODUCT(N150:N253,W150:W253,AI150:AI253),SUMPRODUCT(L150:L253,AI150:AI253)) -> 0 | AJ272: =IF(AJ149="kW",SUMPRODUCT(N150:N253,W150:W253,AJ150:AJ253),SUMPRODUCT(L150:L253,AJ150:AJ253)) -> 0 | AK272: =IF(AK149="kW",SUMPRODUCT(N150:N253,W150:W253,AK150:AK253),SUMPRODUCT(L150:L253,AK150:AK253)) -> 0 | AL272: =IF(AL149="kW",SUMPRODUCT(N150:N253,W150:W253,AL150:AL253),SUMPRODUCT(L150:L253,AL150:AL253)) -> 0
B273: Note: Load forecast updated in 2013. Persistence for 2013-present removed.
B275: Table 4-c. 2013 Lost Revenues Work Form | D275: Return to top
B276: Program | C276: Results Status | D276: Net Energy Savings (kWh) | E276: Net Energy Savings Persistence (kWh) | N276: Monthly Multiplier | O276: Net Demand Savings (kW) | P276: Net Peak Demand Savings Persistence (kW) | Y276: Rate Allocations for LRAMVA
D277: 2013 | E277: 2014 | F277: 2015 | G277: 2016 | H277: 2017 | I277: 2018 | J277: 2019 | K277: 2020 | L277: 2021 | M277: 2022 | O277: 2013 | P277: 2014 | Q277: 2015 | R277: 2016 | S277: 2017 | T277: 2018 | U277: 2019 | V277: 2020 | W277: 2021 | X277: 2022 | Y277: ='1. LRAMVA Summary'!D52 -> Residential | Z277: ='1. LRAMVA Summary'!E52 -> GS<50 kW | AA277: ='1. LRAMVA Summary'!F52 -> General Service 50 - 999 kW | AB277: ='1. LRAMVA Summary'!G52 -> General Service 1,000 - 4,999 kW | AC277: ='1. LRAMVA Summary'!H52 -> Sentinel Lighting | AD277: ='1. LRAMVA Summary'!I52 -> Street Lighting | AE277: ='1. LRAMVA Summary'!J52 -> Unmetered Scattered Load | AF277: ='1. LRAMVA Summary'!K52 -> Large Use | AG277: ='1. LRAMVA Summary'!L52 ->  | AH277: ='1. LRAMVA Summary'!M52 ->  | AI277: ='1. LRAMVA Summary'!N52 ->  | AJ277: ='1. LRAMVA Summary'!O52 ->  | AK277: ='1. LRAMVA Summary'!P52 ->  | AL277: ='1. LRAMVA Summary'!Q52 ->  | AM277: ='1. LRAMVA Summary'!R52 -> Total
... 184 more rows

Sheet 5. 2015-2020 LRAM
B14: Legend | C14: User Inputs (Green)
C15: Auto Populated Cells (White)
C16: Instructions (Grey)
B18: Instructions | C18: 1. LDCs can apply for disposition of LRAMVA amounts at any time, but at a minimum, must do so as part of a cost of service (COS) application. The following LRAMVA work forms apply to LDCs that need to recover lost revenues from the 2015-2020 period. Please input or manually link the savings, adjustments and program savings persistence data in these tables from the LDC's Persistence Reports provided by the IESO (in Tab 7). As noted earlier, persistence data is available upon request from the IESO. Please also be advised that the same rate classes (of up to 14) are carried over from the Summary Tab 1.
C19: 2. Please ensure that the IESO verified savings adjustments apply back to the program year it relates to. For example, savings adjustments related to 2016 programs that were reported by the IESO in 2017 should be included in the 2016 program savings table. In order for persisting savings to be claimed in future years, past year's initiative level savings results need to be filled out in the tables below. If the IESO adjustments were made available to the LDC after the LRAMVA was approved, the persistence of those savings adjustments in the future can be claimed as approved LRAMVA amounts are considered to be final.
C20: 3. The work forms below include the monthly multipliers for most programs in order to claim demand savings from energy efficiency programs, consistent with the monthly multipliers indicated in the OEB's updated LRAM policy related to peak demand savings in EB-2016-0182. Demand Response (DR3) savings should generally not be included with the LRAMVA calculation, unless suported by empirical evidence. LDCs are requested to confirm the monthly multipliers for all programs each year as placeholder values are provided. If a different monthly multiplier is used, please include rationale in Tab 1-a and highlight the new multiplier that has been used.
C21: 4. LDC are requested to input the applicable rate class allocation percentages to allocate actual savings to the rate classes. The generic template currently includes the same allocation percentage for program savings and its savings adjustments. If a different allocation is proposed for savings adjustments, LDCs must provide supporting rationale in Tab 1-a and highlight the change.
C22: 5. The persistence of future savings is expected to be included in the distributor's load forecast after re-basing. LDCs are requested to delete the applicable savings persistence rows (auto-calculated after the LRAMVA totals for the year) if future year's persistence of savings is already captured in the updated load forecast. Please also provide assumptions about the years in which persistence is captured in the load forecast calculation in the "Notes" section below each table.
B24: Tables | C24: Table 5-a. 2015 Lost Revenues
C25: Table 5-b. 2016 Lost Revenues
C26: Table 5-c. 2017 Lost Revenues
C27: Table 5-d. 2018 Lost Revenues
C28: Table 5-e. 2019 Lost Revenues
C29: Table 5-f. 2020 Lost Revenues
B33: Table 5-a. 2015 Lost Revenues Work Form
B34: Program | C34: Results Status | D34: Net Energy Savings (kWh) | E34: Net Energy Savings Persistence (kWh) | N34: Monthly Multiplier | O34: Net Demand Savings (kW) | P34: Net Peak Demand Savings Persistence (kW) | Y34: Rate Allocations for LRAMVA
D35: 2015 | E35: 2016 | F35: 2017 | G35: 2018 | H35: 2019 | I35: 2020 | J35: 2021 | K35: 2022 | L35: 2023 | M35: 2024 | O35: 2015 | P35: 2016 | Q35: 2017 | R35: 2018 | S35: 2019 | T35: 2020 | U35: 2021 | V35: 2022 | W35: 2023 | X35: 2024 | Y35: ='1. LRAMVA Summary'!D52 -> Residential | Z35: ='1. LRAMVA Summary'!E52 -> GS<50 kW | AA35: ='1. LRAMVA Summary'!F52 -> General Service 50 - 999 kW | AB35: ='1. LRAMVA Summary'!G52 -> General Service 1,000 - 4,999 kW | AC35: ='1. LRAMVA Summary'!H52 -> Sentinel Lighting | AD35: ='1. LRAMVA Summary'!I52 -> Street Lighting | AE35: ='1. LRAMVA Summary'!J52 -> Unmetered Scattered Load | AF35: ='1. LRAMVA Summary'!K52 -> Large Use | AG35: ='1. LRAMVA Summary'!L52 ->  | AH35: ='1. LRAMVA Summary'!M52 ->  | AI35: ='1. LRAMVA Summary'!N52 ->  | AJ35: ='1. LRAMVA Summary'!O52 ->  | AK35: ='1. LRAMVA Summary'!P52 ->  | AL35: ='1. LRAMVA Summary'!Q52 ->  | AM35: ='1. LRAMVA Summary'!R52 -> Total
B36: Legacy Framework | Y36: ='1. LRAMVA Summary'!D53 -> kWh | Z36: ='1. LRAMVA Summary'!E53 -> kWh | AA36: ='1. LRAMVA Summary'!F53 -> kW | AB36: ='1. LRAMVA Summary'!G53 -> kW | AC36: ='1. LRAMVA Summary'!H53 -> kW | AD36: ='1. LRAMVA Summary'!I53 -> kW | AE36: ='1. LRAMVA Summary'!J53 -> kWh | AF36: ='1. LRAMVA Summary'!K53 -> kW | AG36: ='1. LRAMVA Summary'!L53 -> 0 | AH36: ='1. LRAMVA Summary'!M53 -> 0 | AI36: ='1. LRAMVA Summary'!N53 -> 0 | AJ36: ='1. LRAMVA Summary'!O53 -> 0 | AK36: ='1. LRAMVA Summary'!P53 -> 0 | AL36: ='1. LRAMVA Summary'!Q53 -> 0
B37: Residential Program
A38: 1 | B38: Coupon Initiative | C38: Verified | D38: ='7. Persistence Report'!AU$105 -> 322695 | E38: ='7. Persistence Report'!AV$105 -> 319758 | F38: ='7. Persistence Report'!AW$105 -> 319758 | G38: ='7. Persistence Report'!AX$105 -> 319758 | H38: ='7. Persistence Report'!AY$105 -> 319758 | I38: ='7. Persistence Report'!AZ$105 -> 319758 | J38: ='7. Persistence Report'!BA$105 -> 319758 | K38: ='7. Persistence Report'!BB$105 -> 319689 | L38: ='7. Persistence Report'!BC$105 -> 319689 | M38: ='7. Persistence Report'!BD$105 -> 319689 | O38: ='7. Persistence Report'!P$105 -> 21 | P38: ='7. Persistence Report'!Q$105 -> 21 | Q38: ='7. Persistence Report'!R$105 -> 21 | R38: ='7. Persistence Report'!S$105 -> 21 | S38: ='7. Persistence Report'!T$105 -> 21 | T38: ='7. Persistence Report'!U$105 -> 21 | U38: ='7. Persistence Report'!V$105 -> 21 | V38: ='7. Persistence Report'!W$105 -> 21 | W38: ='7. Persistence Report'!X$105 -> 21 | X38: ='7. Persistence Report'!Y$105 -> 21 | Y38: 1 | AM38: =SUM(Y38:AL38) -> 1
B39: Adjustment to 2015 savings | C39: True-up | D39: ='7. Persistence Report'!AU$113 -> 53894 | E39: ='7. Persistence Report'!AV$113 -> 53119 | F39: ='7. Persistence Report'!AW$113 -> 53119 | G39: ='7. Persistence Report'!AX$113 -> 53119 | H39: ='7. Persistence Report'!AY$113 -> 53119 | I39: ='7. Persistence Report'!AZ$113 -> 53119 | J39: ='7. Persistence Report'!BA$113 -> 53119 | K39: ='7. Persistence Report'!BB$113 -> 53097 | L39: ='7. Persistence Report'!BC$113 -> 53097 | M39: ='7. Persistence Report'!BD$113 -> 53097 | O39: ='7. Persistence Report'!P$113 -> 3 | P39: ='7. Persistence Report'!Q$113 -> 3 | Q39: ='7. Persistence Report'!R$113 -> 3 | R39: ='7. Persistence Report'!S$113 -> 3 | S39: ='7. Persistence Report'!T$113 -> 3 | T39: ='7. Persistence Report'!U$113 -> 3 | U39: ='7. Persistence Report'!V$113 -> 3 | V39: ='7. Persistence Report'!W$113 -> 3 | W39: ='7. Persistence Report'!X$113 -> 3 | X39: ='7. Persistence Report'!Y$113 -> 3 | Y39: =Y38 -> 1 | Z39: =Z38 -> 0 | AA39: 0 | AB39: 0 | AC39: 0 | AD39: 0 | AE39: 0 | AF39: 0 | AG39: 0 | AH39: 0 | AI39: 0 | AJ39: 0 | AK39: 0 | AL39: 0
A41: 2 | B41: Bi-Annual Retailer Event Initiative | C41: Verified | D41: ='7. Persistence Report'!AU$106 -> 596157 | E41: ='7. Persistence Report'!AV$106 -> 585562 | F41: ='7. Persistence Report'!AW$106 -> 585562 | G41: ='7. Persistence Report'!AX$106 -> 585562 | H41: ='7. Persistence Report'!AY$106 -> 585562 | I41: ='7. Persistence Report'!AZ$106 -> 585562 | J41: ='7. Persistence Report'!BA$106 -> 585562 | K41: ='7. Persistence Report'!BB$106 -> 585255 | L41: ='7. Persistence Report'!BC$106 -> 585255 | M41: ='7. Persistence Report'!BD$106 -> 585255 | O41: ='7. Persistence Report'!P$106 -> 40 | P41: ='7. Persistence Report'!Q$106 -> 40 | Q41: ='7. Persistence Report'!R$106 -> 40 | R41: ='7. Persistence Report'!S$106 -> 40 | S41: ='7. Persistence Report'!T$106 -> 40 | T41: ='7. Persistence Report'!U$106 -> 40 | U41: ='7. Persistence Report'!V$106 -> 40 | V41: ='7. Persistence Report'!W$106 -> 40 | W41: ='7. Persistence Report'!X$106 -> 40 | X41: ='7. Persistence Report'!Y$106 -> 40 | Y41: 1 | AM41: =SUM(Y41:AL41) -> 1
B42: Adjustment to 2015 savings | C42: True-up | D42: ='7. Persistence Report'!AU$114 -> 6166 | E42: ='7. Persistence Report'!AV$114 -> 6094 | F42: ='7. Persistence Report'!AW$114 -> 6094 | G42: ='7. Persistence Report'!AX$114 -> 6094 | H42: ='7. Persistence Report'!AY$114 -> 6094 | I42: ='7. Persistence Report'!AZ$114 -> 6094 | J42: ='7. Persistence Report'!BA$114 -> 6094 | K42: ='7. Persistence Report'!BB$114 -> 6079 | L42: ='7. Persistence Report'!BC$114 -> 6079 | M42: ='7. Persistence Report'!BD$114 -> 6079 | O42: ='7. Persistence Report'!P$114 -> 0 | P42: ='7. Persistence Report'!Q$114 -> 0 | Q42: ='7. Persistence Report'!R$114 -> 0 | R42: ='7. Persistence Report'!S$114 -> 0 | S42: ='7. Persistence Report'!T$114 -> 0 | T42: ='7. Persistence Report'!U$114 -> 0 | U42: ='7. Persistence Report'!V$114 -> 0 | V42: ='7. Persistence Report'!W$114 -> 0 | W42: ='7. Persistence Report'!X$114 -> 0 | X42: ='7. Persistence Report'!Y$114 -> 0 | Y42: =Y41 -> 1 | Z42: 0 | AA42: 0 | AB42: 0 | AC42: 0 | AD42: 0 | AE42: 0 | AF42: 0 | AG42: 0 | AH42: 0 | AI42: 0 | AJ42: 0 | AK42: 0 | AL42: 0
A44: 3 | B44: Appliance Retirement Initiative | C44: Verified | D44: ='7. Persistence Report'!AU$104 -> 62028 | E44: ='7. Persistence Report'!AV$104 -> 62028 | F44: ='7. Persistence Report'!AW$104 -> 62028 | G44: ='7. Persistence Report'!AX$104 -> 61193 | H44: ='7. Persistence Report'!AY$104 -> 30523 | I44: ='7. Persistence Report'!AZ$104 -> 0 | J44: ='7. Persistence Report'!BA$104 -> 0 | K44: ='7. Persistence Report'!BB$104 -> 0 | L44: ='7. Persistence Report'!BC$104 -> 0 | M44: ='7. Persistence Report'!BD$104 -> 0 | O44: ='7. Persistence Report'!P$104 -> 10 | P44: ='7. Persistence Report'!Q$104 -> 10 | Q44: ='7. Persistence Report'!R$104 -> 10 | R44: ='7. Persistence Report'!S$104 -> 9 | S44: ='7. Persistence Report'!T$104 -> 4 | T44: ='7. Persistence Report'!U$104 -> 0 | U44: ='7. Persistence Report'!V$104 -> 0 | V44: ='7. Persistence Report'!W$104 -> 0 | W44: ='7. Persistence Report'!X$104 -> 0 | X44: ='7. Persistence Report'!Y$104 -> 0 | Y44: 1 | AM44: =SUM(Y44:AL44) -> 1
B45: Adjustment to 2015 savings | C45: True-up | Y45: =Y44 -> 1 | Z45: 0 | AA45: 0 | AB45: 0 | AC45: 0 | AD45: 0 | AE45: 0 | AF45: 0 | AG45: 0 | AH45: 0 | AI45: 0 | AJ45: 0 | AK45: 0 | AL45: 0
A47: 4 | B47: HVAC Incentives Initiative | C47: Verified | D47: ='7. Persistence Report'!AU$107 -> 387380 | E47: ='7. Persistence Report'!AV$107 -> 387380 | F47: ='7. Persistence Report'!AW$107 -> 387380 | G47: ='7. Persistence Report'!AX$107 -> 387380 | H47: ='7. Persistence Report'!AY$107 -> 387380 | I47: ='7. Persistence Report'!AZ$107 -> 387380 | J47: ='7. Persistence Report'!BA$107 -> 387380 | K47: ='7. Persistence Report'!BB$107 -> 387380 | L47: ='7. Persistence Report'!BC$107 -> 387380 | M47: ='7. Persistence Report'!BD$107 -> 387380 | O47: ='7. Persistence Report'!P$107 -> 204 | P47: ='7. Persistence Report'!Q$107 -> 204 | Q47: ='7. Persistence Report'!R$107 -> 204 | R47: ='7. Persistence Report'!S$107 -> 204 | S47: ='7. Persistence Report'!T$107 -> 204 | T47: ='7. Persistence Report'!U$107 -> 204 | U47: ='7. Persistence Report'!V$107 -> 204 | V47: ='7. Persistence Report'!W$107 -> 204 | W47: ='7. Persistence Report'!X$107 -> 204 | X47: ='7. Persistence Report'!Y$107 -> 204 | Y47: 1 | AM47: =SUM(Y47:AL47) -> 1
B48: Adjustment to 2015 savings | C48: True-up | D48: ='7. Persistence Report'!AU$115 -> 3351 | E48: ='7. Persistence Report'!AV$115 -> 3351 | F48: ='7. Persistence Report'!AW$115 -> 3351 | G48: ='7. Persistence Report'!AX$115 -> 3351 | H48: ='7. Persistence Report'!AY$115 -> 3351 | I48: ='7. Persistence Report'!AZ$115 -> 3351 | J48: ='7. Persistence Report'!BA$115 -> 3351 | K48: ='7. Persistence Report'!BB$115 -> 3351 | L48: ='7. Persistence Report'!BC$115 -> 3351 | M48: ='7. Persistence Report'!BD$115 -> 3351 | O48: ='7. Persistence Report'!P$115 -> 2 | P48: ='7. Persistence Report'!Q$115 -> 2 | Q48: ='7. Persistence Report'!R$115 -> 2 | R48: ='7. Persistence Report'!S$115 -> 2 | S48: ='7. Persistence Report'!T$115 -> 2 | T48: ='7. Persistence Report'!U$115 -> 2 | U48: ='7. Persistence Report'!V$115 -> 2 | V48: ='7. Persistence Report'!W$115 -> 2 | W48: ='7. Persistence Report'!X$115 -> 2 | X48: ='7. Persistence Report'!Y$115 -> 2 | Y48: =Y47 -> 1 | Z48: 0 | AA48: 0 | AB48: 0 | AC48: 0 | AD48: 0 | AE48: 0 | AF48: 0 | AG48: 0 | AH48: 0 | AI48: 0 | AJ48: 0 | AK48: 0 | AL48: 0
A50: 5 | B50: Residential New Construction and Major Renovation Initiative | C50: Verified | AM50: =SUM(Y50:AL50) -> 0
B51: Adjustment to 2015 savings | C51: True-up | Y51: =Y50 -> 0 | Z51: 0 | AA51: 0 | AB51: 0 | AC51: 0 | AD51: 0 | AE51: 0 | AF51: 0 | AG51: 0 | AH51: 0 | AI51: 0 | AJ51: 0 | AK51: 0 | AL51: 0
B53: Commercial & Institutional Program
A54: 6 | B54: Energy Audit Initiative | C54: Verified | N54: 12 | AM54: =SUM(Y54:AL54) -> 0
B55: Adjustment to 2015 savings | C55: True-up | N55: =N54 -> 12 | Y55: =Y54 -> 0 | Z55: 0 | AA55: 0 | AB55: 0 | AC55: 0 | AD55: 0 | AE55: 0 | AF55: 0 | AG55: 0 | AH55: 0 | AI55: 0 | AJ55: 0 | AK55: 0 | AL55: 0
A57: 7 | B57: Efficiency: Equipment Replacement Incentive Initiative | C57: Verified | D57: ='7. Persistence Report'!AU$108 -> 5333302 | E57: ='7. Persistence Report'!AV$108 -> 5333302 | F57: ='7. Persistence Report'!AW$108 -> 5298190 | G57: ='7. Persistence Report'!AX$108 -> 5298190 | H57: ='7. Persistence Report'!AY$108 -> 5298190 | I57: ='7. Persistence Report'!AZ$108 -> 5298190 | J57: ='7. Persistence Report'!BA$108 -> 5252067 | K57: ='7. Persistence Report'!BB$108 -> 5252067 | L57: ='7. Persistence Report'!BC$108 -> 5087206 | M57: ='7. Persistence Report'!BD$108 -> 4874162 | N57: 12 | O57: ='7. Persistence Report'!P$108 -> 308 | P57: ='7. Persistence Report'!Q$108 -> 308 | Q57: ='7. Persistence Report'!R$108 -> 297 | R57: ='7. Persistence Report'!S$108 -> 297 | S57: ='7. Persistence Report'!T$108 -> 297 | T57: ='7. Persistence Report'!U$108 -> 297 | U57: ='7. Persistence Report'!V$108 -> 290 | V57: ='7. Persistence Report'!W$108 -> 290 | W57: ='7. Persistence Report'!X$108 -> 289 | X57: ='7. Persistence Report'!Y$108 -> 265 | Z57: 0.13 | AA57: 0.83 | AB57: 0.04 | AM57: =SUM(Y57:AL57) -> 1
B58: Adjustment to 2015 savings | C58: True-up | D58: ='7. Persistence Report'!AU$116+'[2]7. Persistence Report'!AU$125 -> 213861 | E58: ='7. Persistence Report'!AV$116+'[2]7. Persistence Report'!AV$125 -> 213861 | F58: ='7. Persistence Report'!AW$116+'[2]7. Persistence Report'!AW$125 -> 248974 | G58: ='7. Persistence Report'!AX$116+'[2]7. Persistence Report'!AX$125 -> 249689 | H58: ='7. Persistence Report'!AY$116+'[2]7. Persistence Report'!AY$125 -> 249689 | I58: ='7. Persistence Report'!AZ$116+'[2]7. Persistence Report'!AZ$125 -> 249689 | J58: ='7. Persistence Report'!BA$116+'[2]7. Persistence Report'!BA$125 -> 295812 | K58: ='7. Persistence Report'!BB$116+'[2]7. Persistence Report'!BB$125 -> 295812 | L58: ='7. Persistence Report'!BC$116+'[2]7. Persistence Report'!BC$125 -> 460472 | M58: ='7. Persistence Report'!BD$116+'[2]7. Persistence Report'!BD$125 -> 499374 | N58: =N57 -> 12 | O58: ='7. Persistence Report'!P$116+'[2]7. Persistence Report'!P$125 -> 24 | P58: ='7. Persistence Report'!Q$116+'[2]7. Persistence Report'!Q$125 -> 24 | Q58: ='7. Persistence Report'!R$116+'[2]7. Persistence Report'!R$125 -> 35 | R58: ='7. Persistence Report'!S$116+'[2]7. Persistence Report'!S$125 -> 35 | S58: ='7. Persistence Report'!T$116+'[2]7. Persistence Report'!T$125 -> 35 | T58: ='7. Persistence Report'!U$116+'[2]7. Persistence Report'!U$125 -> 35 | U58: ='7. Persistence Report'!V$116+'[2]7. Persistence Report'!V$125 -> 43 | V58: ='7. Persistence Report'!W$116+'[2]7. Persistence Report'!W$125 -> 43 | W58: ='7. Persistence Report'!X$116+'[2]7. Persistence Report'!X$125 -> 43 | X58: ='7. Persistence Report'!Y$116+'[2]7. Persistence Report'!Y$125 -> 40 | Y58: =Y57 -> 0 | Z58: 0.13 | AA58: 0.83 | AB58: 0.04 | AC58: 0 | AD58: 0 | AE58: 0 | AF58: 0 | AG58: 0 | AH58: 0 | AI58: 0 | AJ58: 0 | AK58: 0 | AL58: 0
A60: 8 | B60: Direct Install Lighting and Water Heating Initiative | C60: Verified | D60: ='7. Persistence Report'!AU$109 -> 278584 | E60: ='7. Persistence Report'!AV$109 -> 239362 | F60: ='7. Persistence Report'!AW$109 -> 167643 | G60: ='7. Persistence Report'!AX$109 -> 167643 | H60: ='7. Persistence Report'!AY$109 -> 167643 | I60: ='7. Persistence Report'!AZ$109 -> 167643 | J60: ='7. Persistence Report'!BA$109 -> 167643 | K60: ='7. Persistence Report'!BB$109 -> 167643 | L60: ='7. Persistence Report'!BC$109 -> 167643 | M60: ='7. Persistence Report'!BD$109 -> 167643 | N60: 12 | O60: ='7. Persistence Report'!P$109 -> 66 | P60: ='7. Persistence Report'!Q$109 -> 57 | Q60: ='7. Persistence Report'!R$109 -> 38 | R60: ='7. Persistence Report'!S$109 -> 38 | S60: ='7. Persistence Report'!T$109 -> 38 | T60: ='7. Persistence Report'!U$109 -> 38 | U60: ='7. Persistence Report'!V$109 -> 38 | V60: ='7. Persistence Report'!W$109 -> 38 | W60: ='7. Persistence Report'!X$109 -> 38 | X60: ='7. Persistence Report'!Y$109 -> 38 | Z60: 1 | AM60: =SUM(Y60:AL60) -> 1
B61: Adjustment to 2015 savings | C61: True-up | D61: ='7. Persistence Report'!AU$126 -> -122373 | E61: ='7. Persistence Report'!AV$126 -> -83151 | F61: ='7. Persistence Report'!AW$126 -> -11432 | G61: ='7. Persistence Report'!AX$126 -> 154 | H61: ='7. Persistence Report'!AY$126 -> 154 | I61: ='7. Persistence Report'!AZ$126 -> 154 | J61: ='7. Persistence Report'!BA$126 -> 154 | K61: ='7. Persistence Report'!BB$126 -> 154 | L61: ='7. Persistence Report'!BC$126 -> 154 | M61: ='7. Persistence Report'!BD$126 -> 154 | N61: =N60 -> 12 | O61: ='7. Persistence Report'!P$126 -> -30 | P61: ='7. Persistence Report'!Q$126 -> -22 | Q61: ='7. Persistence Report'!R$126 -> -2 | R61: ='7. Persistence Report'!S$126 -> 0 | S61: ='7. Persistence Report'!T$126 -> 0 | T61: ='7. Persistence Report'!U$126 -> 0 | U61: ='7. Persistence Report'!V$126 -> 0 | V61: ='7. Persistence Report'!W$126 -> 0 | W61: ='7. Persistence Report'!X$126 -> 0 | X61: ='7. Persistence Report'!Y$126 -> 0 | Y61: =Y60 -> 0 | Z61: 1 | AA61: 0 | AB61: 0 | AC61: 0 | AD61: 0 | AE61: 0 | AF61: 0 | AG61: 0 | AH61: 0 | AI61: 0 | AJ61: 0 | AK61: 0 | AL61: 0
A63: 9 | B63: New Construction and Major Renovation Initiative | C63: Verified | N63: 12 | AM63: =SUM(Y63:AL63) -> 0
B64: Adjustment to 2015 savings | C64: True-up | N64: =N63 -> 12 | Y64: =Y63 -> 0 | Z64: 0 | AA64: 0 | AB64: 0 | AC64: 0 | AD64: 0 | AE64: 0 | AF64: 0 | AG64: 0 | AH64: 0 | AI64: 0 | AJ64: 0 | AK64: 0 | AL64: 0
A66: 10 | B66: Existing Building Commissioning Incentive Initiative | C66: Verified | N66: 3 | AA66: 1 | AM66: =SUM(Y66:AL66) -> 1
B67: Adjustment to 2015 savings | C67: True-up | D67: ='7. Persistence Report'!AU$117 -> 60323 | E67: ='7. Persistence Report'!AV$117 -> 60323 | F67: ='7. Persistence Report'!AW$117 -> 60323 | G67: ='7. Persistence Report'!AX$117 -> 60323 | H67: ='7. Persistence Report'!AY$117 -> 60323 | I67: ='7. Persistence Report'!AZ$117 -> 60323 | J67: ='7. Persistence Report'!BA$117 -> 60323 | K67: ='7. Persistence Report'!BB$117 -> 60323 | L67: ='7. Persistence Report'!BC$117 -> 60323 | M67: ='7. Persistence Report'!BD$117 -> 60323 | N67: =N66 -> 3 | O67: ='7. Persistence Report'!P$117 -> 16 | P67: ='7. Persistence Report'!Q$117 -> 16 | Q67: ='7. Persistence Report'!R$117 -> 16 | R67: ='7. Persistence Report'!S$117 -> 16 | S67: ='7. Persistence Report'!T$117 -> 16 | T67: ='7. Persistence Report'!U$117 -> 16 | U67: ='7. Persistence Report'!V$117 -> 16 | V67: ='7. Persistence Report'!W$117 -> 16 | W67: ='7. Persistence Report'!X$117 -> 16 | X67: ='7. Persistence Report'!Y$117 -> 16 | Y67: =Y66 -> 0 | Z67: 0 | AA67: 1 | AB67: 0 | AC67: 0 | AD67: 0 | AE67: 0 | AF67: 0 | AG67: 0 | AH67: 0 | AI67: 0 | AJ67: 0 | AK67: 0 | AL67: 0
B69: Industrial Program
A70: 11 | B70: Process and Systems Upgrades Initiatives - Project Incentive Initiative | C70: Verified | D70: ='7. Persistence Report'!AU$110 -> 164500 | E70: ='7. Persistence Report'!AV$110 -> 164500 | F70: ='7. Persistence Report'!AW$110 -> 164500 | G70: ='7. Persistence Report'!AX$110 -> 164500 | H70: ='7. Persistence Report'!AY$110 -> 164500 | I70: ='7. Persistence Report'!AZ$110 -> 164500 | J70: ='7. Persistence Report'!BA$110 -> 164500 | K70: ='7. Persistence Report'!BB$110 -> 164500 | L70: ='7. Persistence Report'!BC$110 -> 164500 | M70: ='7. Persistence Report'!BD$110 -> 164500 | N70: 12 | O70: ='7. Persistence Report'!P$110 -> 19 | P70: ='7. Persistence Report'!Q$110 -> 19 | Q70: ='7. Persistence Report'!R$110 -> 19 | R70: ='7. Persistence Report'!S$110 -> 19 | S70: ='7. Persistence Report'!T$110 -> 19 | T70: ='7. Persistence Report'!U$110 -> 19 | U70: ='7. Persistence Report'!V$110 -> 19 | V70: ='7. Persistence Report'!W$110 -> 19 | W70: ='7. Persistence Report'!X$110 -> 19 | X70: ='7. Persistence Report'!Y$110 -> 19 | AB70: 1 | AM70: =SUM(Y70:AL70) -> 1
B71: Adjustment to 2015 savings | C71: True-up | N71: =N70 -> 12 | Y71: =Y70 -> 0 | Z71: 0 | AA71: 0 | AB71: 1 | AC71: 0 | AD71: 0 | AE71: 0 | AF71: 0 | AG71: 0 | AH71: 0 | AI71: 0 | AJ71: 0 | AK71: 0 | AL71: 0
A73: 12 | B73: Process and Systems Upgrades Initiatives - Monitoring and Targeting Initiative | C73: Verified | N73: 12 | AM73: =SUM(Y73:AL73) -> 0
B74: Adjustment to 2015 savings | C74: True-up | N74: =N73 -> 12 | Y74: =Y73 -> 0 | Z74: 0 | AA74: 0 | AB74: 0 | AC74: 0 | AD74: 0 | AE74: 0 | AF74: 0 | AG74: 0 | AH74: 0 | AI74: 0 | AJ74: 0 | AK74: 0 | AL74: 0
A76: 13 | B76: Process and Systems Upgrades Initiatives - Energy Manager Initiative | C76: Verified | D76: ='7. Persistence Report'!AU$111 -> 22293 | E76: ='7. Persistence Report'!AV$111 -> 22293 | F76: ='7. Persistence Report'!AW$111 -> 22293 | G76: ='7. Persistence Report'!AX$111 -> 22293 | H76: ='7. Persistence Report'!AY$111 -> 22293 | I76: ='7. Persistence Report'!AZ$111 -> 22293 | J76: ='7. Persistence Report'!BA$111 -> 22293 | K76: ='7. Persistence Report'!BB$111 -> 22293 | L76: ='7. Persistence Report'!BC$111 -> 20201 | M76: ='7. Persistence Report'!BD$111 -> 20201 | N76: 12 | O76: ='7. Persistence Report'!P$111 -> 8 | P76: ='7. Persistence Report'!Q$111 -> 8 | Q76: ='7. Persistence Report'!R$111 -> 8 | R76: ='7. Persistence Report'!S$111 -> 8 | S76: ='7. Persistence Report'!T$111 -> 8 | T76: ='7. Persistence Report'!U$111 -> 8 | U76: ='7. Persistence Report'!V$111 -> 8 | V76: ='7. Persistence Report'!W$111 -> 8 | W76: ='7. Persistence Report'!X$111 -> 6 | X76: ='7. Persistence Report'!Y$111 -> 6 | AB76: 1 | AM76: =SUM(Y76:AL76) -> 1
B77: Adjustment to 2015 savings | C77: True-up | N77: =N76 -> 12 | Y77: =Y76 -> 0 | Z77: =Z76 -> 0 | AA77: 0 | AB77: 1 | AC77: 0 | AD77: 0 | AE77: 0 | AF77: 0 | AG77: 0 | AH77: 0 | AI77: 0 | AJ77: 0 | AK77: 0 | AL77: 0
B79: Low Income Program
A80: 14 | B80: Low Income Initiative | C80: Verified | D80: ='7. Persistence Report'!AU$112 -> 45402 | E80: ='7. Persistence Report'!AV$112 -> 41348 | F80: ='7. Persistence Report'!AW$112 -> 40659 | G80: ='7. Persistence Report'!AX$112 -> 39969 | H80: ='7. Persistence Report'!AY$112 -> 39900 | I80: ='7. Persistence Report'!AZ$112 -> 39900 | J80: ='7. Persistence Report'!BA$112 -> 39900 | K80: ='7. Persistence Report'!BB$112 -> 39300 | L80: ='7. Persistence Report'!BC$112 -> 32870 | M80: ='7. Persistence Report'!BD$112 -> 32484 | N80: 12 | O80: ='7. Persistence Report'!P$112 -> 6 | P80: ='7. Persistence Report'!Q$112 -> 6 | Q80: ='7. Persistence Report'!R$112 -> 6 | R80: ='7. Persistence Report'!S$112 -> 6 | S80: ='7. Persistence Report'!T$112 -> 6 | T80: ='7. Persistence Report'!U$112 -> 6 | U80: ='7. Persistence Report'!V$112 -> 6 | V80: ='7. Persistence Report'!W$112 -> 6 | W80: ='7. Persistence Report'!X$112 -> 5 | X80: ='7. Persistence Report'!Y$112 -> 5 | Y80: 1 | AM80: =SUM(Y80:AL80) -> 1
B81: Adjustment to 2015 savings | C81: True-up | N81: =N80 -> 12 | Y81: =Y80 -> 1 | Z81: 0 | AA81: 0 | AB81: 0 | AC81: 0 | AD81: 0 | AE81: 0 | AF81: 0 | AG81: 0 | AH81: 0 | AI81: 0 | AJ81: 0 | AK81: 0 | AL81: 0
B83: Other
A84: 15 | B84: Aboriginal Conservation Program | C84: Verified | N84: 0 | AM84: =SUM(Y84:AL84) -> 0
B85: Adjustment to 2015 savings | C85: True-up | N85: =N84 -> 0 | Y85: =Y84 -> 0 | Z85: 0 | AA85: 0 | AB85: 0 | AC85: 0 | AD85: 0 | AE85: 0 | AF85: 0 | AG85: 0 | AH85: 0 | AI85: 0 | AJ85: 0 | AK85: 0 | AL85: 0
A87: 16 | B87: Program Enabled Savings | C87: Verified | N87: 0 | AM87: =SUM(Y87:AL87) -> 0
B88: Adjustment to 2015 savings | C88: True-up | N88: =N87 -> 0 | Y88: =Y87 -> 0 | Z88: 0 | AA88: 0 | AB88: 0 | AC88: 0 | AD88: 0 | AE88: 0 | AF88: 0 | AG88: 0 | AH88: 0 | AI88: 0 | AJ88: 0 | AK88: 0 | AL88: 0
B90: Conservation Fund Pilots
A91: 17 | B91: Conservation Fund Pilot - EnerNOC | C91: Verified | N91: 0 | AM91: =SUM(Y91:AL91) -> 0
B92: Adjustment to 2015 savings | C92: True-up | N92: =N91 -> 0 | Y92: =Y91 -> 0 | Z92: =Z91 -> 0 | AA92: 0 | AB92: 0 | AC92: 0 | AD92: 0 | AE92: 0 | AF92: 0 | AG92: 0 | AH92: 0 | AI92: 0 | AJ92: 0 | AK92: 0 | AL92: 0
A94: 18 | B94: Loblaws Pilot | C94: Verified | D94: ='7. Persistence Report'!AU$103 -> 770101 | E94: ='7. Persistence Report'!AV$103 -> 770101 | F94: ='7. Persistence Report'!AW$103 -> 770101 | G94: ='7. Persistence Report'!AX$103 -> 770101 | H94: ='7. Persistence Report'!AY$103 -> 770101 | I94: ='7. Persistence Report'!AZ$103 -> 770101 | J94: ='7. Persistence Report'!BA$103 -> 770101 | K94: ='7. Persistence Report'!BB$103 -> 770101 | L94: ='7. Persistence Report'!BC$103 -> 770101 | M94: ='7. Persistence Report'!BD$103 -> 770101 | N94: 12 | O94: ='7. Persistence Report'!P$103 -> 50 | P94: ='7. Persistence Report'!Q$103 -> 50 | Q94: ='7. Persistence Report'!R$103 -> 50 | R94: ='7. Persistence Report'!S$103 -> 50 | S94: ='7. Persistence Report'!T$103 -> 50 | T94: ='7. Persistence Report'!U$103 -> 50 | U94: ='7. Persistence Report'!V$103 -> 50 | V94: ='7. Persistence Report'!W$103 -> 50 | W94: ='7. Persistence Report'!X$103 -> 50 | X94: ='7. Persistence Report'!Y$103 -> 50 | AA94: 1 | AM94: =SUM(Y94:AL94) -> 1
B95: Adjustment to 2015 savings | C95: True-up | N95: =N94 -> 12 | Y95: =Y94 -> 0 | Z95: 0 | AA95: 1 | AB95: 0 | AC95: 0 | AD95: 0 | AE95: 0 | AF95: 0 | AG95: 0 | AH95: 0 | AI95: 0 | AJ95: 0 | AK95: 0 | AL95: 0
A97: 19 | B97: Conservation Fund Pilot - SEG | C97: Verified | N97: 0 | AM97: =SUM(Y97:AL97) -> 0
B98: Adjustment to 2015 savings | C98: True-up | N98: =N97 -> 0 | Y98: =Y97 -> 0 | Z98: =Z97 -> 0 | AA98: 0 | AB98: 0 | AC98: 0 | AD98: 0 | AE98: 0 | AF98: 0 | AG98: 0 | AH98: 0 | AI98: 0 | AJ98: 0 | AK98: 0 | AL98: 0
A100: 20 | B100: Social Benchmarking Pliot | C100: Verified | N100: 0 | AM100: =SUM(Y100:AL100) -> 0
B101: Adjustment to 2015 savings | C101: True-up | N101: =N100 -> 0 | Y101: =Y100 -> 0 | Z101: 0 | AA101: 0 | AB101: 0 | AC101: 0 | AD101: 0 | AE101: 0 | AF101: 0 | AG101: 0 | AH101: 0 | AI101: 0 | AJ101: 0 | AK101: 0 | AL101: 0
B103: Conservation First Framework
B104: Residential Province-Wide Programs
A105: 21 | B105: Save on Energy Coupon Program | C105: Verified | AM105: =SUM(Y105:AL105) -> 0
B106: Adjustment to 2015 savings | C106: True-up | Y106: =Y105 -> 0 | Z106: 0 | AA106: 0 | AB106: 0 | AC106: 0 | AD106: 0 | AE106: 0 | AF106: 0 | AG106: 0 | AH106: 0 | AI106: 0 | AJ106: 0 | AK106: 0 | AL106: 0
A108: 22 | B108: Save on Energy Heating and Cooling Program | C108: Verified | AM108: =SUM(Y108:AL108) -> 0
B109: Adjustment to 2015 savings | C109: True-up | Y109: =Y108 -> 0 | Z109: 0 | AA109: 0 | AB109: 0 | AC109: 0 | AD109: 0 | AE109: 0 | AF109: 0 | AG109: 0 | AH109: 0 | AI109: 0 | AJ109: 0 | AK109: 0 | AL109: 0
A111: 23 | B111: Save on Energy New Construction Program | C111: Verified | AM111: =SUM(Y111:AL111) -> 0
B112: Adjustment to 2015 savings | C112: True-up | Y112: =Y111 -> 0 | Z112: 0 | AA112: 0 | AB112: 0 | AC112: 0 | AD112: 0 | AE112: 0 | AF112: 0 | AG112: 0 | AH112: 0 | AI112: 0 | AJ112: 0 | AK112: 0 | AL112: 0
A114: 24 | B114: Save on Energy Home Assistance Program | C114: Verified | AM114: =SUM(Y114:AL114) -> 0
B115: Adjustment to 2015 savings | C115: True-up | Y115: =Y114 -> 0 | Z115: 0 | AA115: 0 | AB115: 0 | AC115: 0 | AD115: 0 | AE115: 0 | AF115: 0 | AG115: 0 | AH115: 0 | AI115: 0 | AJ115: 0 | AK115: 0 | AL115: 0
B117: Non-Residential Province-Wide Programs
A118: 25 | B118: Save on Energy Audit Funding Program | C118: Verified | N118: 12 | AM118: =SUM(Y118:AL118) -> 0
B119: Adjustment to 2015 savings | C119: True-up | N119: =N118 -> 12 | Y119: =Y118 -> 0 | Z119: 0 | AA119: 0 | AB119: 0 | AC119: 0 | AD119: 0 | AE119: 0 | AF119: 0 | AG119: 0 | AH119: 0 | AI119: 0 | AJ119: 0 | AK119: 0 | AL119: 0
A121: 26 | B121: Save on Energy Retrofit Program | C121: Verified | N121: 12 | AM121: =SUM(Y121:AL121) -> 0
B122: Adjustment to 2015 savings | C122: True-up | N122: =N121 -> 12 | Y122: =Y121 -> 0 | Z122: 0 | AA122: 0 | AB122: 0 | AC122: 0 | AD122: 0 | AE122: 0 | AF122: 0 | AG122: 0 | AH122: 0 | AI122: 0 | AJ122: 0 | AK122: 0 | AL122: 0
A124: 27 | B124: Save on Energy Small Business Lighting Program | C124: Verified | N124: 12 | AM124: =SUM(Y124:AL124) -> 0
B125: Adjustment to 2015 savings | C125: True-up | N125: =N124 -> 12 | Y125: =Y124 -> 0 | Z125: 0 | AA125: 0 | AB125: 0 | AC125: 0 | AD125: 0 | AE125: 0 | AF125: 0 | AG125: 0 | AH125: 0 | AI125: 0 | AJ125: 0 | AK125: 0 | AL125: 0
A127: 28 | B127: Save on Energy High Performance New Construction Program | C127: Verified | N127: 12 | AM127: =SUM(Y127:AL127) -> 0
B128: Adjustment to 2015 savings | C128: True-up | N128: =N127 -> 12 | Y128: =Y127 -> 0 | Z128: 0 | AA128: 0 | AB128: 0 | AC128: 0 | AD128: 0 | AE128: 0 | AF128: 0 | AG128: 0 | AH128: 0 | AI128: 0 | AJ128: 0 | AK128: 0 | AL128: 0
A130: 29 | B130: Save on Energy Existing Building Commissioning Program | C130: Verified | N130: 3 | AM130: =SUM(Y130:AL130) -> 0
B131: Adjustment to 2015 savings | C131: True-up | N131: =N130 -> 3 | Y131: =Y130 -> 0 | Z131: 0 | AA131: 0 | AB131: 0 | AC131: 0 | AD131: 0 | AE131: 0 | AF131: 0 | AG131: 0 | AH131: 0 | AI131: 0 | AJ131: 0 | AK131: 0 | AL131: 0
A133: 30 | B133: Save on Energy Process & Systems Upgrades Program | C133: Verified | N133: 12 | AM133: =SUM(Y133:AL133) -> 0
B134: Adjustment to 2015 savings | C134: True-up | N134: =N133 -> 12 | Y134: =Y133 -> 0 | Z134: 0 | AA134: 0 | AB134: 0 | AC134: 0 | AD134: 0 | AE134: 0 | AF134: 0 | AG134: 0 | AH134: 0 | AI134: 0 | AJ134: 0 | AK134: 0 | AL134: 0
A136: 31 | B136: Save on Energy Monitoring & Targeting Program | C136: Verified | N136: 12 | AM136: =SUM(Y136:AL136) -> 0
B137: Adjustment to 2015 savings | C137: True-up | N137: =N136 -> 12 | Y137: =Y136 -> 0 | Z137: 0 | AA137: 0 | AB137: 0 | AC137: 0 | AD137: 0 | AE137: 0 | AF137: 0 | AG137: 0 | AH137: 0 | AI137: 0 | AJ137: 0 | AK137: 0 | AL137: 0
A139: 32 | B139: Save on Energy Energy Manager Program | C139: Verified | N139: 12 | AM139: =SUM(Y139:AL139) -> 0
B140: Adjustment to 2015 savings | C140: True-up | N140: =N139 -> 12 | Y140: =Y139 -> 0 | Z140: 0 | AA140: 0 | AB140: 0 | AC140: 0 | AD140: 0 | AE140: 0 | AF140: 0 | AG140: 0 | AH140: 0 | AI140: 0 | AJ140: 0 | AK140: 0 | AL140: 0
B142: Local & Regional Programs
A143: 33 | B143: Business Refrigeration Local Program | C143: Verified | N143: 0 | AM143: =SUM(Y143:AL143) -> 0
B144: Adjustment to 2015 savings | C144: True-up | N144: =N143 -> 0 | Y144: =Y143 -> 0 | Z144: 0 | AA144: 0 | AB144: 0 | AC144: 0 | AD144: 0 | AE144: 0 | AF144: 0 | AG144: 0 | AH144: 0 | AI144: 0 | AJ144: 0 | AK144: 0 | AL144: 0
A146: 34 | B146: First Nation Conservation Local Program | C146: Verified | N146: 0 | AM146: =SUM(Y146:AL146) -> 0
B147: Adjustment to 2015 savings | C147: True-up | N147: =N146 -> 0 | Y147: =Y146 -> 0 | Z147: 0 | AA147: 0 | AB147: 0 | AC147: 0 | AD147: 0 | AE147: 0 | AF147: 0 | AG147: 0 | AH147: 0 | AI147: 0 | AJ147: 0 | AK147: 0 | AL147: 0
A149: 35 | B149: Social Benchmarking Local Program | C149: Verified | N149: 0 | AM149: =SUM(Y149:AL149) -> 0
B150: Adjustment to 2015 savings | C150: True-up | N150: =N149 -> 0 | Y150: =Y149 -> 0 | Z150: 0 | AA150: 0 | AB150: 0 | AC150: 0 | AD150: 0 | AE150: 0 | AF150: 0 | AG150: 0 | AH150: 0 | AI150: 0 | AJ150: 0 | AK150: 0 | AL150: 0
B152: Pilot Programs
A153: 36 | B153: Enersource Hydro Mississauga Inc. - Performance-Based Conservation Pilot Program - Conservation Fund | C153: Verified | N153: 0 | AM153: =SUM(Y153:AL153) -> 0
B154: Adjustment to 2015 savings | C154: True-up | N154: =N153 -> 0 | Y154: =Y153 -> 0 | Z154: 0 | AA154: 0 | AB154: 0 | AC154: 0 | AD154: 0 | AE154: 0 | AF154: 0 | AG154: 0 | AH154: 0 | AI154: 0 | AJ154: 0 | AK154: 0 | AL154: 0
A156: 37 | B156: EnWin Utilities Ltd. - Building Optimization Pilot | C156: Verified | N156: 0 | AM156: =SUM(Y156:AL156) -> 0
B157: Adjustment to 2015 savings | C157: True-up | N157: =N156 -> 0 | Y157: =Y156 -> 0 | Z157: 0 | AA157: 0 | AB157: 0 | AC157: 0 | AD157: 0 | AE157: 0 | AF157: 0 | AG157: 0 | AH157: 0 | AI157: 0 | AJ157: 0 | AK157: 0 | AL157: 0
A159: 38 | B159: EnWin Utilities Ltd. - Re-Invest Pilot | C159: Verified | N159: 0 | AM159: =SUM(Y159:AL159) -> 0
B160: Adjustment to 2015 savings | C160: True-up | N160: =N159 -> 0 | Y160: =Y159 -> 0 | Z160: 0 | AA160: 0 | AB160: 0 | AC160: 0 | AD160: 0 | AE160: 0 | AF160: 0 | AG160: 0 | AH160: 0 | AI160: 0 | AJ160: 0 | AK160: 0 | AL160: 0
A162: 39 | B162: Horizon Utilities Corporation - ECM Furnace Motor Pilot | C162: Verified | N162: 0 | AM162: =SUM(Y162:AL162) -> 0
B163: Adjustment to 2015 savings | C163: True-up | N163: =N162 -> 0 | Y163: =Y162 -> 0 | Z163: 0 | AA163: 0 | AB163: 0 | AC163: 0 | AD163: 0 | AE163: 0 | AF163: 0 | AG163: 0 | AH163: 0 | AI163: 0 | AJ163: 0 | AK163: 0 | AL163: 0
A165: 40 | B165: Horizon Utilities Corporation - Social Benchmarking Pilot | C165: Verified | N165: 0 | AM165: =SUM(Y165:AL165) -> 0
B166: Adjustment to 2015 savings | C166: True-up | N166: =N165 -> 0 | Y166: =Y165 -> 0 | Z166: 0 | AA166: 0 | AB166: 0 | AC166: 0 | AD166: 0 | AE166: 0 | AF166: 0 | AG166: 0 | AH166: 0 | AI166: 0 | AJ166: 0 | AK166: 0 | AL166: 0
A168: 41 | B168: Hydro Ottawa Limited - Conservation Voltage Regulation (CVR) Leveraging AMI Data Pilot | C168: Verified | N168: 0 | AM168: =SUM(Y168:AL168) -> 0
B169: Adjustment to 2015 savings | C169: True-up | N169: =N168 -> 0 | Y169: =Y168 -> 0 | Z169: 0 | AA169: 0 | AB169: 0 | AC169: 0 | AD169: 0 | AE169: 0 | AF169: 0 | AG169: 0 | AH169: 0 | AI169: 0 | AJ169: 0 | AK169: 0 | AL169: 0
A171: 42 | B171: Hydro Ottawa Limited - Residential Demand Response Wi-Fi Thermostat Pilot | C171: Verified | AM171: =SUM(Y171:AL171) -> 0
B172: Adjustment to 2015 savings | C172: True-up | Y172: =Y171 -> 0 | Z172: 0 | AA172: 0 | AB172: 0 | AC172: 0 | AD172: 0 | AE172: 0 | AF172: 0 | AG172: 0 | AH172: 0 | AI172: 0 | AJ172: 0 | AK172: 0 | AL172: 0
A174: 43 | B174: Kitchener-Wilmot Hydro Inc. - Pilot - DCKV | C174: Verified | N174: 0 | AM174: =SUM(Y174:AL174) -> 0
B175: Adjustment to 2015 savings | C175: True-up | N175: =N174 -> 0 | Y175: =Y174 -> 0 | Z175: 0 | AA175: 0 | AB175: 0 | AC175: 0 | AD175: 0 | AE175: 0 | AF175: 0 | AG175: 0 | AH175: 0 | AI175: 0 | AJ175: 0 | AK175: 0 | AL175: 0
A177: 44 | B177: Niagara-on-the-Lake Hydro Inc. - Direct Install Energy Efficiency Measures for the Agricultural Sector | C177: Verified | N177: 0 | AM177: =SUM(Y177:AL177) -> 0
B178: Adjustment to 2015 savings | C178: True-up | N178: =N177 -> 0 | Y178: =Y177 -> 0 | Z178: 0 | AA178: 0 | AB178: 0 | AC178: 0 | AD178: 0 | AE178: 0 | AF178: 0 | AG178: 0 | AH178: 0 | AI178: 0 | AJ178: 0 | AK178: 0 | AL178: 0
A180: 45 | B180: Oakville Hydro Electricity Distribution Inc. - Direct Install - Hydronic | C180: Verified | N180: 0 | AM180: =SUM(Y180:AL180) -> 0
B181: Adjustment to 2015 savings | C181: True-up | N181: =N180 -> 0 | Y181: =Y180 -> 0 | Z181: 0 | AA181: 0 | AB181: 0 | AC181: 0 | AD181: 0 | AE181: 0 | AF181: 0 | AG181: 0 | AH181: 0 | AI181: 0 | AJ181: 0 | AK181: 0 | AL181: 0
A183: 46 | B183: Oakville Hydro Electricity Distribution Inc. - Direct Install - RTU Controls | C183: Verified | N183: 0 | AM183: =SUM(Y183:AL183) -> 0
B184: Adjustment to 2015 savings | C184: True-up | N184: =N183 -> 0 | Y184: =Y183 -> 0 | Z184: 0 | AA184: 0 | AB184: 0 | AC184: 0 | AD184: 0 | AE184: 0 | AF184: 0 | AG184: 0 | AH184: 0 | AI184: 0 | AJ184: 0 | AK184: 0 | AL184: 0
A186: 47 | B186: Toronto Hydro-Electric System Limited - Direct Install - Hydronic (Pilot Savings) | C186: Verified | N186: 0 | AM186: =SUM(Y186:AL186) -> 0
B187: Adjustment to 2015 savings | C187: True-up | N187: =N186 -> 0 | Y187: =Y186 -> 0 | Z187: 0 | AA187: 0 | AB187: 0 | AC187: 0 | AD187: 0 | AE187: 0 | AF187: 0 | AG187: 0 | AH187: 0 | AI187: 0 | AJ187: 0 | AK187: 0 | AL187: 0
A189: 48 | B189: Toronto Hydro-Electric System Limited - Direct Install - RTU Controls (Pilot Savings) | C189: Verified | N189: 0 | AM189: =SUM(Y189:AL189) -> 0
B190: Adjustment to 2015 savings | C190: True-up | N190: =N189 -> 0 | Y190: =Y189 -> 0 | Z190: 0 | AA190: 0 | AB190: 0 | AC190: 0 | AD190: 0 | AE190: 0 | AF190: 0 | AG190: 0 | AH190: 0 | AI190: 0 | AJ190: 0 | AK190: 0 | AL190: 0
A192: 49 | B192: Toronto Hydro-Electric System Limited - PFP - Large (Pilot Savings) | C192: Verified | N192: 0 | AM192: =SUM(Y192:AL192) -> 0
B193: Adjustment to 2015 savings | C193: True-up | N193: =N192 -> 0 | Y193: =Y192 -> 0 | Z193: 0 | AA193: 0 | AB193: 0 | AC193: 0 | AD193: 0 | AE193: 0 | AF193: 0 | AG193: 0 | AH193: 0 | AI193: 0 | AJ193: 0 | AK193: 0 | AL193: 0
B195: Actual CDM Savings in 2015 | D195: =SUM(D38:D193) -> 8197664 | O195: =SUM(O38:O193) -> 747 | Y195: =IF(Y36="kWh",SUMPRODUCT(D38:D193,Y38:Y193)) -> 1477073 | Z195: =IF(Z36="kWh",SUMPRODUCT(D38:D193,Z38:Z193)) -> 877342.19 | AA195: =IF(AA36="kw",SUMPRODUCT(N38:N193,O38:O193,AA38:AA193),SUMPRODUCT(D38:D193,AA38:AA193)) -> 3954.72 | AB195: =IF(AB36="kw",SUMPRODUCT(N38:N193,O38:O193,AB38:AB193),SUMPRODUCT(D38:D193,AB38:AB193)) -> 483.36 | AC195: =IF(AC36="kw",SUMPRODUCT(N38:N193,O38:O193,AC38:AC193),SUMPRODUCT(D38:D193,AC38:AC193)) -> 0 | AD195: =IF(AD36="kw",SUMPRODUCT(N38:N193,O38:O193,AD38:AD193),SUMPRODUCT(D38:D193,AD38:AD193)) -> 0 | AE195: =IF(AE36="kw",SUMPRODUCT(N38:N193,O38:O193,AE38:AE193),SUMPRODUCT(D38:D193,AE38:AE193)) -> 0 | AF195: =IF(AF36="kw",SUMPRODUCT(N38:N193,O38:O193,AF38:AF193),SUMPRODUCT(D38:D193,AF38:AF193)) -> 0 | AG195: =IF(AG36="kw",SUMPRODUCT(N38:N193,O38:O193,AG38:AG193),SUMPRODUCT(D38:D193,AG38:AG193)) -> 0 | AH195: =IF(AH36="kw",SUMPRODUCT(N38:N193,O38:O193,AH38:AH193),SUMPRODUCT(D38:D193,AH38:AH193)) -> 0 | AI195: =IF(AI36="kw",SUMPRODUCT(N38:N193,O38:O193,AI38:AI193),SUMPRODUCT(D38:D193,AI38:AI193)) -> 0 | AJ195: =IF(AJ36="kw",SUMPRODUCT(N38:N193,O38:O193,AJ38:AJ193),SUMPRODUCT(D38:D193,AJ38:AJ193)) -> 0 | AK195: =IF(AK36="kw",SUMPRODUCT(N38:N193,O38:O193,AK38:AK193),SUMPRODUCT(D38:D193,AK38:AK193)) -> 0 | AL195: =IF(AL36="kw",SUMPRODUCT(N38:N193,O38:O193,AL38:AL193),SUMPRODUCT(D38:D193,AL38:AL193)) -> 0
B196: Forecast CDM Savings in 2015 | Y196: =HLOOKUP(Y35,'2. LRAMVA Threshold'!$B$42:$Q$53,7,FALSE) -> 4162607 | Z196: =HLOOKUP(Z35,'2. LRAMVA Threshold'!$B$42:$Q$53,7,FALSE) -> 1601705 | AA196: =HLOOKUP(AA35,'2. LRAMVA Threshold'!$B$42:$Q$53,7,FALSE) -> 1126 | AB196: =HLOOKUP(AB35,'2. LRAMVA Threshold'!$B$42:$Q$53,7,FALSE) -> 607 | AC196: =HLOOKUP(AC35,'2. LRAMVA Threshold'!$B$42:$Q$53,7,FALSE) -> 3 | AD196: =HLOOKUP(AD35,'2. LRAMVA Threshold'!$B$42:$Q$53,7,FALSE) -> 44 | AE196: =HLOOKUP(AE35,'2. LRAMVA Threshold'!$B$42:$Q$53,7,FALSE) -> 35877 | AF196: =HLOOKUP(AF35,'2. LRAMVA Threshold'!$B$42:$Q$53,7,FALSE) -> 722 | AG196: =HLOOKUP(AG35,'2. LRAMVA Threshold'!$B$42:$Q$53,7,FALSE) -> 0 | AH196: =HLOOKUP(AH35,'2. LRAMVA Threshold'!$B$42:$Q$53,7,FALSE) -> 0 | AI196: =HLOOKUP(AI35,'2. LRAMVA Threshold'!$B$42:$Q$53,7,FALSE) -> 0 | AJ196: =HLOOKUP(AJ35,'2. LRAMVA Threshold'!$B$42:$Q$53,7,FALSE) -> 0 | AK196: =HLOOKUP(AK35,'2. LRAMVA Threshold'!$B$42:$Q$53,7,FALSE) -> 0 | AL196: =HLOOKUP(AL35,'2. LRAMVA Threshold'!$B$42:$Q$53,7,FALSE) -> 0
B198: Distribution Rate in 2015 | Y198: =HLOOKUP(Y$35,'3. Distribution Rates'!$C$122:$P$133,7,FALSE) -> 0.0216 | Z198: =HLOOKUP(Z$35,'3. Distribution Rates'!$C$122:$P$133,7,FALSE) -> 0.019 | AA198: =HLOOKUP(AA$35,'3. Distribution Rates'!$C$122:$P$133,7,FALSE) -> 4.221 | AB198: =HLOOKUP(AB$35,'3. Distribution Rates'!$C$122:$P$133,7,FALSE) -> 1.7219 | AC198: =HLOOKUP(AC$35,'3. Distribution Rates'!$C$122:$P$133,7,FALSE) -> 25.963 | AD198: =HLOOKUP(AD$35,'3. Distribution Rates'!$C$122:$P$133,7,FALSE) -> 18.9889 | AE198: =HLOOKUP(AE$35,'3. Distribution Rates'!$C$122:$P$133,7,FALSE) -> 0.0333 | AF198: =HLOOKUP(AF$35,'3. Distribution Rates'!$C$122:$P$133,7,FALSE) -> 1.8763 | AG198: =HLOOKUP(AG$35,'3. Distribution Rates'!$C$122:$P$133,7,FALSE) -> 0 | AH198: =HLOOKUP(AH$35,'3. Distribution Rates'!$C$122:$P$133,7,FALSE) -> 0 | AI198: =HLOOKUP(AI$35,'3. Distribution Rates'!$C$122:$P$133,7,FALSE) -> 0 | AJ198: =HLOOKUP(AJ$35,'3. Distribution Rates'!$C$122:$P$133,7,FALSE) -> 0 | AK198: =HLOOKUP(AK$35,'3. Distribution Rates'!$C$122:$P$133,7,FALSE) -> 0 | AL198: =HLOOKUP(AL$35,'3. Distribution Rates'!$C$122:$P$133,7,FALSE) -> 0
B199: Lost Revenue in 2015 from 2011 programs | Y199: ='4. 2011-2014 LRAM'!Y138*Y198 -> 25142.13532 | Z199: ='4. 2011-2014 LRAM'!Z138*Z198 -> 5273.811438 | AA199: ='4. 2011-2014 LRAM'!AA138*AA198 -> 26315.77691 | AB199: ='4. 2011-2014 LRAM'!AB138*AB198 -> 0 | AC199: ='4. 2011-2014 LRAM'!AC138*AC198 -> 0 | AD199: ='4. 2011-2014 LRAM'!AD138*AD198 -> 0 | AE199: ='4. 2011-2014 LRAM'!AE138*AE198 -> 0 | AF199: ='4. 2011-2014 LRAM'!AF138*AF198 -> 0 | AG199: ='4. 2011-2014 LRAM'!AG138*AG198 -> 0 | AH199: ='4. 2011-2014 LRAM'!AH138*AH198 -> 0 | AI199: ='4. 2011-2014 LRAM'!AI138*AI198 -> 0 | AJ199: ='4. 2011-2014 LRAM'!AJ138*AJ198 -> 0 | AK199: ='4. 2011-2014 LRAM'!AK138*AK198 -> 0 | AL199: ='4. 2011-2014 LRAM'!AL138*AL198 -> 0 | AM199: =SUM(Y199:AL199) -> 56731.72367
B200: Lost Revenue in 2015 from 2012 programs | Y200: ='4. 2011-2014 LRAM'!Y267*Y198 -> 15790.15884 | Z200: ='4. 2011-2014 LRAM'!Z267*Z198 -> 17095.71229 | AA200: ='4. 2011-2014 LRAM'!AA267*AA198 -> 24130.56786 | AB200: ='4. 2011-2014 LRAM'!AB267*AB198 -> 203.166981 | AC200: ='4. 2011-2014 LRAM'!AC267*AC198 -> 0 | AD200: ='4. 2011-2014 LRAM'!AD267*AD198 -> 0 | AE200: ='4. 2011-2014 LRAM'!AE267*AE198 -> 0 | AF200: ='4. 2011-2014 LRAM'!AF267*AF198 -> 0 | AG200: ='4. 2011-2014 LRAM'!AG267*AG198 -> 0 | AH200: ='4. 2011-2014 LRAM'!AH267*AH198 -> 0 | AI200: ='4. 2011-2014 LRAM'!AI267*AI198 -> 0 | AJ200: ='4. 2011-2014 LRAM'!AJ267*AJ198 -> 0 | AK200: ='4. 2011-2014 LRAM'!AK267*AK198 -> 0 | AL200: ='4. 2011-2014 LRAM'!AL267*AL198 -> 0 | AM200: =SUM(Y200:AL200) -> 57219.60597
B201: Lost Revenue in 2015 from 2013 programs | Y201: ='4. 2011-2014 LRAM'!Y396*Y198 -> 18823.57655 | Z201: ='4. 2011-2014 LRAM'!Z396*Z198 -> 10086.05147 | AA201: ='4. 2011-2014 LRAM'!AA396*AA198 -> 11677.60369 | AB201: ='4. 2011-2014 LRAM'!AB396*AB198 -> 1062.448038 | AC201: ='4. 2011-2014 LRAM'!AC396*AC198 -> 0 | AD201: ='4. 2011-2014 LRAM'!AD396*AD198 -> 0 | AE201: ='4. 2011-2014 LRAM'!AE396*AE198 -> 0 | AF201: ='4. 2011-2014 LRAM'!AF396*AF198 -> 424.0819538 | AG201: ='4. 2011-2014 LRAM'!AG396*AG198 -> 0 | AH201: ='4. 2011-2014 LRAM'!AH396*AH198 -> 0 | AI201: ='4. 2011-2014 LRAM'!AI396*AI198 -> 0 | AJ201: ='4. 2011-2014 LRAM'!AJ396*AJ198 -> 0 | AK201: ='4. 2011-2014 LRAM'!AK396*AK198 -> 0 | AL201: ='4. 2011-2014 LRAM'!AL396*AL198 -> 0 | AM201: =SUM(Y201:AL201) -> 42073.7617
B202: Lost Revenue in 2015 from 2014 programs | Y202: ='4. 2011-2014 LRAM'!Y526*Y198 -> 31020.04494 | Z202: ='4. 2011-2014 LRAM'!Z526*Z198 -> 15412.44573 | AA202: ='4. 2011-2014 LRAM'!AA526*AA198 -> 10166.63601 | AB202: ='4. 2011-2014 LRAM'!AB526*AB198 -> 1402.338918 | AC202: ='4. 2011-2014 LRAM'!AC526*AC198 -> 0 | AD202: ='4. 2011-2014 LRAM'!AD526*AD198 -> 0 | AE202: ='4. 2011-2014 LRAM'!AE526*AE198 -> 0 | AF202: ='4. 2011-2014 LRAM'!AF526*AF198 -> 390.5505221 | AG202: ='4. 2011-2014 LRAM'!AG526*AG198 -> 0 | AH202: ='4. 2011-2014 LRAM'!AH526*AH198 -> 0 | AI202: ='4. 2011-2014 LRAM'!AI526*AI198 -> 0 | AJ202: ='4. 2011-2014 LRAM'!AJ526*AJ198 -> 0 | AK202: ='4. 2011-2014 LRAM'!AK526*AK198 -> 0 | AL202: ='4. 2011-2014 LRAM'!AL526*AL198 -> 0 | AM202: =SUM(Y202:AL202) -> 58392.01612
B203: Lost Revenue in 2015 from 2015 programs | Y203: =Y195*Y198 -> 31904.7768 | Z203: =Z195*Z198 -> 16669.50161 | AA203: =AA195*AA198 -> 16692.87312 | AB203: =AB195*AB198 -> 832.297584 | AC203: 0 | AD203: 0 | AE203: 0 | AF203: 0 | AG203: 0 | AH203: 0 | AI203: 0 | AJ203: 0 | AK203: 0 | AL203: 0 | AM203: =SUM(Y203:AL203) -> 66099.44911
B204: Total Lost Revenues in 2015 | Y204: =SUM(Y199:Y203) -> 122680.6924 | Z204: =SUM(Z199:Z203) -> 64537.52253 | AA204: =SUM(AA199:AA203) -> 88983.45759 | AB204: 3500.251521 | AC204: 0 | AD204: 0 | AE204: 0 | AF204: =SUM(AF199:AF203) -> 814.6324759 | AG204: =SUM(AG199:AG203) -> 0 | AH204: =SUM(AH199:AH203) -> 0 | AI204: 0 | AJ204: 0 | AK204: 0 | AL204: 0 | AM204: =SUM(AM199:AM203) -> 280516.5566
B205: Forecast Lost Revenues in 2015 | Y205: =Y196*Y198 -> 89912.3112 | Z205: =Z196*Z198 -> 30432.395 | AA205: 4752.846 | AB205: 1045.1933 | AC205: 77.889 | AD205: 835.5116 | AE205: 1194.7041 | AF205: =AF196*AF198 -> 1354.6886 | AG205: =AG196*AG198 -> 0 | AH205: 0 | AI205: 0 | AJ205: 0 | AK205: 0 | AL205: 0 | AM205: =SUM(Y205:AL205) -> 129605.5388
B206: LRAMVA in 2015 | AM206: =AM204-AM205 -> 150911.0178
B208: 2015 Savings Persisting in 2016 | Y208: =SUMPRODUCT(E38:E193,Y38:Y193) -> 1458640 | Z208: =SUMPRODUCT(E38:E193,Z38:Z193) -> 877342.19 | AA208: =IF(AA36="kw",SUMPRODUCT(N38:N193,P38:P193,AA38:AA193),SUMPRODUCT(E38:E193,AA38:AA193)) -> 3954.72 | AB208: =IF(AB36="kw",SUMPRODUCT(N38:N193,P38:P193,AB38:AB193),SUMPRODUCT(E38:E193,AB38:AB193)) -> 483.36 | AC208: =IF(AC36="kw",SUMPRODUCT(N38:N193,P38:P193,AC38:AC193),SUMPRODUCT(E38:E193,AC38:AC193)) -> 0 | AD208: =IF(AD36="kw",SUMPRODUCT(N38:N193,P38:P193,AD38:AD193),SUMPRODUCT(E38:E193,AD38:AD193)) -> 0 | AE208: =IF(AE36="kw",SUMPRODUCT(N38:N193,P38:P193,AE38:AE193),SUMPRODUCT(E38:E193,AE38:AE193)) -> 0 | AF208: =IF(AF36="kw",SUMPRODUCT(N38:N193,P38:P193,AF38:AF193),SUMPRODUCT(E38:E193,AF38:AF193)) -> 0 | AG208: =IF(AG36="kw",SUMPRODUCT(N38:N193,P38:P193,AG38:AG193),SUMPRODUCT(E38:E193,AG38:AG193)) -> 0 | AH208: =IF(AH36="kw",SUMPRODUCT(N38:N193,P38:P193,AH38:AH193),SUMPRODUCT(E38:E193,AH38:AH193)) -> 0 | AI208: =IF(AI36="kw",SUMPRODUCT(N38:N193,P38:P193,AI38:AI193),SUMPRODUCT(E38:E193,AI38:AI193)) -> 0 | AJ208: =IF(AJ36="kw",SUMPRODUCT(N38:N193,P38:P193,AJ38:AJ193),SUMPRODUCT(E38:E193,AJ38:AJ193)) -> 0 | AK208: =IF(AK36="kw",SUMPRODUCT(N38:N193,P38:P193,AK38:AK193),SUMPRODUCT(E38:E193,AK38:AK193)) -> 0 | AL208: =IF(AL36="kw",SUMPRODUCT(N38:N193,P38:P193,AL38:AL193),SUMPRODUCT(E38:E193,AL38:AL193)) -> 0
B209: 2015 Savings Persisting in 2017 | Y209: =SUMPRODUCT(F38:F193,Y38:Y193) -> 1457951 | Z209: =SUMPRODUCT(F38:F193,Z38:Z193) -> 877342.32 | AA209: =IF(AA36="kw",SUMPRODUCT(N38:N193,Q38:Q193,AA38:AA193),SUMPRODUCT(F38:F193,AA38:AA193)) -> 3954.72 | AB209: =IF(AB36="kw",SUMPRODUCT(N38:N193,Q38:Q193,AB38:AB193),SUMPRODUCT(F38:F193,AB38:AB193)) -> 483.36 | AC209: =IF(AC36="kw",SUMPRODUCT(N38:N193,Q38:Q193,AC38:AC193),SUMPRODUCT(F38:F193,AC38:AC193)) -> 0 | AD209: =IF(AD36="kw",SUMPRODUCT(N38:N193,Q38:Q193,AD38:AD193),SUMPRODUCT(F38:F193,AD38:AD193)) -> 0 | AE209: =IF(AE36="kw",SUMPRODUCT(N38:N193,Q38:Q193,AE38:AE193),SUMPRODUCT(F38:F193,AE38:AE193)) -> 0 | AF209: =IF(AF36="kw",SUMPRODUCT(N38:N193,Q38:Q193,AF38:AF193),SUMPRODUCT(F38:F193,AF38:AF193)) -> 0 | AG209: =IF(AG36="kw",SUMPRODUCT(N38:N193,Q38:Q193,AG38:AG193),SUMPRODUCT(F38:F193,AG38:AG193)) -> 0 | AH209: =IF(AH36="kw",SUMPRODUCT(N38:N193,Q38:Q193,AH38:AH193),SUMPRODUCT(F38:F193,AH38:AH193)) -> 0 | AI209: =IF(AI36="kw",SUMPRODUCT(N38:N193,Q38:Q193,AI38:AI193),SUMPRODUCT(F38:F193,AI38:AI193)) -> 0 | AJ209: =IF(AJ36="kw",SUMPRODUCT(N38:N193,Q38:Q193,AJ38:AJ193),SUMPRODUCT(F38:F193,AJ38:AJ193)) -> 0 | AK209: =IF(AK36="kw",SUMPRODUCT(N38:N193,Q38:Q193,AK38:AK193),SUMPRODUCT(F38:F193,AK38:AK193)) -> 0 | AL209: =IF(AL36="kw",SUMPRODUCT(N38:N193,Q38:Q193,AL38:AL193),SUMPRODUCT(F38:F193,AL38:AL193)) -> 0
B210: 2015 Savings Persisting in 2018 | Y210: =SUMPRODUCT(G38:G193,Y38:Y193) -> 1456426 | Z210: =SUMPRODUCT(G38:G193,Z38:Z193) -> 889021.27 | AA210: =IF(AA36="kw",SUMPRODUCT(N38:N193,R38:R193,AA38:AA193),SUMPRODUCT(G38:G193,AA38:AA193)) -> 3954.72 | AB210: =IF(AB36="kw",SUMPRODUCT(N38:N193,R38:R193,AB38:AB193),SUMPRODUCT(G38:G193,AB38:AB193)) -> 483.36 | AC210: =IF(AC36="kw",SUMPRODUCT(N38:N193,R38:R193,AC38:AC193),SUMPRODUCT(G38:G193,AC38:AC193)) -> 0 | AD210: =IF(AD36="kw",SUMPRODUCT(N38:N193,R38:R193,AD38:AD193),SUMPRODUCT(G38:G193,AD38:AD193)) -> 0 | AE210: =IF(AE36="kw",SUMPRODUCT(N38:N193,R38:R193,AE38:AE193),SUMPRODUCT(G38:G193,AE38:AE193)) -> 0 | AF210: =IF(AF36="kw",SUMPRODUCT(N38:N193,R38:R193,AF38:AF193),SUMPRODUCT(G38:G193,AF38:AF193)) -> 0 | AG210: =IF(AG36="kw",SUMPRODUCT(N38:N193,R38:R193,AG38:AG193),SUMPRODUCT(G38:G193,AG38:AG193)) -> 0 | AH210: =IF(AH36="kw",SUMPRODUCT(N38:N193,R38:R193,AH38:AH193),SUMPRODUCT(G38:G193,AH38:AH193)) -> 0 | AI210: =IF(AI36="kw",SUMPRODUCT(N38:N193,R38:R193,AI38:AI193),SUMPRODUCT(G38:G193,AI38:AI193)) -> 0 | AJ210: =IF(AJ36="kw",SUMPRODUCT(N38:N193,R38:R193,AJ38:AJ193),SUMPRODUCT(G38:G193,AJ38:AJ193)) -> 0 | AK210: =IF(AK36="kw",SUMPRODUCT(N38:N193,R38:R193,AK38:AK193),SUMPRODUCT(G38:G193,AK38:AK193)) -> 0 | AL210: =IF(AL36="kw",SUMPRODUCT(N38:N193,R38:R193,AL38:AL193),SUMPRODUCT(G38:G193,AL38:AL193)) -> 0
B211: 2015 Savings Persisting in 2019 | Y211: =SUMPRODUCT(H38:H193,Y38:Y193) -> 1425687 | Z211: =SUMPRODUCT(H38:H193,Z38:Z193) -> 889021.27 | AA211: =IF(AA36="kw",SUMPRODUCT(N38:N193,S38:S193,AA38:AA193),SUMPRODUCT(H38:H193,AA38:AA193)) -> 3954.72 | AB211: =IF(AB36="kw",SUMPRODUCT(N38:N193,S38:S193,AB38:AB193),SUMPRODUCT(H38:H193,AB38:AB193)) -> 483.36 | AC211: =IF(AC36="kw",SUMPRODUCT(N38:N193,S38:S193,AC38:AC193),SUMPRODUCT(H38:H193,AC38:AC193)) -> 0 | AD211: =IF(AD36="kw",SUMPRODUCT(N38:N193,S38:S193,AD38:AD193),SUMPRODUCT(H38:H193,AD38:AD193)) -> 0 | AE211: =IF(AE36="kw",SUMPRODUCT(N38:N193,S38:S193,AE38:AE193),SUMPRODUCT(H38:H193,AE38:AE193)) -> 0 | AF211: =IF(AF36="kw",SUMPRODUCT(N38:N193,S38:S193,AF38:AF193),SUMPRODUCT(H38:H193,AF38:AF193)) -> 0 | AG211: =IF(AG36="kw",SUMPRODUCT(N38:N193,S38:S193,AG38:AG193),SUMPRODUCT(H38:H193,AG38:AG193)) -> 0 | AH211: =IF(AH36="kw",SUMPRODUCT(N38:N193,S38:S193,AH38:AH193),SUMPRODUCT(H38:H193,AH38:AH193)) -> 0 | AI211: =IF(AI36="kw",SUMPRODUCT(N38:N193,S38:S193,AI38:AI193),SUMPRODUCT(H38:H193,AI38:AI193)) -> 0 | AJ211: =IF(AJ36="kw",SUMPRODUCT(N38:N193,S38:S193,AJ38:AJ193),SUMPRODUCT(H38:H193,AJ38:AJ193)) -> 0 | AK211: =IF(AK36="kw",SUMPRODUCT(N38:N193,S38:S193,AK38:AK193),SUMPRODUCT(H38:H193,AK38:AK193)) -> 0 | AL211: =IF(AL36="kw",SUMPRODUCT(N38:N193,S38:S193,AL38:AL193),SUMPRODUCT(H38:H193,AL38:AL193)) -> 0
B212: 2015 Savings Persisting in 2020 | Y212: =SUMPRODUCT(I38:I193,Y38:Y193) -> 1395164 | Z212: =SUMPRODUCT(I38:I193,Z38:Z193) -> 889021.27 | AA212: =IF(AA36="kw",SUMPRODUCT(N38:N193,T38:T193,AA38:AA193),SUMPRODUCT(I38:I193,AA38:AA193)) -> 3954.72 | AB212: =IF(AB36="kw",SUMPRODUCT(N38:N193,T38:T193,AB38:AB193),SUMPRODUCT(I38:I193,AB38:AB193)) -> 483.36 | AC212: =IF(AC36="kw",SUMPRODUCT(N38:N193,T38:T193,AC38:AC193),SUMPRODUCT(I38:I193,AC38:AC193)) -> 0 | AD212: =IF(AD36="kw",SUMPRODUCT(N38:N193,T38:T193,AD38:AD193),SUMPRODUCT(I38:I193,AD38:AD193)) -> 0 | AE212: =IF(AE36="kw",SUMPRODUCT(N38:N193,T38:T193,AE38:AE193),SUMPRODUCT(I38:I193,AE38:AE193)) -> 0 | AF212: =IF(AF36="kw",SUMPRODUCT(N38:N193,T38:T193,AF38:AF193),SUMPRODUCT(I38:I193,AF38:AF193)) -> 0 | AG212: =IF(AG36="kw",SUMPRODUCT(N38:N193,T38:T193,AG38:AG193),SUMPRODUCT(I38:I193,AG38:AG193)) -> 0 | AH212: =IF(AH36="kw",SUMPRODUCT(N38:N193,T38:T193,AH38:AH193),SUMPRODUCT(I38:I193,AH38:AH193)) -> 0 | AI212: =IF(AI36="kw",SUMPRODUCT(N38:N193,T38:T193,AI38:AI193),SUMPRODUCT(I38:I193,AI38:AI193)) -> 0 | AJ212: =IF(AJ36="kw",SUMPRODUCT(N38:N193,T38:T193,AJ38:AJ193),SUMPRODUCT(I38:I193,AJ38:AJ193)) -> 0 | AK212: =IF(AK36="kw",SUMPRODUCT(N38:N193,T38:T193,AK38:AK193),SUMPRODUCT(I38:I193,AK38:AK193)) -> 0 | AL212: =IF(AL36="kw",SUMPRODUCT(N38:N193,T38:T193,AL38:AL193),SUMPRODUCT(I38:I193,AL38:AL193)) -> 0
B213: Note: 12 months of Loblaws Pilot demand savings
B216: Table 5-b. 2016 Lost Revenues Work Form | D216: Return to top
B217: Program | C217: Results Status | D217: Net Energy Savings (kWh) | E217: Net Energy Savings Persistence (kWh) | N217: Monthly Multiplier | O217: Net Demand Savings (kW) | P217: Net Peak Demand Savings Persistence (kW) | Y217: Rate Allocations for LRAMVA
D218: 2016 | E218: 2017 | F218: 2018 | G218: 2019 | H218: 2020 | I218: 2021 | J218: 2022 | K218: 2023 | L218: 2024 | M218: 2025 | O218: 2016 | P218: 2017 | Q218: 2018 | R218: 2019 | S218: 2020 | T218: 2021 | U218: 2022 | V218: 2023 | W218: 2024 | X218: 2025 | Y218: ='1. LRAMVA Summary'!D52 -> Residential | Z218: ='1. LRAMVA Summary'!E52 -> GS<50 kW | AA218: ='1. LRAMVA Summary'!F52 -> General Service 50 - 999 kW | AB218: ='1. LRAMVA Summary'!G52 -> General Service 1,000 - 4,999 kW | AC218: ='1. LRAMVA Summary'!H52 -> Sentinel Lighting | AD218: ='1. LRAMVA Summary'!I52 -> Street Lighting | AE218: ='1. LRAMVA Summary'!J52 -> Unmetered Scattered Load | AF218: ='1. LRAMVA Summary'!K52 -> Large Use | AG218: ='1. LRAMVA Summary'!L52 ->  | AH218: ='1. LRAMVA Summary'!M52 ->  | AI218: ='1. LRAMVA Summary'!N52 ->  | AJ218: ='1. LRAMVA Summary'!O52 ->  | AK218: ='1. LRAMVA Summary'!P52 ->  | AL218: ='1. LRAMVA Summary'!Q52 ->  | AM218: ='1. LRAMVA Summary'!R52 -> Total
B219: Legacy Framework | Y219: ='1. LRAMVA Summary'!D53 -> kWh | Z219: ='1. LRAMVA Summary'!E53 -> kWh | AA219: ='1. LRAMVA Summary'!F53 -> kW | AB219: ='1. LRAMVA Summary'!G53 -> kW | AC219: ='1. LRAMVA Summary'!H53 -> kW | AD219: ='1. LRAMVA Summary'!I53 -> kW | AE219: ='1. LRAMVA Summary'!J53 -> kWh | AF219: ='1. LRAMVA Summary'!K53 -> kW | AG219: ='1. LRAMVA Summary'!L53 -> 0 | AH219: ='1. LRAMVA Summary'!M53 -> 0 | AI219: ='1. LRAMVA Summary'!N53 -> 0 | AJ219: ='1. LRAMVA Summary'!O53 -> 0 | AK219: ='1. LRAMVA Summary'!P53 -> 0 | AL219: ='1. LRAMVA Summary'!Q53 -> 0
B220: Residential Program
A221: 1 | B221: Coupon Initiative | C221: Verified | AM221: =SUM(Y221:AL221) -> 0
B222: Adjustment to 2016 savings | C222: True-up | Y222: =Y221 -> 0 | Z222: 0 | AA222: 0 | AB222: 0 | AC222: 0 | AD222: 0 | AE222: 0 | AF222: 0 | AG222: 0 | AH222: 0 | AI222: 0 | AJ222: 0 | AK222: 0 | AL222: 0
A224: 2 | B224: Bi-Annual Retailer Event Initiative | C224: Verified | AM224: =SUM(Y224:AL224) -> 0
B225: Adjustment to 2016 savings | C225: True-up | Y225: =Y224 -> 0 | Z225: 0 | AA225: 0 | AB225: 0 | AC225: 0 | AD225: 0 | AE225: 0 | AF225: 0 | AG225: 0 | AH225: 0 | AI225: 0 | AJ225: 0 | AK225: 0 | AL225: 0
A227: 3 | B227: Appliance Retirement Initiative | C227: Verified | AM227: =SUM(Y227:AL227) -> 0
B228: Adjustment to 2016 savings | C228: True-up | Y228: =Y227 -> 0 | Z228: 0 | AA228: 0 | AB228: 0 | AC228: 0 | AD228: 0 | AE228: 0 | AF228: 0 | AG228: 0 | AH228: 0 | AI228: 0 | AJ228: 0 | AK228: 0 | AL228: 0
A230: 4 | B230: HVAC Incentives Initiative | C230: Verified | AM230: =SUM(Y230:AL230) -> 0
B231: Adjustment to 2016 savings | C231: True-up | Y231: =Y230 -> 0 | Z231: 0 | AA231: 0 | AB231: 0 | AC231: 0 | AD231: 0 | AE231: 0 | AF231: 0 | AG231: 0 | AH231: 0 | AI231: 0 | AJ231: 0 | AK231: 0 | AL231: 0
A233: 5 | B233: Residential New Construction and Major Renovation Initiative | C233: Verified | AM233: =SUM(Y233:AL233) -> 0
B234: Adjustment to 2016 savings | C234: True-up | Y234: =Y233 -> 0 | Z234: 0 | AA234: 0 | AB234: 0 | AC234: 0 | AD234: 0 | AE234: 0 | AF234: 0 | AG234: 0 | AH234: 0 | AI234: 0 | AJ234: 0 | AK234: 0 | AL234: 0
B236: Commercial & Institutional Program
A237: 6 | B237: Energy Audit Initiative | C237: Verified | N237: 12 | AM237: =SUM(Y237:AL237) -> 0
B238: Adjustment to 2016 savings | C238: True-up | N238: =N237 -> 12 | Y238: =Y237 -> 0 | Z238: 0 | AA238: 0 | AB238: 0 | AC238: 0 | AD238: 0 | AE238: 0 | AF238: 0 | AG238: 0 | AH238: 0 | AI238: 0 | AJ238: 0 | AK238: 0 | AL238: 0
A240: 7 | B240: Efficiency: Equipment Replacement Incentive Initiative | C240: Verified | N240: 12 | AM240: =SUM(Y240:AL240) -> 0
B241: Adjustment to 2016 savings | C241: True-up | N241: =N240 -> 12 | Y241: =Y240 -> 0 | Z241: 0 | AA241: 0 | AB241: 0 | AC241: 0 | AD241: 0 | AE241: 0 | AF241: 0 | AG241: 0 | AH241: 0 | AI241: 0 | AJ241: 0 | AK241: 0 | AL241: 0
A243: 8 | B243: Direct Install Lighting and Water Heating Initiative | C243: Verified | N243: 12 | AM243: =SUM(Y243:AL243) -> 0
B244: Adjustment to 2016 savings | C244: True-up | N244: =N243 -> 12 | Y244: =Y243 -> 0 | Z244: 0 | AA244: 0 | AB244: 0 | AC244: 0 | AD244: 0 | AE244: 0 | AF244: 0 | AG244: 0 | AH244: 0 | AI244: 0 | AJ244: 0 | AK244: 0 | AL244: 0
A246: 9 | B246: New Construction and Major Renovation Initiative | C246: Verified | N246: 12 | AM246: =SUM(Y246:AL246) -> 0
B247: Adjustment to 2016 savings | C247: True-up | N247: =N246 -> 12 | Y247: =Y246 -> 0 | Z247: 0 | AA247: 0 | AB247: 0 | AC247: 0 | AD247: 0 | AE247: 0 | AF247: 0 | AG247: 0 | AH247: 0 | AI247: 0 | AJ247: 0 | AK247: 0 | AL247: 0
A249: 10 | B249: Existing Building Commissioning Incentive Initiative | C249: Verified | N249: 3 | AM249: =SUM(Y249:AL249) -> 0
B250: Adjustment to 2016 savings | C250: True-up | N250: =N249 -> 3 | Y250: =Y249 -> 0 | Z250: 0 | AA250: 0 | AB250: 0 | AC250: 0 | AD250: 0 | AE250: 0 | AF250: 0 | AG250: 0 | AH250: 0 | AI250: 0 | AJ250: 0 | AK250: 0 | AL250: 0
B252: Industrial Program
A253: 11 | B253: Process and Systems Upgrades Initiatives - Project Incentive Initiative | C253: Verified | N253: 12 | AM253: =SUM(Y253:AL253) -> 0
B254: Adjustment to 2016 savings | C254: True-up | N254: =N253 -> 12 | Y254: =Y253 -> 0 | Z254: 0 | AA254: 0 | AB254: 0 | AC254: 0 | AD254: 0 | AE254: 0 | AF254: 0 | AG254: 0 | AH254: 0 | AI254: 0 | AJ254: 0 | AK254: 0 | AL254: 0
A256: 12 | B256: Process and Systems Upgrades Initiatives - Monitoring and Targeting Initiative | C256: Verified | N256: 12 | AM256: =SUM(Y256:AL256) -> 0
B257: Adjustment to 2016 savings | C257: True-up | N257: =N256 -> 12 | Y257: =Y256 -> 0 | Z257: 0 | AA257: 0 | AB257: 0 | AC257: 0 | AD257: 0 | AE257: 0 | AF257: 0 | AG257: 0 | AH257: 0 | AI257: 0 | AJ257: 0 | AK257: 0 | AL257: 0
A259: 13 | B259: Process and Systems Upgrades Initiatives - Energy Manager Initiative | C259: Verified | N259: 12 | AM259: =SUM(Y259:AL259) -> 0
B260: Adjustment to 2016 savings | C260: True-up | N260: =N259 -> 12 | Y260: =Y259 -> 0 | Z260: 0 | AA260: 0 | AB260: 0 | AC260: 0 | AD260: 0 | AE260: 0 | AF260: 0 | AG260: 0 | AH260: 0 | AI260: 0 | AJ260: 0 | AK260: 0 | AL260: 0
B262: Low Income Program
A263: 14 | B263: Low Income Initiative | C263: Verified | N263: 12 | AM263: =SUM(Y263:AL263) -> 0
B264: Adjustment to 2016 savings | C264: True-up | N264: =N263 -> 12 | Y264: =Y263 -> 0 | Z264: 0 | AA264: 0 | AB264: 0 | AC264: 0 | AD264: 0 | AE264: 0 | AF264: 0 | AG264: 0 | AH264: 0 | AI264: 0 | AJ264: 0 | AK264: 0 | AL264: 0
B266: Other
A267: 15 | B267: Aboriginal Conservation Program | C267: Verified | N267: 0 | AM267: =SUM(Y267:AL267) -> 0
B268: Adjustment to 2016 savings | C268: True-up | N268: =N267 -> 0 | Y268: =Y267 -> 0 | Z268: =Z267 -> 0 | AA268: 0 | AB268: 0 | AC268: 0 | AD268: 0 | AE268: 0 | AF268: 0 | AG268: 0 | AH268: 0 | AI268: 0 | AJ268: 0 | AK268: 0 | AL268: 0
A270: 16 | B270: Program Enabled Savings | C270: Verified | N270: 0 | AM270: =SUM(Y270:AL270) -> 0
B271: Adjustment to 2016 savings | C271: True-up | N271: =N270 -> 0 | Y271: =Y270 -> 0 | Z271: =Z270 -> 0 | AA271: 0 | AB271: 0 | AC271: 0 | AD271: 0 | AE271: 0 | AF271: 0 | AG271: 0 | AH271: 0 | AI271: 0 | AJ271: 0 | AK271: 0 | AL271: 0
B273: Conservation Fund Pilots
A274: 17 | B274: Conservation Fund Pilot - EnerNOC | C274: Verified | N274: 0 | AM274: =SUM(Y274:AL274) -> 0
B275: Adjustment to 2016 savings | C275: True-up | N275: =N274 -> 0 | Y275: =Y274 -> 0 | Z275: =Z274 -> 0 | AA275: 0 | AB275: 0 | AC275: 0 | AD275: 0 | AE275: 0 | AF275: 0 | AG275: 0 | AH275: 0 | AI275: 0 | AJ275: 0 | AK275: 0 | AL275: 0
A277: 18 | B277: Loblaws Pilot | C277: Verified | N277: 0 | AM277: =SUM(Y277:AL277) -> 0
B278: Adjustment to 2016 savings | C278: True-up | N278: =N277 -> 0 | Y278: =Y277 -> 0 | Z278: =Z277 -> 0 | AA278: 0 | AB278: 0 | AC278: 0 | AD278: 0 | AE278: 0 | AF278: 0 | AG278: 0 | AH278: 0 | AI278: 0 | AJ278: 0 | AK278: 0 | AL278: 0
A280: 19 | B280: Conservation Fund Pilot - SEG | C280: Verified | N280: 0 | AM280: =SUM(Y280:AL280) -> 0
B281: Adjustment to 2016 savings | C281: True-up | N281: =N280 -> 0 | Y281: =Y280 -> 0 | Z281: =Z280 -> 0 | AA281: 0 | AB281: 0 | AC281: 0 | AD281: 0 | AE281: 0 | AF281: 0 | AG281: 0 | AH281: 0 | AI281: 0 | AJ281: 0 | AK281: 0 | AL281: 0
A283: 20 | B283: Social Benchmarking Pliot | C283: Verified | N283: 0 | AM283: =SUM(Y283:AL283) -> 0
B284: Adjustment to 2016 savings | C284: True-up | N284: =N283 -> 0 | Y284: =Y283 -> 0 | Z284: 0 | AA284: 0 | AB284: 0 | AC284: 0 | AD284: 0 | AE284: 0 | AF284: 0 | AG284: 0 | AH284: 0 | AI284: 0 | AJ284: 0 | AK284: 0 | AL284: 0
B286: Conservation First Framework
B287: Residential Province-Wide Programs
A288: 21 | B288: Save on Energy Coupon Program | C288: Verified | D288: ='7. Persistence Report'!AV$118 -> 2743154 | E288: ='7. Persistence Report'!AW$118 -> 2743154 | F288: ='7. Persistence Report'!AX$118 -> 2743154 | G288: ='7. Persistence Report'!AY$118 -> 2743154 | H288: ='7. Persistence Report'!AZ$118 -> 2743154 | I288: ='7. Persistence Report'!BA$118 -> 2743154 | J288: ='7. Persistence Report'!BB$118 -> 2743154 | K288: ='7. Persistence Report'!BC$118 -> 2742762 | L288: ='7. Persistence Report'!BD$118 -> 2742762 | M288: ='7. Persistence Report'!BE$118 -> 2731209 | O288: ='7. Persistence Report'!Q$118 -> 178 | P288: ='7. Persistence Report'!R$118 -> 178 | Q288: ='7. Persistence Report'!S$118 -> 178 | R288: ='7. Persistence Report'!T$118 -> 178 | S288: ='7. Persistence Report'!U$118 -> 178 | T288: ='7. Persistence Report'!V$118 -> 178 | U288: ='7. Persistence Report'!W$118 -> 178 | V288: ='7. Persistence Report'!X$118 -> 178 | W288: ='7. Persistence Report'!Y$118 -> 178 | X288: ='7. Persistence Report'!Z$118 -> 177 | Y288: 1 | AM288: =SUM(Y288:AL288) -> 1
B289: Adjustment to 2016 savings | C289: True-up | D289: ='7. Persistence Report'!AV$127 -> 296781 | E289: ='7. Persistence Report'!AW$127 -> 296781 | F289: ='7. Persistence Report'!AX$127 -> 296781 | G289: ='7. Persistence Report'!AY$127 -> 296781 | H289: ='7. Persistence Report'!AZ$127 -> 296781 | I289: ='7. Persistence Report'!BA$127 -> 296781 | J289: ='7. Persistence Report'!BB$127 -> 296781 | K289: ='7. Persistence Report'!BC$127 -> 296756 | L289: ='7. Persistence Report'!BD$127 -> 296756 | M289: ='7. Persistence Report'!BE$127 -> 297186 | O289: ='7. Persistence Report'!Q$127 -> 19 | P289: ='7. Persistence Report'!R$127 -> 19 | Q289: ='7. Persistence Report'!S$127 -> 19 | R289: ='7. Persistence Report'!T$127 -> 19 | S289: ='7. Persistence Report'!U$127 -> 19 | T289: ='7. Persistence Report'!V$127 -> 19 | U289: ='7. Persistence Report'!W$127 -> 19 | V289: ='7. Persistence Report'!X$127 -> 19 | W289: ='7. Persistence Report'!Y$127 -> 19 | X289: ='7. Persistence Report'!Z$127 -> 19 | Y289: =Y288 -> 1 | Z289: 0 | AA289: 0 | AB289: 0 | AC289: 0 | AD289: 0 | AE289: 0 | AF289: 0 | AG289: 0 | AH289: 0 | AI289: 0 | AJ289: 0 | AK289: 0 | AL289: 0
A291: 22 | B291: Save on Energy Heating and Cooling Program | C291: Verified | D291: ='7. Persistence Report'!AV$119 -> 595981 | E291: ='7. Persistence Report'!AW$119 -> 595981 | F291: ='7. Persistence Report'!AX$119 -> 595981 | G291: ='7. Persistence Report'!AY$119 -> 595981 | H291: ='7. Persistence Report'!AZ$119 -> 595981 | I291: ='7. Persistence Report'!BA$119 -> 595981 | J291: ='7. Persistence Report'!BB$119 -> 595981 | K291: ='7. Persistence Report'!BC$119 -> 595981 | L291: ='7. Persistence Report'!BD$119 -> 595981 | M291: ='7. Persistence Report'!BE$119 -> 595981 | O291: ='7. Persistence Report'!Q$119 -> 176 | P291: ='7. Persistence Report'!R$119 -> 176 | Q291: ='7. Persistence Report'!S$119 -> 176 | R291: ='7. Persistence Report'!T$119 -> 176 | S291: ='7. Persistence Report'!U$119 -> 176 | T291: ='7. Persistence Report'!V$119 -> 176 | U291: ='7. Persistence Report'!W$119 -> 176 | V291: ='7. Persistence Report'!X$119 -> 176 | W291: ='7. Persistence Report'!Y$119 -> 176 | X291: ='7. Persistence Report'!Z$119 -> 176 | Y291: 1 | AM291: =SUM(Y291:AL291) -> 1
B292: Adjustment to 2016 savings | C292: True-up | D292: ='7. Persistence Report'!AV$128 -> 6793 | E292: ='7. Persistence Report'!AW$128 -> 6793 | F292: ='7. Persistence Report'!AX$128 -> 6793 | G292: ='7. Persistence Report'!AY$128 -> 6793 | H292: ='7. Persistence Report'!AZ$128 -> 6793 | I292: ='7. Persistence Report'!BA$128 -> 6793 | J292: ='7. Persistence Report'!BB$128 -> 6793 | K292: ='7. Persistence Report'!BC$128 -> 6793 | L292: ='7. Persistence Report'!BD$128 -> 6793 | M292: ='7. Persistence Report'!BE$128 -> 6793 | O292: ='7. Persistence Report'!Q$128 -> 2 | P292: ='7. Persistence Report'!R$128 -> 2 | Q292: ='7. Persistence Report'!S$128 -> 2 | R292: ='7. Persistence Report'!T$128 -> 2 | S292: ='7. Persistence Report'!U$128 -> 2 | T292: ='7. Persistence Report'!V$128 -> 2 | U292: ='7. Persistence Report'!W$128 -> 2 | V292: ='7. Persistence Report'!X$128 -> 2 | W292: ='7. Persistence Report'!Y$128 -> 2 | X292: ='7. Persistence Report'!Z$128 -> 2 | Y292: =Y291 -> 1 | Z292: 0 | AA292: 0 | AB292: 0 | AC292: 0 | AD292: 0 | AE292: 0 | AF292: 0 | AG292: 0 | AH292: 0 | AI292: 0 | AJ292: 0 | AK292: 0 | AL292: 0
... 591 more rows

Sheet 6. Carrying Charges
B4: Legend | C4: User Inputs (Green)
C5: Auto Populated Cells (White)
C6: Instructions (Grey)
B8: Instructions | C8: 1. Please update Table 6 as new approved prescribed interest rates for deferral and variance accounts become available. Monthly interest rates are used to calculate the variance on the carrying charges for LRAMVA. Starting from column I, the principal will auto-populate as monthly variances in Table 6-a, and are multiplied by the interest rate from column H to determine the monthly variances on carrying charges for each rate class by year.
C9: 2. The annual carrying charges totals in Table 6-a below pertain to the amount that was originally collected in interest from forecasted CDM savings and what should have been collected based on actual CDM savings. As the amounts calculated in Table 6-a are cumulative, LDCs are requested to enter any collected interest amounts into the "Amounts Cleared" row in order to clear the balance and calculate outstanding variances on carrying charges.
C10: 3. Please calculate the projected interest amounts in the LRAMVA work form. Project carrying charges amounts incuded in Table 6-a should be consistent with the projected interest amounts included in the DVA Continuity Schedule. If there are additional adjustments required to the formulas to calculate the projected interest amounts, please adjust the formulas in Table 6-a accordingly.
B12: Table 6. Prescribed Interest Rates | E12: Table 6-a. Calculation of Carrying Costs by Rate Class | K12: Go to Tab 1: Summary
B14: Quarter | C14: Approved Deferral & Variance Accounts | E14: Month | F14: Period | G14: Quarter | H14: Monthly Rate | I14: ='1. LRAMVA Summary'!D52 -> Residential | J14: ='1. LRAMVA Summary'!E52 -> GS<50 kW | K14: ='1. LRAMVA Summary'!F52 -> General Service 50 - 999 kW | L14: ='1. LRAMVA Summary'!G52 -> General Service 1,000 - 4,999 kW | M14: ='1. LRAMVA Summary'!H52 -> Sentinel Lighting | N14: ='1. LRAMVA Summary'!I52 -> Street Lighting | O14: ='1. LRAMVA Summary'!J52 -> Unmetered Scattered Load | P14: ='1. LRAMVA Summary'!K52 -> Large Use | Q14: ='1. LRAMVA Summary'!L52 ->  | R14: ='1. LRAMVA Summary'!M52 ->  | S14: ='1. LRAMVA Summary'!N52 ->  | T14: ='1. LRAMVA Summary'!O52 ->  | U14: ='1. LRAMVA Summary'!P52 ->  | V14: ='1. LRAMVA Summary'!Q52 ->  | W14: ='1. LRAMVA Summary'!R52 -> Total
B15: 2011 Q1 | C15: 0.0147 | E15: 2011-01-01 | F15: 2011 | G15: Q1 | H15: =C$15/12 -> 0.001225 | I15: =SUM('1. LRAMVA Summary'!D$54:D$55)*(MONTH($E15)-1)/12*$H15 -> 0 | J15: =SUM('1. LRAMVA Summary'!E$54:E$55)*(MONTH($E15)-1)/12*$H15 -> 0 | K15: =SUM('1. LRAMVA Summary'!F$54:F$55)*(MONTH($E15)-1)/12*$H15 -> 0 | L15: =SUM('1. LRAMVA Summary'!G$54:G$55)*(MONTH($E15)-1)/12*$H15 -> 0 | M15: =SUM('1. LRAMVA Summary'!H$54:H$55)*(MONTH($E15)-1)/12*$H15 -> 0 | N15: =SUM('1. LRAMVA Summary'!I$54:I$55)*(MONTH($E15)-1)/12*$H15 -> 0 | O15: =SUM('1. LRAMVA Summary'!J$54:J$55)*(MONTH($E15)-1)/12*$H15 -> 0 | P15: =SUM('1. LRAMVA Summary'!K$54:K$55)*(MONTH($E15)-1)/12*$H15 -> 0 | Q15: =SUM('1. LRAMVA Summary'!L$54:L$55)*(MONTH($E15)-1)/12*$H15 -> 0 | R15: =SUM('1. LRAMVA Summary'!M$54:M$55)*(MONTH($E15)-1)/12*$H15 -> 0 | S15: =SUM('1. LRAMVA Summary'!N$54:N$55)*(MONTH($E15)-1)/12*$H15 -> 0 | T15: =SUM('1. LRAMVA Summary'!O$54:O$55)*(MONTH($E15)-1)/12*$H15 -> 0 | U15: =SUM('1. LRAMVA Summary'!P$54:P$55)*(MONTH($E15)-1)/12*$H15 -> 0 | V15: =SUM('1. LRAMVA Summary'!Q$54:Q$55)*(MONTH($E15)-1)/12*$H15 -> 0 | W15: =SUM(I15:V15) -> 0
B16: 2011 Q2 | C16: 0.0147 | E16: 2011-02-01 | F16: 2011 | G16: Q1 | H16: =C$15/12 -> 0.001225 | I16: =SUM('1. LRAMVA Summary'!D$54:D$55)*(MONTH($E16)-1)/12*$H16 -> 0 | J16: =SUM('1. LRAMVA Summary'!E$54:E$55)*(MONTH($E16)-1)/12*$H16 -> 0 | K16: =SUM('1. LRAMVA Summary'!F$54:F$55)*(MONTH($E16)-1)/12*$H16 -> 0 | L16: =SUM('1. LRAMVA Summary'!G$54:G$55)*(MONTH($E16)-1)/12*$H16 -> 0 | M16: =SUM('1. LRAMVA Summary'!H$54:H$55)*(MONTH($E16)-1)/12*$H16 -> 0 | N16: =SUM('1. LRAMVA Summary'!I$54:I$55)*(MONTH($E16)-1)/12*$H16 -> 0 | O16: =SUM('1. LRAMVA Summary'!J$54:J$55)*(MONTH($E16)-1)/12*$H16 -> 0 | P16: =SUM('1. LRAMVA Summary'!K$54:K$55)*(MONTH($E16)-1)/12*$H16 -> 0 | Q16: =SUM('1. LRAMVA Summary'!L$54:L$55)*(MONTH($E16)-1)/12*$H16 -> 0 | R16: =SUM('1. LRAMVA Summary'!M$54:M$55)*(MONTH($E16)-1)/12*$H16 -> 0 | S16: =SUM('1. LRAMVA Summary'!N$54:N$55)*(MONTH($E16)-1)/12*$H16 -> 0 | T16: =SUM('1. LRAMVA Summary'!O$54:O$55)*(MONTH($E16)-1)/12*$H16 -> 0 | U16: =SUM('1. LRAMVA Summary'!P$54:P$55)*(MONTH($E16)-1)/12*$H16 -> 0 | V16: =SUM('1. LRAMVA Summary'!Q$54:Q$55)*(MONTH($E16)-1)/12*$H16 -> 0 | W16: =SUM(I16:V16) -> 0
B17: 2011 Q3 | C17: 0.0147 | E17: 2011-03-01 | F17: 2011 | G17: Q1 | H17: =C$15/12 -> 0.001225 | I17: =SUM('1. LRAMVA Summary'!D$54:D$55)*(MONTH($E17)-1)/12*$H17 -> 0 | J17: =SUM('1. LRAMVA Summary'!E$54:E$55)*(MONTH($E17)-1)/12*$H17 -> 0 | K17: =SUM('1. LRAMVA Summary'!F$54:F$55)*(MONTH($E17)-1)/12*$H17 -> 0 | L17: =SUM('1. LRAMVA Summary'!G$54:G$55)*(MONTH($E17)-1)/12*$H17 -> 0 | M17: =SUM('1. LRAMVA Summary'!H$54:H$55)*(MONTH($E17)-1)/12*$H17 -> 0 | N17: =SUM('1. LRAMVA Summary'!I$54:I$55)*(MONTH($E17)-1)/12*$H17 -> 0 | O17: =SUM('1. LRAMVA Summary'!J$54:J$55)*(MONTH($E17)-1)/12*$H17 -> 0 | P17: =SUM('1. LRAMVA Summary'!K$54:K$55)*(MONTH($E17)-1)/12*$H17 -> 0 | Q17: =SUM('1. LRAMVA Summary'!L$54:L$55)*(MONTH($E17)-1)/12*$H17 -> 0 | R17: =SUM('1. LRAMVA Summary'!M$54:M$55)*(MONTH($E17)-1)/12*$H17 -> 0 | S17: =SUM('1. LRAMVA Summary'!N$54:N$55)*(MONTH($E17)-1)/12*$H17 -> 0 | T17: =SUM('1. LRAMVA Summary'!O$54:O$55)*(MONTH($E17)-1)/12*$H17 -> 0 | U17: =SUM('1. LRAMVA Summary'!P$54:P$55)*(MONTH($E17)-1)/12*$H17 -> 0 | V17: =SUM('1. LRAMVA Summary'!Q$54:Q$55)*(MONTH($E17)-1)/12*$H17 -> 0 | W17: =SUM(I17:V17) -> 0
B18: 2011 Q4 | C18: 0.0147 | E18: 2011-04-01 | F18: 2011 | G18: Q2 | H18: =C$16/12 -> 0.001225 | I18: =SUM('1. LRAMVA Summary'!D$54:D$55)*(MONTH($E18)-1)/12*$H18 -> 0 | J18: =SUM('1. LRAMVA Summary'!E$54:E$55)*(MONTH($E18)-1)/12*$H18 -> 0 | K18: =SUM('1. LRAMVA Summary'!F$54:F$55)*(MONTH($E18)-1)/12*$H18 -> 0 | L18: =SUM('1. LRAMVA Summary'!G$54:G$55)*(MONTH($E18)-1)/12*$H18 -> 0 | M18: =SUM('1. LRAMVA Summary'!H$54:H$55)*(MONTH($E18)-1)/12*$H18 -> 0 | N18: =SUM('1. LRAMVA Summary'!I$54:I$55)*(MONTH($E18)-1)/12*$H18 -> 0 | O18: =SUM('1. LRAMVA Summary'!J$54:J$55)*(MONTH($E18)-1)/12*$H18 -> 0 | P18: =SUM('1. LRAMVA Summary'!K$54:K$55)*(MONTH($E18)-1)/12*$H18 -> 0 | Q18: =SUM('1. LRAMVA Summary'!L$54:L$55)*(MONTH($E18)-1)/12*$H18 -> 0 | R18: =SUM('1. LRAMVA Summary'!M$54:M$55)*(MONTH($E18)-1)/12*$H18 -> 0 | S18: =SUM('1. LRAMVA Summary'!N$54:N$55)*(MONTH($E18)-1)/12*$H18 -> 0 | T18: =SUM('1. LRAMVA Summary'!O$54:O$55)*(MONTH($E18)-1)/12*$H18 -> 0 | U18: =SUM('1. LRAMVA Summary'!P$54:P$55)*(MONTH($E18)-1)/12*$H18 -> 0 | V18: =SUM('1. LRAMVA Summary'!Q$54:Q$55)*(MONTH($E18)-1)/12*$H18 -> 0 | W18: =SUM(I18:V18) -> 0
B19: 2012 Q1 | C19: 0.0147 | E19: 2011-05-01 | F19: 2011 | G19: Q2 | H19: =C$16/12 -> 0.001225 | I19: =SUM('1. LRAMVA Summary'!D$54:D$55)*(MONTH($E19)-1)/12*$H19 -> 0 | J19: =SUM('1. LRAMVA Summary'!E$54:E$55)*(MONTH($E19)-1)/12*$H19 -> 0 | K19: =SUM('1. LRAMVA Summary'!F$54:F$55)*(MONTH($E19)-1)/12*$H19 -> 0 | L19: =SUM('1. LRAMVA Summary'!G$54:G$55)*(MONTH($E19)-1)/12*$H19 -> 0 | M19: =SUM('1. LRAMVA Summary'!H$54:H$55)*(MONTH($E19)-1)/12*$H19 -> 0 | N19: =SUM('1. LRAMVA Summary'!I$54:I$55)*(MONTH($E19)-1)/12*$H19 -> 0 | O19: =SUM('1. LRAMVA Summary'!J$54:J$55)*(MONTH($E19)-1)/12*$H19 -> 0 | P19: =SUM('1. LRAMVA Summary'!K$54:K$55)*(MONTH($E19)-1)/12*$H19 -> 0 | Q19: =SUM('1. LRAMVA Summary'!L$54:L$55)*(MONTH($E19)-1)/12*$H19 -> 0 | R19: =SUM('1. LRAMVA Summary'!M$54:M$55)*(MONTH($E19)-1)/12*$H19 -> 0 | S19: =SUM('1. LRAMVA Summary'!N$54:N$55)*(MONTH($E19)-1)/12*$H19 -> 0 | T19: =SUM('1. LRAMVA Summary'!O$54:O$55)*(MONTH($E19)-1)/12*$H19 -> 0 | U19: =SUM('1. LRAMVA Summary'!P$54:P$55)*(MONTH($E19)-1)/12*$H19 -> 0 | V19: =SUM('1. LRAMVA Summary'!Q$54:Q$55)*(MONTH($E19)-1)/12*$H19 -> 0 | W19: 0
B20: 2012 Q2 | C20: 0.0147 | E20: 2011-06-01 | F20: 2011 | G20: Q2 | H20: =C$16/12 -> 0.001225 | I20: =SUM('1. LRAMVA Summary'!D$54:D$55)*(MONTH($E20)-1)/12*$H20 -> 0 | J20: =SUM('1. LRAMVA Summary'!E$54:E$55)*(MONTH($E20)-1)/12*$H20 -> 0 | K20: =SUM('1. LRAMVA Summary'!F$54:F$55)*(MONTH($E20)-1)/12*$H20 -> 0 | L20: =SUM('1. LRAMVA Summary'!G$54:G$55)*(MONTH($E20)-1)/12*$H20 -> 0 | M20: =SUM('1. LRAMVA Summary'!H$54:H$55)*(MONTH($E20)-1)/12*$H20 -> 0 | N20: =SUM('1. LRAMVA Summary'!I$54:I$55)*(MONTH($E20)-1)/12*$H20 -> 0 | O20: =SUM('1. LRAMVA Summary'!J$54:J$55)*(MONTH($E20)-1)/12*$H20 -> 0 | P20: =SUM('1. LRAMVA Summary'!K$54:K$55)*(MONTH($E20)-1)/12*$H20 -> 0 | Q20: =SUM('1. LRAMVA Summary'!L$54:L$55)*(MONTH($E20)-1)/12*$H20 -> 0 | R20: =SUM('1. LRAMVA Summary'!M$54:M$55)*(MONTH($E20)-1)/12*$H20 -> 0 | S20: =SUM('1. LRAMVA Summary'!N$54:N$55)*(MONTH($E20)-1)/12*$H20 -> 0 | T20: =SUM('1. LRAMVA Summary'!O$54:O$55)*(MONTH($E20)-1)/12*$H20 -> 0 | U20: =SUM('1. LRAMVA Summary'!P$54:P$55)*(MONTH($E20)-1)/12*$H20 -> 0 | V20: =SUM('1. LRAMVA Summary'!Q$54:Q$55)*(MONTH($E20)-1)/12*$H20 -> 0 | W20: 0
B21: 2012 Q3 | C21: 0.0147 | E21: 2011-07-01 | F21: 2011 | G21: Q3 | H21: =C$17/12 -> 0.001225 | I21: =SUM('1. LRAMVA Summary'!D$54:D$55)*(MONTH($E21)-1)/12*$H21 -> 0 | J21: =SUM('1. LRAMVA Summary'!E$54:E$55)*(MONTH($E21)-1)/12*$H21 -> 0 | K21: =SUM('1. LRAMVA Summary'!F$54:F$55)*(MONTH($E21)-1)/12*$H21 -> 0 | L21: =SUM('1. LRAMVA Summary'!G$54:G$55)*(MONTH($E21)-1)/12*$H21 -> 0 | M21: =SUM('1. LRAMVA Summary'!H$54:H$55)*(MONTH($E21)-1)/12*$H21 -> 0 | N21: =SUM('1. LRAMVA Summary'!I$54:I$55)*(MONTH($E21)-1)/12*$H21 -> 0 | O21: =SUM('1. LRAMVA Summary'!J$54:J$55)*(MONTH($E21)-1)/12*$H21 -> 0 | P21: =SUM('1. LRAMVA Summary'!K$54:K$55)*(MONTH($E21)-1)/12*$H21 -> 0 | Q21: =SUM('1. LRAMVA Summary'!L$54:L$55)*(MONTH($E21)-1)/12*$H21 -> 0 | R21: =SUM('1. LRAMVA Summary'!M$54:M$55)*(MONTH($E21)-1)/12*$H21 -> 0 | S21: =SUM('1. LRAMVA Summary'!N$54:N$55)*(MONTH($E21)-1)/12*$H21 -> 0 | T21: =SUM('1. LRAMVA Summary'!O$54:O$55)*(MONTH($E21)-1)/12*$H21 -> 0 | U21: =SUM('1. LRAMVA Summary'!P$54:P$55)*(MONTH($E21)-1)/12*$H21 -> 0 | V21: =SUM('1. LRAMVA Summary'!Q$54:Q$55)*(MONTH($E21)-1)/12*$H21 -> 0 | W21: 0
B22: 2012 Q4 | C22: 0.0147 | E22: 2011-08-01 | F22: 2011 | G22: Q3 | H22: =C$17/12 -> 0.001225 | I22: =SUM('1. LRAMVA Summary'!D$54:D$55)*(MONTH($E22)-1)/12*$H22 -> 0 | J22: =SUM('1. LRAMVA Summary'!E$54:E$55)*(MONTH($E22)-1)/12*$H22 -> 0 | K22: =SUM('1. LRAMVA Summary'!F$54:F$55)*(MONTH($E22)-1)/12*$H22 -> 0 | L22: =SUM('1. LRAMVA Summary'!G$54:G$55)*(MONTH($E22)-1)/12*$H22 -> 0 | M22: =SUM('1. LRAMVA Summary'!H$54:H$55)*(MONTH($E22)-1)/12*$H22 -> 0 | N22: =SUM('1. LRAMVA Summary'!I$54:I$55)*(MONTH($E22)-1)/12*$H22 -> 0 | O22: =SUM('1. LRAMVA Summary'!J$54:J$55)*(MONTH($E22)-1)/12*$H22 -> 0 | P22: =SUM('1. LRAMVA Summary'!K$54:K$55)*(MONTH($E22)-1)/12*$H22 -> 0 | Q22: =SUM('1. LRAMVA Summary'!L$54:L$55)*(MONTH($E22)-1)/12*$H22 -> 0 | R22: =SUM('1. LRAMVA Summary'!M$54:M$55)*(MONTH($E22)-1)/12*$H22 -> 0 | S22: =SUM('1. LRAMVA Summary'!N$54:N$55)*(MONTH($E22)-1)/12*$H22 -> 0 | T22: =SUM('1. LRAMVA Summary'!O$54:O$55)*(MONTH($E22)-1)/12*$H22 -> 0 | U22: =SUM('1. LRAMVA Summary'!P$54:P$55)*(MONTH($E22)-1)/12*$H22 -> 0 | V22: =SUM('1. LRAMVA Summary'!Q$54:Q$55)*(MONTH($E22)-1)/12*$H22 -> 0 | W22: 0
B23: 2013 Q1 | C23: 0.0147 | E23: 2011-09-01 | F23: 2011 | G23: Q3 | H23: =C$17/12 -> 0.001225 | I23: =SUM('1. LRAMVA Summary'!D$54:D$55)*(MONTH($E23)-1)/12*$H23 -> 0 | J23: =SUM('1. LRAMVA Summary'!E$54:E$55)*(MONTH($E23)-1)/12*$H23 -> 0 | K23: =SUM('1. LRAMVA Summary'!F$54:F$55)*(MONTH($E23)-1)/12*$H23 -> 0 | L23: =SUM('1. LRAMVA Summary'!G$54:G$55)*(MONTH($E23)-1)/12*$H23 -> 0 | M23: =SUM('1. LRAMVA Summary'!H$54:H$55)*(MONTH($E23)-1)/12*$H23 -> 0 | N23: =SUM('1. LRAMVA Summary'!I$54:I$55)*(MONTH($E23)-1)/12*$H23 -> 0 | O23: =SUM('1. LRAMVA Summary'!J$54:J$55)*(MONTH($E23)-1)/12*$H23 -> 0 | P23: =SUM('1. LRAMVA Summary'!K$54:K$55)*(MONTH($E23)-1)/12*$H23 -> 0 | Q23: =SUM('1. LRAMVA Summary'!L$54:L$55)*(MONTH($E23)-1)/12*$H23 -> 0 | R23: =SUM('1. LRAMVA Summary'!M$54:M$55)*(MONTH($E23)-1)/12*$H23 -> 0 | S23: =SUM('1. LRAMVA Summary'!N$54:N$55)*(MONTH($E23)-1)/12*$H23 -> 0 | T23: =SUM('1. LRAMVA Summary'!O$54:O$55)*(MONTH($E23)-1)/12*$H23 -> 0 | U23: =SUM('1. LRAMVA Summary'!P$54:P$55)*(MONTH($E23)-1)/12*$H23 -> 0 | V23: =SUM('1. LRAMVA Summary'!Q$54:Q$55)*(MONTH($E23)-1)/12*$H23 -> 0 | W23: 0
B24: 2013 Q2 | C24: 0.0147 | E24: 2011-10-01 | F24: 2011 | G24: Q4 | H24: =C$18/12 -> 0.001225 | I24: =SUM('1. LRAMVA Summary'!D$54:D$55)*(MONTH($E24)-1)/12*$H24 -> 0 | J24: =SUM('1. LRAMVA Summary'!E$54:E$55)*(MONTH($E24)-1)/12*$H24 -> 0 | K24: =SUM('1. LRAMVA Summary'!F$54:F$55)*(MONTH($E24)-1)/12*$H24 -> 0 | L24: =SUM('1. LRAMVA Summary'!G$54:G$55)*(MONTH($E24)-1)/12*$H24 -> 0 | M24: =SUM('1. LRAMVA Summary'!H$54:H$55)*(MONTH($E24)-1)/12*$H24 -> 0 | N24: =SUM('1. LRAMVA Summary'!I$54:I$55)*(MONTH($E24)-1)/12*$H24 -> 0 | O24: =SUM('1. LRAMVA Summary'!J$54:J$55)*(MONTH($E24)-1)/12*$H24 -> 0 | P24: =SUM('1. LRAMVA Summary'!K$54:K$55)*(MONTH($E24)-1)/12*$H24 -> 0 | Q24: =SUM('1. LRAMVA Summary'!L$54:L$55)*(MONTH($E24)-1)/12*$H24 -> 0 | R24: =SUM('1. LRAMVA Summary'!M$54:M$55)*(MONTH($E24)-1)/12*$H24 -> 0 | S24: =SUM('1. LRAMVA Summary'!N$54:N$55)*(MONTH($E24)-1)/12*$H24 -> 0 | T24: =SUM('1. LRAMVA Summary'!O$54:O$55)*(MONTH($E24)-1)/12*$H24 -> 0 | U24: =SUM('1. LRAMVA Summary'!P$54:P$55)*(MONTH($E24)-1)/12*$H24 -> 0 | V24: =SUM('1. LRAMVA Summary'!Q$54:Q$55)*(MONTH($E24)-1)/12*$H24 -> 0 | W24: 0
B25: 2013 Q3 | C25: 0.0147 | E25: 2011-11-01 | F25: 2011 | G25: Q4 | H25: =C$18/12 -> 0.001225 | I25: =SUM('1. LRAMVA Summary'!D$54:D$55)*(MONTH($E25)-1)/12*$H25 -> 0 | J25: =SUM('1. LRAMVA Summary'!E$54:E$55)*(MONTH($E25)-1)/12*$H25 -> 0 | K25: =SUM('1. LRAMVA Summary'!F$54:F$55)*(MONTH($E25)-1)/12*$H25 -> 0 | L25: =SUM('1. LRAMVA Summary'!G$54:G$55)*(MONTH($E25)-1)/12*$H25 -> 0 | M25: =SUM('1. LRAMVA Summary'!H$54:H$55)*(MONTH($E25)-1)/12*$H25 -> 0 | N25: =SUM('1. LRAMVA Summary'!I$54:I$55)*(MONTH($E25)-1)/12*$H25 -> 0 | O25: =SUM('1. LRAMVA Summary'!J$54:J$55)*(MONTH($E25)-1)/12*$H25 -> 0 | P25: =SUM('1. LRAMVA Summary'!K$54:K$55)*(MONTH($E25)-1)/12*$H25 -> 0 | Q25: =SUM('1. LRAMVA Summary'!L$54:L$55)*(MONTH($E25)-1)/12*$H25 -> 0 | R25: =SUM('1. LRAMVA Summary'!M$54:M$55)*(MONTH($E25)-1)/12*$H25 -> 0 | S25: =SUM('1. LRAMVA Summary'!N$54:N$55)*(MONTH($E25)-1)/12*$H25 -> 0 | T25: =SUM('1. LRAMVA Summary'!O$54:O$55)*(MONTH($E25)-1)/12*$H25 -> 0 | U25: =SUM('1. LRAMVA Summary'!P$54:P$55)*(MONTH($E25)-1)/12*$H25 -> 0 | V25: =SUM('1. LRAMVA Summary'!Q$54:Q$55)*(MONTH($E25)-1)/12*$H25 -> 0 | W25: 0
B26: 2013 Q4 | C26: 0.0147 | E26: 2011-12-01 | F26: 2011 | G26: Q4 | H26: =C$18/12 -> 0.001225 | I26: =SUM('1. LRAMVA Summary'!D$54:D$55)*(MONTH($E26)-1)/12*$H26 -> 0 | J26: =SUM('1. LRAMVA Summary'!E$54:E$55)*(MONTH($E26)-1)/12*$H26 -> 0 | K26: =SUM('1. LRAMVA Summary'!F$54:F$55)*(MONTH($E26)-1)/12*$H26 -> 0 | L26: =SUM('1. LRAMVA Summary'!G$54:G$55)*(MONTH($E26)-1)/12*$H26 -> 0 | M26: =SUM('1. LRAMVA Summary'!H$54:H$55)*(MONTH($E26)-1)/12*$H26 -> 0 | N26: =SUM('1. LRAMVA Summary'!I$54:I$55)*(MONTH($E26)-1)/12*$H26 -> 0 | O26: =SUM('1. LRAMVA Summary'!J$54:J$55)*(MONTH($E26)-1)/12*$H26 -> 0 | P26: =SUM('1. LRAMVA Summary'!K$54:K$55)*(MONTH($E26)-1)/12*$H26 -> 0 | Q26: =SUM('1. LRAMVA Summary'!L$54:L$55)*(MONTH($E26)-1)/12*$H26 -> 0 | R26: =SUM('1. LRAMVA Summary'!M$54:M$55)*(MONTH($E26)-1)/12*$H26 -> 0 | S26: =SUM('1. LRAMVA Summary'!N$54:N$55)*(MONTH($E26)-1)/12*$H26 -> 0 | T26: =SUM('1. LRAMVA Summary'!O$54:O$55)*(MONTH($E26)-1)/12*$H26 -> 0 | U26: =SUM('1. LRAMVA Summary'!P$54:P$55)*(MONTH($E26)-1)/12*$H26 -> 0 | V26: =SUM('1. LRAMVA Summary'!Q$54:Q$55)*(MONTH($E26)-1)/12*$H26 -> 0 | W26: =SUM(I26:V26) -> 0
B27: 2014 Q1 | C27: 0.0147 | E27: Total for 2011 | I27: =SUM(I15:I26) -> 0 | J27: =SUM(J15:J26) -> 0 | K27: 0 | L27: 0 | M27: 0 | N27: 0 | O27: 0 | P27: =SUM(P15:P26) -> 0 | Q27: 0 | R27: 0 | S27: 0 | T27: 0 | U27: 0 | V27: 0 | W27: =SUM(W15:W26) -> 0
B28: 2014 Q2 | C28: 0.0147 | E28: Amount Cleared
B29: 2014 Q3 | C29: 0.0147 | E29: Opening Balance for 2012 | I29: =I27+I28 -> 0 | J29: =J27+J28 -> 0 | K29: 0 | L29: 0 | M29: 0 | N29: =N27+N28 -> 0 | O29: =O27+O28 -> 0 | P29: =P27+P28 -> 0 | Q29: 0 | R29: 0 | S29: 0 | T29: 0 | U29: 0 | V29: 0 | W29: =W27+W28 -> 0
B30: 2014 Q4 | C30: 0.0147 | E30: 2012-01-01 | F30: 2011-2012 | G30: Q1 | H30: =C$19/12 -> 0.001225 | I30: =(SUM('1. LRAMVA Summary'!D$54:D$56)+SUM('1. LRAMVA Summary'!D$57:D$58)*(MONTH($E30)-1)/12)*$H30 -> 0 | J30: =(SUM('1. LRAMVA Summary'!E$54:E$56)+SUM('1. LRAMVA Summary'!E$57:E$58)*(MONTH($E30)-1)/12)*$H30 -> 0 | K30: =(SUM('1. LRAMVA Summary'!F$54:F$56)+SUM('1. LRAMVA Summary'!F$57:F$58)*(MONTH($E30)-1)/12)*$H30 -> 0 | L30: =(SUM('1. LRAMVA Summary'!G$54:G$56)+SUM('1. LRAMVA Summary'!G$57:G$58)*(MONTH($E30)-1)/12)*$H30 -> 0 | M30: =(SUM('1. LRAMVA Summary'!H$54:H$56)+SUM('1. LRAMVA Summary'!H$57:H$58)*(MONTH($E30)-1)/12)*$H30 -> 0 | N30: =(SUM('1. LRAMVA Summary'!I$54:I$56)+SUM('1. LRAMVA Summary'!I$57:I$58)*(MONTH($E30)-1)/12)*$H30 -> 0 | O30: =(SUM('1. LRAMVA Summary'!J$54:J$56)+SUM('1. LRAMVA Summary'!J$57:J$58)*(MONTH($E30)-1)/12)*$H30 -> 0 | P30: =(SUM('1. LRAMVA Summary'!K$54:K$56)+SUM('1. LRAMVA Summary'!K$57:K$58)*(MONTH($E30)-1)/12)*$H30 -> 0 | Q30: =(SUM('1. LRAMVA Summary'!L$54:L$56)+SUM('1. LRAMVA Summary'!L$57:L$58)*(MONTH($E30)-1)/12)*$H30 -> 0 | R30: =(SUM('1. LRAMVA Summary'!M$54:M$56)+SUM('1. LRAMVA Summary'!M$57:M$58)*(MONTH($E30)-1)/12)*$H30 -> 0 | S30: =(SUM('1. LRAMVA Summary'!N$54:N$56)+SUM('1. LRAMVA Summary'!N$57:N$58)*(MONTH($E30)-1)/12)*$H30 -> 0 | T30: =(SUM('1. LRAMVA Summary'!O$54:O$56)+SUM('1. LRAMVA Summary'!O$57:O$58)*(MONTH($E30)-1)/12)*$H30 -> 0 | U30: =(SUM('1. LRAMVA Summary'!P$54:P$56)+SUM('1. LRAMVA Summary'!P$57:P$58)*(MONTH($E30)-1)/12)*$H30 -> 0 | V30: =(SUM('1. LRAMVA Summary'!Q$54:Q$56)+SUM('1. LRAMVA Summary'!Q$57:Q$58)*(MONTH($E30)-1)/12)*$H30 -> 0 | W30: =SUM(I30:V30) -> 0
B31: 2015 Q1 | C31: 0.0147 | E31: 2012-02-01 | F31: 2011-2012 | G31: Q1 | H31: =C$19/12 -> 0.001225 | I31: =(SUM('1. LRAMVA Summary'!D$54:D$56)+SUM('1. LRAMVA Summary'!D$57:D$58)*(MONTH($E31)-1)/12)*$H31 -> 0 | J31: =(SUM('1. LRAMVA Summary'!E$54:E$56)+SUM('1. LRAMVA Summary'!E$57:E$58)*(MONTH($E31)-1)/12)*$H31 -> 0 | K31: =(SUM('1. LRAMVA Summary'!F$54:F$56)+SUM('1. LRAMVA Summary'!F$57:F$58)*(MONTH($E31)-1)/12)*$H31 -> 0 | L31: =(SUM('1. LRAMVA Summary'!G$54:G$56)+SUM('1. LRAMVA Summary'!G$57:G$58)*(MONTH($E31)-1)/12)*$H31 -> 0 | M31: =(SUM('1. LRAMVA Summary'!H$54:H$56)+SUM('1. LRAMVA Summary'!H$57:H$58)*(MONTH($E31)-1)/12)*$H31 -> 0 | N31: =(SUM('1. LRAMVA Summary'!I$54:I$56)+SUM('1. LRAMVA Summary'!I$57:I$58)*(MONTH($E31)-1)/12)*$H31 -> 0 | O31: =(SUM('1. LRAMVA Summary'!J$54:J$56)+SUM('1. LRAMVA Summary'!J$57:J$58)*(MONTH($E31)-1)/12)*$H31 -> 0 | P31: =(SUM('1. LRAMVA Summary'!K$54:K$56)+SUM('1. LRAMVA Summary'!K$57:K$58)*(MONTH($E31)-1)/12)*$H31 -> 0 | Q31: =(SUM('1. LRAMVA Summary'!L$54:L$56)+SUM('1. LRAMVA Summary'!L$57:L$58)*(MONTH($E31)-1)/12)*$H31 -> 0 | R31: =(SUM('1. LRAMVA Summary'!M$54:M$56)+SUM('1. LRAMVA Summary'!M$57:M$58)*(MONTH($E31)-1)/12)*$H31 -> 0 | S31: =(SUM('1. LRAMVA Summary'!N$54:N$56)+SUM('1. LRAMVA Summary'!N$57:N$58)*(MONTH($E31)-1)/12)*$H31 -> 0 | T31: =(SUM('1. LRAMVA Summary'!O$54:O$56)+SUM('1. LRAMVA Summary'!O$57:O$58)*(MONTH($E31)-1)/12)*$H31 -> 0 | U31: =(SUM('1. LRAMVA Summary'!P$54:P$56)+SUM('1. LRAMVA Summary'!P$57:P$58)*(MONTH($E31)-1)/12)*$H31 -> 0 | V31: =(SUM('1. LRAMVA Summary'!Q$54:Q$56)+SUM('1. LRAMVA Summary'!Q$57:Q$58)*(MONTH($E31)-1)/12)*$H31 -> 0 | W31: =SUM(I31:V31) -> 0
B32: 2015 Q2 | C32: 0.011 | E32: 2012-03-01 | F32: 2011-2012 | G32: Q1 | H32: =C$19/12 -> 0.001225 | I32: =(SUM('1. LRAMVA Summary'!D$54:D$56)+SUM('1. LRAMVA Summary'!D$57:D$58)*(MONTH($E32)-1)/12)*$H32 -> 0 | J32: =(SUM('1. LRAMVA Summary'!E$54:E$56)+SUM('1. LRAMVA Summary'!E$57:E$58)*(MONTH($E32)-1)/12)*$H32 -> 0 | K32: =(SUM('1. LRAMVA Summary'!F$54:F$56)+SUM('1. LRAMVA Summary'!F$57:F$58)*(MONTH($E32)-1)/12)*$H32 -> 0 | L32: =(SUM('1. LRAMVA Summary'!G$54:G$56)+SUM('1. LRAMVA Summary'!G$57:G$58)*(MONTH($E32)-1)/12)*$H32 -> 0 | M32: =(SUM('1. LRAMVA Summary'!H$54:H$56)+SUM('1. LRAMVA Summary'!H$57:H$58)*(MONTH($E32)-1)/12)*$H32 -> 0 | N32: =(SUM('1. LRAMVA Summary'!I$54:I$56)+SUM('1. LRAMVA Summary'!I$57:I$58)*(MONTH($E32)-1)/12)*$H32 -> 0 | O32: =(SUM('1. LRAMVA Summary'!J$54:J$56)+SUM('1. LRAMVA Summary'!J$57:J$58)*(MONTH($E32)-1)/12)*$H32 -> 0 | P32: =(SUM('1. LRAMVA Summary'!K$54:K$56)+SUM('1. LRAMVA Summary'!K$57:K$58)*(MONTH($E32)-1)/12)*$H32 -> 0 | Q32: =(SUM('1. LRAMVA Summary'!L$54:L$56)+SUM('1. LRAMVA Summary'!L$57:L$58)*(MONTH($E32)-1)/12)*$H32 -> 0 | R32: =(SUM('1. LRAMVA Summary'!M$54:M$56)+SUM('1. LRAMVA Summary'!M$57:M$58)*(MONTH($E32)-1)/12)*$H32 -> 0 | S32: =(SUM('1. LRAMVA Summary'!N$54:N$56)+SUM('1. LRAMVA Summary'!N$57:N$58)*(MONTH($E32)-1)/12)*$H32 -> 0 | T32: =(SUM('1. LRAMVA Summary'!O$54:O$56)+SUM('1. LRAMVA Summary'!O$57:O$58)*(MONTH($E32)-1)/12)*$H32 -> 0 | U32: =(SUM('1. LRAMVA Summary'!P$54:P$56)+SUM('1. LRAMVA Summary'!P$57:P$58)*(MONTH($E32)-1)/12)*$H32 -> 0 | V32: =(SUM('1. LRAMVA Summary'!Q$54:Q$56)+SUM('1. LRAMVA Summary'!Q$57:Q$58)*(MONTH($E32)-1)/12)*$H32 -> 0 | W32: 0
B33: 2015 Q3 | C33: 0.011 | E33: 2012-04-01 | F33: 2011-2012 | G33: Q2 | H33: =C$20/12 -> 0.001225 | I33: =(SUM('1. LRAMVA Summary'!D$54:D$56)+SUM('1. LRAMVA Summary'!D$57:D$58)*(MONTH($E33)-1)/12)*$H33 -> 0 | J33: =(SUM('1. LRAMVA Summary'!E$54:E$56)+SUM('1. LRAMVA Summary'!E$57:E$58)*(MONTH($E33)-1)/12)*$H33 -> 0 | K33: =(SUM('1. LRAMVA Summary'!F$54:F$56)+SUM('1. LRAMVA Summary'!F$57:F$58)*(MONTH($E33)-1)/12)*$H33 -> 0 | L33: =(SUM('1. LRAMVA Summary'!G$54:G$56)+SUM('1. LRAMVA Summary'!G$57:G$58)*(MONTH($E33)-1)/12)*$H33 -> 0 | M33: =(SUM('1. LRAMVA Summary'!H$54:H$56)+SUM('1. LRAMVA Summary'!H$57:H$58)*(MONTH($E33)-1)/12)*$H33 -> 0 | N33: =(SUM('1. LRAMVA Summary'!I$54:I$56)+SUM('1. LRAMVA Summary'!I$57:I$58)*(MONTH($E33)-1)/12)*$H33 -> 0 | O33: =(SUM('1. LRAMVA Summary'!J$54:J$56)+SUM('1. LRAMVA Summary'!J$57:J$58)*(MONTH($E33)-1)/12)*$H33 -> 0 | P33: =(SUM('1. LRAMVA Summary'!K$54:K$56)+SUM('1. LRAMVA Summary'!K$57:K$58)*(MONTH($E33)-1)/12)*$H33 -> 0 | Q33: =(SUM('1. LRAMVA Summary'!L$54:L$56)+SUM('1. LRAMVA Summary'!L$57:L$58)*(MONTH($E33)-1)/12)*$H33 -> 0 | R33: =(SUM('1. LRAMVA Summary'!M$54:M$56)+SUM('1. LRAMVA Summary'!M$57:M$58)*(MONTH($E33)-1)/12)*$H33 -> 0 | S33: =(SUM('1. LRAMVA Summary'!N$54:N$56)+SUM('1. LRAMVA Summary'!N$57:N$58)*(MONTH($E33)-1)/12)*$H33 -> 0 | T33: =(SUM('1. LRAMVA Summary'!O$54:O$56)+SUM('1. LRAMVA Summary'!O$57:O$58)*(MONTH($E33)-1)/12)*$H33 -> 0 | U33: =(SUM('1. LRAMVA Summary'!P$54:P$56)+SUM('1. LRAMVA Summary'!P$57:P$58)*(MONTH($E33)-1)/12)*$H33 -> 0 | V33: =(SUM('1. LRAMVA Summary'!Q$54:Q$56)+SUM('1. LRAMVA Summary'!Q$57:Q$58)*(MONTH($E33)-1)/12)*$H33 -> 0 | W33: 0
B34: 2015 Q4 | C34: 0.011 | E34: 2012-05-01 | F34: 2011-2012 | G34: Q2 | H34: =C$20/12 -> 0.001225 | I34: =(SUM('1. LRAMVA Summary'!D$54:D$56)+SUM('1. LRAMVA Summary'!D$57:D$58)*(MONTH($E34)-1)/12)*$H34 -> 0 | J34: =(SUM('1. LRAMVA Summary'!E$54:E$56)+SUM('1. LRAMVA Summary'!E$57:E$58)*(MONTH($E34)-1)/12)*$H34 -> 0 | K34: =(SUM('1. LRAMVA Summary'!F$54:F$56)+SUM('1. LRAMVA Summary'!F$57:F$58)*(MONTH($E34)-1)/12)*$H34 -> 0 | L34: =(SUM('1. LRAMVA Summary'!G$54:G$56)+SUM('1. LRAMVA Summary'!G$57:G$58)*(MONTH($E34)-1)/12)*$H34 -> 0 | M34: =(SUM('1. LRAMVA Summary'!H$54:H$56)+SUM('1. LRAMVA Summary'!H$57:H$58)*(MONTH($E34)-1)/12)*$H34 -> 0 | N34: =(SUM('1. LRAMVA Summary'!I$54:I$56)+SUM('1. LRAMVA Summary'!I$57:I$58)*(MONTH($E34)-1)/12)*$H34 -> 0 | O34: =(SUM('1. LRAMVA Summary'!J$54:J$56)+SUM('1. LRAMVA Summary'!J$57:J$58)*(MONTH($E34)-1)/12)*$H34 -> 0 | P34: =(SUM('1. LRAMVA Summary'!K$54:K$56)+SUM('1. LRAMVA Summary'!K$57:K$58)*(MONTH($E34)-1)/12)*$H34 -> 0 | Q34: =(SUM('1. LRAMVA Summary'!L$54:L$56)+SUM('1. LRAMVA Summary'!L$57:L$58)*(MONTH($E34)-1)/12)*$H34 -> 0 | R34: =(SUM('1. LRAMVA Summary'!M$54:M$56)+SUM('1. LRAMVA Summary'!M$57:M$58)*(MONTH($E34)-1)/12)*$H34 -> 0 | S34: =(SUM('1. LRAMVA Summary'!N$54:N$56)+SUM('1. LRAMVA Summary'!N$57:N$58)*(MONTH($E34)-1)/12)*$H34 -> 0 | T34: =(SUM('1. LRAMVA Summary'!O$54:O$56)+SUM('1. LRAMVA Summary'!O$57:O$58)*(MONTH($E34)-1)/12)*$H34 -> 0 | U34: =(SUM('1. LRAMVA Summary'!P$54:P$56)+SUM('1. LRAMVA Summary'!P$57:P$58)*(MONTH($E34)-1)/12)*$H34 -> 0 | V34: =(SUM('1. LRAMVA Summary'!Q$54:Q$56)+SUM('1. LRAMVA Summary'!Q$57:Q$58)*(MONTH($E34)-1)/12)*$H34 -> 0 | W34: 0
B35: 2016 Q1 | C35: 0.011 | E35: 2012-06-01 | F35: 2011-2012 | G35: Q2 | H35: =C$20/12 -> 0.001225 | I35: =(SUM('1. LRAMVA Summary'!D$54:D$56)+SUM('1. LRAMVA Summary'!D$57:D$58)*(MONTH($E35)-1)/12)*$H35 -> 0 | J35: =(SUM('1. LRAMVA Summary'!E$54:E$56)+SUM('1. LRAMVA Summary'!E$57:E$58)*(MONTH($E35)-1)/12)*$H35 -> 0 | K35: =(SUM('1. LRAMVA Summary'!F$54:F$56)+SUM('1. LRAMVA Summary'!F$57:F$58)*(MONTH($E35)-1)/12)*$H35 -> 0 | L35: =(SUM('1. LRAMVA Summary'!G$54:G$56)+SUM('1. LRAMVA Summary'!G$57:G$58)*(MONTH($E35)-1)/12)*$H35 -> 0 | M35: =(SUM('1. LRAMVA Summary'!H$54:H$56)+SUM('1. LRAMVA Summary'!H$57:H$58)*(MONTH($E35)-1)/12)*$H35 -> 0 | N35: =(SUM('1. LRAMVA Summary'!I$54:I$56)+SUM('1. LRAMVA Summary'!I$57:I$58)*(MONTH($E35)-1)/12)*$H35 -> 0 | O35: =(SUM('1. LRAMVA Summary'!J$54:J$56)+SUM('1. LRAMVA Summary'!J$57:J$58)*(MONTH($E35)-1)/12)*$H35 -> 0 | P35: =(SUM('1. LRAMVA Summary'!K$54:K$56)+SUM('1. LRAMVA Summary'!K$57:K$58)*(MONTH($E35)-1)/12)*$H35 -> 0 | Q35: =(SUM('1. LRAMVA Summary'!L$54:L$56)+SUM('1. LRAMVA Summary'!L$57:L$58)*(MONTH($E35)-1)/12)*$H35 -> 0 | R35: =(SUM('1. LRAMVA Summary'!M$54:M$56)+SUM('1. LRAMVA Summary'!M$57:M$58)*(MONTH($E35)-1)/12)*$H35 -> 0 | S35: =(SUM('1. LRAMVA Summary'!N$54:N$56)+SUM('1. LRAMVA Summary'!N$57:N$58)*(MONTH($E35)-1)/12)*$H35 -> 0 | T35: =(SUM('1. LRAMVA Summary'!O$54:O$56)+SUM('1. LRAMVA Summary'!O$57:O$58)*(MONTH($E35)-1)/12)*$H35 -> 0 | U35: =(SUM('1. LRAMVA Summary'!P$54:P$56)+SUM('1. LRAMVA Summary'!P$57:P$58)*(MONTH($E35)-1)/12)*$H35 -> 0 | V35: =(SUM('1. LRAMVA Summary'!Q$54:Q$56)+SUM('1. LRAMVA Summary'!Q$57:Q$58)*(MONTH($E35)-1)/12)*$H35 -> 0 | W35: 0
B36: 2016 Q2 | C36: 0.011 | E36: 2012-07-01 | F36: 2011-2012 | G36: Q3 | H36: =C$21/12 -> 0.001225 | I36: =(SUM('1. LRAMVA Summary'!D$54:D$56)+SUM('1. LRAMVA Summary'!D$57:D$58)*(MONTH($E36)-1)/12)*$H36 -> 0 | J36: =(SUM('1. LRAMVA Summary'!E$54:E$56)+SUM('1. LRAMVA Summary'!E$57:E$58)*(MONTH($E36)-1)/12)*$H36 -> 0 | K36: =(SUM('1. LRAMVA Summary'!F$54:F$56)+SUM('1. LRAMVA Summary'!F$57:F$58)*(MONTH($E36)-1)/12)*$H36 -> 0 | L36: =(SUM('1. LRAMVA Summary'!G$54:G$56)+SUM('1. LRAMVA Summary'!G$57:G$58)*(MONTH($E36)-1)/12)*$H36 -> 0 | M36: =(SUM('1. LRAMVA Summary'!H$54:H$56)+SUM('1. LRAMVA Summary'!H$57:H$58)*(MONTH($E36)-1)/12)*$H36 -> 0 | N36: =(SUM('1. LRAMVA Summary'!I$54:I$56)+SUM('1. LRAMVA Summary'!I$57:I$58)*(MONTH($E36)-1)/12)*$H36 -> 0 | O36: =(SUM('1. LRAMVA Summary'!J$54:J$56)+SUM('1. LRAMVA Summary'!J$57:J$58)*(MONTH($E36)-1)/12)*$H36 -> 0 | P36: =(SUM('1. LRAMVA Summary'!K$54:K$56)+SUM('1. LRAMVA Summary'!K$57:K$58)*(MONTH($E36)-1)/12)*$H36 -> 0 | Q36: =(SUM('1. LRAMVA Summary'!L$54:L$56)+SUM('1. LRAMVA Summary'!L$57:L$58)*(MONTH($E36)-1)/12)*$H36 -> 0 | R36: =(SUM('1. LRAMVA Summary'!M$54:M$56)+SUM('1. LRAMVA Summary'!M$57:M$58)*(MONTH($E36)-1)/12)*$H36 -> 0 | S36: =(SUM('1. LRAMVA Summary'!N$54:N$56)+SUM('1. LRAMVA Summary'!N$57:N$58)*(MONTH($E36)-1)/12)*$H36 -> 0 | T36: =(SUM('1. LRAMVA Summary'!O$54:O$56)+SUM('1. LRAMVA Summary'!O$57:O$58)*(MONTH($E36)-1)/12)*$H36 -> 0 | U36: =(SUM('1. LRAMVA Summary'!P$54:P$56)+SUM('1. LRAMVA Summary'!P$57:P$58)*(MONTH($E36)-1)/12)*$H36 -> 0 | V36: =(SUM('1. LRAMVA Summary'!Q$54:Q$56)+SUM('1. LRAMVA Summary'!Q$57:Q$58)*(MONTH($E36)-1)/12)*$H36 -> 0 | W36: 0
B37: 2016 Q3 | C37: 0.011 | E37: 2012-08-01 | F37: 2011-2012 | G37: Q3 | H37: =C$21/12 -> 0.001225 | I37: =(SUM('1. LRAMVA Summary'!D$54:D$56)+SUM('1. LRAMVA Summary'!D$57:D$58)*(MONTH($E37)-1)/12)*$H37 -> 0 | J37: =(SUM('1. LRAMVA Summary'!E$54:E$56)+SUM('1. LRAMVA Summary'!E$57:E$58)*(MONTH($E37)-1)/12)*$H37 -> 0 | K37: =(SUM('1. LRAMVA Summary'!F$54:F$56)+SUM('1. LRAMVA Summary'!F$57:F$58)*(MONTH($E37)-1)/12)*$H37 -> 0 | L37: =(SUM('1. LRAMVA Summary'!G$54:G$56)+SUM('1. LRAMVA Summary'!G$57:G$58)*(MONTH($E37)-1)/12)*$H37 -> 0 | M37: =(SUM('1. LRAMVA Summary'!H$54:H$56)+SUM('1. LRAMVA Summary'!H$57:H$58)*(MONTH($E37)-1)/12)*$H37 -> 0 | N37: =(SUM('1. LRAMVA Summary'!I$54:I$56)+SUM('1. LRAMVA Summary'!I$57:I$58)*(MONTH($E37)-1)/12)*$H37 -> 0 | O37: =(SUM('1. LRAMVA Summary'!J$54:J$56)+SUM('1. LRAMVA Summary'!J$57:J$58)*(MONTH($E37)-1)/12)*$H37 -> 0 | P37: =(SUM('1. LRAMVA Summary'!K$54:K$56)+SUM('1. LRAMVA Summary'!K$57:K$58)*(MONTH($E37)-1)/12)*$H37 -> 0 | Q37: =(SUM('1. LRAMVA Summary'!L$54:L$56)+SUM('1. LRAMVA Summary'!L$57:L$58)*(MONTH($E37)-1)/12)*$H37 -> 0 | R37: =(SUM('1. LRAMVA Summary'!M$54:M$56)+SUM('1. LRAMVA Summary'!M$57:M$58)*(MONTH($E37)-1)/12)*$H37 -> 0 | S37: =(SUM('1. LRAMVA Summary'!N$54:N$56)+SUM('1. LRAMVA Summary'!N$57:N$58)*(MONTH($E37)-1)/12)*$H37 -> 0 | T37: =(SUM('1. LRAMVA Summary'!O$54:O$56)+SUM('1. LRAMVA Summary'!O$57:O$58)*(MONTH($E37)-1)/12)*$H37 -> 0 | U37: =(SUM('1. LRAMVA Summary'!P$54:P$56)+SUM('1. LRAMVA Summary'!P$57:P$58)*(MONTH($E37)-1)/12)*$H37 -> 0 | V37: =(SUM('1. LRAMVA Summary'!Q$54:Q$56)+SUM('1. LRAMVA Summary'!Q$57:Q$58)*(MONTH($E37)-1)/12)*$H37 -> 0 | W37: 0
B38: 2016 Q4 | C38: 0.011 | E38: 2012-09-01 | F38: 2011-2012 | G38: Q3 | H38: =C$21/12 -> 0.001225 | I38: =(SUM('1. LRAMVA Summary'!D$54:D$56)+SUM('1. LRAMVA Summary'!D$57:D$58)*(MONTH($E38)-1)/12)*$H38 -> 0 | J38: =(SUM('1. LRAMVA Summary'!E$54:E$56)+SUM('1. LRAMVA Summary'!E$57:E$58)*(MONTH($E38)-1)/12)*$H38 -> 0 | K38: =(SUM('1. LRAMVA Summary'!F$54:F$56)+SUM('1. LRAMVA Summary'!F$57:F$58)*(MONTH($E38)-1)/12)*$H38 -> 0 | L38: =(SUM('1. LRAMVA Summary'!G$54:G$56)+SUM('1. LRAMVA Summary'!G$57:G$58)*(MONTH($E38)-1)/12)*$H38 -> 0 | M38: =(SUM('1. LRAMVA Summary'!H$54:H$56)+SUM('1. LRAMVA Summary'!H$57:H$58)*(MONTH($E38)-1)/12)*$H38 -> 0 | N38: =(SUM('1. LRAMVA Summary'!I$54:I$56)+SUM('1. LRAMVA Summary'!I$57:I$58)*(MONTH($E38)-1)/12)*$H38 -> 0 | O38: =(SUM('1. LRAMVA Summary'!J$54:J$56)+SUM('1. LRAMVA Summary'!J$57:J$58)*(MONTH($E38)-1)/12)*$H38 -> 0 | P38: =(SUM('1. LRAMVA Summary'!K$54:K$56)+SUM('1. LRAMVA Summary'!K$57:K$58)*(MONTH($E38)-1)/12)*$H38 -> 0 | Q38: =(SUM('1. LRAMVA Summary'!L$54:L$56)+SUM('1. LRAMVA Summary'!L$57:L$58)*(MONTH($E38)-1)/12)*$H38 -> 0 | R38: =(SUM('1. LRAMVA Summary'!M$54:M$56)+SUM('1. LRAMVA Summary'!M$57:M$58)*(MONTH($E38)-1)/12)*$H38 -> 0 | S38: =(SUM('1. LRAMVA Summary'!N$54:N$56)+SUM('1. LRAMVA Summary'!N$57:N$58)*(MONTH($E38)-1)/12)*$H38 -> 0 | T38: =(SUM('1. LRAMVA Summary'!O$54:O$56)+SUM('1. LRAMVA Summary'!O$57:O$58)*(MONTH($E38)-1)/12)*$H38 -> 0 | U38: =(SUM('1. LRAMVA Summary'!P$54:P$56)+SUM('1. LRAMVA Summary'!P$57:P$58)*(MONTH($E38)-1)/12)*$H38 -> 0 | V38: =(SUM('1. LRAMVA Summary'!Q$54:Q$56)+SUM('1. LRAMVA Summary'!Q$57:Q$58)*(MONTH($E38)-1)/12)*$H38 -> 0 | W38: 0
B39: 2017 Q1 | C39: 0.011 | E39: 2012-10-01 | F39: 2011-2012 | G39: Q4 | H39: =C$22/12 -> 0.001225 | I39: =(SUM('1. LRAMVA Summary'!D$54:D$56)+SUM('1. LRAMVA Summary'!D$57:D$58)*(MONTH($E39)-1)/12)*$H39 -> 0 | J39: =(SUM('1. LRAMVA Summary'!E$54:E$56)+SUM('1. LRAMVA Summary'!E$57:E$58)*(MONTH($E39)-1)/12)*$H39 -> 0 | K39: =(SUM('1. LRAMVA Summary'!F$54:F$56)+SUM('1. LRAMVA Summary'!F$57:F$58)*(MONTH($E39)-1)/12)*$H39 -> 0 | L39: =(SUM('1. LRAMVA Summary'!G$54:G$56)+SUM('1. LRAMVA Summary'!G$57:G$58)*(MONTH($E39)-1)/12)*$H39 -> 0 | M39: =(SUM('1. LRAMVA Summary'!H$54:H$56)+SUM('1. LRAMVA Summary'!H$57:H$58)*(MONTH($E39)-1)/12)*$H39 -> 0 | N39: =(SUM('1. LRAMVA Summary'!I$54:I$56)+SUM('1. LRAMVA Summary'!I$57:I$58)*(MONTH($E39)-1)/12)*$H39 -> 0 | O39: =(SUM('1. LRAMVA Summary'!J$54:J$56)+SUM('1. LRAMVA Summary'!J$57:J$58)*(MONTH($E39)-1)/12)*$H39 -> 0 | P39: =(SUM('1. LRAMVA Summary'!K$54:K$56)+SUM('1. LRAMVA Summary'!K$57:K$58)*(MONTH($E39)-1)/12)*$H39 -> 0 | Q39: =(SUM('1. LRAMVA Summary'!L$54:L$56)+SUM('1. LRAMVA Summary'!L$57:L$58)*(MONTH($E39)-1)/12)*$H39 -> 0 | R39: =(SUM('1. LRAMVA Summary'!M$54:M$56)+SUM('1. LRAMVA Summary'!M$57:M$58)*(MONTH($E39)-1)/12)*$H39 -> 0 | S39: =(SUM('1. LRAMVA Summary'!N$54:N$56)+SUM('1. LRAMVA Summary'!N$57:N$58)*(MONTH($E39)-1)/12)*$H39 -> 0 | T39: =(SUM('1. LRAMVA Summary'!O$54:O$56)+SUM('1. LRAMVA Summary'!O$57:O$58)*(MONTH($E39)-1)/12)*$H39 -> 0 | U39: =(SUM('1. LRAMVA Summary'!P$54:P$56)+SUM('1. LRAMVA Summary'!P$57:P$58)*(MONTH($E39)-1)/12)*$H39 -> 0 | V39: =(SUM('1. LRAMVA Summary'!Q$54:Q$56)+SUM('1. LRAMVA Summary'!Q$57:Q$58)*(MONTH($E39)-1)/12)*$H39 -> 0 | W39: 0
B40: 2017 Q2 | C40: 0.011 | E40: 2012-11-01 | F40: 2011-2012 | G40: Q4 | H40: =C$22/12 -> 0.001225 | I40: =(SUM('1. LRAMVA Summary'!D$54:D$56)+SUM('1. LRAMVA Summary'!D$57:D$58)*(MONTH($E40)-1)/12)*$H40 -> 0 | J40: =(SUM('1. LRAMVA Summary'!E$54:E$56)+SUM('1. LRAMVA Summary'!E$57:E$58)*(MONTH($E40)-1)/12)*$H40 -> 0 | K40: =(SUM('1. LRAMVA Summary'!F$54:F$56)+SUM('1. LRAMVA Summary'!F$57:F$58)*(MONTH($E40)-1)/12)*$H40 -> 0 | L40: =(SUM('1. LRAMVA Summary'!G$54:G$56)+SUM('1. LRAMVA Summary'!G$57:G$58)*(MONTH($E40)-1)/12)*$H40 -> 0 | M40: =(SUM('1. LRAMVA Summary'!H$54:H$56)+SUM('1. LRAMVA Summary'!H$57:H$58)*(MONTH($E40)-1)/12)*$H40 -> 0 | N40: =(SUM('1. LRAMVA Summary'!I$54:I$56)+SUM('1. LRAMVA Summary'!I$57:I$58)*(MONTH($E40)-1)/12)*$H40 -> 0 | O40: =(SUM('1. LRAMVA Summary'!J$54:J$56)+SUM('1. LRAMVA Summary'!J$57:J$58)*(MONTH($E40)-1)/12)*$H40 -> 0 | P40: =(SUM('1. LRAMVA Summary'!K$54:K$56)+SUM('1. LRAMVA Summary'!K$57:K$58)*(MONTH($E40)-1)/12)*$H40 -> 0 | Q40: =(SUM('1. LRAMVA Summary'!L$54:L$56)+SUM('1. LRAMVA Summary'!L$57:L$58)*(MONTH($E40)-1)/12)*$H40 -> 0 | R40: =(SUM('1. LRAMVA Summary'!M$54:M$56)+SUM('1. LRAMVA Summary'!M$57:M$58)*(MONTH($E40)-1)/12)*$H40 -> 0 | S40: =(SUM('1. LRAMVA Summary'!N$54:N$56)+SUM('1. LRAMVA Summary'!N$57:N$58)*(MONTH($E40)-1)/12)*$H40 -> 0 | T40: =(SUM('1. LRAMVA Summary'!O$54:O$56)+SUM('1. LRAMVA Summary'!O$57:O$58)*(MONTH($E40)-1)/12)*$H40 -> 0 | U40: =(SUM('1. LRAMVA Summary'!P$54:P$56)+SUM('1. LRAMVA Summary'!P$57:P$58)*(MONTH($E40)-1)/12)*$H40 -> 0 | V40: =(SUM('1. LRAMVA Summary'!Q$54:Q$56)+SUM('1. LRAMVA Summary'!Q$57:Q$58)*(MONTH($E40)-1)/12)*$H40 -> 0 | W40: 0
B41: 2017 Q3 | C41: 0.011 | E41: 2012-12-01 | F41: 2011-2012 | G41: Q4 | H41: =C$22/12 -> 0.001225 | I41: =(SUM('1. LRAMVA Summary'!D$54:D$56)+SUM('1. LRAMVA Summary'!D$57:D$58)*(MONTH($E41)-1)/12)*$H41 -> 0 | J41: =(SUM('1. LRAMVA Summary'!E$54:E$56)+SUM('1. LRAMVA Summary'!E$57:E$58)*(MONTH($E41)-1)/12)*$H41 -> 0 | K41: =(SUM('1. LRAMVA Summary'!F$54:F$56)+SUM('1. LRAMVA Summary'!F$57:F$58)*(MONTH($E41)-1)/12)*$H41 -> 0 | L41: =(SUM('1. LRAMVA Summary'!G$54:G$56)+SUM('1. LRAMVA Summary'!G$57:G$58)*(MONTH($E41)-1)/12)*$H41 -> 0 | M41: =(SUM('1. LRAMVA Summary'!H$54:H$56)+SUM('1. LRAMVA Summary'!H$57:H$58)*(MONTH($E41)-1)/12)*$H41 -> 0 | N41: =(SUM('1. LRAMVA Summary'!I$54:I$56)+SUM('1. LRAMVA Summary'!I$57:I$58)*(MONTH($E41)-1)/12)*$H41 -> 0 | O41: =(SUM('1. LRAMVA Summary'!J$54:J$56)+SUM('1. LRAMVA Summary'!J$57:J$58)*(MONTH($E41)-1)/12)*$H41 -> 0 | P41: =(SUM('1. LRAMVA Summary'!K$54:K$56)+SUM('1. LRAMVA Summary'!K$57:K$58)*(MONTH($E41)-1)/12)*$H41 -> 0 | Q41: =(SUM('1. LRAMVA Summary'!L$54:L$56)+SUM('1. LRAMVA Summary'!L$57:L$58)*(MONTH($E41)-1)/12)*$H41 -> 0 | R41: =(SUM('1. LRAMVA Summary'!M$54:M$56)+SUM('1. LRAMVA Summary'!M$57:M$58)*(MONTH($E41)-1)/12)*$H41 -> 0 | S41: =(SUM('1. LRAMVA Summary'!N$54:N$56)+SUM('1. LRAMVA Summary'!N$57:N$58)*(MONTH($E41)-1)/12)*$H41 -> 0 | T41: =(SUM('1. LRAMVA Summary'!O$54:O$56)+SUM('1. LRAMVA Summary'!O$57:O$58)*(MONTH($E41)-1)/12)*$H41 -> 0 | U41: =(SUM('1. LRAMVA Summary'!P$54:P$56)+SUM('1. LRAMVA Summary'!P$57:P$58)*(MONTH($E41)-1)/12)*$H41 -> 0 | V41: =(SUM('1. LRAMVA Summary'!Q$54:Q$56)+SUM('1. LRAMVA Summary'!Q$57:Q$58)*(MONTH($E41)-1)/12)*$H41 -> 0 | W41: =SUM(I41:V41) -> 0
B42: 2017 Q4 | C42: 0.015 | E42: Total for 2012 | I42: =SUM(I29:I41) -> 0 | J42: =SUM(J29:J41) -> 0 | K42: 0 | L42: 0 | M42: 0 | N42: 0 | O42: 0 | P42: =SUM(P29:P41) -> 0 | Q42: 0 | R42: 0 | S42: 0 | T42: 0 | U42: 0 | V42: 0 | W42: =SUM(W29:W41) -> 0
B43: 2018 Q1 | C43: 0.015 | E43: Amount Cleared
B44: 2018 Q2 | C44: 0.0189 | E44: Opening Balance for 2013 | I44: =I42+I43 -> 0 | J44: 0 | K44: 0 | L44: 0 | M44: 0 | N44: 0 | O44: 0 | P44: =P42+P43 -> 0 | Q44: 0 | R44: 0 | S44: 0 | T44: 0 | U44: 0 | V44: 0 | W44: =W42+W43 -> 0
B45: 2018 Q3 | C45: 0.0189 | E45: 2013-01-01 | F45: 2011-2013 | G45: Q1 | H45: =C$23/12 -> 0.001225 | I45: =(SUM('1. LRAMVA Summary'!D$54:D$59)+SUM('1. LRAMVA Summary'!D$60:D$61)*(MONTH($E45)-1)/12)*$H45 -> 0 | J45: =(SUM('1. LRAMVA Summary'!E$54:E$59)+SUM('1. LRAMVA Summary'!E$60:E$61)*(MONTH($E45)-1)/12)*$H45 -> 0 | K45: =(SUM('1. LRAMVA Summary'!F$54:F$59)+SUM('1. LRAMVA Summary'!F$60:F$61)*(MONTH($E45)-1)/12)*$H45 -> 0 | L45: =(SUM('1. LRAMVA Summary'!G$54:G$59)+SUM('1. LRAMVA Summary'!G$60:G$61)*(MONTH($E45)-1)/12)*$H45 -> 0 | M45: =(SUM('1. LRAMVA Summary'!H$54:H$59)+SUM('1. LRAMVA Summary'!H$60:H$61)*(MONTH($E45)-1)/12)*$H45 -> 0 | N45: =(SUM('1. LRAMVA Summary'!I$54:I$59)+SUM('1. LRAMVA Summary'!I$60:I$61)*(MONTH($E45)-1)/12)*$H45 -> 0 | O45: =(SUM('1. LRAMVA Summary'!J$54:J$59)+SUM('1. LRAMVA Summary'!J$60:J$61)*(MONTH($E45)-1)/12)*$H45 -> 0 | P45: =(SUM('1. LRAMVA Summary'!K$54:K$59)+SUM('1. LRAMVA Summary'!K$60:K$61)*(MONTH($E45)-1)/12)*$H45 -> 0 | Q45: =(SUM('1. LRAMVA Summary'!L$54:L$59)+SUM('1. LRAMVA Summary'!L$60:L$61)*(MONTH($E45)-1)/12)*$H45 -> 0 | R45: =(SUM('1. LRAMVA Summary'!M$54:M$59)+SUM('1. LRAMVA Summary'!M$60:M$61)*(MONTH($E45)-1)/12)*$H45 -> 0 | S45: =(SUM('1. LRAMVA Summary'!N$54:N$59)+SUM('1. LRAMVA Summary'!N$60:N$61)*(MONTH($E45)-1)/12)*$H45 -> 0 | T45: =(SUM('1. LRAMVA Summary'!O$54:O$59)+SUM('1. LRAMVA Summary'!O$60:O$61)*(MONTH($E45)-1)/12)*$H45 -> 0 | U45: =(SUM('1. LRAMVA Summary'!P$54:P$59)+SUM('1. LRAMVA Summary'!P$60:P$61)*(MONTH($E45)-1)/12)*$H45 -> 0 | V45: =(SUM('1. LRAMVA Summary'!Q$54:Q$59)+SUM('1. LRAMVA Summary'!Q$60:Q$61)*(MONTH($E45)-1)/12)*$H45 -> 0 | W45: =SUM(I45:V45) -> 0
B46: 2018 Q4 | C46: 0.0217 | E46: 2013-02-01 | F46: 2011-2013 | G46: Q1 | H46: =C$23/12 -> 0.001225 | I46: =(SUM('1. LRAMVA Summary'!D$54:D$59)+SUM('1. LRAMVA Summary'!D$60:D$61)*(MONTH($E46)-1)/12)*$H46 -> 0 | J46: =(SUM('1. LRAMVA Summary'!E$54:E$59)+SUM('1. LRAMVA Summary'!E$60:E$61)*(MONTH($E46)-1)/12)*$H46 -> 0 | K46: =(SUM('1. LRAMVA Summary'!F$54:F$59)+SUM('1. LRAMVA Summary'!F$60:F$61)*(MONTH($E46)-1)/12)*$H46 -> 0 | L46: =(SUM('1. LRAMVA Summary'!G$54:G$59)+SUM('1. LRAMVA Summary'!G$60:G$61)*(MONTH($E46)-1)/12)*$H46 -> 0 | M46: =(SUM('1. LRAMVA Summary'!H$54:H$59)+SUM('1. LRAMVA Summary'!H$60:H$61)*(MONTH($E46)-1)/12)*$H46 -> 0 | N46: =(SUM('1. LRAMVA Summary'!I$54:I$59)+SUM('1. LRAMVA Summary'!I$60:I$61)*(MONTH($E46)-1)/12)*$H46 -> 0 | O46: =(SUM('1. LRAMVA Summary'!J$54:J$59)+SUM('1. LRAMVA Summary'!J$60:J$61)*(MONTH($E46)-1)/12)*$H46 -> 0 | P46: =(SUM('1. LRAMVA Summary'!K$54:K$59)+SUM('1. LRAMVA Summary'!K$60:K$61)*(MONTH($E46)-1)/12)*$H46 -> 0 | Q46: =(SUM('1. LRAMVA Summary'!L$54:L$59)+SUM('1. LRAMVA Summary'!L$60:L$61)*(MONTH($E46)-1)/12)*$H46 -> 0 | R46: =(SUM('1. LRAMVA Summary'!M$54:M$59)+SUM('1. LRAMVA Summary'!M$60:M$61)*(MONTH($E46)-1)/12)*$H46 -> 0 | S46: =(SUM('1. LRAMVA Summary'!N$54:N$59)+SUM('1. LRAMVA Summary'!N$60:N$61)*(MONTH($E46)-1)/12)*$H46 -> 0 | T46: =(SUM('1. LRAMVA Summary'!O$54:O$59)+SUM('1. LRAMVA Summary'!O$60:O$61)*(MONTH($E46)-1)/12)*$H46 -> 0 | U46: =(SUM('1. LRAMVA Summary'!P$54:P$59)+SUM('1. LRAMVA Summary'!P$60:P$61)*(MONTH($E46)-1)/12)*$H46 -> 0 | V46: =(SUM('1. LRAMVA Summary'!Q$54:Q$59)+SUM('1. LRAMVA Summary'!Q$60:Q$61)*(MONTH($E46)-1)/12)*$H46 -> 0 | W46: =SUM(I46:V46) -> 0
B47: 2019 Q1 | C47: 0.0217 | E47: 2013-03-01 | F47: 2011-2013 | G47: Q1 | H47: =C$23/12 -> 0.001225 | I47: =(SUM('1. LRAMVA Summary'!D$54:D$59)+SUM('1. LRAMVA Summary'!D$60:D$61)*(MONTH($E47)-1)/12)*$H47 -> 0 | J47: =(SUM('1. LRAMVA Summary'!E$54:E$59)+SUM('1. LRAMVA Summary'!E$60:E$61)*(MONTH($E47)-1)/12)*$H47 -> 0 | K47: =(SUM('1. LRAMVA Summary'!F$54:F$59)+SUM('1. LRAMVA Summary'!F$60:F$61)*(MONTH($E47)-1)/12)*$H47 -> 0 | L47: =(SUM('1. LRAMVA Summary'!G$54:G$59)+SUM('1. LRAMVA Summary'!G$60:G$61)*(MONTH($E47)-1)/12)*$H47 -> 0 | M47: =(SUM('1. LRAMVA Summary'!H$54:H$59)+SUM('1. LRAMVA Summary'!H$60:H$61)*(MONTH($E47)-1)/12)*$H47 -> 0 | N47: =(SUM('1. LRAMVA Summary'!I$54:I$59)+SUM('1. LRAMVA Summary'!I$60:I$61)*(MONTH($E47)-1)/12)*$H47 -> 0 | O47: =(SUM('1. LRAMVA Summary'!J$54:J$59)+SUM('1. LRAMVA Summary'!J$60:J$61)*(MONTH($E47)-1)/12)*$H47 -> 0 | P47: =(SUM('1. LRAMVA Summary'!K$54:K$59)+SUM('1. LRAMVA Summary'!K$60:K$61)*(MONTH($E47)-1)/12)*$H47 -> 0 | Q47: =(SUM('1. LRAMVA Summary'!L$54:L$59)+SUM('1. LRAMVA Summary'!L$60:L$61)*(MONTH($E47)-1)/12)*$H47 -> 0 | R47: =(SUM('1. LRAMVA Summary'!M$54:M$59)+SUM('1. LRAMVA Summary'!M$60:M$61)*(MONTH($E47)-1)/12)*$H47 -> 0 | S47: =(SUM('1. LRAMVA Summary'!N$54:N$59)+SUM('1. LRAMVA Summary'!N$60:N$61)*(MONTH($E47)-1)/12)*$H47 -> 0 | T47: =(SUM('1. LRAMVA Summary'!O$54:O$59)+SUM('1. LRAMVA Summary'!O$60:O$61)*(MONTH($E47)-1)/12)*$H47 -> 0 | U47: =(SUM('1. LRAMVA Summary'!P$54:P$59)+SUM('1. LRAMVA Summary'!P$60:P$61)*(MONTH($E47)-1)/12)*$H47 -> 0 | V47: =(SUM('1. LRAMVA Summary'!Q$54:Q$59)+SUM('1. LRAMVA Summary'!Q$60:Q$61)*(MONTH($E47)-1)/12)*$H47 -> 0 | W47: 0
B48: 2019 Q2 | C48: 0.0217 | E48: 2013-04-01 | F48: 2011-2013 | G48: Q2 | H48: =C$24/12 -> 0.001225 | I48: =(SUM('1. LRAMVA Summary'!D$54:D$59)+SUM('1. LRAMVA Summary'!D$60:D$61)*(MONTH($E48)-1)/12)*$H48 -> 0 | J48: =(SUM('1. LRAMVA Summary'!E$54:E$59)+SUM('1. LRAMVA Summary'!E$60:E$61)*(MONTH($E48)-1)/12)*$H48 -> 0 | K48: =(SUM('1. LRAMVA Summary'!F$54:F$59)+SUM('1. LRAMVA Summary'!F$60:F$61)*(MONTH($E48)-1)/12)*$H48 -> 0 | L48: =(SUM('1. LRAMVA Summary'!G$54:G$59)+SUM('1. LRAMVA Summary'!G$60:G$61)*(MONTH($E48)-1)/12)*$H48 -> 0 | M48: =(SUM('1. LRAMVA Summary'!H$54:H$59)+SUM('1. LRAMVA Summary'!H$60:H$61)*(MONTH($E48)-1)/12)*$H48 -> 0 | N48: =(SUM('1. LRAMVA Summary'!I$54:I$59)+SUM('1. LRAMVA Summary'!I$60:I$61)*(MONTH($E48)-1)/12)*$H48 -> 0 | O48: =(SUM('1. LRAMVA Summary'!J$54:J$59)+SUM('1. LRAMVA Summary'!J$60:J$61)*(MONTH($E48)-1)/12)*$H48 -> 0 | P48: =(SUM('1. LRAMVA Summary'!K$54:K$59)+SUM('1. LRAMVA Summary'!K$60:K$61)*(MONTH($E48)-1)/12)*$H48 -> 0 | Q48: =(SUM('1. LRAMVA Summary'!L$54:L$59)+SUM('1. LRAMVA Summary'!L$60:L$61)*(MONTH($E48)-1)/12)*$H48 -> 0 | R48: =(SUM('1. LRAMVA Summary'!M$54:M$59)+SUM('1. LRAMVA Summary'!M$60:M$61)*(MONTH($E48)-1)/12)*$H48 -> 0 | S48: =(SUM('1. LRAMVA Summary'!N$54:N$59)+SUM('1. LRAMVA Summary'!N$60:N$61)*(MONTH($E48)-1)/12)*$H48 -> 0 | T48: =(SUM('1. LRAMVA Summary'!O$54:O$59)+SUM('1. LRAMVA Summary'!O$60:O$61)*(MONTH($E48)-1)/12)*$H48 -> 0 | U48: =(SUM('1. LRAMVA Summary'!P$54:P$59)+SUM('1. LRAMVA Summary'!P$60:P$61)*(MONTH($E48)-1)/12)*$H48 -> 0 | V48: =(SUM('1. LRAMVA Summary'!Q$54:Q$59)+SUM('1. LRAMVA Summary'!Q$60:Q$61)*(MONTH($E48)-1)/12)*$H48 -> 0 | W48: 0
B49: 2019 Q3 | E49: 2013-05-01 | F49: 2011-2013 | G49: Q2 | H49: =C$24/12 -> 0.001225 | I49: =(SUM('1. LRAMVA Summary'!D$54:D$59)+SUM('1. LRAMVA Summary'!D$60:D$61)*(MONTH($E49)-1)/12)*$H49 -> 0 | J49: =(SUM('1. LRAMVA Summary'!E$54:E$59)+SUM('1. LRAMVA Summary'!E$60:E$61)*(MONTH($E49)-1)/12)*$H49 -> 0 | K49: =(SUM('1. LRAMVA Summary'!F$54:F$59)+SUM('1. LRAMVA Summary'!F$60:F$61)*(MONTH($E49)-1)/12)*$H49 -> 0 | L49: =(SUM('1. LRAMVA Summary'!G$54:G$59)+SUM('1. LRAMVA Summary'!G$60:G$61)*(MONTH($E49)-1)/12)*$H49 -> 0 | M49: =(SUM('1. LRAMVA Summary'!H$54:H$59)+SUM('1. LRAMVA Summary'!H$60:H$61)*(MONTH($E49)-1)/12)*$H49 -> 0 | N49: =(SUM('1. LRAMVA Summary'!I$54:I$59)+SUM('1. LRAMVA Summary'!I$60:I$61)*(MONTH($E49)-1)/12)*$H49 -> 0 | O49: =(SUM('1. LRAMVA Summary'!J$54:J$59)+SUM('1. LRAMVA Summary'!J$60:J$61)*(MONTH($E49)-1)/12)*$H49 -> 0 | P49: =(SUM('1. LRAMVA Summary'!K$54:K$59)+SUM('1. LRAMVA Summary'!K$60:K$61)*(MONTH($E49)-1)/12)*$H49 -> 0 | Q49: =(SUM('1. LRAMVA Summary'!L$54:L$59)+SUM('1. LRAMVA Summary'!L$60:L$61)*(MONTH($E49)-1)/12)*$H49 -> 0 | R49: =(SUM('1. LRAMVA Summary'!M$54:M$59)+SUM('1. LRAMVA Summary'!M$60:M$61)*(MONTH($E49)-1)/12)*$H49 -> 0 | S49: =(SUM('1. LRAMVA Summary'!N$54:N$59)+SUM('1. LRAMVA Summary'!N$60:N$61)*(MONTH($E49)-1)/12)*$H49 -> 0 | T49: =(SUM('1. LRAMVA Summary'!O$54:O$59)+SUM('1. LRAMVA Summary'!O$60:O$61)*(MONTH($E49)-1)/12)*$H49 -> 0 | U49: =(SUM('1. LRAMVA Summary'!P$54:P$59)+SUM('1. LRAMVA Summary'!P$60:P$61)*(MONTH($E49)-1)/12)*$H49 -> 0 | V49: =(SUM('1. LRAMVA Summary'!Q$54:Q$59)+SUM('1. LRAMVA Summary'!Q$60:Q$61)*(MONTH($E49)-1)/12)*$H49 -> 0 | W49: 0
B50: 2019 Q4 | E50: 2013-06-01 | F50: 2011-2013 | G50: Q2 | H50: =C$24/12 -> 0.001225 | I50: =(SUM('1. LRAMVA Summary'!D$54:D$59)+SUM('1. LRAMVA Summary'!D$60:D$61)*(MONTH($E50)-1)/12)*$H50 -> 0 | J50: =(SUM('1. LRAMVA Summary'!E$54:E$59)+SUM('1. LRAMVA Summary'!E$60:E$61)*(MONTH($E50)-1)/12)*$H50 -> 0 | K50: =(SUM('1. LRAMVA Summary'!F$54:F$59)+SUM('1. LRAMVA Summary'!F$60:F$61)*(MONTH($E50)-1)/12)*$H50 -> 0 | L50: =(SUM('1. LRAMVA Summary'!G$54:G$59)+SUM('1. LRAMVA Summary'!G$60:G$61)*(MONTH($E50)-1)/12)*$H50 -> 0 | M50: =(SUM('1. LRAMVA Summary'!H$54:H$59)+SUM('1. LRAMVA Summary'!H$60:H$61)*(MONTH($E50)-1)/12)*$H50 -> 0 | N50: =(SUM('1. LRAMVA Summary'!I$54:I$59)+SUM('1. LRAMVA Summary'!I$60:I$61)*(MONTH($E50)-1)/12)*$H50 -> 0 | O50: =(SUM('1. LRAMVA Summary'!J$54:J$59)+SUM('1. LRAMVA Summary'!J$60:J$61)*(MONTH($E50)-1)/12)*$H50 -> 0 | P50: =(SUM('1. LRAMVA Summary'!K$54:K$59)+SUM('1. LRAMVA Summary'!K$60:K$61)*(MONTH($E50)-1)/12)*$H50 -> 0 | Q50: =(SUM('1. LRAMVA Summary'!L$54:L$59)+SUM('1. LRAMVA Summary'!L$60:L$61)*(MONTH($E50)-1)/12)*$H50 -> 0 | R50: =(SUM('1. LRAMVA Summary'!M$54:M$59)+SUM('1. LRAMVA Summary'!M$60:M$61)*(MONTH($E50)-1)/12)*$H50 -> 0 | S50: =(SUM('1. LRAMVA Summary'!N$54:N$59)+SUM('1. LRAMVA Summary'!N$60:N$61)*(MONTH($E50)-1)/12)*$H50 -> 0 | T50: =(SUM('1. LRAMVA Summary'!O$54:O$59)+SUM('1. LRAMVA Summary'!O$60:O$61)*(MONTH($E50)-1)/12)*$H50 -> 0 | U50: =(SUM('1. LRAMVA Summary'!P$54:P$59)+SUM('1. LRAMVA Summary'!P$60:P$61)*(MONTH($E50)-1)/12)*$H50 -> 0 | V50: =(SUM('1. LRAMVA Summary'!Q$54:Q$59)+SUM('1. LRAMVA Summary'!Q$60:Q$61)*(MONTH($E50)-1)/12)*$H50 -> 0 | W50: 0
B51: 2020 Q1 | E51: 2013-07-01 | F51: 2011-2013 | G51: Q3 | H51: =C$25/12 -> 0.001225 | I51: =(SUM('1. LRAMVA Summary'!D$54:D$59)+SUM('1. LRAMVA Summary'!D$60:D$61)*(MONTH($E51)-1)/12)*$H51 -> 0 | J51: =(SUM('1. LRAMVA Summary'!E$54:E$59)+SUM('1. LRAMVA Summary'!E$60:E$61)*(MONTH($E51)-1)/12)*$H51 -> 0 | K51: =(SUM('1. LRAMVA Summary'!F$54:F$59)+SUM('1. LRAMVA Summary'!F$60:F$61)*(MONTH($E51)-1)/12)*$H51 -> 0 | L51: =(SUM('1. LRAMVA Summary'!G$54:G$59)+SUM('1. LRAMVA Summary'!G$60:G$61)*(MONTH($E51)-1)/12)*$H51 -> 0 | M51: =(SUM('1. LRAMVA Summary'!H$54:H$59)+SUM('1. LRAMVA Summary'!H$60:H$61)*(MONTH($E51)-1)/12)*$H51 -> 0 | N51: =(SUM('1. LRAMVA Summary'!I$54:I$59)+SUM('1. LRAMVA Summary'!I$60:I$61)*(MONTH($E51)-1)/12)*$H51 -> 0 | O51: =(SUM('1. LRAMVA Summary'!J$54:J$59)+SUM('1. LRAMVA Summary'!J$60:J$61)*(MONTH($E51)-1)/12)*$H51 -> 0 | P51: =(SUM('1. LRAMVA Summary'!K$54:K$59)+SUM('1. LRAMVA Summary'!K$60:K$61)*(MONTH($E51)-1)/12)*$H51 -> 0 | Q51: =(SUM('1. LRAMVA Summary'!L$54:L$59)+SUM('1. LRAMVA Summary'!L$60:L$61)*(MONTH($E51)-1)/12)*$H51 -> 0 | R51: =(SUM('1. LRAMVA Summary'!M$54:M$59)+SUM('1. LRAMVA Summary'!M$60:M$61)*(MONTH($E51)-1)/12)*$H51 -> 0 | S51: =(SUM('1. LRAMVA Summary'!N$54:N$59)+SUM('1. LRAMVA Summary'!N$60:N$61)*(MONTH($E51)-1)/12)*$H51 -> 0 | T51: =(SUM('1. LRAMVA Summary'!O$54:O$59)+SUM('1. LRAMVA Summary'!O$60:O$61)*(MONTH($E51)-1)/12)*$H51 -> 0 | U51: =(SUM('1. LRAMVA Summary'!P$54:P$59)+SUM('1. LRAMVA Summary'!P$60:P$61)*(MONTH($E51)-1)/12)*$H51 -> 0 | V51: =(SUM('1. LRAMVA Summary'!Q$54:Q$59)+SUM('1. LRAMVA Summary'!Q$60:Q$61)*(MONTH($E51)-1)/12)*$H51 -> 0 | W51: 0
B52: 2020 Q2 | E52: 2013-08-01 | F52: 2011-2013 | G52: Q3 | H52: =C$25/12 -> 0.001225 | I52: =(SUM('1. LRAMVA Summary'!D$54:D$59)+SUM('1. LRAMVA Summary'!D$60:D$61)*(MONTH($E52)-1)/12)*$H52 -> 0 | J52: =(SUM('1. LRAMVA Summary'!E$54:E$59)+SUM('1. LRAMVA Summary'!E$60:E$61)*(MONTH($E52)-1)/12)*$H52 -> 0 | K52: =(SUM('1. LRAMVA Summary'!F$54:F$59)+SUM('1. LRAMVA Summary'!F$60:F$61)*(MONTH($E52)-1)/12)*$H52 -> 0 | L52: =(SUM('1. LRAMVA Summary'!G$54:G$59)+SUM('1. LRAMVA Summary'!G$60:G$61)*(MONTH($E52)-1)/12)*$H52 -> 0 | M52: =(SUM('1. LRAMVA Summary'!H$54:H$59)+SUM('1. LRAMVA Summary'!H$60:H$61)*(MONTH($E52)-1)/12)*$H52 -> 0 | N52: =(SUM('1. LRAMVA Summary'!I$54:I$59)+SUM('1. LRAMVA Summary'!I$60:I$61)*(MONTH($E52)-1)/12)*$H52 -> 0 | O52: =(SUM('1. LRAMVA Summary'!J$54:J$59)+SUM('1. LRAMVA Summary'!J$60:J$61)*(MONTH($E52)-1)/12)*$H52 -> 0 | P52: =(SUM('1. LRAMVA Summary'!K$54:K$59)+SUM('1. LRAMVA Summary'!K$60:K$61)*(MONTH($E52)-1)/12)*$H52 -> 0 | Q52: =(SUM('1. LRAMVA Summary'!L$54:L$59)+SUM('1. LRAMVA Summary'!L$60:L$61)*(MONTH($E52)-1)/12)*$H52 -> 0 | R52: =(SUM('1. LRAMVA Summary'!M$54:M$59)+SUM('1. LRAMVA Summary'!M$60:M$61)*(MONTH($E52)-1)/12)*$H52 -> 0 | S52: =(SUM('1. LRAMVA Summary'!N$54:N$59)+SUM('1. LRAMVA Summary'!N$60:N$61)*(MONTH($E52)-1)/12)*$H52 -> 0 | T52: =(SUM('1. LRAMVA Summary'!O$54:O$59)+SUM('1. LRAMVA Summary'!O$60:O$61)*(MONTH($E52)-1)/12)*$H52 -> 0 | U52: =(SUM('1. LRAMVA Summary'!P$54:P$59)+SUM('1. LRAMVA Summary'!P$60:P$61)*(MONTH($E52)-1)/12)*$H52 -> 0 | V52: =(SUM('1. LRAMVA Summary'!Q$54:Q$59)+SUM('1. LRAMVA Summary'!Q$60:Q$61)*(MONTH($E52)-1)/12)*$H52 -> 0 | W52: 0
B53: 2020 Q3 | E53: 2013-09-01 | F53: 2011-2013 | G53: Q3 | H53: =C$25/12 -> 0.001225 | I53: =(SUM('1. LRAMVA Summary'!D$54:D$59)+SUM('1. LRAMVA Summary'!D$60:D$61)*(MONTH($E53)-1)/12)*$H53 -> 0 | J53: =(SUM('1. LRAMVA Summary'!E$54:E$59)+SUM('1. LRAMVA Summary'!E$60:E$61)*(MONTH($E53)-1)/12)*$H53 -> 0 | K53: =(SUM('1. LRAMVA Summary'!F$54:F$59)+SUM('1. LRAMVA Summary'!F$60:F$61)*(MONTH($E53)-1)/12)*$H53 -> 0 | L53: =(SUM('1. LRAMVA Summary'!G$54:G$59)+SUM('1. LRAMVA Summary'!G$60:G$61)*(MONTH($E53)-1)/12)*$H53 -> 0 | M53: =(SUM('1. LRAMVA Summary'!H$54:H$59)+SUM('1. LRAMVA Summary'!H$60:H$61)*(MONTH($E53)-1)/12)*$H53 -> 0 | N53: =(SUM('1. LRAMVA Summary'!I$54:I$59)+SUM('1. LRAMVA Summary'!I$60:I$61)*(MONTH($E53)-1)/12)*$H53 -> 0 | O53: =(SUM('1. LRAMVA Summary'!J$54:J$59)+SUM('1. LRAMVA Summary'!J$60:J$61)*(MONTH($E53)-1)/12)*$H53 -> 0 | P53: =(SUM('1. LRAMVA Summary'!K$54:K$59)+SUM('1. LRAMVA Summary'!K$60:K$61)*(MONTH($E53)-1)/12)*$H53 -> 0 | Q53: =(SUM('1. LRAMVA Summary'!L$54:L$59)+SUM('1. LRAMVA Summary'!L$60:L$61)*(MONTH($E53)-1)/12)*$H53 -> 0 | R53: =(SUM('1. LRAMVA Summary'!M$54:M$59)+SUM('1. LRAMVA Summary'!M$60:M$61)*(MONTH($E53)-1)/12)*$H53 -> 0 | S53: =(SUM('1. LRAMVA Summary'!N$54:N$59)+SUM('1. LRAMVA Summary'!N$60:N$61)*(MONTH($E53)-1)/12)*$H53 -> 0 | T53: =(SUM('1. LRAMVA Summary'!O$54:O$59)+SUM('1. LRAMVA Summary'!O$60:O$61)*(MONTH($E53)-1)/12)*$H53 -> 0 | U53: =(SUM('1. LRAMVA Summary'!P$54:P$59)+SUM('1. LRAMVA Summary'!P$60:P$61)*(MONTH($E53)-1)/12)*$H53 -> 0 | V53: =(SUM('1. LRAMVA Summary'!Q$54:Q$59)+SUM('1. LRAMVA Summary'!Q$60:Q$61)*(MONTH($E53)-1)/12)*$H53 -> 0 | W53: 0
